Workbook

Sheet README
B2: FRAME Report: 2020/21 Actual
B4: All pages of the FRAME report containing the tables of financial and statistical data are included in this file.
B6: In most cases, formulas have been left intact to show how statistics such as percentages and average costs per pupil are derived.
B8: The cover page, table of contents, forward and introduction, etc. as well as the graphs (e.g. pie charts, bar charts, etc.) are not included. The complete report is available in PDF format on the same web site from which you retrieved this Excel file.
B12: Each worksheet tab is numbered to match the corresponding page found in the published document so, for example, to see page 15, click the worksheet tab named "- 15 -".
B15: This file is unprotected for data manipulation and calculation. Data may also be copied to other files or additional data copied to this one. In cases of dispute however, the published FRAME reports and the corresponding files located on the Manitoba Government web site remain the final authority.

Sheet i (hidden)
A1: PROVINCIAL CONTRIBUTION TO PUBLIC EDUCATION
A3: The total cost of public education in Manitoba includes direct expenses for the operation of schools (e. g. educator and administrator salaries, teaching supplies, pupil transportation, utilities, building maintenance) and capital expenses for school building construction and major building repairs and renovations. Also included are provincial expenses for pensions for retired teachers and the provincial education tax credit programs for homeowners, tenants and farmers which result in reduced property tax bills. The total provincial contribution to public education accounts for 69.9% of the total of these expenses.
C11: 2020/2021 ($ millions)
C13: Total Expense on Public Education | D13: Provincial Contribution | E13: Provincial Contribution as %
A16: 1 | B16: FRAME Operating Fund | C16: ='- 3 -'!B48/1000000 -> 2590.84168 | D16: ='- 41 -'!H48/1000000 -> 1512.230171 | E16: =D16/C16 -> 0.5836829717
A17: 2 | B17: School Division Capital (transfers to capital fund) | C17: 39.317392 | D17: 0 | E17: 0
A18: 3 | B18: Provincial Capital Grant Funding and Other | C18: 126.6272208 | D18: =+C18 -> 126.6272208 | E18: =D18/C18 -> 1
A19: 4 | B19: Manitoba Education Property Tax Credit (1) | C19: n/a | D19: 145.8247 | E19: 1
A20: 5 | B20: Farmland School Tax Rebate | C20: n/a | D20: 47 | E20: 1
A21: 6 | B21: School Tax Assistance for Tenants and Homeowners (55+) | C21: n/a | D21: 0.5 | E21: 1
A22: 7 | B22: Teachers' Retirement Allowances Fund | C22: 317.416 | D22: =+C22 -> 317.416 | E22: =D22/C22 -> 1
B24: Adjusted Total | C24: =SUM(C16:C22) -> 3074.202293 | D24: =SUM(D16:D22) -> 2149.598092 | E24: =D24/C24 -> 0.6992376841
A26: (1) | B26: The portion of the Education Property Tax Credit (EPTC) delivered through the income tax system. Total EPTC is $329.0 million. See page 41 for more information.
A29: Source:
A31: 1 | B31: ="FRAME "&Data!B$5&" Actual page 3, page 41" -> FRAME 2020/21 Actual page 3, page 41
A32: 2 | B32: ="FRAME "&Data!B$5&" Actual page 46" -> FRAME 2020/21 Actual page 46
A33: 3 | B33: Manitoba Education and Early Childhood Learning
A34: 4 | B34: ="Manitoba Education and Early Childhood Learning Annual Report "&VALUE('- 66 -'!F9+1)&"-"&VALUE('- 66 -'!F9+2) -> Manitoba Education and Early Childhood Learning Annual Report 2020-2021
A35: 5 | B35: ="Manitoba Agriculture Annual Report "&VALUE('- 66 -'!F9+1)&"-"&VALUE('- 66 -'!F9+2) -> Manitoba Agriculture Annual Report 2020-2021
A36: 6 | B36: ="Manitoba Education and Early Childhood Learning Annual Report "&VALUE('- 66 -'!F9+1)&"-"&VALUE('- 66 -'!F9+2) -> Manitoba Education and Early Childhood Learning Annual Report 2020-2021
A37: 7 | B37: ="Manitoba Finance " -> Manitoba Finance

Sheet - 1 - (hidden)
X3: YEAR | Z3: 1968 | AA3: 1969 | AB3: 1970 | AC3: 1971 | AD3: 1972 | AE3: 1973 | AF3: 1974 | AG3: 1975 | AH3: 1976 | AI3: 1977 | AJ3: 1978 | AK3: 1979 | AL3: 1980 | AM3: 1981 | AN3: 1982 | AO3: 1983 | AP3: 1984 | AQ3: 1985 | AR3: 1986 | AS3: 1987 | AT3: 1988 | AU3: 1989 | AV3: 1990 | AW3: 1991 | AX3: 1992 | AY3: 1993 | AZ3: 1994 | BA3: 1995 | BB3: 1996 | BC3: 1997 | BD3: 1998 | BE3: 1999 | BF3: 2000 | BG3: 2001 | BH3: 2002 | BI3: 2003 | BJ3: 2004 | BK3: =+BJ3+1 -> 2005 | BL3: 2006 | BM3: 2007 | BN3: 2008 | BO3: 2009 | BP3: 2010 | BQ3: =+BP3+1 -> 2011 | BR3: 2012 | BS3: 2013 | BT3: 2014 | BU3: 2015 | BV3: 2016 | BW3: 2017 | BX3: 2018 | BY3: 2019 | BZ3: 2020
X4: ENROLMENT | Z4: 232.2 | AA4: 245.5 | AB4: 247.5 | AC4: 245.6 | AD4: 239.7 | AE4: 231.4 | AF4: 227.5 | AG4: 225.6 | AH4: 223.2 | AI4: 219.2 | AJ4: 213.4 | AK4: 206.7 | AL4: 202.4 | AM4: 199.1 | AN4: 199 | AO4: 198.2 | AP4: 198 | AQ4: 197.6 | AR4: 197.7 | AS4: 198.3 | AT4: 197.7 | AU4: 196.7 | AV4: 196.4 | AW4: 195.9 | AX4: 195.6 | AY4: 195.2 | AZ4: 194.2 | BA4: 194.7 | BB4: 194.7 | BC4: 194.3 | BD4: 194.7 | BE4: =199-7.2 -> 191.8 | BF4: 191.9 | BG4: 190.7 | BH4: 188.8 | BI4: 188.1 | BJ4: 186.3 | BK4: 184.3 | BL4: 181.9 | BM4: 181.227 | BN4: 179.892 | BO4: 179.593 | BP4: 179.784 | BQ4: 181.147 | BR4: 181.561 | BS4: 181.278 | BT4: 181.901 | BU4: 183.13 | BV4: 185.225 | BW4: 186.872 | BX4: 188.54 | BY4: 189.903 | BZ4: =+'- 8 -'!B48/1000 -> 180.878

Sheet - 2 - (hidden)
S24: - 2 -
C374: TOTAL | D374: CPI | F374: Actual | G374: Adjusted
C375: EXPENSES | D375: 2002 = 100 | E375: CPI ADJUSTED | F375: $millions | G375: $millions
A377: * | B377: 95/96 | C377: 1107558414 | D377: 87.59890552 | E377: =C377*(100/D377) -> 1264351886 | F377: =C377/1000000 -> 1107.558414 | G377: =E377/1000000 -> 1264.351886
A378: * | B378: 96/97 | C378: 1114015680 | D378: 89.90343796 | E378: 1239124672 | F378: 1114.01568 | G378: 1239.124672
A379: * | B379: 97/98 | C379: 1135289883 | D379: 90.98461575 | E379: 1247782247 | F379: 1135.289883 | G379: 1247.782247
A380: * | B380: 98/99 | C380: 1173479619 | D380: 92.55347956 | E380: 1267893573 | F380: 1173.479619 | G380: 1267.893573
A381: * | B381: 99/00 | C381: 1217264871 | D381: 94.70620092 | E381: 1285306410 | F381: 1217.264871 | G381: 1285.30641
A382: * | B382: 00/01 | C382: 1267547075 | D382: 97.48849174 | E382: 1300201749 | F382: 1267.547075 | G382: 1300.201749
A383: * | B383: 01/02 | C383: 1319051433 | D383: 98.85594368 | E383: 1334316768 | F383: 1319.051433 | G383: 1334.316768
A384: * | B384: 02/03 | C384: 1368981369 | D384: 101.2997563 | E384: 1351416251 | F384: 1368.981369 | G384: 1351.416251
A385: * | B385: 03/04 | C385: 1428062065 | D385: 102.3558083 | E385: 1395193970 | F385: 1428.062065 | G385: 1395.19397
A386: * | B386: 04/05 | C386: 1467949861 | D386: 105.2703967 | E386: 1394456473 | F386: 1467.949861 | G386: 1394.456473
A387: * | B387: 05/06 | C387: 1536007876 | D387: 107.7583333 | E387: =C387*(100/D387) -> 1425419110 | F387: 1536.007876 | G387: 1425.41911
A388: * | B388: 06/07 | C388: 1603516300 | D388: 109.8333333 | E388: 1459954143 | F388: 1603.5163 | G388: 1459.954143
A389: * | B389: 07/08 | C389: 1677944959 | D389: 111.85 | E389: 1500174304 | F389: 1677.944959 | G389: 1500.174304
A390: * | B390: 08/09 | C390: 1752304867 | D390: 114 | E390: 1537109532 | F390: =C390/1000000 -> 1752.304867 | G390: =E390/1000000 -> 1537.109532
A391: * | B391: 09/10 | C391: 1818421619 | D391: 114.6333333 | E391: 1586293939 | F391: 1818.421619 | G391: 1586.293939
A392: * | B392: 10/11 | C392: 1875139076 | D392: 116.6583333 | E392: 1607376878 | F392: 1875.139076 | G392: 1607.376878
A393: * | B393: 11/12 | C393: 1945942424 | D393: 119.4166667 | E393: =C393*(100/D393) -> 1629540062 | F393: 1945.942424 | G393: 1629.540062
A394: * | B394: 12/13 | C394: 2017420276 | D394: 121.4833333 | E394: 1660656010 | F394: 2017.420276 | G394: 1660.65601
A395: * | B395: 13/14 | C395: 2086402489 | D395: 124.4 | E395: 1677172419 | F395: 2086.402489 | G395: 1677.172419
A396: * | B396: 14/15 | C396: 2156918416 | D396: 125.7833333 | E396: 1714788723 | F396: =C396/1000000 -> 2156.918416 | G396: =E396/1000000 -> 1714.788723
A397: * | B397: 15/16 | C397: 2235012397 | D397: 127.725 | E397: 1749862906 | F397: 2235.012397 | G397: 1749.862906
A398: * | B398: 16/17 | C398: 2313048846 | D398: 129.325 | E398: 1788555071 | F398: 2313.048846 | G398: 1788.555071
A399: * | B399: 17/18 | C399: 2377682744 | D399: 132.1333333 | E399: 1799457173 | F399: 2377.682744 | G399: 1799.457173
A400: * | B400: 18/19 | C400: 2418150519 | D400: 135.2916667 | E400: 1787361024 | F400: 2418.150519 | G400: 1846.268768
A401: * | B401: 19/20 | C401: 2431876352 | D401: 137.4 | E401: 1769924565 | F401: 2431.876352 | G401: 1769.924565
A402: * | B402: 20/21 | C402: ='- 3 -'!B48 -> 2590841680 | D402: 138.9 | E402: 1865256789 | F402: 2590.84168 | G402: 1865.256789 | H402: File CPI sheet ANNUAL AVGS 2002 BASE

Sheet - 3 -
A2: RECONCILIATION OF EXPENSES
A3: ="OPERATING FUND "&FALLYR&"/"&SPRINGYR&" ACTUAL" -> OPERATING FUND 2020/2021 ACTUAL
C6: LESS OPERATING FUND TRANSFERS (2) | D6: EXPENSES NET OF TRANFERS (3) | E6: LESS NON K-12 EDUCATION & SERVICES (4) | F6: TOTAL EXPENSES FOR PER PUPIL COSTS (5)
B8: TOTAL EXPENSES (1)
A9: DIVISION / DISTRICT
A11: BEAUTIFUL PLAINS | B11: 22607653 | C11: =-Data!K11 -> -99829 | D11: =B11+C11 -> 22507824 | E11: =-'- 15 -'!H11-'- 16 -'!B11 -> -11803 | F11: =D11+E11 -> 22496021
A12: BORDER LAND | B12: 35042819 | C12: =-Data!K12 -> -635000 | D12: =B12+C12 -> 34407819 | E12: =-'- 15 -'!H12-'- 16 -'!B12 -> -579726 | F12: =D12+E12 -> 33828093
A13: BRANDON | B13: 112756402 | C13: =-Data!K13 -> -68900 | D13: 112687502 | E13: =-'- 15 -'!H13-'- 16 -'!B13 -> -331987 | F13: 112355515
A14: DSFM | B14: 103595486 | C14: =-Data!K14 -> -897292 | D14: 102698194 | E14: =-'- 15 -'!H14-'- 16 -'!B14 -> -1593468 | F14: 101104726
A15: EVERGREEN | B15: 21083952 | C15: =-Data!K15 -> -133115 | D15: 20950837 | E15: =-'- 15 -'!H15-'- 16 -'!B15 -> 0 | F15: 20950837
A16: FLIN FLON | B16: 15858276 | C16: =-Data!K16 -> -3900 | D16: 15854376 | E16: =-'- 15 -'!H16-'- 16 -'!B16 -> -111927 | F16: 15742449
A17: FORT LA BOSSE | B17: 19053749 | C17: =-Data!K17 -> -118730 | D17: 18935019 | E17: =-'- 15 -'!H17-'- 16 -'!B17 -> -286230 | F17: 18648789
A18: FRONTIER | B18: 147623214 | C18: =-Data!K18 -> -4745886 | D18: 142877328 | E18: =-'- 15 -'!H18-'- 16 -'!B18 -> -4859075 | F18: 138018253
A19: GARDEN VALLEY | B19: 53517773 | C19: =-Data!K19 -> -487951 | D19: 53029822 | E19: =-'- 15 -'!H19-'- 16 -'!B19 -> -78785 | F19: 52951037
A20: HANOVER | B20: 98660977 | C20: =-Data!K20 -> -2259407 | D20: 96401570 | E20: =-'- 15 -'!H20-'- 16 -'!B20 -> -36470 | F20: 96365100
A21: INTERLAKE | B21: 41543092 | C21: =-Data!K21 -> -264196 | D21: 41278896 | E21: =-'- 15 -'!H21-'- 16 -'!B21 -> 0 | F21: 41278896
A22: KELSEY | B22: 20963581 | C22: =-Data!K22 -> -7873 | D22: 20955708 | E22: =-'- 15 -'!H22-'- 16 -'!B22 -> -688653 | F22: 20267055
A23: LAKESHORE | B23: 16213216 | C23: =-Data!K23 -> -58966 | D23: 16154250 | E23: =-'- 15 -'!H23-'- 16 -'!B23 -> -475926 | F23: 15678324
A24: LORD SELKIRK | B24: 60782392 | C24: =-Data!K24 -> -181881 | D24: 60600511 | E24: =-'- 15 -'!H24-'- 16 -'!B24 -> -453975 | F24: 60146536
A25: LOUIS RIEL | B25: 201591957 | C25: =-Data!K25 -> -906994 | D25: 200684963 | E25: =-'- 15 -'!H25-'- 16 -'!B25 -> -3085187 | F25: 197599776
A26: MOUNTAIN VIEW | B26: 42818150 | C26: =-Data!K26 -> -5385 | D26: 42812765 | E26: =-'- 15 -'!H26-'- 16 -'!B26 -> -99361 | F26: 42713404
A27: MYSTERY LAKE | B27: 43354572 | C27: =-Data!K27 -> -6900 | D27: 43347672 | E27: =-'- 15 -'!H27-'- 16 -'!B27 -> -57011 | F27: 43290661
A28: PARK WEST | B28: 29407057 | C28: =-Data!K28 -> -106071 | D28: 29300986 | E28: =-'- 15 -'!H28-'- 16 -'!B28 -> -156527 | F28: 29144459
A29: PEMBINA TRAILS | B29: 183083337 | C29: =-Data!K29 -> -2022945 | D29: 181060392 | E29: =-'- 15 -'!H29-'- 16 -'!B29 -> -284977 | F29: 180775415
A30: PINE CREEK | B30: 16602768 | C30: =-Data!K30 -> -36009 | D30: 16566759 | E30: =-'- 15 -'!H30-'- 16 -'!B30 -> -10868 | F30: 16555891
A31: PORTAGE LA PRAIRIE | B31: 44094323 | C31: =-Data!K31 -> -44850 | D31: 44049473 | E31: =-'- 15 -'!H31-'- 16 -'!B31 -> -54911 | F31: 43994562
A32: PRAIRIE ROSE | B32: 33600509 | C32: =-Data!K32 -> -175551 | D32: 33424958 | E32: =-'- 15 -'!H32-'- 16 -'!B32 -> -324664 | F32: 33100294
A33: PRAIRIE SPIRIT | B33: 29915738 | C33: =-Data!K33 -> -73382 | D33: 29842356 | E33: =-'- 15 -'!H33-'- 16 -'!B33 -> -31367 | F33: 29810989
A34: RED RIVER VALLEY | B34: 33125606 | C34: =-Data!K34 -> -375998 | D34: 32749608 | E34: =-'- 15 -'!H34-'- 16 -'!B34 -> -27366 | F34: 32722242
A35: RIVER EAST TRANSCONA | B35: 212535727 | C35: =-Data!K35 -> -587048 | D35: 211948679 | E35: =-'- 15 -'!H35-'- 16 -'!B35 -> -2635584 | F35: 209313095
A36: ROLLING RIVER | B36: 25527740 | C36: =-Data!K36 -> -343153 | D36: 25184587 | E36: =-'- 15 -'!H36-'- 16 -'!B36 -> -139755 | F36: 25044832
A37: SEINE RIVER | B37: 56400441 | C37: =-Data!K37 -> -497764 | D37: 55902677 | E37: =-'- 15 -'!H37-'- 16 -'!B37 -> -953904 | F37: 54948773
A38: SEVEN OAKS | B38: 157845920 | C38: =-Data!K38 -> -1082436 | D38: 156763484 | E38: =-'- 15 -'!H38-'- 16 -'!B38 -> -5328463 | F38: 151435021
A39: SOUTHWEST HORIZON | B39: 23681768 | C39: =-Data!K39 -> -238989 | D39: 23442779 | E39: =-'- 15 -'!H39-'- 16 -'!B39 -> -161470 | F39: 23281309
A40: ST. JAMES-ASSINIBOIA | B40: 113779863 | C40: =-Data!K40 -> -386951 | D40: 113392912 | E40: =-'- 15 -'!H40-'- 16 -'!B40 -> -908628 | F40: 112484284
A41: SUNRISE | B41: 70123859 | C41: =-Data!K41 -> -489105 | D41: 69634754 | E41: =-'- 15 -'!H41-'- 16 -'!B41 -> -1266805 | F41: 68367949
A42: SWAN VALLEY | B42: 21807328 | C42: =-Data!K42 -> -60000 | D42: 21747328 | E42: =-'- 15 -'!H42-'- 16 -'!B42 -> -2385 | F42: 21744943
A43: TURTLE MOUNTAIN | B43: 13902676 | C43: =-Data!K43 -> -42218 | D43: 13860458 | E43: =-'- 15 -'!H43-'- 16 -'!B43 -> -226004 | F43: 13634454
A44: TURTLE RIVER | B44: 11435948 | C44: =-Data!K44 -> -123272 | D44: 11312676 | E44: =-'- 15 -'!H44-'- 16 -'!B44 -> -18747 | F44: 11293929
A45: WESTERN | B45: 22819706 | C45: =-Data!K45 -> -24700 | D45: 22795006 | E45: =-'- 15 -'!H45-'- 16 -'!B45 -> -423028 | F45: 22371978
A46: WINNIPEG | B46: 434084105 | C46: =-Data!K46 -> -2243821 | D46: 431840284 | E46: =-'- 15 -'!H46-'- 16 -'!B46 -> -9333542 | F46: 422506742
A48: PROVINCE | B48: =SUM(B11:B46) -> 2590841680 | C48: =SUM(C11:C46) -> -19836468 | D48: =SUM(D11:D46) -> 2571005212 | E48: =SUM(E11:E46) -> -35038579 | F48: =SUM(F11:F46) -> 2535966633
A50: WHITESHELL | B50: 3397936 | C50: =-Data!K50 -> -7860 | D50: =B50+C50 -> 3390076 | E50: =-'- 15 -'!H50-'- 16 -'!B50 -> -77535 | F50: =D50+E50 -> 3312541
A51: MITT | B51: 31399522 | C51: =-Data!K51 -> -266663 | D51: =B51+C51 -> 31132859 | E51: =-'- 15 -'!H51-'- 16 -'!B51 -> -12727835 | F51: =D51+E51 -> 18405024
A53: (1) Total operating expenses as reported on the Schedule of Revenue, Expenses and Accumulated Surplus by each school division.
A54: (2) Operating fund transfers are payments to other school divisions, organizations and individuals. These are removed to provide more accurate per pupil costs.
A56: (3) As reported on pages 10 and 13 (on a provincial basis).
A57: (4) Expenses for Adult Learning Centres and Community Education and Services (Functions 300 and 400).
A58: (5) As reported on page 4.

Sheet - 4 -
B2: OPERATING FUND COST PER PUPIL
B7: 2019/2020 ACTUAL | D7: 2020/2021 ACTUAL
A9: DIVISION / DISTRICT | B9: EXPENSES (1)X | C9: PER PUPIL | D9: EXPENSES (1)X | E9: PER PUPIL
A11: BEAUTIFUL PLAINS | B11: 20988133 | C11: 10600 | D11: ='- 3 -'!F11 -> 22496021 | E11: =ROUND(D11/'- 7 -'!E11,0) -> 11828
A12: BORDER LAND | B12: 33019951 | C12: 15179 | D12: ='- 3 -'!F12 -> 33828093 | E12: =ROUND(D12/'- 7 -'!E12,0) -> 17207
A13: BRANDON | B13: 104270000 | C13: 12040 | D13: ='- 3 -'!F13 -> 112355515 | E13: =ROUND(D13/'- 7 -'!E13,0) -> 13216
A14: DSFM | B14: 88231347 | C14: 15942 | D14: ='- 3 -'!F14 -> 101104726 | E14: =ROUND(D14/'- 7 -'!E14,0) -> 17059
A15: EVERGREEN | B15: 19678330 | C15: 13520 | D15: ='- 3 -'!F15 -> 20950837 | E15: =ROUND(D15/'- 7 -'!E15,0) -> 15105
A16: FLIN FLON | B16: 14265200 | C16: 15674 | D16: ='- 3 -'!F16 -> 15742449 | E16: =ROUND(D16/'- 7 -'!E16,0) -> 16916
A17: FORT LA BOSSE | B17: 17701844 | C17: 12383 | D17: ='- 3 -'!F17 -> 18648789 | E17: =ROUND(D17/'- 7 -'!E17,0) -> 12830
A18: FRONTIER | B18: 128419277 | C18: 21560 | D18: ='- 3 -'!F18 -> 138018253 | E18: =ROUND(D18/'- 7 -'!E18,0) -> 23457
A19: GARDEN VALLEY | B19: 49653195 | C19: 11274 | D19: ='- 3 -'!F19 -> 52951037 | E19: =ROUND(D19/'- 7 -'!E19,0) -> 12117
A20: HANOVER | B20: 88385628 | C20: 11020 | D20: ='- 3 -'!F20 -> 96365100 | E20: =ROUND(D20/'- 7 -'!E20,0) -> 12473
A21: INTERLAKE | B21: 37394324 | C21: 13246 | D21: ='- 3 -'!F21 -> 41278896 | E21: =ROUND(D21/'- 7 -'!E21,0) -> 14669
A22: KELSEY | B22: 19913733 | C22: 12973 | D22: ='- 3 -'!F22 -> 20267055 | E22: =ROUND(D22/'- 7 -'!E22,0) -> 14446
A23: LAKESHORE | B23: 14980433 | C23: 15957 | D23: ='- 3 -'!F23 -> 15678324 | E23: =ROUND(D23/'- 7 -'!E23,0) -> 17305
A24: LORD SELKIRK | B24: 57699956 | C24: 15409 | D24: ='- 3 -'!F24 -> 60146536 | E24: =ROUND(D24/'- 7 -'!E24,0) -> 16605
A25: LOUIS RIEL | B25: 190853558 | C25: 12714 | D25: ='- 3 -'!F25 -> 197599776 | E25: =ROUND(D25/'- 7 -'!E25,0) -> 13037
A26: MOUNTAIN VIEW | B26: 40820371 | C26: 13329 | D26: ='- 3 -'!F26 -> 42713404 | E26: =ROUND(D26/'- 7 -'!E26,0) -> 14433
A27: MYSTERY LAKE | B27: 41638526 | C27: 13775 | D27: ='- 3 -'!F27 -> 43290661 | E27: =ROUND(D27/'- 7 -'!E27,0) -> 14350
A28: PARK WEST | B28: 28021347 | C28: 14095 | D28: ='- 3 -'!F28 -> 29144459 | E28: =ROUND(D28/'- 7 -'!E28,0) -> 15093
A29: PEMBINA TRAILS | B29: 168353236 | C29: 11760 | D29: ='- 3 -'!F29 -> 180775415 | E29: =ROUND(D29/'- 7 -'!E29,0) -> 12267
A30: PINE CREEK | B30: 15542381 | C30: 15156 | D30: ='- 3 -'!F30 -> 16555891 | E30: =ROUND(D30/'- 7 -'!E30,0) -> 15843
A31: PORTAGE LA PRAIRIE | B31: 39895568 | C31: 11966 | D31: ='- 3 -'!F31 -> 43994562 | E31: =ROUND(D31/'- 7 -'!E31,0) -> 13231
A32: PRAIRIE ROSE | B32: 30017234 | C32: 13189 | D32: ='- 3 -'!F32 -> 33100294 | E32: =ROUND(D32/'- 7 -'!E32,0) -> 14249
A33: PRAIRIE SPIRIT | B33: 28042101 | C33: 13658 | D33: ='- 3 -'!F33 -> 29810989 | E33: =ROUND(D33/'- 7 -'!E33,0) -> 14854
A34: RED RIVER VALLEY | B34: 30396251 | C34: 13669 | D34: ='- 3 -'!F34 -> 32722242 | E34: =ROUND(D34/'- 7 -'!E34,0) -> 15085
A35: RIVER EAST TRANSCONA | B35: 188823385 | C35: 11645 | D35: ='- 3 -'!F35 -> 209313095 | E35: =ROUND(D35/'- 7 -'!E35,0) -> 13010
A36: ROLLING RIVER | B36: 23505047 | C36: 13694 | D36: ='- 3 -'!F36 -> 25044832 | E36: =ROUND(D36/'- 7 -'!E36,0) -> 14646
A37: SEINE RIVER | B37: 54060513 | C37: 12639 | D37: ='- 3 -'!F37 -> 54948773 | E37: =ROUND(D37/'- 7 -'!E37,0) -> 12744
A38: SEVEN OAKS | B38: 143276060 | C38: 12500 | D38: ='- 3 -'!F38 -> 151435021 | E38: =ROUND(D38/'- 7 -'!E38,0) -> 13565
A39: SOUTHWEST HORIZON | B39: 21582136 | C39: 14417 | D39: ='- 3 -'!F39 -> 23281309 | E39: =ROUND(D39/'- 7 -'!E39,0) -> 15477
A40: ST. JAMES-ASSINIBOIA | B40: 105520759 | C40: 12931 | D40: ='- 3 -'!F40 -> 112484284 | E40: =ROUND(D40/'- 7 -'!E40,0) -> 14127
A41: SUNRISE | B41: 63243636 | C41: 14060 | D41: ='- 3 -'!F41 -> 68367949 | E41: =ROUND(D41/'- 7 -'!E41,0) -> 15777
A42: SWAN VALLEY | B42: 20408430 | C42: 14896 | D42: ='- 3 -'!F42 -> 21744943 | E42: =ROUND(D42/'- 7 -'!E42,0) -> 16740
A43: TURTLE MOUNTAIN | B43: 12838918 | C43: 12807 | D43: ='- 3 -'!F43 -> 13634454 | E43: =ROUND(D43/'- 7 -'!E43,0) -> 13433
A44: TURTLE RIVER | B44: 10621577 | C44: 15349 | D44: ='- 3 -'!F44 -> 11293929 | E44: =ROUND(D44/'- 7 -'!E44,0) -> 17429
A45: WESTERN | B45: 20708277 | C45: 10814 | D45: ='- 3 -'!F45 -> 22371978 | E45: =ROUND(D45/'- 7 -'!E45,0) -> 12443
A46: WINNIPEG | B46: 403164434 | C46: 13648 | D46: ='- 3 -'!F46 -> 422506742 | E46: =ROUND(D46/'- 7 -'!E46,0) -> 14457
A48: PROVINCE | B48: =SUM(B11:B46) -> 2375935096 | C48: 13183 | D48: =SUM(D11:D46) -> 2535966633 | E48: =ROUND(D48/'- 7 -'!E48,0) -> 14205
A50: WHITESHELL | B50: 3086494 | C50: 16245 | D50: ='- 3 -'!F50 -> 3312541 | E50: =ROUND(D50/'- 7 -'!E50,0) -> 18003
A51: MITT | B51: 18997886 | C51: 15395 | D51: ='- 3 -'!F51 -> 18405024 | E51: =ROUND(D51/'- 7 -'!E51,0) -> 10374
A53: (1) Operating fund transfers (i.e. payments to other school divisions, organizations and individuals) are excluded to provide more accurate per pupil costs. Also excluded are expenditures on educational services not provided to K-12 pupils: Function 300 (Adult Learning Centres) and Function 400 (Community Education and Services).

Sheet - 5 - (hidden)
S25: - 5 -

Sheet - 6 -
B2: FRAME STUDENT STATISTICS | H2: PAGE 1 OF 2
B3: ="ACTUAL SEPTEMBER 30, "&FALLYR -> ACTUAL SEPTEMBER 30, 2020
B6: REGULAR INSTRUCTION
B7: SINGLE TRACK (1) | E7: DUAL TRACK (2)
B8: ENGLISH LANGUAGE | D8: FRENCH IMMERSION | E8: ENGLISH LANGUAGE | G8: FRENCH IMMERSION | H8: OTHER BILINGUAL
A9: DIVISION / DISTRICT | C9: FRANÇAIS | F9: FRANÇAIS
A11: BEAUTIFUL PLAINS | B11: 1902 | C11: 0 | D11: 0 | E11: 0 | F11: 0 | G11: 0 | H11: 0
A12: BORDER LAND | B12: 1204.8 | C12: 0 | D12: 0 | E12: 508.5 | F12: 0 | G12: 124 | H12: 0
A13: BRANDON | B13: 6611.5 | C13: 0 | D13: 336 | E13: 611 | F13: 0 | G13: 552 | H13: 0
A14: DSFM | B14: 0 | C14: 5910 | D14: 0 | E14: 0 | F14: 0 | G14: 0 | H14: 0
A15: EVERGREEN | B15: 1367 | C15: 0 | D15: 0 | E15: 0 | F15: 0 | G15: 0 | H15: 0
A16: FLIN FLON | B16: 571.6 | C16: 0 | D16: 0 | E16: 248 | F16: 0 | G16: 111 | H16: 0
A17: FORT LA BOSSE | B17: 1428.5 | C17: 0 | D17: 0 | E17: 0 | F17: 0 | G17: 0 | H17: 0
A18: FRONTIER | B18: 5844 | C18: 0 | D18: 0 | E18: 0 | F18: 0 | G18: 0 | H18: 0
A19: GARDEN VALLEY | B19: 4274.6 | C19: 0 | D19: 0 | E19: 0 | F19: 0 | G19: 0 | H19: 0
A20: HANOVER | B20: 7213 | C20: 0 | D20: 0 | E20: 0 | F20: 0 | G20: 0 | H20: 0
A21: INTERLAKE | B21: 2056 | C21: 0 | D21: 0 | E21: 448.5 | F21: 0 | G21: 309.5 | H21: 0
A22: KELSEY | B22: 789 | C22: 0 | D22: 0 | E22: 456 | F22: 0 | G22: 158 | H22: 0
A23: LAKESHORE | B23: 895 | C23: 0 | D23: 0 | E23: 0 | F23: 0 | G23: 0 | H23: 0
A24: LORD SELKIRK | B24: 2542.3 | C24: 0 | D24: 211.5 | E24: 504 | F24: 0 | G24: 96 | H24: 76.5
A25: LOUIS RIEL | B25: 7766 | C25: 0 | D25: 6528 | E25: 381 | F25: 0 | G25: 388 | H25: 0
A26: MOUNTAIN VIEW | B26: 2140.29 | C26: 0 | D26: 135.5 | E26: 386 | F26: 0 | G26: 78 | H26: 65
A27: MYSTERY LAKE | B27: 2544.8 | C27: 0 | D27: 0 | E27: 162.5 | F27: 0 | G27: 222 | H27: 0
A28: PARK WEST | B28: 1931 | C28: 0 | D28: 0 | E28: 0 | F28: 0 | G28: 0 | H28: 0
A29: PEMBINA TRAILS | B29: 8637.5 | C29: 0 | D29: 1382.5 | E29: 2851.4 | F29: 1865 | G29: 0 | H29: 0
A30: PINE CREEK | B30: 1045 | C30: 0 | D30: 0 | E30: 0 | F30: 0 | G30: 0 | H30: 0
A31: PORTAGE LA PRAIRIE | B31: 2352 | C31: 0 | D31: 0 | E31: 542.5 | F31: 342.5 | G31: 0 | H31: 0
A32: PRAIRIE ROSE | B32: 1731 | C32: 0 | D32: 128 | E32: 367 | F32: 0 | G32: 97 | H32: 0
A33: PRAIRIE SPIRIT | B33: 1572 | C33: 0 | D33: 0 | E33: 226 | F33: 102 | G33: 107 | H33: 0
A34: RED RIVER VALLEY | B34: 1629.48 | C34: 0 | D34: 288 | E34: 83 | F34: 143.5 | G34: 0 | H34: 0
A35: RIVER EAST TRANSCONA | B35: 7908.5 | C35: 0 | D35: 1397 | E35: 3592 | F35: 0 | G35: 2024 | H35: 535.5
A36: ROLLING RIVER | B36: 1703 | C36: 0 | D36: 0 | E36: 0 | F36: 0 | G36: 0 | H36: 0
A37: SEINE RIVER | B37: 2102.7 | C37: 0 | D37: 850 | E37: 721 | F37: 0 | G37: 638 | H37: 0
A38: SEVEN OAKS | B38: 6443.2 | C38: 0 | D38: 965 | E38: 2197.4 | F38: 0 | G38: 1158 | H38: 243.5
A39: SOUTHWEST HORIZON | B39: 1504.3 | C39: 0 | D39: 0 | E39: 0 | F39: 0 | G39: 0 | H39: 0
A40: ST. JAMES-ASSINIBOIA | B40: 5377.72 | C40: 0 | D40: 1396 | E40: 588.63 | F40: 0 | G40: 364 | H40: 0
A41: SUNRISE | B41: 2008 | C41: 0 | D41: 0 | E41: 1505 | F41: 0 | G41: 745 | H41: 75.5
A42: SWAN VALLEY | B42: 915.64 | C42: 0 | D42: 0 | E42: 202.59 | F42: 0 | G42: 50.91 | H42: 0
A43: TURTLE MOUNTAIN | B43: 985 | C43: 0 | D43: 0 | E43: 0 | F43: 0 | G43: 0 | H43: 0
A44: TURTLE RIVER | B44: 606.5 | C44: 0 | D44: 41.5 | E44: 0 | F44: 0 | G44: 0 | H44: 0
A45: WESTERN | B45: 775 | C45: 0 | D45: 0 | E45: 704.5 | F45: 0 | G45: 295.5 | H45: 0
A46: WINNIPEG | B46: 18595.5 | C46: 1476.5 | D46: 0 | E46: 5290.7 | F46: 0 | G46: 2856 | H46: 308.5
A48: PROVINCE | B48: =SUM(B11:B46) -> 116973.43 | C48: 7386.5 | D48: 13659 | E48: 22577.22 | F48: 2453 | G48: 10373.91 | H48: 1304.5
A50: WHITESHELL | B50: 184 | C50: 0 | D50: 0 | E50: 0 | F50: 0 | G50: 0 | H50: 0
A51: MITT | B51: 131 | C51: 18 | D51: 0 | E51: 0 | F51: 0 | G51: 0 | H51: 0
A53: (1) 90% or more of Regular Instruction enrolment is in one language program.
A54: (2) No one language program comprises 90% or more of Regular Instruction enrolment.

Sheet - 7 -
B2: FRAME STUDENT STATISTICS | G2: PAGE 2 OF 2
B3: =STATDATE -> ACTUAL SEPTEMBER 30, 2020
B7: REGULAR INSTRUCTION (1) | E7: TOTAL
B8: SENIOR YEARS TECHNOLOGY | E8: K-12 F.T.E. ENROLMENT
A9: DIVISION / DISTRICT | C9: TOTAL
A11: BEAUTIFUL PLAINS | B11: 0 | C11: =SUM('- 6 -'!B11:H11,B11) -> 1902 | E11: =C11 -> 1902
A12: BORDER LAND | B12: 128.69 | C12: =SUM('- 6 -'!B12:H12,B12) -> 1965.99 | E12: =C12 -> 1965.99
A13: BRANDON | B13: 391 | C13: =SUM('- 6 -'!B13:H13,B13) -> 8501.5 | E13: 8501.5
A14: DSFM | B14: 16.92 | C14: =SUM('- 6 -'!B14:H14,B14) -> 5926.92 | E14: 5926.92
A15: EVERGREEN | B15: 20 | C15: =SUM('- 6 -'!B15:H15,B15) -> 1387 | E15: 1387
A16: FLIN FLON | B16: 0 | C16: =SUM('- 6 -'!B16:H16,B16) -> 930.6 | E16: 930.6
A17: FORT LA BOSSE | B17: 25 | C17: =SUM('- 6 -'!B17:H17,B17) -> 1453.5 | E17: 1453.5
A18: FRONTIER | B18: 40 | C18: =SUM('- 6 -'!B18:H18,B18) -> 5884 | E18: 5884
A19: GARDEN VALLEY | B19: 95.4 | C19: =SUM('- 6 -'!B19:H19,B19) -> 4370 | E19: 4370
A20: HANOVER | B20: 513 | C20: =SUM('- 6 -'!B20:H20,B20) -> 7726 | E20: 7726
A21: INTERLAKE | B21: 0 | C21: =SUM('- 6 -'!B21:H21,B21) -> 2814 | E21: 2814
A22: KELSEY | B22: 0 | C22: =SUM('- 6 -'!B22:H22,B22) -> 1403 | E22: 1403
A23: LAKESHORE | B23: 11 | C23: =SUM('- 6 -'!B23:H23,B23) -> 906 | E23: 906
A24: LORD SELKIRK | B24: 192 | C24: =SUM('- 6 -'!B24:H24,B24) -> 3622.3 | E24: 3622.3
A25: LOUIS RIEL | B25: 93.5 | C25: =SUM('- 6 -'!B25:H25,B25) -> 15156.5 | E25: 15156.5
A26: MOUNTAIN VIEW | B26: 154.71 | C26: =SUM('- 6 -'!B26:H26,B26) -> 2959.5 | E26: 2959.5
A27: MYSTERY LAKE | B27: 87.5 | C27: =SUM('- 6 -'!B27:H27,B27) -> 3016.8 | E27: 3016.8
A28: PARK WEST | B28: 0 | C28: =SUM('- 6 -'!B28:H28,B28) -> 1931 | E28: 1931
A29: PEMBINA TRAILS | B29: 0 | C29: =SUM('- 6 -'!B29:H29,B29) -> 14736.4 | E29: 14736.4
A30: PINE CREEK | B30: 0 | C30: =SUM('- 6 -'!B30:H30,B30) -> 1045 | E30: 1045
A31: PORTAGE LA PRAIRIE | B31: 88 | C31: =SUM('- 6 -'!B31:H31,B31) -> 3325 | E31: 3325
A32: PRAIRIE ROSE | B32: 0 | C32: =SUM('- 6 -'!B32:H32,B32) -> 2323 | E32: 2323
A33: PRAIRIE SPIRIT | B33: 0 | C33: =SUM('- 6 -'!B33:H33,B33) -> 2007 | E33: 2007
A34: RED RIVER VALLEY | B34: 25.24 | C34: =SUM('- 6 -'!B34:H34,B34) -> 2169.22 | E34: 2169.22
A35: RIVER EAST TRANSCONA | B35: 632 | C35: =SUM('- 6 -'!B35:H35,B35) -> 16089 | E35: 16089
A36: ROLLING RIVER | B36: 7 | C36: =SUM('- 6 -'!B36:H36,B36) -> 1710 | E36: 1710
A37: SEINE RIVER | B37: 0 | C37: =SUM('- 6 -'!B37:H37,B37) -> 4311.7 | E37: 4311.7
A38: SEVEN OAKS | B38: 156.8 | C38: =SUM('- 6 -'!B38:H38,B38) -> 11163.9 | E38: 11163.9
A39: SOUTHWEST HORIZON | B39: 0 | C39: =SUM('- 6 -'!B39:H39,B39) -> 1504.3 | E39: 1504.3
A40: ST. JAMES-ASSINIBOIA | B40: 236.29 | C40: =SUM('- 6 -'!B40:H40,B40) -> 7962.64 | E40: 7962.64
A41: SUNRISE | B41: 0 | C41: =SUM('- 6 -'!B41:H41,B41) -> 4333.5 | E41: 4333.5
A42: SWAN VALLEY | B42: 129.86 | C42: =SUM('- 6 -'!B42:H42,B42) -> 1299 | E42: 1299
A43: TURTLE MOUNTAIN | B43: 30 | C43: =SUM('- 6 -'!B43:H43,B43) -> 1015 | E43: 1015
A44: TURTLE RIVER | B44: 0 | C44: =SUM('- 6 -'!B44:H44,B44) -> 648 | E44: 648
A45: WESTERN | B45: 23 | C45: =SUM('- 6 -'!B45:H45,B45) -> 1798 | E45: 1798
A46: WINNIPEG | B46: 698 | C46: =SUM('- 6 -'!B46:H46,B46) -> 29225.2 | E46: 29225.2
A48: PROVINCE | B48: =SUM(B11:B46) -> 3794.91 | C48: =SUM(C11:C46) -> 178522.47 | E48: =SUM(E11:E46) -> 178522.47
A50: WHITESHELL | B50: 0 | C50: =SUM('- 6 -'!B50:H50,B50) -> 184 | E50: =C50 -> 184
A51: MITT | B51: 1625.1 | C51: =SUM('- 6 -'!B51:H51,B51) -> 1774.1 | E51: =C51 -> 1774.1
A53: (1) Special Placement students are no longer reported separately. They are included in Regular Instruction Enrolment. As a result, total enrolment in Regular Instruction is equal to Total K-12 F.T.E. enrolment.

Sheet - 8 -
B2: ENROLMENTS - HEADCOUNT, FRAME AND ELIGIBLE
B3: ACTUAL
B6: HEADCOUNT (1) | E6: FRAME (2) | F6: ELIGIBLE (3) | G6: ELIGIBLE (3)
B7: SEPT. 30, 2020 | E7: SEPT. 30, 2020 | F7: SEPT. 30, 2019 | G7: SEPT. 30, 2018
B8: N-12 ENROLMENT | C8: NURSERY ENROLMENT | D8: K-12 ENROLMENT | E8: K-12 F.T.E. ENROLMENT | F8: K-12 ENROLMENT | G8: K-12 ENROLMENT
A9: DIVISION / DISTRICT
A11: BEAUTIFUL PLAINS | B11: 1975 | C11: 0 | D11: 1975 | E11: ='- 7 -'!E11 -> 1902 | F11: 1957.3 | G11: 1812.9
A12: BORDER LAND | B12: 2051 | C12: 0 | D12: 2051 | E12: ='- 7 -'!E12 -> 1965.99 | F12: 2093.7 | G12: 2040.3
A13: BRANDON | B13: 8800 | C13: 0 | D13: 8800 | E13: ='- 7 -'!E13 -> 8501.5 | F13: 8620.8 | G13: 8525.4
A14: DSFM | B14: 5834 | C14: 33 | D14: 5801 | E14: ='- 7 -'!E14 -> 5926.92 | F14: 5512.2 | G14: 5391.1
A15: EVERGREEN | B15: 1386 | C15: 0 | D15: 1386 | E15: ='- 7 -'!E15 -> 1387 | F15: 1400.8 | G15: 1400.4
A16: FLIN FLON | B16: 905 | C16: 0 | D16: 905 | E16: ='- 7 -'!E16 -> 930.6 | F16: 910.1 | G16: 903.9
A17: FORT LA BOSSE | B17: 1437 | C17: 0 | D17: 1437 | E17: ='- 7 -'!E17 -> 1453.5 | F17: 1348.7 | G17: 1356.5
A18: FRONTIER | B18: 6020 | C18: 0 | D18: 6020 | E18: ='- 7 -'!E18 -> 5884 | F18: 2113.5 | G18: 2132.1
A19: GARDEN VALLEY | B19: 4100 | C19: 0 | D19: 4100 | E19: ='- 7 -'!E19 -> 4370 | F19: 4362.9 | G19: 4370.8
A20: HANOVER | B20: 7760 | C20: 0 | D20: 7760 | E20: ='- 7 -'!E20 -> 7726 | F20: 8017.5 | G20: 7878.3
A21: INTERLAKE | B21: 2921 | C21: 0 | D21: 2921 | E21: ='- 7 -'!E21 -> 2814 | F21: 2824 | G21: 2835.8
A22: KELSEY | B22: 1462 | C22: 0 | D22: 1462 | E22: ='- 7 -'!E22 -> 1403 | F22: 1464.5 | G22: 1468.6
A23: LAKESHORE | B23: 933 | C23: 0 | D23: 933 | E23: ='- 7 -'!E23 -> 906 | F23: 914.8 | G23: 938.5
A24: LORD SELKIRK | B24: 3757 | C24: 0 | D24: 3757 | E24: ='- 7 -'!E24 -> 3622.3 | F24: 3680.8 | G24: 3756.1
A25: LOUIS RIEL | B25: 15198 | C25: 0 | D25: 15198 | E25: ='- 7 -'!E25 -> 15156.5 | F25: 14713.9 | G25: 14559.7
A26: MOUNTAIN VIEW | B26: 3003 | C26: 0 | D26: 3003 | E26: ='- 7 -'!E26 -> 2959.5 | F26: 2962 | G26: 2881.5
A27: MYSTERY LAKE | B27: 2958 | C27: 0 | D27: 2958 | E27: ='- 7 -'!E27 -> 3016.8 | F27: 2961.7 | G27: 2927.4
A28: PARK WEST | B28: 2032 | C28: 25 | D28: 2007 | E28: ='- 7 -'!E28 -> 1931 | F28: 1487.2 | G28: 1483.7
A29: PEMBINA TRAILS | B29: 14740 | C29: 0 | D29: 14740 | E29: ='- 7 -'!E29 -> 14736.4 | F29: 14142.8 | G29: 13661.2
A30: PINE CREEK | B30: 1043 | C30: 0 | D30: 1043 | E30: ='- 7 -'!E30 -> 1045 | F30: 1025.5 | G30: 1023.5
A31: PORTAGE LA PRAIRIE | B31: 3306 | C31: 0 | D31: 3306 | E31: ='- 7 -'!E31 -> 3325 | F31: 3017.1 | G31: 3043.2
A32: PRAIRIE ROSE | B32: 2304 | C32: 0 | D32: 2304 | E32: ='- 7 -'!E32 -> 2323 | F32: 2275.4 | G32: 2226
A33: PRAIRIE SPIRIT | B33: 2085 | C33: 0 | D33: 2085 | E33: ='- 7 -'!E33 -> 2007 | F33: 2010.2 | G33: 1996.3
A34: RED RIVER VALLEY | B34: 2242 | C34: 0 | D34: 2242 | E34: ='- 7 -'!E34 -> 2169.22 | F34: 2222 | G34: 2180.6
A35: RIVER EAST TRANSCONA | B35: 16399 | C35: 0 | D35: 16399 | E35: ='- 7 -'!E35 -> 16089 | F35: 16052.3 | G35: 15899.5
A36: ROLLING RIVER | B36: 1763 | C36: 0 | D36: 1763 | E36: ='- 7 -'!E36 -> 1710 | F36: 1621.5 | G36: 1578.7
A37: SEINE RIVER | B37: 4258 | C37: 0 | D37: 4258 | E37: ='- 7 -'!E37 -> 4311.7 | F37: 4275.4 | G37: 4329.3
A38: SEVEN OAKS | B38: 11473 | C38: 0 | D38: 11473 | E38: ='- 7 -'!E38 -> 11163.9 | F38: 11265.7 | G38: 11128.7
A39: SOUTHWEST HORIZON | B39: 1521 | C39: 0 | D39: 1521 | E39: ='- 7 -'!E39 -> 1504.3 | F39: 1485.7 | G39: 1485.4
A40: ST. JAMES-ASSINIBOIA | B40: 8234 | C40: 0 | D40: 8234 | E40: ='- 7 -'!E40 -> 7962.64 | F40: 8017 | G40: 8061.2
A41: SUNRISE | B41: 4497 | C41: 0 | D41: 4497 | E41: ='- 7 -'!E41 -> 4333.5 | F41: 4474.9 | G41: 4395.9
A42: SWAN VALLEY | B42: 1343 | C42: 0 | D42: 1343 | E42: ='- 7 -'!E42 -> 1299 | F42: 1332.6 | G42: 1354.5
A43: TURTLE MOUNTAIN | B43: 1002 | C43: 0 | D43: 1002 | E43: ='- 7 -'!E43 -> 1015 | F43: 1002.5 | G43: 991.5
A44: TURTLE RIVER | B44: 671 | C44: 2 | D44: 669 | E44: ='- 7 -'!E44 -> 648 | F44: 688.2 | G44: 708.2
A45: WESTERN | B45: 1870 | C45: 0 | D45: 1870 | E45: ='- 7 -'!E45 -> 1798 | F45: 1918.4 | G45: 1779.1
A46: WINNIPEG | B46: 29595 | C46: 1134 | D46: 28461 | E46: ='- 7 -'!E46 -> 29225.2 | F46: 29272.1 | G46: 29503.8
A48: PROVINCE | B48: =SUM(B11:B46) -> 180878 | C48: 1194 | D48: 179684 | E48: 178522.47 | F48: 173445.7 | G48: 172009.6
A50: WHITESHELL | B50: 200 | C50: 8 | D50: =+B50-C50 -> 192 | E50: ='- 7 -'!E50 -> 184 | F50: 184 | G50: 176.5
A51: MITT | D51: =+B51-C51 -> 0 | E51: ='- 7 -'!E51 -> 1774.1
A53: (1) Pupils taught in schools, whether or not they are counted for grant purposes.
A54: (2) The total number of pupils enrolled in schools adjusted for full time equivalence (F.T.E.). Full time equivalent means pupils are counted on the basis of time attending school - eg. Kindergarten as 1/2. This total is the same as reported on page 7.
A56: (3) Provincially supported pupils (actual September 30, 2019 for 2020/21 and actual September 30, 2018 for 2019/20). The Whiteshell Special Revenue District includes out-of-district pupils.

Sheet - 9 -
B2: PUPIL / TEACHER RATIOS
B3: =STATDATE -> ACTUAL SEPTEMBER 30, 2020
B7: PUPIL / TEACHER RATIOS
B8: REGULAR INSTRUCTION (1)
A9: DIVISION / DISTRICT | C9: EDUCATOR (2)
A11: BEAUTIFUL PLAINS | B11: 15.94701098 | C11: 13.78860374
A12: BORDER LAND | B12: 12.46348421 | C12: 10.22754584
A13: BRANDON | B13: 16.02423945 | C13: 12.25282486
A14: DSFM | B14: 13.12833917 | C14: 10.56284864
A15: EVERGREEN | B15: 14.16751788 | C15: 11.51993355
A16: FLIN FLON | B16: 14.77142857 | C16: 11.48888889
A17: FORT LA BOSSE | B17: 14.94294233 | C17: 12.98115567
A18: FRONTIER | B18: 14.06578696 | C18: 11.01604478
A19: GARDEN VALLEY | B19: 17.38473167 | C19: 14.10815174
A20: HANOVER | B20: 15.76236089 | C20: 12.77259133
A21: INTERLAKE | B21: 15.65943239 | C21: 11.81360202
A22: KELSEY | B22: 17.75949367 | C22: 12.76034561
A23: LAKESHORE | B23: 14.15625 | C23: 11.06227106
A24: LORD SELKIRK | B24: 13.28065995 | C24: 10.76463596
A25: LOUIS RIEL | B25: 18.12003108 | C25: 14.05149077
A26: MOUNTAIN VIEW | B26: 15.56648433 | C26: 12.27142679
A27: MYSTERY LAKE | B27: 14.88675056 | C27: 12.00955414
A28: PARK WEST | B28: 14.07947503 | C28: 11.57951547
A29: PEMBINA TRAILS | B29: 18.29654094 | C29: 14.29857756
A30: PINE CREEK | B30: 12.45530393 | C30: 10.51413623
A31: PORTAGE LA PRAIRIE | B31: 15.97175521 | C31: 12.6052013
A32: PRAIRIE ROSE | B32: 14.03625378 | C32: 11.5687251
A33: PRAIRIE SPIRIT | B33: 14.7365484 | C33: 11.95553755
A34: RED RIVER VALLEY | B34: 14.40672113 | C34: 11.43138702
A35: RIVER EAST TRANSCONA | B35: 17.12707182 | C35: 13.52278171
A36: ROLLING RIVER | B36: 14.45722016 | C36: 12.01855496
A37: SEINE RIVER | B37: 16.40614893 | C37: 12.71700339
A38: SEVEN OAKS | B38: 16.12441504 | C38: 13.23191618
A39: SOUTHWEST HORIZON | B39: 12.96251616 | C39: 11.04073394
A40: ST. JAMES-ASSINIBOIA | B40: 16.62173051 | C40: 12.78666517
A41: SUNRISE | B41: 14.41137346 | C41: 11.21361108
A42: SWAN VALLEY | B42: 14.12417093 | C42: 11.4600794
A43: TURTLE MOUNTAIN | B43: 16.00693897 | C43: 13.11369509
A44: TURTLE RIVER | B44: 12.0647924 | C44: 10.26941363
A45: WESTERN | B45: 14.81054366 | C45: 12.38462598
A46: WINNIPEG | B46: 15.71534582 | C46: 12.53945234
A48: PROVINCE | B48: 15.81608851 | C48: 12.57756209
A50: WHITESHELL | B50: 10.22222222 | C50: 9.010773751
A51: MITT | B51: 42.74939759 | C51: 36.20612245
A53: (1) Based on object code 330 Instructional-Teaching personnel and F.T.E. students in Function 100. Included are teachers in physical education, music, EAL, etc. in addition to regular classroom teachers. School-based administrative personnel and teachers in Student Support Services (Function 200) are excluded.
A56: (2) Based on total instructional-teaching (excluding Community Education and Adult Learning Centres) as well as school-based administrative staff - eg. department heads, coordinators, principals and vice-principals - and K-12 F.T.E. enrolment. Division administrators (Function 500) are excluded.

Sheet - 10 -
C2: =OPYEAR -> OPERATING FUND 2020/2021 ACTUAL
C5: EXPENSE BY FUNCTION AND OBJECT
C8: OBJECT
D10: EMPLOYEE BENEFITS | F10: SUPPLIES AND MATERIALS | G10: DEBT SERVICES | H10: BAD DEBT EXPENSE
A11: FUNCTION | C11: SALARIES | E11: SERVICES | I11: TRANSFERS | K11: TOTALS
A13: 100 | B13: REGULAR INSTRUCTION | C13: ='- 12 -'!B21 -> 1253619294 | D13: ='- 12 -'!B22 -> 81365029 | E13: ='- 12 -'!B39 -> 29156050 | F13: ='- 12 -'!B45 -> 107133117 | K13: =SUM(C13:F13) -> 1471273490
A14: 200 | B14: STUDENT SUPPORT SERVICES | C14: ='- 12 -'!D21 -> 416334484 | D14: ='- 12 -'!D22 -> 42143131 | E14: ='- 12 -'!D39 -> 10016512 | F14: ='- 12 -'!D45 -> 6126671 | K14: =SUM(C14:F14) -> 474620798
A15: 300 | B15: ADULT LEARNING CENTRES | C15: ='- 12 -'!F21 -> 9836136 | D15: ='- 12 -'!F22 -> 692047 | E15: ='- 12 -'!F39 -> 1159217 | F15: ='- 12 -'!F45 -> 548207 | I15: ='- 12 -'!F47 -> 66900 | J15: (1) | K15: =SUM(C15:F15,I15) -> 12302507
A16: 400 | B16: COMMUNITY EDUCATION & SERVICES | C16: ='- 12 -'!H21 -> 17328061 | D16: ='- 12 -'!H22 -> 1742844 | E16: ='- 12 -'!H39 -> 1884902 | F16: ='- 12 -'!H45 -> 1683742 | I16: ='- 12 -'!H47 -> 96523 | J16: (1) | K16: =SUM(C16:F16,I16) -> 22736072
A17: 500 | B17: DIVISIONAL ADMINISTRATION | C17: ='- 12 -'!J21 -> 51676206 | D17: ='- 12 -'!J22 -> 7326791 | E17: ='- 12 -'!J39 -> 15317732 | F17: ='- 12 -'!J45 -> 4896985 | I17: ='- 12 -'!J47 -> -163423 | J17: (1) | K17: =SUM(C17:F17,I17) -> 79054291
A19: 600 | B19: INSTRUCTIONAL AND OTHER SUPPORT SERVICES | C19: ='- 13 -'!B21 -> 47891401 | D19: ='- 13 -'!B22 -> 5165696 | E19: ='- 13 -'!B39 -> 8676410 | F19: ='- 13 -'!B45 -> 9231230 | K19: =SUM(C19:F19) -> 70964737
A20: 700 | B20: TRANSPORTATION OF PUPILS | C20: ='- 13 -'!D21 -> 49260314 | D20: ='- 13 -'!D22 -> 7401011 | E20: ='- 13 -'!D39 -> 27154218 | F20: ='- 13 -'!D45 -> 16596995 | K20: =SUM(C20:F20) -> 100412538 | L20: - 10 -
A21: 800 | B21: OPERATIONS AND MAINTENANCE | C21: ='- 13 -'!F21 -> 131967744 | D21: ='- 13 -'!F22 -> 21471613 | E21: ='- 13 -'!F39 -> 108211714 | F21: ='- 13 -'!F45 -> 34332304 | I21: ='- 13 -'!F47 -> 0 | K21: =SUM(C21:F21,I21) -> 295983375
A22: 900 | B22: FISCAL | G22: 1282451 | H22: 116136 | I22: 42258817 | J22: (2) | K22: =SUM(G22:I22) -> 43657404
B25: TOTALS | C25: =SUM(C13:C22) -> 1977913640 | D25: =SUM(D13:D22) -> 167308162 | E25: =SUM(E13:E22) -> 201576755 | F25: =SUM(F13:F22) -> 180549251 | G25: =G22 -> 1282451 | H25: =H22 -> 116136 | I25: =SUM(I13:I22) -> 42258817 | K25: =SUM(K13:K22) -> 2571005212 | M25: =K25-'- 3 -'!D48 -> 0
A27: (1) | B27: Reallocation of administration costs associated with Adult Learning Centres and Community and Education & Services.
A28: (2) | B28: Health and Education Levy

Sheet - 11 - (hidden)
U29: - 11 -

Sheet - 12 -
D2: =OPYEAR -> OPERATING FUND 2020/2021 ACTUAL | K2: PAGE 1 OF 2
B4: EXPENSE BY 2ND LEVEL OBJECT
B5: AS A PERCENTAGE OF TOTAL OPERATING FUND EXPENSES
B7: FUNCTION
B8: REGULAR INSTRUCTION | D8: STUDENT SUPPORT SERVICES | F8: ADULT LEARNING CENTRES | H8: COMMUNITY EDUCATION | J8: DIVISIONAL ADMINISTRATION
A10: OBJECT | B10: AMOUNT | C10: % | D10: AMOUNT | E10: % | F10: AMOUNT | G10: % | H10: AMOUNT | I10: % | J10: AMOUNT | K10: %
A12: SALARIES
A13: TRUSTEES REMUNERATION | J13: 3821556
A14: EXECUTIVE, MANAGERIAL & SUPERVISORY | B14: 102975380 | C14: =B14/'- 13 -'!$J$53*100 -> 4.005257536 | D14: 7704171 | E14: =D14/'- 13 -'!$J$53*100 -> 0.2996559853 | F14: 1153750 | G14: =F14/'- 13 -'!$J$53*100 -> 0.04487544384 | H14: 625786 | I14: =H14/'- 13 -'!$J$53*100 -> 0.02434012958 | J14: 21749169 | K14: =J14/'- 13 -'!$J$53*100 -> 0.8459402921
A15: INSTRUCTIONAL - TEACHING | B15: 1056165802 | C15: =B15/'- 13 -'!$J$53*100 -> 41.0798779 | D15: 171554732 | E15: =D15/'- 13 -'!$J$53*100 -> 6.672671498 | F15: 7422471 | G15: =F15/'- 13 -'!$J$53*100 -> 0.2886991814 | H15: 8026757 | I15: =H15/'- 13 -'!$J$53*100 -> 0.3122030622 | K15: =J15/'- 13 -'!$J$53*100 -> 0
A16: INSTRUCTIONAL - OTHER | B16: 30812830 | C16: =B16/'- 13 -'!$J$53*100 -> 1.198474039 | D16: 186357629 | E16: =D16/'- 13 -'!$J$53*100 -> 7.248434508 | F16: 374263 | G16: =F16/'- 13 -'!$J$53*100 -> 0.01455706889 | H16: 5445714 | I16: =H16/'- 13 -'!$J$53*100 -> 0.2118126395 | K16: =J16/'- 13 -'!$J$53*100 -> 0
A17: TECHNICAL, SPECIALIZED AND SERVICE | B17: 7661985 | C17: =B17/'- 13 -'!$J$53*100 -> 0.2980151485 | D17: 2164879 | E17: =D17/'- 13 -'!$J$53*100 -> 0.08420360215 | F17: 236570 | G17: =F17/'- 13 -'!$J$53*100 -> 0.009201459371 | H17: 2011086 | I17: =H17/'- 13 -'!$J$53*100 -> 0.07822177842 | J17: 7508136 | K17: =J17/'- 13 -'!$J$53*100 -> 0.2920311466
A18: SECRETARIAL, CLERICAL AND OTHER | B18: 41210164 | C18: =B18/'- 13 -'!$J$53*100 -> 1.602881387 | D18: 2626735 | E18: =D18/'- 13 -'!$J$53*100 -> 0.1021676264 | F18: 649082 | G18: =F18/'- 13 -'!$J$53*100 -> 0.02524623431 | H18: 485134 | I18: =H18/'- 13 -'!$J$53*100 -> 0.01886942888 | J18: 16637368 | K18: =J18/'- 13 -'!$J$53*100 -> 0.6471152965
A19: CLINICIAN | D19: 45758363 | E19: =D19/'- 13 -'!$J$53*100 -> 1.779784918 | H19: 733584
A20: INFORMATION TECHNOLOGY | B20: 14793133 | C20: =B20/'- 13 -'!$J$53*100 -> 0.5753832365 | D20: 167975 | E20: =D20/'- 13 -'!$J$53*100 -> 0.006533436775 | F20: 0 | G20: =F20/'- 13 -'!$J$53*100 -> 0 | H20: 0 | I20: =H20/'- 13 -'!$J$53*100 -> 0 | J20: 1959977 | K20: =J20/'- 13 -'!$J$53*100 -> 0.07623387891
A21: TOTAL SALARIES | B21: =SUM(B13:B20) -> 1253619294 | C21: =B21/'- 13 -'!$J$53*100 -> 48.75988925 | D21: =SUM(D13:D20) -> 416334484 | E21: =D21/'- 13 -'!$J$53*100 -> 16.19345158 | F21: =SUM(F13:F20) -> 9836136 | G21: =F21/'- 13 -'!$J$53*100 -> 0.3825793878 | H21: =SUM(H13:H20) -> 17328061 | I21: =H21/'- 13 -'!$J$53*100 -> 0.6739800028 | J21: =SUM(J13:J20) -> 51676206 | K21: =J21/'- 13 -'!$J$53*100 -> 2.009961153
A22: EMPLOYEE BENEFITS AND ALLOWANCES | B22: 81365029 | C22: =B22/'- 13 -'!$J$53*100 -> 3.16471661 | D22: 42143131 | E22: =D22/'- 13 -'!$J$53*100 -> 1.639169411 | F22: 692047 | G22: =F22/'- 13 -'!$J$53*100 -> 0.02691737056 | H22: 1742844 | I22: =H22/'- 13 -'!$J$53*100 -> 0.06778842734 | J22: 7326791 | K22: =J22/'- 13 -'!$J$53*100 -> 0.2849776798
A23: SERVICES
A24: PROFESSIONAL, TECHNICAL & SPECIALIZED | B24: 4114937 | C24: =B24/'- 13 -'!$J$53*100 -> 0.1600516787 | D24: 7239053 | E24: =D24/'- 13 -'!$J$53*100 -> 0.2815650846 | F24: 67389 | G24: =F24/'- 13 -'!$J$53*100 -> 0.002621114873 | H24: 910312 | I24: =H24/'- 13 -'!$J$53*100 -> 0.0354068516 | J24: 4968164 | K24: =J24/'- 13 -'!$J$53*100 -> 0.1932381925
A25: COMMUNICATIONS | B25: 3953987 | C25: =B25/'- 13 -'!$J$53*100 -> 0.1537914813 | D25: 278742 | E25: =D25/'- 13 -'!$J$53*100 -> 0.01084175165 | F25: 71758 | G25: =F25/'- 13 -'!$J$53*100 -> 0.002791048406 | H25: 30451 | I25: =H25/'- 13 -'!$J$53*100 -> 0.001184400555 | J25: 911338 | K25: =J25/'- 13 -'!$J$53*100 -> 0.03544675817
A26: UTILITY SERVICES | C26: =B26/'- 13 -'!$J$53*100 -> 0 | E26: =D26/'- 13 -'!$J$53*100 -> 0 | F26: 47330 | G26: =F26/'- 13 -'!$J$53*100 -> 0.001840914199 | I26: =H26/'- 13 -'!$J$53*100 -> 0 | K26: =J26/'- 13 -'!$J$53*100 -> 0
A27: TRAVEL AND MEETINGS | B27: 1163834 | C27: =B27/'- 13 -'!$J$53*100 -> 0.04526766397 | D27: 930266 | E27: =D27/'- 13 -'!$J$53*100 -> 0.03618296827 | F27: 96181 | G27: =F27/'- 13 -'!$J$53*100 -> 0.003740988138 | H27: 76414 | I27: =H27/'- 13 -'!$J$53*100 -> 0.002972144889 | J27: 512425 | K27: =J27/'- 13 -'!$J$53*100 -> 0.01993092031 | L27: - 12 -
A28: TRANSPORTATION OF PUPILS | C28: =B28/'- 13 -'!$J$53*100 -> 0 | E28: =D28/'- 13 -'!$J$53*100 -> 0 | G28: =F28/'- 13 -'!$J$53*100 -> 0 | I28: =H28/'- 13 -'!$J$53*100 -> 0 | K28: =J28/'- 13 -'!$J$53*100 -> 0
A29: TUITION | B29: 987801 | C29: =B29/'- 13 -'!$J$53*100 -> 0.03842080893 | D29: 768641 | E29: =D29/'- 13 -'!$J$53*100 -> 0.0298965166 | F29: 0 | G29: =F29/'- 13 -'!$J$53*100 -> 0 | I29: =H29/'- 13 -'!$J$53*100 -> 0 | K29: =J29/'- 13 -'!$J$53*100 -> 0
A30: PRINTING AND BINDING | B30: 205928 | C30: =B30/'- 13 -'!$J$53*100 -> 0.008009629815 | D30: 11958 | E30: =D30/'- 13 -'!$J$53*100 -> 0.0004651099089 | F30: 4998 | G30: =F30/'- 13 -'!$J$53*100 -> 0.0001943986724 | H30: 2858 | I30: =H30/'- 13 -'!$J$53*100 -> 0.0001111627463 | J30: 140577 | K30: =J30/'- 13 -'!$J$53*100 -> 0.005467783548
A31: INSURANCE AND BOND PREMIUMS | B31: 133035 | C31: =B31/'- 13 -'!$J$53*100 -> 0.005174435251 | D31: 27908 | E31: =D31/'- 13 -'!$J$53*100 -> 0.001085489826 | F31: 2375 | G31: =F31/'- 13 -'!$J$53*100 -> 9.237631993e-05 | H31: 1047 | I31: =H31/'- 13 -'!$J$53*100 -> 4.072337135e-05 | J31: 1598435 | K31: =J31/'- 13 -'!$J$53*100 -> 0.06217159703
A32: MAINTENANCE AND REPAIR SERVICES | B32: 2575050 | C32: =B32/'- 13 -'!$J$53*100 -> 0.1001573232 | D32: 98612 | E32: =D32/'- 13 -'!$J$53*100 -> 0.003835542594 | F32: 37757 | G32: =F32/'- 13 -'!$J$53*100 -> 0.001468569563 | H32: 13921 | I32: =H32/'- 13 -'!$J$53*100 -> 0.0005414613683 | J32: 102344 | K32: =J32/'- 13 -'!$J$53*100 -> 0.003980699826
A33: RENTALS | B33: 2798647 | C33: =B33/'- 13 -'!$J$53*100 -> 0.108854194 | D33: 225137 | E33: =D33/'- 13 -'!$J$53*100 -> 0.00875676949 | F33: 766213 | G33: =F33/'- 13 -'!$J$53*100 -> 0.02980207883 | H33: 796896 | I33: =H33/'- 13 -'!$J$53*100 -> 0.03099550309 | J33: 314252 | K33: =J33/'- 13 -'!$J$53*100 -> 0.01222292349
A34: PROPERTY TAXES | C34: =B34/'- 13 -'!$J$53*100 -> 0 | E34: =D34/'- 13 -'!$J$53*100 -> 0 | F34: 4502 | G34: =F34/'- 13 -'!$J$53*100 -> 0.0001751066073 | I34: =H34/'- 13 -'!$J$53*100 -> 0 | K34: =J34/'- 13 -'!$J$53*100 -> 0
A35: ADVERTISING | B35: 239706 | C35: =B35/'- 13 -'!$J$53*100 -> 0.009323435008 | D35: 25213 | E35: =D35/'- 13 -'!$J$53*100 -> 0.0009806670124 | F35: 28206 | G35: =F35/'- 13 -'!$J$53*100 -> 0.001097080623 | H35: 15238 | I35: =H35/'- 13 -'!$J$53*100 -> 0.0005926864687 | J35: 535723 | K35: =J35/'- 13 -'!$J$53*100 -> 0.02083710284
A36: DUES AND FEES | B36: 462344 | C36: =B36/'- 13 -'!$J$53*100 -> 0.01798300516 | D36: 105049 | E36: =D36/'- 13 -'!$J$53*100 -> 0.004085911592 | F36: 355 | G36: =F36/'- 13 -'!$J$53*100 -> 1.380782887e-05 | H36: 10001 | I36: =H36/'- 13 -'!$J$53*100 -> 0.0003889918213 | J36: 2793031 | K36: =J36/'- 13 -'!$J$53*100 -> 0.108635758
A37: PROFESSIONAL AND STAFF DEVELOPMENT | B37: 218943 | C37: =B37/'- 13 -'!$J$53*100 -> 0.008515852048 | D37: 115948 | E37: =D37/'- 13 -'!$J$53*100 -> 0.004509831387 | F37: 9222 | G37: =F37/'- 13 -'!$J$53*100 -> 0.0003586923884 | H37: 16569 | I37: =H37/'- 13 -'!$J$53*100 -> 0.0006444561031 | J37: 196883 | K37: =J37/'- 13 -'!$J$53*100 -> 0.007657821893
A38: INFORMATION TECHNOLOGY SERVICES | B38: 12301838 | C38: =B38/'- 13 -'!$J$53*100 -> 0.4784835885 | D38: 189985 | E38: =D38/'- 13 -'!$J$53*100 -> 0.007389522165 | F38: 22931 | G38: =F38/'- 13 -'!$J$53*100 -> 0.0008919079546 | H38: 11195 | I38: =H38/'- 13 -'!$J$53*100 -> 0.0004354328007 | J38: 3244560 | K38: =J38/'- 13 -'!$J$53*100 -> 0.1261981106
A39: TOTAL SERVICES | B39: =SUM(B24:B38) -> 29156050 | C39: =B39/'- 13 -'!$J$53*100 -> 1.134033096 | D39: =SUM(D24:D38) -> 10016512 | E39: =D39/'- 13 -'!$J$53*100 -> 0.3895951651 | F39: =SUM(F24:F38) -> 1159217 | G39: =F39/'- 13 -'!$J$53*100 -> 0.0450880844 | H39: =SUM(H24:H38) -> 1884902 | I39: =H39/'- 13 -'!$J$53*100 -> 0.07331381481 | J39: =SUM(J24:J38) -> 15317732 | K39: =J39/'- 13 -'!$J$53*100 -> 0.5957876681
A40: SUPPLIES AND EQUIPMENT
A41: SUPPLIES | B41: 39274738 | C41: =B41/'- 13 -'!$J$53*100 -> 1.527602426 | D41: 3780460 | E41: =D41/'- 13 -'!$J$53*100 -> 0.1470420979 | F41: 253055 | G41: =F41/'- 13 -'!$J$53*100 -> 0.009842648269 | H41: 1134669 | I41: =H41/'- 13 -'!$J$53*100 -> 0.04413328276 | J41: 1272272 | K41: =J41/'- 13 -'!$J$53*100 -> 0.04948539171
A42: CURRICULAR AND MEDIA MATERIALS | B42: 11385628 | C42: =B42/'- 13 -'!$J$53*100 -> 0.4428473325 | D42: 578081 | E42: =D42/'- 13 -'!$J$53*100 -> 0.02248462964 | F42: 76088 | G42: =F42/'- 13 -'!$J$53*100 -> 0.002959465023 | H42: 73654 | I42: =H42/'- 13 -'!$J$53*100 -> 0.002864793881 | J42: 85698 | K42: =J42/'- 13 -'!$J$53*100 -> 0.003333248785
A43: MINOR EQUIPMENT | B43: 14981524 | C43: =B43/'- 13 -'!$J$53*100 -> 0.5827107596 | D43: 741585 | E43: =D43/'- 13 -'!$J$53*100 -> 0.02884416556 | F43: 78288 | G43: =F43/'- 13 -'!$J$53*100 -> 0.003045034667 | H43: 171145 | I43: =H43/'- 13 -'!$J$53*100 -> 0.006656734852 | J43: 336866 | K43: =J43/'- 13 -'!$J$53*100 -> 0.01310250164
A44: INFORMATION TECHNOLOGY EQUIPMENT | B44: 41491227 | C44: =B44/'- 13 -'!$J$53*100 -> 1.613813415 | D44: 1026545 | E44: =D44/'- 13 -'!$J$53*100 -> 0.03992776814 | F44: 140776 | G44: =F44/'- 13 -'!$J$53*100 -> 0.005475523711 | H44: 304274 | I44: =H44/'- 13 -'!$J$53*100 -> 0.01183482626 | J44: 3202149 | K44: =J44/'- 13 -'!$J$53*100 -> 0.1245485223
A45: TOTAL SUPPLIES AND EQUIPMENT | B45: =SUM(B41:B44) -> 107133117 | C45: =B45/'- 13 -'!$J$53*100 -> 4.166973933 | D45: =SUM(D41:D44) -> 6126671 | E45: =D45/'- 13 -'!$J$53*100 -> 0.2382986612 | F45: =SUM(F41:F44) -> 548207 | G45: =F45/'- 13 -'!$J$53*100 -> 0.02132267167 | H45: =SUM(H41:H44) -> 1683742 | I45: =H45/'- 13 -'!$J$53*100 -> 0.06548963775 | J45: =SUM(J41:J44) -> 4896985 | K45: =J45/'- 13 -'!$J$53*100 -> 0.1904696644
A46: TRANSFERS
A47: RECHARGE (1) | F47: 66900 | H47: 96523 | J47: -163423
A48: TOTAL TRANSFERS | F48: =F47 -> 66900 | H48: =H47 -> 96523 | J48: =J47 -> -163423
A50: PROVINCE | B50: =SUM(B48,B45,B39,B22,B21) -> 1471273490 | C50: =B50/'- 13 -'!$J$53*100 -> 57.22561289 | D50: =SUM(D48,D45,D39,D22,D21) -> 474620798 | E50: =D50/'- 13 -'!$J$53*100 -> 18.46051481 | F50: =SUM(F48,F45,F39,F22,F21) -> 12302507 | G50: =F50/'- 13 -'!$J$53*100 -> 0.4785096095 | H50: =SUM(H48,H45,H39,H22,H21) -> 22736072 | I50: =H50/'- 13 -'!$J$53*100 -> 0.884326173 | J50: =SUM(J48,J45,J39,J22,J21) -> 79054291 | K50: =J50/'- 13 -'!$J$53*100 -> 3.07483978
A51: (1) Reallocation of administration costs associated with Adult Learning Centres and Community Education.
B52: =+B50-'- 15 -'!B48 -> 0 | D52: =+D50-'- 15 -'!E48 -> 0 | F52: =+F50-'- 15 -'!H48 -> 0 | H52: =H50-'- 16 -'!B48 -> 0 | J52: =+J50-'- 16 -'!D48 -> 0
F54: =+F50-'- 15 -'!H48 -> 0 | J54: =+J50-'- 16 -'!D48 -> 0

Sheet - 13 -
C2: =OPYEAR -> OPERATING FUND 2020/2021 ACTUAL | K2: PAGE 2 OF 2
B4: EXPENSE BY 2ND LEVEL OBJECT
B5: AS A PERCENTAGE OF TOTAL OPERATING FUND EXPENSES
B7: FUNCTION
B8: INSTRUCTIONAL & OTHER SUPPORT SERVICES | D8: TRANSPORTATION OF PUPILS | F8: OPERATIONS AND MAINTENANCE
H9: FISCAL | J9: TOTAL
A10: OBJECT | B10: AMOUNT | C10: % | D10: AMOUNT | E10: % | F10: AMOUNT | G10: % | H10: AMOUNT | I10: % | J10: AMOUNT | K10: %
A12: SALARIES | M12: SALARIES | N12: =K21/100 -> 0.7693152977
A13: TRUSTEES REMUNERATION | J13: =SUM(F13,D13,B13,'- 12 -'!J13,'- 12 -'!H13,'- 12 -'!F13,'- 12 -'!D13,'- 12 -'!B13) -> 3821556 | K13: =J13/$J$53*100 -> 0.1486405388 | M13: EMPLOYEE BENEFITS | N13: =K22/100 -> 0.06507499916
A14: EXECUTIVE, MANAGERIAL & SUPERVISORY | B14: 4777198 | C14: =B14/$J$53*100 -> 0.185810514 | D14: 3456325 | E14: =D14/$J$53*100 -> 0.1344347722 | F14: 5541162 | G14: =F14/$J$53*100 -> 0.2155251173 | J14: =SUM(F14,D14,B14,'- 12 -'!J14,'- 12 -'!H14,'- 12 -'!F14,'- 12 -'!D14,'- 12 -'!B14) -> 147982941 | K14: 5.75583979 | M14: SERVICES | N14: =K39/100 -> 0.07840386867
A15: INSTRUCTIONAL - TEACHING | B15: 19939491 | C15: =B15/$J$53*100 -> 0.7755523368 | E15: =D15/$J$53*100 -> 0 | G15: =F15/$J$53*100 -> 0 | J15: =SUM(F15,D15,B15,'- 12 -'!J15,'- 12 -'!H15,'- 12 -'!F15,'- 12 -'!D15,'- 12 -'!B15) -> 1263109253 | K15: 49.12900398 | M15: SUPPLIES & MATERIALS | N15: =K45/100 -> 0.07022515947
A16: INSTRUCTIONAL - OTHER | B16: 15261400 | C16: =B16/$J$53*100 -> 0.5935966185 | D16: 559374 | E16: =D16/$J$53*100 -> 0.0217570154 | G16: =F16/$J$53*100 -> 0 | J16: =SUM(F16,D16,B16,'- 12 -'!J16,'- 12 -'!H16,'- 12 -'!F16,'- 12 -'!D16,'- 12 -'!B16) -> 238811210 | K16: 9.288631889 | M16: DEBT SERVICES | N16: =K48/100 -> 0.0004988130689
A17: TECHNICAL, SPECIALIZED AND SERVICE | B17: 5428896 | C17: =B17/$J$53*100 -> 0.2111584984 | D17: 43194761 | E17: =D17/$J$53*100 -> 1.680072868 | F17: 124464252 | G17: =F17/$J$53*100 -> 4.8410735 | J17: =SUM(F17,D17,B17,'- 12 -'!J17,'- 12 -'!H17,'- 12 -'!F17,'- 12 -'!D17,'- 12 -'!B17) -> 192670565 | K17: 7.493978001 | M17: TRANSFERS | N17: =K51/100-N16 -> 0.01648186196
A18: SECRETARIAL, CLERICAL AND OTHER | B18: 2277127 | C18: =B18/$J$53*100 -> 0.08856952096 | D18: 2049854 | E18: =D18/$J$53*100 -> 0.07972967112 | F18: 1962330 | G18: =F18/$J$53*100 -> 0.07632539953 | J18: =SUM(F18,D18,B18,'- 12 -'!J18,'- 12 -'!H18,'- 12 -'!F18,'- 12 -'!D18,'- 12 -'!B18) -> 67897794 | K18: 2.640904565
A19: CLINICIAN | J19: =SUM(F19,D19,B19,'- 12 -'!J19,'- 12 -'!H19,'- 12 -'!F19,'- 12 -'!D19,'- 12 -'!B19) -> 46491947 | K19: 1.808317882 | N19: =SUM(N12:N17) -> 1
A20: INFORMATION TECHNOLOGY | B20: 207289 | C20: =B20/'- 13 -'!$J$53*100 -> 0.008062566308 | D20: 0 | E20: =D20/'- 13 -'!$J$53*100 -> 0 | F20: 0 | G20: =F20/'- 13 -'!$J$53*100 -> 0 | J20: =SUM(F20,D20,B20,'- 12 -'!J20,'- 12 -'!H20,'- 12 -'!F20,'- 12 -'!D20,'- 12 -'!B20) -> 17128374 | K20: 0.6662131185
A21: TOTAL SALARIES | B21: =SUM(B13:B20) -> 47891401 | C21: =B21/$J$53*100 -> 1.862750055 | D21: =SUM(D13:D20) -> 49260314 | E21: =D21/$J$53*100 -> 1.915994327 | F21: =SUM(F13:F20) -> 131967744 | G21: =F21/$J$53*100 -> 5.132924017 | J21: =SUM(F21,D21,B21,'- 12 -'!J21,'- 12 -'!H21,'- 12 -'!F21,'- 12 -'!D21,'- 12 -'!B21) -> 1977913640 | K21: 76.93152977
A22: EMPLOYEE BENEFITS AND ALLOWANCES | B22: 5165696 | C22: =B22/$J$53*100 -> 0.2009212574 | D22: 7401011 | E22: =D22/$J$53*100 -> 0.2878644884 | F22: 21471613 | G22: =F22/$J$53*100 -> 0.8351446703 | J22: =SUM(F22,D22,B22,'- 12 -'!J22,'- 12 -'!H22,'- 12 -'!F22,'- 12 -'!D22,'- 12 -'!B22) -> 167308162 | K22: 6.507499916
A23: SERVICES | M23: REGULAR INSTRUCTION | N23: ='- 12 -'!C50/100 -> 0.5722561289 | O23: REGULAR INSTRUCTION
A24: PROFESSIONAL, TECHNICAL & SPECIALIZED | B24: 2019726 | C24: =B24/$J$53*100 -> 0.07855783374 | D24: 489442 | E24: =D24/$J$53*100 -> 0.0190369898 | F24: 6321432 | G24: =F24/$J$53*100 -> 0.2458739473 | J24: =SUM(F24,D24,B24,'- 12 -'!J24,'- 12 -'!H24,'- 12 -'!F24,'- 12 -'!D24,'- 12 -'!B24) -> 26130455 | K24: =J24/$J$53*100 -> 1.016351693 | M24: EXCEPTIONAL | N24: ='- 12 -'!E50/100 -> 0.1846051481 | O24: STUDENT SUPPORT SERVICES
A25: COMMUNICATIONS | B25: 107598 | C25: 0.004185055693 | D25: 375481 | E25: 0.01460444336 | F25: 556269 | G25: 0.02163624552 | J25: =SUM(F25,D25,B25,'- 12 -'!J25,'- 12 -'!H25,'- 12 -'!F25,'- 12 -'!D25,'- 12 -'!B25) -> 6285624 | K25: 0.2444811847 | M25: ADULT LEARNING CENTRES | N25: ='- 12 -'!G50/100 -> 0.004785096095 | O25: ADULT LEARNING CENTRES
A26: UTILITY SERVICES | C26: 0 | E26: 0 | F26: 46290203 | G26: 1.80047099 | J26: =SUM(F26,D26,B26,'- 12 -'!J26,'- 12 -'!H26,'- 12 -'!F26,'- 12 -'!D26,'- 12 -'!B26) -> 46337533 | K26: 1.802311904 | L26: - 13 - | M26: COMMUNITY EDUCATION | N26: ='- 12 -'!I50/100 -> 0.00884326173 | O26: COMMUNITY EDUCATION
A27: TRAVEL AND MEETINGS | B27: 430540 | C27: 0.01674597928 | D27: 343433 | E27: 0.01335792702 | F27: 691254 | G27: 0.02688652659 | J27: =SUM(F27,D27,B27,'- 12 -'!J27,'- 12 -'!H27,'- 12 -'!F27,'- 12 -'!D27,'- 12 -'!B27) -> 4244347 | K27: 0.1650851185 | M27: DIVISIONAL ADMINISTRATION | N27: ='- 12 -'!K50/100 -> 0.0307483978 | O27: DIVISIONAL ADMINISTRATION
A28: TRANSPORTATION OF PUPILS | C28: 0 | D28: 19921733 | E28: 0.7748616342 | G28: 0 | J28: =SUM(F28,D28,B28,'- 12 -'!J28,'- 12 -'!H28,'- 12 -'!F28,'- 12 -'!D28,'- 12 -'!B28) -> 19921733 | K28: 0.7748616342 | M28: INSTRUCTIONAL & PUPIL SUPPORT SERVICES | N28: =C53/100 -> 0.0276019421 | O28: INSTRUCTIONAL & PUPIL SUPPORT SERVICES
A29: TUITION | B29: 5923 | C29: 0.0002303768181 | E29: 0 | G29: 0 | J29: =SUM(F29,D29,B29,'- 12 -'!J29,'- 12 -'!H29,'- 12 -'!F29,'- 12 -'!D29,'- 12 -'!B29) -> 1762365 | K29: 0.06854770235 | M29: TRANSPORTATION OF PUPILS | N29: =E53/100 -> 0.03905575046 | O29: TRANSPORTATION OF PUPILS
A30: PRINTING AND BINDING | B30: 152665 | C30: 0.005937949845 | D30: 44595 | E30: 0.001734535574 | F30: 4258 | G30: 0.0001656161559 | J30: =SUM(F30,D30,B30,'- 12 -'!J30,'- 12 -'!H30,'- 12 -'!F30,'- 12 -'!D30,'- 12 -'!B30) -> 567837 | K30: 0.02208618626 | M30: OPERATIONS & MAINTENANCE | N30: =G53/100 -> 0.1151235998 | O30: OPERATIONS & MAINTENANCE
A31: INSURANCE AND BOND PREMIUMS | B31: 125584 | C31: 0.004884626426 | D31: 1306394 | E31: 0.05081257688 | F31: 10269451 | G31: 0.3994333015 | J31: =SUM(F31,D31,B31,'- 12 -'!J31,'- 12 -'!H31,'- 12 -'!F31,'- 12 -'!D31,'- 12 -'!B31) -> 13464229 | K31: 0.5236951266 | M31: FISCAL | N31: =I53/100 -> 0.01698067503 | O31: FISCAL
A32: MAINTENANCE AND REPAIR SERVICES | B32: 53234 | C32: 0.002070552006 | D32: 2804751 | E32: 0.1090916108 | F32: 34483901 | G32: 1.341261419 | J32: =SUM(F32,D32,B32,'- 12 -'!J32,'- 12 -'!H32,'- 12 -'!F32,'- 12 -'!D32,'- 12 -'!B32) -> 40169570 | K32: 1.562407179
A33: RENTALS | B33: 233492 | C33: 0.00908173966 | D33: 1056797 | E33: 0.04110442854 | F33: 3876053 | G33: 0.1507602156 | J33: =SUM(F33,D33,B33,'- 12 -'!J33,'- 12 -'!H33,'- 12 -'!F33,'- 12 -'!D33,'- 12 -'!B33) -> 10067487 | K33: 0.3915778526 | N33: =SUM(N23:N31) -> 1
A34: PROPERTY TAXES | C34: 0 | E34: 0 | F34: 5171318 | G34: 0.2011399267 | J34: =SUM(F34,D34,B34,'- 12 -'!J34,'- 12 -'!H34,'- 12 -'!F34,'- 12 -'!D34,'- 12 -'!B34) -> 5175820 | K34: 0.2013150334
A35: ADVERTISING | B35: 8316 | C35: =B35/J53 -> 3.234532533e-06 | D35: 26880 | E35: =D35/J53 -> 1.045505465e-05 | F35: 23969 | G35: =F35/J53 -> 9.322812684e-06 | J35: =SUM(F35,D35,B35,'- 12 -'!J35,'- 12 -'!H35,'- 12 -'!F35,'- 12 -'!D35,'- 12 -'!B35) -> 903251 | K35: 0.03513221194
A36: DUES AND FEES | B36: 192508 | C36: =B36/$J$53*100 -> 0.007487654988 | D36: 53249 | E36: =D36/$J$53*100 -> 0.002071135436 | F36: 89436 | G36: =F36/$J$53*100 -> 0.003478639389 | J36: =SUM(F36,D36,B36,'- 12 -'!J36,'- 12 -'!H36,'- 12 -'!F36,'- 12 -'!D36,'- 12 -'!B36) -> 3705973 | K36: 0.1441449042
A37: PROFESSIONAL AND STAFF DEVELOPMENT | B37: 4125442 | C37: =B37/'- 13 -'!$J$53*100 -> 0.1604602737 | D37: 111314 | E37: =D37/'- 13 -'!$J$53*100 -> 0.004329590601 | F37: 93376 | G37: =F37/'- 13 -'!$J$53*100 -> 0.003631886842 | J37: =SUM(F37,D37,B37,'- 12 -'!J37,'- 12 -'!H37,'- 12 -'!F37,'- 12 -'!D37,'- 12 -'!B37) -> 4887697 | K37: 0.190108405
A38: INFORMATION TECHNOLOGY SERVICES | B38: 1221382 | C38: =B38/$J$53*100 -> 0.04750601027 | D38: 620149 | E38: =D38/$J$53*100 -> 0.02412087681 | F38: 340794 | G38: =F38/$J$53*100 -> 0.01325528235 | J38: =SUM(F38,D38,B38,'- 12 -'!J38,'- 12 -'!H38,'- 12 -'!F38,'- 12 -'!D38,'- 12 -'!B38) -> 17952834 | K38: 0.6982807315
A39: TOTAL SERVICES | B39: =SUM(B24:B38) -> 8676410 | C39: =B39/$J$53*100 -> 0.3374715057 | D39: =SUM(D24:D38) -> 27154218 | E39: =D39/$J$53*100 -> 1.056171254 | F39: =SUM(F24:F38) -> 108211714 | G39: =F39/$J$53*100 -> 4.208926279 | J39: =SUM(F39,D39,B39,'- 12 -'!J39,'- 12 -'!H39,'- 12 -'!F39,'- 12 -'!D39,'- 12 -'!B39) -> 201576755 | K39: 7.840386867
A40: SUPPLIES AND EQUIPMENT
A41: SUPPLIES | B41: 4825700 | C41: =B41/$J$53*100 -> 0.1876970135 | D41: 15793329 | E41: =D41/$J$53*100 -> 0.6142861526 | F41: 29967953 | G41: =F41/$J$53*100 -> 1.165612301 | J41: =SUM(F41,D41,B41,'- 12 -'!J41,'- 12 -'!H41,'- 12 -'!F41,'- 12 -'!D41,'- 12 -'!B41) -> 96302176 | K41: =J41/$J$53*100 -> 3.745701314
A42: CURRICULAR AND MEDIA MATERIALS | B42: 3247131 | C42: =B42/$J$53*100 -> 0.1262981104 | D42: 25689 | E42: =D42/$J$53*100 -> 0.0009991811716 | F42: 12515 | G42: =F42/$J$53*100 -> 0.0004867745869 | J42: =SUM(F42,D42,B42,'- 12 -'!J42,'- 12 -'!H42,'- 12 -'!F42,'- 12 -'!D42,'- 12 -'!B42) -> 15484484 | K42: =J42/$J$53*100 -> 0.602273536
A43: MINOR EQUIPMENT | B43: 416457 | C43: =B43/$J$53*100 -> 0.01619821687 | D43: 403934 | E43: =D43/$J$53*100 -> 0.01571113112 | F43: 4244869 | G43: =F43/$J$53*100 -> 0.1651054218 | J43: =SUM(F43,D43,B43,'- 12 -'!J43,'- 12 -'!H43,'- 12 -'!F43,'- 12 -'!D43,'- 12 -'!B43) -> 21374668 | K43: =J43/$J$53*100 -> 0.8313739661
A44: INFORMATION TECHNOLOGY EQUIPMENT | B44: 741942 | C44: =B44/$J$53*100 -> 0.02885805118 | D44: 374043 | E44: =D44/$J$53*100 -> 0.01454851193 | F44: 106967 | G44: =F44/$J$53*100 -> 0.004160512764 | J44: =SUM(F44,D44,B44,'- 12 -'!J44,'- 12 -'!H44,'- 12 -'!F44,'- 12 -'!D44,'- 12 -'!B44) -> 47387923 | K44: =J44/$J$53*100 -> 1.843167131
A45: TOTAL SUPPLIES AND EQUIPMENT | B45: =SUM(B41:B44) -> 9231230 | C45: =B45/$J$53*100 -> 0.3590513919 | D45: =SUM(D41:D44) -> 16596995 | E45: =D45/$J$53*100 -> 0.6455449768 | F45: =SUM(F41:F44) -> 34332304 | G45: =F45/$J$53*100 -> 1.33536501 | J45: =SUM(F45,D45,B45,'- 12 -'!J45,'- 12 -'!H45,'- 12 -'!F45,'- 12 -'!D45,'- 12 -'!B45) -> 180549251 | K45: =J45/$J$53*100 -> 7.022515947
A46: TRANSFERS
A47: RECHARGE (1) | D47: 0 | F47: 0 | H47: ='- 10 -'!G21 -> 0
A48: DEBT SERVICES | H48: ='- 10 -'!G22 -> 1282451 | I48: =H48/$J$53*100 -> 0.04988130689 | J48: =H48 -> 1282451 | K48: =J48/$J$53*100 -> 0.04988130689
A49: BAD DEBT EXPENSE | H49: ='- 10 -'!H22 -> 116136 | I49: =H49/$J$53*100 -> 0.004517143702 | J49: =H49 -> 116136 | K49: =J49/$J$53*100 -> 0.004517143702
A50: OTHER GOVERNMENT AUTHORITIES | H50: ='- 10 -'!I22 -> 42258817 | I50: =H50/$J$53*100 -> 1.643669052 | J50: =H50 -> 42258817 | K50: =J50/$J$53*100 -> 1.643669052
A51: TOTAL TRANSFERS | F51: =SUM(F47:F50) -> 0 | H51: =SUM(H48:H50) -> 43657404 | I51: =H51/$J$53*100 -> 1.698067503 | J51: =SUM(J47:J50) -> 43657404 | K51: =J51/$J$53*100 -> 1.698067503
A53: PROVINCE | B53: =SUM(B51,B45,B39,B22,B21) -> 70964737 | C53: =B53/$J$53*100 -> 2.76019421 | D53: =SUM(D51,D45,D39,D22,D21) -> 100412538 | E53: =D53/$J$53*100 -> 3.905575046 | F53: =SUM(F51,F45,F39,F22,F21) -> 295983375 | G53: =F53/$J$53*100 -> 11.51235998 | H53: =SUM(H51,H45,H39,H22,H21) -> 43657404 | I53: =H53/$J$53*100 -> 1.698067503 | J53: =SUM(J51,J45,J39,J22,J21) -> 2571005212 | K53: =J53/$J$53*100 -> 100
B54: =+B53-'- 16 -'!G48 -> 0 | D54: =+D53-'- 17 -'!B48 -> 0 | F54: =+F53-'- 17 -'!E48 -> 0 | H54: =+H53-'- 17 -'!H48 -> 0 | J54: =+J53-'- 3 -'!D48 -> 0

Sheet - 14 - (hidden)
U23: - 14 -

Sheet - 15 -
B2: ANALYSIS OF EXPENSE BY FUNCTION | I2: PAGE 1 OF 3
B3: =OPYEAR -> OPERATING FUND 2020/2021 ACTUAL
E6: STUDENT SUPPORT SERVICES | H6: ADULT LEARNING CENTRES
B7: REGULAR INSTRUCTION
D8: PER PUPIL | G8: PER PUPIL
A9: DIVISION / DISTRICT | B9: AMOUNT | C9: % | E9: AMOUNT | F9: % | H9: AMOUNT | I9: %
A11: BEAUTIFUL PLAINS | B11: =SUM('- 18 -'!B11,'- 18 -'!E11,'- 19 -'!B11,'- 19 -'!E11,'- 19 -'!H11,'- 20 -'!B11) -> 14782918 | C11: =B11/'- 3 -'!D11*100 -> 65.67901899 | D11: =B11/'- 7 -'!C11 -> 7772.301788 | E11: =SUM('- 21 -'!B11,'- 21 -'!E11,'- 21 -'!H11,'- 22 -'!B11,'- 22 -'!E11,'- 22 -'!H11) -> 2873701 | F11: =E11/'- 3 -'!D11*100 -> 12.76756474 | G11: =E11/'- 7 -'!E11 -> 1510.883807 | H11: =SUM('- 23 -'!D11,'- 23 -'!B11) -> 0 | I11: =H11/'- 3 -'!D11*100 -> 0
A12: BORDER LAND | B12: =SUM('- 18 -'!B12,'- 18 -'!E12,'- 19 -'!B12,'- 19 -'!E12,'- 19 -'!H12,'- 20 -'!B12) -> 20317283 | C12: =B12/'- 3 -'!D12*100 -> 59.04844768 | D12: =B12/'- 7 -'!C12 -> 10334.37759 | E12: =SUM('- 21 -'!B12,'- 21 -'!E12,'- 21 -'!H12,'- 22 -'!B12,'- 22 -'!E12,'- 22 -'!H12) -> 5460335 | F12: =E12/'- 3 -'!D12*100 -> 15.86945979 | G12: =E12/'- 7 -'!E12 -> 2777.397138 | H12: =SUM('- 23 -'!D12,'- 23 -'!B12) -> 522563 | I12: =H12/'- 3 -'!D12*100 -> 1.518733286
A13: BRANDON | B13: =SUM('- 18 -'!B13,'- 18 -'!E13,'- 19 -'!B13,'- 19 -'!E13,'- 19 -'!H13,'- 20 -'!B13) -> 69283207 | C13: =B13/'- 3 -'!D13*100 -> 61.48260079 | D13: =B13/'- 7 -'!C13 -> 8149.527378 | E13: =SUM('- 21 -'!B13,'- 21 -'!E13,'- 21 -'!H13,'- 22 -'!B13,'- 22 -'!E13,'- 22 -'!H13) -> 23671531 | F13: =E13/'- 3 -'!D13*100 -> 21.00634993 | G13: =E13/'- 7 -'!E13 -> 2784.394636 | H13: =SUM('- 23 -'!D13,'- 23 -'!B13) -> 0 | I13: =H13/'- 3 -'!D13*100 -> 0
A14: DSFM | B14: =SUM('- 18 -'!B14,'- 18 -'!E14,'- 19 -'!B14,'- 19 -'!E14,'- 19 -'!H14,'- 20 -'!B14) -> 56157621 | C14: =B14/'- 3 -'!D14*100 -> 54.68218945 | D14: =B14/'- 7 -'!C14 -> 9475.009111 | E14: =SUM('- 21 -'!B14,'- 21 -'!E14,'- 21 -'!H14,'- 22 -'!B14,'- 22 -'!E14,'- 22 -'!H14) -> 14288656 | F14: =E14/'- 3 -'!D14*100 -> 13.91324954 | G14: =E14/'- 7 -'!E14 -> 2410.806287 | H14: =SUM('- 23 -'!D14,'- 23 -'!B14) -> 286488 | I14: =H14/'- 3 -'!D14*100 -> 0.2789610886
A15: EVERGREEN | B15: =SUM('- 18 -'!B15,'- 18 -'!E15,'- 19 -'!B15,'- 19 -'!E15,'- 19 -'!H15,'- 20 -'!B15) -> 11543434 | C15: =B15/'- 3 -'!D15*100 -> 55.09772235 | D15: =B15/'- 7 -'!C15 -> 8322.591204 | E15: =SUM('- 21 -'!B15,'- 21 -'!E15,'- 21 -'!H15,'- 22 -'!B15,'- 22 -'!E15,'- 22 -'!H15) -> 3582273 | F15: =E15/'- 3 -'!D15*100 -> 17.09847201 | G15: =E15/'- 7 -'!E15 -> 2582.749099 | H15: =SUM('- 23 -'!D15,'- 23 -'!B15) -> 0 | I15: =H15/'- 3 -'!D15*100 -> 0
A16: FLIN FLON | B16: =SUM('- 18 -'!B16,'- 18 -'!E16,'- 19 -'!B16,'- 19 -'!E16,'- 19 -'!H16,'- 20 -'!B16) -> 9082692 | C16: =B16/'- 3 -'!D16*100 -> 57.28823386 | D16: =B16/'- 7 -'!C16 -> 9760.038685 | E16: =SUM('- 21 -'!B16,'- 21 -'!E16,'- 21 -'!H16,'- 22 -'!B16,'- 22 -'!E16,'- 22 -'!H16) -> 2780367 | F16: =E16/'- 3 -'!D16*100 -> 17.5369059 | G16: =E16/'- 7 -'!E16 -> 2987.714378 | H16: =SUM('- 23 -'!D16,'- 23 -'!B16) -> 98050 | I16: =H16/'- 3 -'!D16*100 -> 0.618441243
A17: FORT LA BOSSE | B17: =SUM('- 18 -'!B17,'- 18 -'!E17,'- 19 -'!B17,'- 19 -'!E17,'- 19 -'!H17,'- 20 -'!B17) -> 11701344 | C17: =B17/'- 3 -'!D17*100 -> 61.79737132 | D17: =B17/'- 7 -'!C17 -> 8050.460268 | E17: =SUM('- 21 -'!B17,'- 21 -'!E17,'- 21 -'!H17,'- 22 -'!B17,'- 22 -'!E17,'- 22 -'!H17) -> 2317794 | F17: =E17/'- 3 -'!D17*100 -> 12.2407799 | G17: =E17/'- 7 -'!E17 -> 1594.629515 | H17: =SUM('- 23 -'!D17,'- 23 -'!B17) -> 0 | I17: =H17/'- 3 -'!D17*100 -> 0
A18: FRONTIER | B18: =SUM('- 18 -'!B18,'- 18 -'!E18,'- 19 -'!B18,'- 19 -'!E18,'- 19 -'!H18,'- 20 -'!B18) -> 59801238 | C18: =B18/'- 3 -'!D18*100 -> 41.85495266 | D18: =B18/'- 7 -'!C18 -> 10163.36472 | E18: =SUM('- 21 -'!B18,'- 21 -'!E18,'- 21 -'!H18,'- 22 -'!B18,'- 22 -'!E18,'- 22 -'!H18) -> 21461810 | F18: =E18/'- 3 -'!D18*100 -> 15.02114457 | G18: =E18/'- 7 -'!E18 -> 3647.486404 | H18: =SUM('- 23 -'!D18,'- 23 -'!B18) -> 2199710 | I18: =H18/'- 3 -'!D18*100 -> 1.539579464
A19: GARDEN VALLEY | B19: =SUM('- 18 -'!B19,'- 18 -'!E19,'- 19 -'!B19,'- 19 -'!E19,'- 19 -'!H19,'- 20 -'!B19) -> 31052610 | C19: =B19/'- 3 -'!D19*100 -> 58.55688145 | D19: =B19/'- 7 -'!C19 -> 7105.860412 | E19: =SUM('- 21 -'!B19,'- 21 -'!E19,'- 21 -'!H19,'- 22 -'!B19,'- 22 -'!E19,'- 22 -'!H19) -> 10120767 | F19: =E19/'- 3 -'!D19*100 -> 19.08504803 | G19: =E19/'- 7 -'!E19 -> 2315.964989 | H19: =SUM('- 23 -'!D19,'- 23 -'!B19) -> 0 | I19: =H19/'- 3 -'!D19*100 -> 0
A20: HANOVER | B20: =SUM('- 18 -'!B20,'- 18 -'!E20,'- 19 -'!B20,'- 19 -'!E20,'- 19 -'!H20,'- 20 -'!B20) -> 62030256 | C20: =B20/'- 3 -'!D20*100 -> 64.34569064 | D20: =B20/'- 7 -'!C20 -> 8028.767279 | E20: =SUM('- 21 -'!B20,'- 21 -'!E20,'- 21 -'!H20,'- 22 -'!B20,'- 22 -'!E20,'- 22 -'!H20) -> 15202198 | F20: =E20/'- 3 -'!D20*100 -> 15.76965811 | G20: =E20/'- 7 -'!E20 -> 1967.667357 | H20: =SUM('- 23 -'!D20,'- 23 -'!B20) -> 0 | I20: =H20/'- 3 -'!D20*100 -> 0
A21: INTERLAKE | B21: =SUM('- 18 -'!B21,'- 18 -'!E21,'- 19 -'!B21,'- 19 -'!E21,'- 19 -'!H21,'- 20 -'!B21) -> 23612125 | C21: =B21/'- 3 -'!D21*100 -> 57.20144502 | D21: =B21/'- 7 -'!C21 -> 8390.94705 | E21: =SUM('- 21 -'!B21,'- 21 -'!E21,'- 21 -'!H21,'- 22 -'!B21,'- 22 -'!E21,'- 22 -'!H21) -> 7758531 | F21: =E21/'- 3 -'!D21*100 -> 18.79539366 | G21: =E21/'- 7 -'!E21 -> 2757.118337 | H21: =SUM('- 23 -'!D21,'- 23 -'!B21) -> 0 | I21: =H21/'- 3 -'!D21*100 -> 0
A22: KELSEY | B22: =SUM('- 18 -'!B22,'- 18 -'!E22,'- 19 -'!B22,'- 19 -'!E22,'- 19 -'!H22,'- 20 -'!B22) -> 11517724 | C22: =B22/'- 3 -'!D22*100 -> 54.96222795 | D22: =B22/'- 7 -'!C22 -> 8209.354241 | E22: =SUM('- 21 -'!B22,'- 21 -'!E22,'- 21 -'!H22,'- 22 -'!B22,'- 22 -'!E22,'- 22 -'!H22) -> 4518434 | F22: =E22/'- 3 -'!D22*100 -> 21.56182936 | G22: =E22/'- 7 -'!E22 -> 3220.551675 | H22: =SUM('- 23 -'!D22,'- 23 -'!B22) -> 643144 | I22: =H22/'- 3 -'!D22*100 -> 3.06906357
A23: LAKESHORE | B23: =SUM('- 18 -'!B23,'- 18 -'!E23,'- 19 -'!B23,'- 19 -'!E23,'- 19 -'!H23,'- 20 -'!B23) -> 8780265 | C23: =B23/'- 3 -'!D23*100 -> 54.35266261 | D23: =B23/'- 7 -'!C23 -> 9691.241722 | E23: =SUM('- 21 -'!B23,'- 21 -'!E23,'- 21 -'!H23,'- 22 -'!B23,'- 22 -'!E23,'- 22 -'!H23) -> 2727491 | F23: =E23/'- 3 -'!D23*100 -> 16.88404599 | G23: =E23/'- 7 -'!E23 -> 3010.475717 | H23: =SUM('- 23 -'!D23,'- 23 -'!B23) -> 278015 | I23: =H23/'- 3 -'!D23*100 -> 1.721002213
A24: LORD SELKIRK | B24: =SUM('- 18 -'!B24,'- 18 -'!E24,'- 19 -'!B24,'- 19 -'!E24,'- 19 -'!H24,'- 20 -'!B24) -> 37407941 | C24: =B24/'- 3 -'!D24*100 -> 61.72875506 | D24: =B24/'- 7 -'!C24 -> 10327.12393 | E24: =SUM('- 21 -'!B24,'- 21 -'!E24,'- 21 -'!H24,'- 22 -'!B24,'- 22 -'!E24,'- 22 -'!H24) -> 9894914 | F24: =E24/'- 3 -'!D24*100 -> 16.32810324 | G24: =E24/'- 7 -'!E24 -> 2731.666069 | H24: =SUM('- 23 -'!D24,'- 23 -'!B24) -> 348032 | I24: =H24/'- 3 -'!D24*100 -> 0.5743053883
A25: LOUIS RIEL | B25: =SUM('- 18 -'!B25,'- 18 -'!E25,'- 19 -'!B25,'- 19 -'!E25,'- 19 -'!H25,'- 20 -'!B25) -> 115610923 | C25: =B25/'- 3 -'!D25*100 -> 57.6081642 | D25: =B25/'- 7 -'!C25 -> 7627.811368 | E25: =SUM('- 21 -'!B25,'- 21 -'!E25,'- 21 -'!H25,'- 22 -'!B25,'- 22 -'!E25,'- 22 -'!H25) -> 40738407 | F25: =E25/'- 3 -'!D25*100 -> 20.29968085 | G25: =E25/'- 7 -'!E25 -> 2687.850559 | H25: =SUM('- 23 -'!D25,'- 23 -'!B25) -> 885154 | I25: =H25/'- 3 -'!D25*100 -> 0.4410664291
A26: MOUNTAIN VIEW | B26: =SUM('- 18 -'!B26,'- 18 -'!E26,'- 19 -'!B26,'- 19 -'!E26,'- 19 -'!H26,'- 20 -'!B26) -> 24774637 | C26: =B26/'- 3 -'!D26*100 -> 57.86740707 | D26: =B26/'- 7 -'!C26 -> 8371.223855 | E26: =SUM('- 21 -'!B26,'- 21 -'!E26,'- 21 -'!H26,'- 22 -'!B26,'- 22 -'!E26,'- 22 -'!H26) -> 6316597 | F26: =E26/'- 3 -'!D26*100 -> 14.75400386 | G26: =E26/'- 7 -'!E26 -> 2134.346004 | H26: =SUM('- 23 -'!D26,'- 23 -'!B26) -> 0 | I26: =H26/'- 3 -'!D26*100 -> 0
A27: MYSTERY LAKE | B27: =SUM('- 18 -'!B27,'- 18 -'!E27,'- 19 -'!B27,'- 19 -'!E27,'- 19 -'!H27,'- 20 -'!B27) -> 25157336 | C27: =B27/'- 3 -'!D27*100 -> 58.03618704 | D27: =B27/'- 7 -'!C27 -> 8339.07982 | E27: =SUM('- 21 -'!B27,'- 21 -'!E27,'- 21 -'!H27,'- 22 -'!B27,'- 22 -'!E27,'- 22 -'!H27) -> 8899087 | F27: =E27/'- 3 -'!D27*100 -> 20.52956154 | G27: =E27/'- 7 -'!E27 -> 2949.843211 | H27: =SUM('- 23 -'!D27,'- 23 -'!B27) -> 0 | I27: =H27/'- 3 -'!D27*100 -> 0
A28: PARK WEST | B28: =SUM('- 18 -'!B28,'- 18 -'!E28,'- 19 -'!B28,'- 19 -'!E28,'- 19 -'!H28,'- 20 -'!B28) -> 18428214 | C28: =B28/'- 3 -'!D28*100 -> 62.89281187 | D28: =B28/'- 7 -'!C28 -> 9543.352667 | E28: =SUM('- 21 -'!B28,'- 21 -'!E28,'- 21 -'!H28,'- 22 -'!B28,'- 22 -'!E28,'- 22 -'!H28) -> 3478107 | F28: =E28/'- 3 -'!D28*100 -> 11.8702729 | G28: =E28/'- 7 -'!E28 -> 1801.194718 | H28: =SUM('- 23 -'!D28,'- 23 -'!B28) -> 60385 | I28: =H28/'- 3 -'!D28*100 -> 0.206085215
A29: PEMBINA TRAILS | B29: =SUM('- 18 -'!B29,'- 18 -'!E29,'- 19 -'!B29,'- 19 -'!E29,'- 19 -'!H29,'- 20 -'!B29) -> 105788720 | C29: =B29/'- 3 -'!D29*100 -> 58.42731192 | D29: =B29/'- 7 -'!C29 -> 7178.735648 | E29: =SUM('- 21 -'!B29,'- 21 -'!E29,'- 21 -'!H29,'- 22 -'!B29,'- 22 -'!E29,'- 22 -'!H29) -> 36201555 | F29: =E29/'- 3 -'!D29*100 -> 19.99418791 | G29: =E29/'- 7 -'!E29 -> 2456.607788 | H29: =SUM('- 23 -'!D29,'- 23 -'!B29) -> 0 | I29: =H29/'- 3 -'!D29*100 -> 0
A30: PINE CREEK | B30: =SUM('- 18 -'!B30,'- 18 -'!E30,'- 19 -'!B30,'- 19 -'!E30,'- 19 -'!H30,'- 20 -'!B30) -> 10580937 | C30: =B30/'- 3 -'!D30*100 -> 63.86847904 | D30: =B30/'- 7 -'!C30 -> 10125.29856 | E30: =SUM('- 21 -'!B30,'- 21 -'!E30,'- 21 -'!H30,'- 22 -'!B30,'- 22 -'!E30,'- 22 -'!H30) -> 1765763 | F30: =E30/'- 3 -'!D30*100 -> 10.65846977 | G30: =E30/'- 7 -'!E30 -> 1689.725359 | H30: =SUM('- 23 -'!D30,'- 23 -'!B30) -> 0 | I30: =H30/'- 3 -'!D30*100 -> 0
A31: PORTAGE LA PRAIRIE | B31: =SUM('- 18 -'!B31,'- 18 -'!E31,'- 19 -'!B31,'- 19 -'!E31,'- 19 -'!H31,'- 20 -'!B31) -> 26888753 | C31: =B31/'- 3 -'!D31*100 -> 61.04216729 | D31: =B31/'- 7 -'!C31 -> 8086.843008 | E31: =SUM('- 21 -'!B31,'- 21 -'!E31,'- 21 -'!H31,'- 22 -'!B31,'- 22 -'!E31,'- 22 -'!H31) -> 7710620 | F31: =E31/'- 3 -'!D31*100 -> 17.50445459 | G31: =E31/'- 7 -'!E31 -> 2318.983459 | H31: =SUM('- 23 -'!D31,'- 23 -'!B31) -> 0 | I31: =H31/'- 3 -'!D31*100 -> 0
A32: PRAIRIE ROSE | B32: =SUM('- 18 -'!B32,'- 18 -'!E32,'- 19 -'!B32,'- 19 -'!E32,'- 19 -'!H32,'- 20 -'!B32) -> 20407252 | C32: =B32/'- 3 -'!D32*100 -> 61.05393461 | D32: =B32/'- 7 -'!C32 -> 8784.869565 | E32: =SUM('- 21 -'!B32,'- 21 -'!E32,'- 21 -'!H32,'- 22 -'!B32,'- 22 -'!E32,'- 22 -'!H32) -> 4626900 | F32: =E32/'- 3 -'!D32*100 -> 13.84265015 | G32: =E32/'- 7 -'!E32 -> 1991.777873 | H32: =SUM('- 23 -'!D32,'- 23 -'!B32) -> 290664 | I32: =H32/'- 3 -'!D32*100 -> 0.869601691
A33: PRAIRIE SPIRIT | B33: =SUM('- 18 -'!B33,'- 18 -'!E33,'- 19 -'!B33,'- 19 -'!E33,'- 19 -'!H33,'- 20 -'!B33) -> 17645432 | C33: =B33/'- 3 -'!D33*100 -> 59.12881677 | D33: =B33/'- 7 -'!C33 -> 8791.944195 | E33: =SUM('- 21 -'!B33,'- 21 -'!E33,'- 21 -'!H33,'- 22 -'!B33,'- 22 -'!E33,'- 22 -'!H33) -> 4346171 | F33: =E33/'- 3 -'!D33*100 -> 14.56376635 | G33: =E33/'- 7 -'!E33 -> 2165.506228 | H33: =SUM('- 23 -'!D33,'- 23 -'!B33) -> 0 | I33: =H33/'- 3 -'!D33*100 -> 0
A34: RED RIVER VALLEY | B34: =SUM('- 18 -'!B34,'- 18 -'!E34,'- 19 -'!B34,'- 19 -'!E34,'- 19 -'!H34,'- 20 -'!B34) -> 19367427 | C34: =B34/'- 3 -'!D34*100 -> 59.13788953 | D34: =B34/'- 7 -'!C34 -> 8928.290814 | E34: =SUM('- 21 -'!B34,'- 21 -'!E34,'- 21 -'!H34,'- 22 -'!B34,'- 22 -'!E34,'- 22 -'!H34) -> 5466599 | F34: =E34/'- 3 -'!D34*100 -> 16.69210514 | G34: =E34/'- 7 -'!E34 -> 2520.07588 | H34: =SUM('- 23 -'!D34,'- 23 -'!B34) -> 0 | I34: =H34/'- 3 -'!D34*100 -> 0
A35: RIVER EAST TRANSCONA | B35: =SUM('- 18 -'!B35,'- 18 -'!E35,'- 19 -'!B35,'- 19 -'!E35,'- 19 -'!H35,'- 20 -'!B35) -> 119370631 | C35: =B35/'- 3 -'!D35*100 -> 56.3205355 | D35: =B35/'- 7 -'!C35 -> 7419.394058 | E35: =SUM('- 21 -'!B35,'- 21 -'!E35,'- 21 -'!H35,'- 22 -'!B35,'- 22 -'!E35,'- 22 -'!H35) -> 40266572 | F35: =E35/'- 3 -'!D35*100 -> 18.99826514 | G35: =E35/'- 7 -'!E35 -> 2502.739263 | H35: =SUM('- 23 -'!D35,'- 23 -'!B35) -> 1566099 | I35: =H35/'- 3 -'!D35*100 -> 0.7389048176
A36: ROLLING RIVER | B36: =SUM('- 18 -'!B36,'- 18 -'!E36,'- 19 -'!B36,'- 19 -'!E36,'- 19 -'!H36,'- 20 -'!B36) -> 15645586 | C36: =B36/'- 3 -'!D36*100 -> 62.12365523 | D36: =B36/'- 7 -'!C36 -> 9149.465497 | E36: =SUM('- 21 -'!B36,'- 21 -'!E36,'- 21 -'!H36,'- 22 -'!B36,'- 22 -'!E36,'- 22 -'!H36) -> 3062826 | F36: =E36/'- 3 -'!D36*100 -> 12.16150974 | G36: =E36/'- 7 -'!E36 -> 1791.126316 | H36: =SUM('- 23 -'!D36,'- 23 -'!B36) -> 121557 | I36: =H36/'- 3 -'!D36*100 -> 0.4826642581
A37: SEINE RIVER | B37: =SUM('- 18 -'!B37,'- 18 -'!E37,'- 19 -'!B37,'- 19 -'!E37,'- 19 -'!H37,'- 20 -'!B37) -> 31469281 | C37: =B37/'- 3 -'!D37*100 -> 56.29297681 | D37: =B37/'- 7 -'!C37 -> 7298.578519 | E37: =SUM('- 21 -'!B37,'- 21 -'!E37,'- 21 -'!H37,'- 22 -'!B37,'- 22 -'!E37,'- 22 -'!H37) -> 10958927 | F37: =E37/'- 3 -'!D37*100 -> 19.60358177 | G37: =E37/'- 7 -'!E37 -> 2541.671962 | H37: =SUM('- 23 -'!D37,'- 23 -'!B37) -> 331667 | I37: =H37/'- 3 -'!D37*100 -> 0.5932935913
A38: SEVEN OAKS | B38: =SUM('- 18 -'!B38,'- 18 -'!E38,'- 19 -'!B38,'- 19 -'!E38,'- 19 -'!H38,'- 20 -'!B38) -> 92105663 | C38: =B38/'- 3 -'!D38*100 -> 58.75453942 | D38: =B38/'- 7 -'!C38 -> 8250.312436 | E38: =SUM('- 21 -'!B38,'- 21 -'!E38,'- 21 -'!H38,'- 22 -'!B38,'- 22 -'!E38,'- 22 -'!H38) -> 28006214 | F38: =E38/'- 3 -'!D38*100 -> 17.86526638 | G38: =E38/'- 7 -'!E38 -> 2508.640708 | H38: =SUM('- 23 -'!D38,'- 23 -'!B38) -> 2284562 | I38: =H38/'- 3 -'!D38*100 -> 1.457330458
A39: SOUTHWEST HORIZON | B39: =SUM('- 18 -'!B39,'- 18 -'!E39,'- 19 -'!B39,'- 19 -'!E39,'- 19 -'!H39,'- 20 -'!B39) -> 13894615 | C39: =B39/'- 3 -'!D39*100 -> 59.27034077 | D39: =B39/'- 7 -'!C39 -> 9236.598418 | E39: =SUM('- 21 -'!B39,'- 21 -'!E39,'- 21 -'!H39,'- 22 -'!B39,'- 22 -'!E39,'- 22 -'!H39) -> 3413268 | F39: =E39/'- 3 -'!D39*100 -> 14.55999735 | G39: =E39/'- 7 -'!E39 -> 2269.007512 | H39: =SUM('- 23 -'!D39,'- 23 -'!B39) -> 0 | I39: =H39/'- 3 -'!D39*100 -> 0
A40: ST. JAMES-ASSINIBOIA | B40: =SUM('- 18 -'!B40,'- 18 -'!E40,'- 19 -'!B40,'- 19 -'!E40,'- 19 -'!H40,'- 20 -'!B40) -> 64852374 | C40: =B40/'- 3 -'!D40*100 -> 57.19261712 | D40: =B40/'- 7 -'!C40 -> 8144.581948 | E40: =SUM('- 21 -'!B40,'- 21 -'!E40,'- 21 -'!H40,'- 22 -'!B40,'- 22 -'!E40,'- 22 -'!H40) -> 25166170 | F40: =E40/'- 3 -'!D40*100 -> 22.19377698 | G40: =E40/'- 7 -'!E40 -> 3160.530929 | H40: =SUM('- 23 -'!D40,'- 23 -'!B40) -> 0 | I40: =H40/'- 3 -'!D40*100 -> 0
A41: SUNRISE | B41: =SUM('- 18 -'!B41,'- 18 -'!E41,'- 19 -'!B41,'- 19 -'!E41,'- 19 -'!H41,'- 20 -'!B41) -> 37394965 | C41: =B41/'- 3 -'!D41*100 -> 53.70158269 | D41: =B41/'- 7 -'!C41 -> 8629.275412 | E41: =SUM('- 21 -'!B41,'- 21 -'!E41,'- 21 -'!H41,'- 22 -'!B41,'- 22 -'!E41,'- 22 -'!H41) -> 13539771 | F41: =E41/'- 3 -'!D41*100 -> 19.44398482 | G41: =E41/'- 7 -'!E41 -> 3124.442368 | H41: =SUM('- 23 -'!D41,'- 23 -'!B41) -> 1010131 | I41: =H41/'- 3 -'!D41*100 -> 1.450613296
A42: SWAN VALLEY | B42: =SUM('- 18 -'!B42,'- 18 -'!E42,'- 19 -'!B42,'- 19 -'!E42,'- 19 -'!H42,'- 20 -'!B42) -> 12293656 | C42: =B42/'- 3 -'!D42*100 -> 56.529501 | D42: =B42/'- 7 -'!C42 -> 9463.938414 | E42: =SUM('- 21 -'!B42,'- 21 -'!E42,'- 21 -'!H42,'- 22 -'!B42,'- 22 -'!E42,'- 22 -'!H42) -> 3842643 | F42: =E42/'- 3 -'!D42*100 -> 17.66949485 | G42: =E42/'- 7 -'!E42 -> 2958.154734 | H42: =SUM('- 23 -'!D42,'- 23 -'!B42) -> 0 | I42: =H42/'- 3 -'!D42*100 -> 0
A43: TURTLE MOUNTAIN | B43: =SUM('- 18 -'!B43,'- 18 -'!E43,'- 19 -'!B43,'- 19 -'!E43,'- 19 -'!H43,'- 20 -'!B43) -> 7961129 | C43: =B43/'- 3 -'!D43*100 -> 57.43770516 | D43: =B43/'- 7 -'!C43 -> 7843.476847 | E43: =SUM('- 21 -'!B43,'- 21 -'!E43,'- 21 -'!H43,'- 22 -'!B43,'- 22 -'!E43,'- 22 -'!H43) -> 2425435 | F43: =E43/'- 3 -'!D43*100 -> 17.49895278 | G43: =E43/'- 7 -'!E43 -> 2389.591133 | H43: =SUM('- 23 -'!D43,'- 23 -'!B43) -> 214848 | I43: =H43/'- 3 -'!D43*100 -> 1.550078648
A44: TURTLE RIVER | B44: =SUM('- 18 -'!B44,'- 18 -'!E44,'- 19 -'!B44,'- 19 -'!E44,'- 19 -'!H44,'- 20 -'!B44) -> 6813079 | C44: =B44/'- 3 -'!D44*100 -> 60.22517572 | D44: =B44/'- 7 -'!C44 -> 10514.0108 | E44: =SUM('- 21 -'!B44,'- 21 -'!E44,'- 21 -'!H44,'- 22 -'!B44,'- 22 -'!E44,'- 22 -'!H44) -> 1431822 | F44: =E44/'- 3 -'!D44*100 -> 12.65679314 | G44: =E44/'- 7 -'!E44 -> 2209.601852 | H44: =SUM('- 23 -'!D44,'- 23 -'!B44) -> 0 | I44: =H44/'- 3 -'!D44*100 -> 0
A45: WESTERN | B45: =SUM('- 18 -'!B45,'- 18 -'!E45,'- 19 -'!B45,'- 19 -'!E45,'- 19 -'!H45,'- 20 -'!B45) -> 14771070 | C45: =B45/'- 3 -'!D45*100 -> 64.79958812 | D45: =B45/'- 7 -'!C45 -> 8215.278087 | E45: =SUM('- 21 -'!B45,'- 21 -'!E45,'- 21 -'!H45,'- 22 -'!B45,'- 22 -'!E45,'- 22 -'!H45) -> 3120706 | F45: =E45/'- 3 -'!D45*100 -> 13.69030567 | G45: =E45/'- 7 -'!E45 -> 1735.65406 | H45: =SUM('- 23 -'!D45,'- 23 -'!B45) -> 347526 | I45: =H45/'- 3 -'!D45*100 -> 1.524570777
A46: WINNIPEG | B46: =SUM('- 18 -'!B46,'- 18 -'!E46,'- 19 -'!B46,'- 19 -'!E46,'- 19 -'!H46,'- 20 -'!B46) -> 242981152 | C46: =B46/'- 3 -'!D46*100 -> 56.26643947 | D46: =B46/'- 7 -'!C46 -> 8314.097149 | E46: =SUM('- 21 -'!B46,'- 21 -'!E46,'- 21 -'!H46,'- 22 -'!B46,'- 22 -'!E46,'- 22 -'!H46) -> 93177836 | F46: =E46/'- 3 -'!D46*100 -> 21.57692079 | G46: =E46/'- 7 -'!E46 -> 3188.27026 | H46: =SUM('- 23 -'!D46,'- 23 -'!B46) -> 813912 | I46: =H46/'- 3 -'!D46*100 -> 0.1884752373
A48: PROVINCE | B48: =SUM(B11:B46) -> 1471273490 | C48: =B48/'- 3 -'!D48*100 -> 57.22561289 | D48: =B48/'- 7 -'!C48 -> 8241.39107 | E48: =SUM(E11:E46) -> 474620798 | F48: =E48/'- 3 -'!D48*100 -> 18.46051481 | G48: =E48/'- 7 -'!E48 -> 2658.605373 | H48: =SUM(H11:H46) -> 12302507 | I48: =H48/'- 3 -'!D48*100 -> 0.4785096095
A50: WHITESHELL | B50: =SUM('- 18 -'!B50,'- 18 -'!E50,'- 19 -'!B50,'- 19 -'!E50,'- 19 -'!H50,'- 20 -'!B50) -> 2088716 | C50: =B50/'- 3 -'!D50*100 -> 61.61266001 | D50: =B50/'- 7 -'!C50 -> 11351.71739 | E50: =SUM('- 21 -'!B50,'- 21 -'!E50,'- 21 -'!H50,'- 22 -'!B50,'- 22 -'!E50,'- 22 -'!H50) -> 403263 | F50: =E50/'- 3 -'!D50*100 -> 11.89539704 | G50: =E50/'- 7 -'!E50 -> 2191.646739 | H50: =SUM('- 23 -'!D50,'- 23 -'!B50) -> 0 | I50: =H50/'- 3 -'!D50*100 -> 0
A51: MITT | B51: =SUM('- 18 -'!B51,'- 18 -'!E51,'- 19 -'!B51,'- 19 -'!E51,'- 19 -'!H51,'- 20 -'!B51) -> 5537289 | C51: =B51/'- 3 -'!D51*100 -> 17.78599582 | D51: =B51/'- 7 -'!C51 -> 3121.182008 | E51: =SUM('- 21 -'!B51,'- 21 -'!E51,'- 21 -'!H51,'- 22 -'!B51,'- 22 -'!E51,'- 22 -'!H51) -> 1125452 | F51: =E51/'- 3 -'!D51*100 -> 3.614997261 | G51: =E51/'- 7 -'!E51 -> 634.3791218 | H51: =SUM('- 23 -'!D51,'- 23 -'!B51) -> 2490301 | I51: =H51/'- 3 -'!D51*100 -> 7.99894735

Sheet - 16 -
B2: ANALYSIS OF EXPENSE BY FUNCTION | I2: PAGE 2 OF 3
B3: =OPYEAR -> OPERATING FUND 2020/2021 ACTUAL
B6: COMMUNITY EDUCATION AND SERVICES | D6: DIVISIONAL ADMINISTRATION | G6: INSTRUCTIONAL & OTHER SUPPORT SERVICES
F8: PER PUPIL | I8: PER PUPIL
A9: DIVISION / DISTRICT | B9: AMOUNT | C9: % | D9: AMOUNT | E9: % | G9: AMOUNT | H9: %
A11: BEAUTIFUL PLAINS | B11: =SUM('- 24 -'!H11,'- 24 -'!F11,'- 24 -'!D11,'- 24 -'!B11) -> 11803 | C11: =B11/'- 3 -'!D11*100 -> 0.0524395428 | D11: =SUM('- 25 -'!B11,'- 25 -'!E11,'- 25 -'!H11,'- 26 -'!B11) -> 622685 | E11: =D11/'- 3 -'!D11*100 -> 2.766526875 | F11: =D11/'- 7 -'!E11 -> 327.3843323 | G11: =SUM('- 27 -'!B11,'- 27 -'!E11,'- 27 -'!H11,'- 28 -'!B11,'- 28 -'!E11) -> 471625 | H11: =G11/'- 3 -'!D11*100 -> 2.095382477 | I11: =G11/'- 7 -'!E11 -> 247.9626709
A12: BORDER LAND | B12: =SUM('- 24 -'!H12,'- 24 -'!F12,'- 24 -'!D12,'- 24 -'!B12) -> 57163 | C12: =B12/'- 3 -'!D12*100 -> 0.16613375 | D12: =SUM('- 25 -'!B12,'- 25 -'!E12,'- 25 -'!H12,'- 26 -'!B12) -> 1060870 | E12: =D12/'- 3 -'!D12*100 -> 3.083223613 | F12: =D12/'- 7 -'!E12 -> 539.6110865 | G12: =SUM('- 27 -'!B12,'- 27 -'!E12,'- 27 -'!H12,'- 28 -'!B12,'- 28 -'!E12) -> 562206 | H12: =G12/'- 3 -'!D12*100 -> 1.633948377 | I12: =G12/'- 7 -'!E12 -> 285.9658493
A13: BRANDON | B13: =SUM('- 24 -'!H13,'- 24 -'!F13,'- 24 -'!D13,'- 24 -'!B13) -> 331987 | C13: =B13/'- 3 -'!D13*100 -> 0.2946085361 | D13: =SUM('- 25 -'!B13,'- 25 -'!E13,'- 25 -'!H13,'- 26 -'!B13) -> 3007358 | E13: =D13/'- 3 -'!D13*100 -> 2.668759132 | F13: =D13/'- 7 -'!E13 -> 353.744398 | G13: =SUM('- 27 -'!B13,'- 27 -'!E13,'- 27 -'!H13,'- 28 -'!B13,'- 28 -'!E13) -> 2409652 | H13: =G13/'- 3 -'!D13*100 -> 2.138348936 | I13: =G13/'- 7 -'!E13 -> 283.438452
A14: DSFM | B14: =SUM('- 24 -'!H14,'- 24 -'!F14,'- 24 -'!D14,'- 24 -'!B14) -> 1306980 | C14: =B14/'- 3 -'!D14*100 -> 1.272641659 | D14: =SUM('- 25 -'!B14,'- 25 -'!E14,'- 25 -'!H14,'- 26 -'!B14) -> 3457253 | E14: =D14/'- 3 -'!D14*100 -> 3.366420446 | F14: =D14/'- 7 -'!E14 -> 583.3135929 | G14: =SUM('- 27 -'!B14,'- 27 -'!E14,'- 27 -'!H14,'- 28 -'!B14,'- 28 -'!E14) -> 3149250 | H14: =G14/'- 3 -'!D14*100 -> 3.066509621 | I14: =G14/'- 7 -'!E14 -> 531.3468041
A15: EVERGREEN | B15: =SUM('- 24 -'!H15,'- 24 -'!F15,'- 24 -'!D15,'- 24 -'!B15) -> 0 | C15: =B15/'- 3 -'!D15*100 -> 0 | D15: =SUM('- 25 -'!B15,'- 25 -'!E15,'- 25 -'!H15,'- 26 -'!B15) -> 749339 | E15: =D15/'- 3 -'!D15*100 -> 3.576654241 | F15: =D15/'- 7 -'!E15 -> 540.258832 | G15: =SUM('- 27 -'!B15,'- 27 -'!E15,'- 27 -'!H15,'- 28 -'!B15,'- 28 -'!E15) -> 403623 | H15: =G15/'- 3 -'!D15*100 -> 1.926524463 | I15: =G15/'- 7 -'!E15 -> 291.0043259
A16: FLIN FLON | B16: =SUM('- 24 -'!H16,'- 24 -'!F16,'- 24 -'!D16,'- 24 -'!B16) -> 13877 | C16: =B16/'- 3 -'!D16*100 -> 0.08752788505 | D16: =SUM('- 25 -'!B16,'- 25 -'!E16,'- 25 -'!H16,'- 26 -'!B16) -> 583936 | E16: =D16/'- 3 -'!D16*100 -> 3.683121934 | F16: =D16/'- 7 -'!E16 -> 627.4833441 | G16: =SUM('- 27 -'!B16,'- 27 -'!E16,'- 27 -'!H16,'- 28 -'!B16,'- 28 -'!E16) -> 186310 | H16: =G16/'- 3 -'!D16*100 -> 1.175132973 | I16: =G16/'- 7 -'!E16 -> 200.2041694
A17: FORT LA BOSSE | B17: =SUM('- 24 -'!H17,'- 24 -'!F17,'- 24 -'!D17,'- 24 -'!B17) -> 286230 | C17: =B17/'- 3 -'!D17*100 -> 1.511643585 | D17: =SUM('- 25 -'!B17,'- 25 -'!E17,'- 25 -'!H17,'- 26 -'!B17) -> 639391 | E17: =D17/'- 3 -'!D17*100 -> 3.376764502 | F17: =D17/'- 7 -'!E17 -> 439.8974888 | G17: =SUM('- 27 -'!B17,'- 27 -'!E17,'- 27 -'!H17,'- 28 -'!B17,'- 28 -'!E17) -> 315151 | H17: =G17/'- 3 -'!D17*100 -> 1.664381747 | I17: =G17/'- 7 -'!E17 -> 216.8221534
A18: FRONTIER | B18: =SUM('- 24 -'!H18,'- 24 -'!F18,'- 24 -'!D18,'- 24 -'!B18) -> 2659365 | C18: =B18/'- 3 -'!D18*100 -> 1.861292507 | D18: =SUM('- 25 -'!B18,'- 25 -'!E18,'- 25 -'!H18,'- 26 -'!B18) -> 7296608 | E18: =D18/'- 3 -'!D18*100 -> 5.106904015 | F18: =D18/'- 7 -'!E18 -> 1240.076139 | G18: =SUM('- 27 -'!B18,'- 27 -'!E18,'- 27 -'!H18,'- 28 -'!B18,'- 28 -'!E18) -> 7270960 | H18: =G18/'- 3 -'!D18*100 -> 5.088952951 | I18: =G18/'- 7 -'!E18 -> 1235.717199
A19: GARDEN VALLEY | B19: =SUM('- 24 -'!H19,'- 24 -'!F19,'- 24 -'!D19,'- 24 -'!B19) -> 78785 | C19: =B19/'- 3 -'!D19*100 -> 0.1485673476 | D19: =SUM('- 25 -'!B19,'- 25 -'!E19,'- 25 -'!H19,'- 26 -'!B19) -> 1237814 | E19: =D19/'- 3 -'!D19*100 -> 2.334184716 | F19: =D19/'- 7 -'!E19 -> 283.2526316 | G19: =SUM('- 27 -'!B19,'- 27 -'!E19,'- 27 -'!H19,'- 28 -'!B19,'- 28 -'!E19) -> 1469979 | H19: =G19/'- 3 -'!D19*100 -> 2.771985544 | I19: =G19/'- 7 -'!E19 -> 336.3796339
A20: HANOVER | B20: =SUM('- 24 -'!H20,'- 24 -'!F20,'- 24 -'!D20,'- 24 -'!B20) -> 36470 | C20: =B20/'- 3 -'!D20*100 -> 0.03783133407 | D20: =SUM('- 25 -'!B20,'- 25 -'!E20,'- 25 -'!H20,'- 26 -'!B20) -> 2176310 | E20: =D20/'- 3 -'!D20*100 -> 2.25754622 | F20: =D20/'- 7 -'!E20 -> 281.6865131 | G20: =SUM('- 27 -'!B20,'- 27 -'!E20,'- 27 -'!H20,'- 28 -'!B20,'- 28 -'!E20) -> 1887357 | H20: =G20/'- 3 -'!D20*100 -> 1.957807326 | I20: =G20/'- 7 -'!E20 -> 244.2864354
A21: INTERLAKE | B21: =SUM('- 24 -'!H21,'- 24 -'!F21,'- 24 -'!D21,'- 24 -'!B21) -> 0 | C21: =B21/'- 3 -'!D21*100 -> 0 | D21: =SUM('- 25 -'!B21,'- 25 -'!E21,'- 25 -'!H21,'- 26 -'!B21) -> 1364331 | E21: =D21/'- 3 -'!D21*100 -> 3.305153801 | F21: =D21/'- 7 -'!E21 -> 484.836887 | G21: =SUM('- 27 -'!B21,'- 27 -'!E21,'- 27 -'!H21,'- 28 -'!B21,'- 28 -'!E21) -> 1090467 | H21: =G21/'- 3 -'!D21*100 -> 2.641705825 | I21: =G21/'- 7 -'!E21 -> 387.5149254
A22: KELSEY | B22: =SUM('- 24 -'!H22,'- 24 -'!F22,'- 24 -'!D22,'- 24 -'!B22) -> 45509 | C22: =B22/'- 3 -'!D22*100 -> 0.2171675612 | D22: =SUM('- 25 -'!B22,'- 25 -'!E22,'- 25 -'!H22,'- 26 -'!B22) -> 775866 | E22: =D22/'- 3 -'!D22*100 -> 3.702408909 | F22: =D22/'- 7 -'!E22 -> 553.0049893 | G22: =SUM('- 27 -'!B22,'- 27 -'!E22,'- 27 -'!H22,'- 28 -'!B22,'- 28 -'!E22) -> 375415 | H22: =G22/'- 3 -'!D22*100 -> 1.79146894 | I22: =G22/'- 7 -'!E22 -> 267.5801853
A23: LAKESHORE | B23: =SUM('- 24 -'!H23,'- 24 -'!F23,'- 24 -'!D23,'- 24 -'!B23) -> 197911 | C23: =B23/'- 3 -'!D23*100 -> 1.225132705 | D23: =SUM('- 25 -'!B23,'- 25 -'!E23,'- 25 -'!H23,'- 26 -'!B23) -> 551305 | E23: =D23/'- 3 -'!D23*100 -> 3.412755157 | F23: =D23/'- 7 -'!E23 -> 608.504415 | G23: =SUM('- 27 -'!B23,'- 27 -'!E23,'- 27 -'!H23,'- 28 -'!B23,'- 28 -'!E23) -> 272592 | H23: =G23/'- 3 -'!D23*100 -> 1.6874321 | I23: =G23/'- 7 -'!E23 -> 300.8741722
A24: LORD SELKIRK | B24: =SUM('- 24 -'!H24,'- 24 -'!F24,'- 24 -'!D24,'- 24 -'!B24) -> 105943 | C24: =B24/'- 3 -'!D24*100 -> 0.1748219582 | D24: =SUM('- 25 -'!B24,'- 25 -'!E24,'- 25 -'!H24,'- 26 -'!B24) -> 1725715 | E24: =D24/'- 3 -'!D24*100 -> 2.847690509 | F24: =D24/'- 7 -'!E24 -> 476.4141568 | G24: =SUM('- 27 -'!B24,'- 27 -'!E24,'- 27 -'!H24,'- 28 -'!B24,'- 28 -'!E24) -> 908217 | H24: =G24/'- 3 -'!D24*100 -> 1.498695283 | I24: =G24/'- 7 -'!E24 -> 250.7293708
A25: LOUIS RIEL | B25: =SUM('- 24 -'!H25,'- 24 -'!F25,'- 24 -'!D25,'- 24 -'!B25) -> 2200033 | C25: =B25/'- 3 -'!D25*100 -> 1.096262005 | D25: =SUM('- 25 -'!B25,'- 25 -'!E25,'- 25 -'!H25,'- 26 -'!B25) -> 5913395 | E25: =D25/'- 3 -'!D25*100 -> 2.94660592 | F25: =D25/'- 7 -'!E25 -> 390.1557088 | G25: =SUM('- 27 -'!B25,'- 27 -'!E25,'- 27 -'!H25,'- 28 -'!B25,'- 28 -'!E25) -> 5995212 | H25: =G25/'- 3 -'!D25*100 -> 2.987374794 | I25: =G25/'- 7 -'!E25 -> 395.5538548
A26: MOUNTAIN VIEW | B26: =SUM('- 24 -'!H26,'- 24 -'!F26,'- 24 -'!D26,'- 24 -'!B26) -> 99361 | C26: =B26/'- 3 -'!D26*100 -> 0.2320826511 | D26: =SUM('- 25 -'!B26,'- 25 -'!E26,'- 25 -'!H26,'- 26 -'!B26) -> 1208876 | E26: =D26/'- 3 -'!D26*100 -> 2.823634493 | F26: =D26/'- 7 -'!E26 -> 408.4730529 | G26: =SUM('- 27 -'!B26,'- 27 -'!E26,'- 27 -'!H26,'- 28 -'!B26,'- 28 -'!E26) -> 1107547 | H26: =G26/'- 3 -'!D26*100 -> 2.586955082 | I26: =G26/'- 7 -'!E26 -> 374.2344991
A27: MYSTERY LAKE | B27: =SUM('- 24 -'!H27,'- 24 -'!F27,'- 24 -'!D27,'- 24 -'!B27) -> 57011 | C27: =B27/'- 3 -'!D27*100 -> 0.1315203271 | D27: =SUM('- 25 -'!B27,'- 25 -'!E27,'- 25 -'!H27,'- 26 -'!B27) -> 1714290 | E27: =D27/'- 3 -'!D27*100 -> 3.954745251 | F27: =D27/'- 7 -'!E27 -> 568.2478123 | G27: =SUM('- 27 -'!B27,'- 27 -'!E27,'- 27 -'!H27,'- 28 -'!B27,'- 28 -'!E27) -> 1442966 | H27: =G27/'- 3 -'!D27*100 -> 3.328820058 | I27: =G27/'- 7 -'!E27 -> 478.3101299
A28: PARK WEST | B28: =SUM('- 24 -'!H28,'- 24 -'!F28,'- 24 -'!D28,'- 24 -'!B28) -> 96142 | C28: =B28/'- 3 -'!D28*100 -> 0.328118651 | D28: =SUM('- 25 -'!B28,'- 25 -'!E28,'- 25 -'!H28,'- 26 -'!B28) -> 1083314 | E28: =D28/'- 3 -'!D28*100 -> 3.697192989 | F28: =D28/'- 7 -'!E28 -> 561.0119109 | G28: =SUM('- 27 -'!B28,'- 27 -'!E28,'- 27 -'!H28,'- 28 -'!B28,'- 28 -'!E28) -> 598600 | H28: =G28/'- 3 -'!D28*100 -> 2.042934664 | I28: =G28/'- 7 -'!E28 -> 309.9948213
A29: PEMBINA TRAILS | B29: =SUM('- 24 -'!H29,'- 24 -'!F29,'- 24 -'!D29,'- 24 -'!B29) -> 284977 | C29: =B29/'- 3 -'!D29*100 -> 0.1573933409 | D29: =SUM('- 25 -'!B29,'- 25 -'!E29,'- 25 -'!H29,'- 26 -'!B29) -> 5365616 | E29: =D29/'- 3 -'!D29*100 -> 2.963439955 | F29: =D29/'- 7 -'!E29 -> 364.1062946 | G29: =SUM('- 27 -'!B29,'- 27 -'!E29,'- 27 -'!H29,'- 28 -'!B29,'- 28 -'!E29) -> 5871224 | H29: =G29/'- 3 -'!D29*100 -> 3.242688219 | I29: =G29/'- 7 -'!E29 -> 398.4164382
A30: PINE CREEK | B30: =SUM('- 24 -'!H30,'- 24 -'!F30,'- 24 -'!D30,'- 24 -'!B30) -> 10868 | C30: =B30/'- 3 -'!D30*100 -> 0.06560124403 | D30: =SUM('- 25 -'!B30,'- 25 -'!E30,'- 25 -'!H30,'- 26 -'!B30) -> 550656 | E30: =D30/'- 3 -'!D30*100 -> 3.32386075 | F30: =D30/'- 7 -'!E30 -> 526.9435407 | G30: =SUM('- 27 -'!B30,'- 27 -'!E30,'- 27 -'!H30,'- 28 -'!B30,'- 28 -'!E30) -> 375567 | H30: =G30/'- 3 -'!D30*100 -> 2.266991389 | I30: =G30/'- 7 -'!E30 -> 359.3942584
A31: PORTAGE LA PRAIRIE | B31: =SUM('- 24 -'!H31,'- 24 -'!F31,'- 24 -'!D31,'- 24 -'!B31) -> 54911 | C31: =B31/'- 3 -'!D31*100 -> 0.124657564 | D31: =SUM('- 25 -'!B31,'- 25 -'!E31,'- 25 -'!H31,'- 26 -'!B31) -> 979991 | E31: =D31/'- 3 -'!D31*100 -> 2.224750793 | F31: =D31/'- 7 -'!E31 -> 294.7341353 | G31: =SUM('- 27 -'!B31,'- 27 -'!E31,'- 27 -'!H31,'- 28 -'!B31,'- 28 -'!E31) -> 1839304 | H31: =G31/'- 3 -'!D31*100 -> 4.175541442 | I31: =G31/'- 7 -'!E31 -> 553.1741353
A32: PRAIRIE ROSE | B32: =SUM('- 24 -'!H32,'- 24 -'!F32,'- 24 -'!D32,'- 24 -'!B32) -> 34000 | C32: =B32/'- 3 -'!D32*100 -> 0.1017203971 | D32: =SUM('- 25 -'!B32,'- 25 -'!E32,'- 25 -'!H32,'- 26 -'!B32) -> 954232 | E32: =D32/'- 3 -'!D32*100 -> 2.854848763 | F32: =D32/'- 7 -'!E32 -> 410.7757211 | G32: =SUM('- 27 -'!B32,'- 27 -'!E32,'- 27 -'!H32,'- 28 -'!B32,'- 28 -'!E32) -> 678944 | H32: =G32/'- 3 -'!D32*100 -> 2.031248626 | I32: =G32/'- 7 -'!E32 -> 292.2703401
A33: PRAIRIE SPIRIT | B33: =SUM('- 24 -'!H33,'- 24 -'!F33,'- 24 -'!D33,'- 24 -'!B33) -> 31367 | C33: =B33/'- 3 -'!D33*100 -> 0.1051089934 | D33: =SUM('- 25 -'!B33,'- 25 -'!E33,'- 25 -'!H33,'- 26 -'!B33) -> 817396 | E33: =D33/'- 3 -'!D33*100 -> 2.739046475 | F33: =D33/'- 7 -'!E33 -> 407.2725461 | G33: =SUM('- 27 -'!B33,'- 27 -'!E33,'- 27 -'!H33,'- 28 -'!B33,'- 28 -'!E33) -> 668446 | H33: =G33/'- 3 -'!D33*100 -> 2.239923684 | I33: =G33/'- 7 -'!E33 -> 333.0572995
A34: RED RIVER VALLEY | B34: =SUM('- 24 -'!H34,'- 24 -'!F34,'- 24 -'!D34,'- 24 -'!B34) -> 27366 | C34: =B34/'- 3 -'!D34*100 -> 0.08356130553 | D34: =SUM('- 25 -'!B34,'- 25 -'!E34,'- 25 -'!H34,'- 26 -'!B34) -> 955958 | E34: =D34/'- 3 -'!D34*100 -> 2.918990664 | F34: =D34/'- 7 -'!E34 -> 440.692046 | G34: =SUM('- 27 -'!B34,'- 27 -'!E34,'- 27 -'!H34,'- 28 -'!B34,'- 28 -'!E34) -> 509650 | H34: =G34/'- 3 -'!D34*100 -> 1.556201833 | I34: =G34/'- 7 -'!E34 -> 234.9462019
A35: RIVER EAST TRANSCONA | B35: =SUM('- 24 -'!H35,'- 24 -'!F35,'- 24 -'!D35,'- 24 -'!B35) -> 1069485 | C35: =B35/'- 3 -'!D35*100 -> 0.5045962093 | D35: =SUM('- 25 -'!B35,'- 25 -'!E35,'- 25 -'!H35,'- 26 -'!B35) -> 8410946 | E35: =D35/'- 3 -'!D35*100 -> 3.968388027 | F35: =D35/'- 7 -'!E35 -> 522.7761825 | G35: =SUM('- 27 -'!B35,'- 27 -'!E35,'- 27 -'!H35,'- 28 -'!B35,'- 28 -'!E35) -> 8353190 | H35: =G35/'- 3 -'!D35*100 -> 3.941138034 | I35: =G35/'- 7 -'!E35 -> 519.1864006
A36: ROLLING RIVER | B36: =SUM('- 24 -'!H36,'- 24 -'!F36,'- 24 -'!D36,'- 24 -'!B36) -> 18198 | C36: =B36/'- 3 -'!D36*100 -> 0.07225848095 | D36: =SUM('- 25 -'!B36,'- 25 -'!E36,'- 25 -'!H36,'- 26 -'!B36) -> 816521 | E36: =D36/'- 3 -'!D36*100 -> 3.242145682 | F36: =D36/'- 7 -'!E36 -> 477.4976608 | G36: =SUM('- 27 -'!B36,'- 27 -'!E36,'- 27 -'!H36,'- 28 -'!B36,'- 28 -'!E36) -> 426135 | H36: =G36/'- 3 -'!D36*100 -> 1.692046806 | I36: =G36/'- 7 -'!E36 -> 249.2017544
A37: SEINE RIVER | B37: =SUM('- 24 -'!H37,'- 24 -'!F37,'- 24 -'!D37,'- 24 -'!B37) -> 622237 | C37: =B37/'- 3 -'!D37*100 -> 1.11307192 | D37: =SUM('- 25 -'!B37,'- 25 -'!E37,'- 25 -'!H37,'- 26 -'!B37) -> 1405449 | E37: =D37/'- 3 -'!D37*100 -> 2.514099638 | F37: =D37/'- 7 -'!E37 -> 325.9616856 | G37: =SUM('- 27 -'!B37,'- 27 -'!E37,'- 27 -'!H37,'- 28 -'!B37,'- 28 -'!E37) -> 1447972 | H37: =G37/'- 3 -'!D37*100 -> 2.590165763 | I37: =G37/'- 7 -'!E37 -> 335.823921
A38: SEVEN OAKS | B38: =SUM('- 24 -'!H38,'- 24 -'!F38,'- 24 -'!D38,'- 24 -'!B38) -> 3043901 | C38: =B38/'- 3 -'!D38*100 -> 1.941715585 | D38: =SUM('- 25 -'!B38,'- 25 -'!E38,'- 25 -'!H38,'- 26 -'!B38) -> 3875535 | E38: =D38/'- 3 -'!D38*100 -> 2.472217956 | F38: =D38/'- 7 -'!E38 -> 347.1488458 | G38: =SUM('- 27 -'!B38,'- 27 -'!E38,'- 27 -'!H38,'- 28 -'!B38,'- 28 -'!E38) -> 4945850 | H38: =G38/'- 3 -'!D38*100 -> 3.154975811 | I38: =G38/'- 7 -'!E38 -> 443.0217039
A39: SOUTHWEST HORIZON | B39: =SUM('- 24 -'!H39,'- 24 -'!F39,'- 24 -'!D39,'- 24 -'!B39) -> 161470 | C39: =B39/'- 3 -'!D39*100 -> 0.6887835269 | D39: =SUM('- 25 -'!B39,'- 25 -'!E39,'- 25 -'!H39,'- 26 -'!B39) -> 802348 | E39: =D39/'- 3 -'!D39*100 -> 3.422580574 | F39: =D39/'- 7 -'!E39 -> 533.3696736 | G39: =SUM('- 27 -'!B39,'- 27 -'!E39,'- 27 -'!H39,'- 28 -'!B39,'- 28 -'!E39) -> 409112 | H39: =G39/'- 3 -'!D39*100 -> 1.74515146 | I39: =G39/'- 7 -'!E39 -> 271.9617098
A40: ST. JAMES-ASSINIBOIA | B40: =SUM('- 24 -'!H40,'- 24 -'!F40,'- 24 -'!D40,'- 24 -'!B40) -> 908628 | C40: =B40/'- 3 -'!D40*100 -> 0.8013093446 | D40: =SUM('- 25 -'!B40,'- 25 -'!E40,'- 25 -'!H40,'- 26 -'!B40) -> 3101259 | E40: =D40/'- 3 -'!D40*100 -> 2.734967244 | F40: =D40/'- 7 -'!E40 -> 389.476229 | G40: =SUM('- 27 -'!B40,'- 27 -'!E40,'- 27 -'!H40,'- 28 -'!B40,'- 28 -'!E40) -> 3636521 | H40: =G40/'- 3 -'!D40*100 -> 3.207009094 | I40: =G40/'- 7 -'!E40 -> 456.6979042
A41: SUNRISE | B41: =SUM('- 24 -'!H41,'- 24 -'!F41,'- 24 -'!D41,'- 24 -'!B41) -> 256674 | C41: =B41/'- 3 -'!D41*100 -> 0.3686004262 | D41: =SUM('- 25 -'!B41,'- 25 -'!E41,'- 25 -'!H41,'- 26 -'!B41) -> 2043503 | E41: =D41/'- 3 -'!D41*100 -> 2.934602167 | F41: =D41/'- 7 -'!E41 -> 471.5594785 | G41: =SUM('- 27 -'!B41,'- 27 -'!E41,'- 27 -'!H41,'- 28 -'!B41,'- 28 -'!E41) -> 1493913 | H41: =G41/'- 3 -'!D41*100 -> 2.145355464 | I41: =G41/'- 7 -'!E41 -> 344.7358948
A42: SWAN VALLEY | B42: =SUM('- 24 -'!H42,'- 24 -'!F42,'- 24 -'!D42,'- 24 -'!B42) -> 2385 | C42: =B42/'- 3 -'!D42*100 -> 0.01096686453 | D42: =SUM('- 25 -'!B42,'- 25 -'!E42,'- 25 -'!H42,'- 26 -'!B42) -> 720897 | E42: =D42/'- 3 -'!D42*100 -> 3.3148762 | F42: =D42/'- 7 -'!E42 -> 554.9630485 | G42: =SUM('- 27 -'!B42,'- 27 -'!E42,'- 27 -'!H42,'- 28 -'!B42,'- 28 -'!E42) -> 330510 | H42: =G42/'- 3 -'!D42*100 -> 1.519772912 | I42: =G42/'- 7 -'!E42 -> 254.4341801
A43: TURTLE MOUNTAIN | B43: =SUM('- 24 -'!H43,'- 24 -'!F43,'- 24 -'!D43,'- 24 -'!B43) -> 11156 | C43: =B43/'- 3 -'!D43*100 -> 0.08048796079 | D43: =SUM('- 25 -'!B43,'- 25 -'!E43,'- 25 -'!H43,'- 26 -'!B43) -> 452747 | E43: =D43/'- 3 -'!D43*100 -> 3.266464932 | F43: =D43/'- 7 -'!E43 -> 446.0561576 | G43: =SUM('- 27 -'!B43,'- 27 -'!E43,'- 27 -'!H43,'- 28 -'!B43,'- 28 -'!E43) -> 324025 | H43: =G43/'- 3 -'!D43*100 -> 2.337765462 | I43: =G43/'- 7 -'!E43 -> 319.2364532
A44: TURTLE RIVER | B44: =SUM('- 24 -'!H44,'- 24 -'!F44,'- 24 -'!D44,'- 24 -'!B44) -> 18747 | C44: =B44/'- 3 -'!D44*100 -> 0.1657167588 | D44: =SUM('- 25 -'!B44,'- 25 -'!E44,'- 25 -'!H44,'- 26 -'!B44) -> 413845 | E44: =D44/'- 3 -'!D44*100 -> 3.658241428 | F44: =D44/'- 7 -'!E44 -> 638.6496914 | G44: =SUM('- 27 -'!B44,'- 27 -'!E44,'- 27 -'!H44,'- 28 -'!B44,'- 28 -'!E44) -> 212217 | H44: =G44/'- 3 -'!D44*100 -> 1.875922196 | I44: =G44/'- 7 -'!E44 -> 327.4953704
A45: WESTERN | B45: =SUM('- 24 -'!H45,'- 24 -'!F45,'- 24 -'!D45,'- 24 -'!B45) -> 75502 | C45: =B45/'- 3 -'!D45*100 -> 0.331221672 | D45: =SUM('- 25 -'!B45,'- 25 -'!E45,'- 25 -'!H45,'- 26 -'!B45) -> 786027 | E45: =D45/'- 3 -'!D45*100 -> 3.448242128 | F45: =D45/'- 7 -'!E45 -> 437.1674082 | G45: =SUM('- 27 -'!B45,'- 27 -'!E45,'- 27 -'!H45,'- 28 -'!B45,'- 28 -'!E45) -> 357644 | H45: =G45/'- 3 -'!D45*100 -> 1.568957692 | I45: =G45/'- 7 -'!E45 -> 198.9121246
A46: WINNIPEG | B46: =SUM('- 24 -'!H46,'- 24 -'!F46,'- 24 -'!D46,'- 24 -'!B46) -> 8519630 | C46: =B46/'- 3 -'!D46*100 -> 1.972865968 | D46: =SUM('- 25 -'!B46,'- 25 -'!E46,'- 25 -'!H46,'- 26 -'!B46) -> 11432709 | E46: =D46/'- 3 -'!D46*100 -> 2.647439209 | F46: =D46/'- 7 -'!E46 -> 391.1935248 | G46: =SUM('- 27 -'!B46,'- 27 -'!E46,'- 27 -'!H46,'- 28 -'!B46,'- 28 -'!E46) -> 9167384 | H46: =G46/'- 3 -'!D46*100 -> 2.12286448 | I46: =G46/'- 7 -'!E46 -> 313.680796
A48: PROVINCE | B48: =SUM(B11:B46) -> 22736072 | C48: =B48/'- 3 -'!D48*100 -> 0.884326173 | D48: =SUM(D11:D46) -> 79054291 | E48: =D48/'- 3 -'!D48*100 -> 3.07483978 | F48: =D48/'- 7 -'!E48 -> 442.8254382 | G48: =SUM(G11:G46) -> 70964737 | H48: =G48/'- 3 -'!D48*100 -> 2.76019421 | I48: =G48/'- 7 -'!E48 -> 397.5115121
A50: WHITESHELL | B50: =SUM('- 24 -'!H50,'- 24 -'!F50,'- 24 -'!D50,'- 24 -'!B50) -> 77535 | C50: =B50/'- 3 -'!D50*100 -> 2.287116867 | D50: =SUM('- 25 -'!B50,'- 25 -'!E50,'- 25 -'!H50,'- 26 -'!B50) -> 195223 | E50: =D50/'- 3 -'!D50*100 -> 5.758661458 | F50: =D50/'- 7 -'!E50 -> 1060.994565 | G50: =SUM('- 27 -'!B50,'- 27 -'!E50,'- 27 -'!H50,'- 28 -'!B50,'- 28 -'!E50) -> 90886 | H50: =G50/'- 3 -'!D50*100 -> 2.680942846 | I50: =G50/'- 7 -'!E50 -> 493.9456522
A51: MITT | B51: =SUM('- 24 -'!H51,'- 24 -'!F51,'- 24 -'!D51,'- 24 -'!B51) -> 10237534 | C51: =B51/'- 3 -'!D51*100 -> 32.88337252 | D51: =SUM('- 25 -'!B51,'- 25 -'!E51,'- 25 -'!H51,'- 26 -'!B51) -> 6259730 | E51: =D51/'- 3 -'!D51*100 -> 20.10650548 | F51: =D51/'- 7 -'!E51 -> 3528.397497 | G51: =SUM('- 27 -'!B51,'- 27 -'!E51,'- 27 -'!H51,'- 28 -'!B51,'- 28 -'!E51) -> 643359 | H51: =G51/'- 3 -'!D51*100 -> 2.066495082 | I51: =G51/'- 7 -'!E51 -> 362.6396483

Sheet - 17 -
B2: ANALYSIS OF EXPENSE BY FUNCTION | J2: PAGE 3 OF 3
B3: =OPYEAR -> OPERATING FUND 2020/2021 ACTUAL
B6: TRANSPORTATION OF PUPILS | E6: OPERATIONS AND MAINTENANCE
H7: FISCAL
D8: PER PUPIL | G8: PER PUPIL | J8: PER PUPIL
A9: DIVISION / DISTRICT | B9: AMOUNT | C9: % | E9: AMOUNT | F9: % | H9: AMOUNT | I9: %
A11: BEAUTIFUL PLAINS | B11: =SUM('- 30 -'!D11,'- 30 -'!B11,'- 29 -'!F11,'- 29 -'!D11,'- 29 -'!B11) -> 1235835 | C11: =B11/'- 3 -'!D11*100 -> 5.490690704 | D11: =B11/'- 7 -'!E11 -> 649.7555205 | E11: =SUM('- 32 -'!D11,'- 32 -'!B11,'- 31 -'!F11,'- 31 -'!D11,'- 31 -'!B11) -> 2138224 | F11: =E11/'- 3 -'!D11*100 -> 9.499914341 | G11: =E11/'- 7 -'!E11 -> 1124.197687 | H11: =SUM('- 33 -'!B11,'- 33 -'!D11,'- 33 -'!F11) -> 371033 | I11: =H11/'- 3 -'!D11*100 -> 1.64846233 | J11: =H11/'- 7 -'!E11 -> 195.075184
A12: BORDER LAND | B12: =SUM('- 30 -'!D12,'- 30 -'!B12,'- 29 -'!F12,'- 29 -'!D12,'- 29 -'!B12) -> 2310727 | C12: =B12/'- 3 -'!D12*100 -> 6.715703195 | D12: =B12/'- 7 -'!E12 -> 1175.350332 | E12: =SUM('- 32 -'!D12,'- 32 -'!B12,'- 31 -'!F12,'- 31 -'!D12,'- 31 -'!B12) -> 3537341 | F12: =E12/'- 3 -'!D12*100 -> 10.28063127 | G12: =E12/'- 7 -'!E12 -> 1799.267036 | H12: =SUM('- 33 -'!B12,'- 33 -'!D12,'- 33 -'!F12) -> 579331 | I12: =H12/'- 3 -'!D12*100 -> 1.683719041 | J12: =H12/'- 7 -'!E12 -> 294.6764734
A13: BRANDON | B13: =SUM('- 30 -'!D13,'- 30 -'!B13,'- 29 -'!F13,'- 29 -'!D13,'- 29 -'!B13) -> 2194864 | C13: =B13/'- 3 -'!D13*100 -> 1.947743948 | D13: =B13/'- 7 -'!E13 -> 258.173734 | E13: =SUM('- 32 -'!D13,'- 32 -'!B13,'- 31 -'!F13,'- 31 -'!D13,'- 31 -'!B13) -> 9854195 | F13: =E13/'- 3 -'!D13*100 -> 8.744709773 | G13: =E13/'- 7 -'!E13 -> 1159.11251 | H13: =SUM('- 33 -'!B13,'- 33 -'!D13,'- 33 -'!F13) -> 1934708 | I13: =H13/'- 3 -'!D13*100 -> 1.716878949 | J13: =H13/'- 7 -'!E13 -> 227.572546
A14: DSFM | B14: =SUM('- 30 -'!D14,'- 30 -'!B14,'- 29 -'!F14,'- 29 -'!D14,'- 29 -'!B14) -> 9263576 | C14: =B14/'- 3 -'!D14*100 -> 9.020193675 | D14: =B14/'- 7 -'!E14 -> 1562.966262 | E14: =SUM('- 32 -'!D14,'- 32 -'!B14,'- 31 -'!F14,'- 31 -'!D14,'- 31 -'!B14) -> 13216719 | F14: =E14/'- 3 -'!D14*100 -> 12.86947558 | G14: =E14/'- 7 -'!E14 -> 2229.947258 | H14: =SUM('- 33 -'!B14,'- 33 -'!D14,'- 33 -'!F14) -> 1571651 | I14: =H14/'- 3 -'!D14*100 -> 1.530358947 | J14: =H14/'- 7 -'!E14 -> 265.1716237
A15: EVERGREEN | B15: =SUM('- 30 -'!D15,'- 30 -'!B15,'- 29 -'!F15,'- 29 -'!D15,'- 29 -'!B15) -> 1580797 | C15: =B15/'- 3 -'!D15*100 -> 7.545268955 | D15: =B15/'- 7 -'!E15 -> 1139.723864 | E15: =SUM('- 32 -'!D15,'- 32 -'!B15,'- 31 -'!F15,'- 31 -'!D15,'- 31 -'!B15) -> 2716663 | F15: =E15/'- 3 -'!D15*100 -> 12.9668471 | G15: =E15/'- 7 -'!E15 -> 1958.661139 | H15: =SUM('- 33 -'!B15,'- 33 -'!D15,'- 33 -'!F15) -> 374708 | I15: =H15/'- 3 -'!D15*100 -> 1.788510884 | J15: =H15/'- 7 -'!E15 -> 270.1571738
A16: FLIN FLON | B16: =SUM('- 30 -'!D16,'- 30 -'!B16,'- 29 -'!F16,'- 29 -'!D16,'- 29 -'!B16) -> 340740 | C16: =B16/'- 3 -'!D16*100 -> 2.149185815 | D16: =B16/'- 7 -'!E16 -> 366.1508704 | E16: =SUM('- 32 -'!D16,'- 32 -'!B16,'- 31 -'!F16,'- 31 -'!D16,'- 31 -'!B16) -> 2505584 | F16: =E16/'- 3 -'!D16*100 -> 15.80373772 | G16: =E16/'- 7 -'!E16 -> 2692.439286 | H16: =SUM('- 33 -'!B16,'- 33 -'!D16,'- 33 -'!F16) -> 262820 | I16: =H16/'- 3 -'!D16*100 -> 1.657712672 | J16: =H16/'- 7 -'!E16 -> 282.4199441
A17: FORT LA BOSSE | B17: =SUM('- 30 -'!D17,'- 30 -'!B17,'- 29 -'!F17,'- 29 -'!D17,'- 29 -'!B17) -> 1398209 | C17: =B17/'- 3 -'!D17*100 -> 7.384249258 | D17: =B17/'- 7 -'!E17 -> 961.9600963 | E17: =SUM('- 32 -'!D17,'- 32 -'!B17,'- 31 -'!F17,'- 31 -'!D17,'- 31 -'!B17) -> 1929701 | F17: =E17/'- 3 -'!D17*100 -> 10.19117541 | G17: =E17/'- 7 -'!E17 -> 1327.623667 | H17: =SUM('- 33 -'!B17,'- 33 -'!D17,'- 33 -'!F17) -> 347199 | I17: =H17/'- 3 -'!D17*100 -> 1.833634284 | J17: =H17/'- 7 -'!E17 -> 238.871001
A18: FRONTIER | B18: =SUM('- 30 -'!D18,'- 30 -'!B18,'- 29 -'!F18,'- 29 -'!D18,'- 29 -'!B18) -> 11319059 | C18: =B18/'- 3 -'!D18*100 -> 7.922221922 | D18: =B18/'- 7 -'!E18 -> 1923.701394 | E18: =SUM('- 32 -'!D18,'- 32 -'!B18,'- 31 -'!F18,'- 31 -'!D18,'- 31 -'!B18) -> 29456563 | F18: =E18/'- 3 -'!D18*100 -> 20.61668105 | G18: =E18/'- 7 -'!E18 -> 5006.21397 | H18: =SUM('- 33 -'!B18,'- 33 -'!D18,'- 33 -'!F18) -> 1412015 | I18: =H18/'- 3 -'!D18*100 -> 0.9882708613 | J18: =H18/'- 7 -'!E18 -> 239.9753569
A19: GARDEN VALLEY | B19: =SUM('- 30 -'!D19,'- 30 -'!B19,'- 29 -'!F19,'- 29 -'!D19,'- 29 -'!B19) -> 2923063 | C19: =B19/'- 3 -'!D19*100 -> 5.512111657 | D19: =B19/'- 7 -'!E19 -> 668.893135 | E19: =SUM('- 32 -'!D19,'- 32 -'!B19,'- 31 -'!F19,'- 31 -'!D19,'- 31 -'!B19) -> 5205391 | F19: =E19/'- 3 -'!D19*100 -> 9.815969211 | G19: =E19/'- 7 -'!E19 -> 1191.164989 | H19: =SUM('- 33 -'!B19,'- 33 -'!D19,'- 33 -'!F19) -> 941413 | I19: =H19/'- 3 -'!D19*100 -> 1.775252046 | J19: =H19/'- 7 -'!E19 -> 215.4263158
A20: HANOVER | B20: =SUM('- 30 -'!D20,'- 30 -'!B20,'- 29 -'!F20,'- 29 -'!D20,'- 29 -'!B20) -> 3825993 | C20: =B20/'- 3 -'!D20*100 -> 3.968807769 | D20: =B20/'- 7 -'!E20 -> 495.2100699 | E20: =SUM('- 32 -'!D20,'- 32 -'!B20,'- 31 -'!F20,'- 31 -'!D20,'- 31 -'!B20) -> 9479558 | F20: =E20/'- 3 -'!D20*100 -> 9.83340624 | G20: =E20/'- 7 -'!E20 -> 1226.968418 | H20: =SUM('- 33 -'!B20,'- 33 -'!D20,'- 33 -'!F20) -> 1763428 | I20: =H20/'- 3 -'!D20*100 -> 1.829252366 | J20: =H20/'- 7 -'!E20 -> 228.2459229
A21: INTERLAKE | B21: =SUM('- 30 -'!D21,'- 30 -'!B21,'- 29 -'!F21,'- 29 -'!D21,'- 29 -'!B21) -> 2201576 | C21: =B21/'- 3 -'!D21*100 -> 5.333417832 | D21: =B21/'- 7 -'!E21 -> 782.3653163 | E21: =SUM('- 32 -'!D21,'- 32 -'!B21,'- 31 -'!F21,'- 31 -'!D21,'- 31 -'!B21) -> 4541567 | F21: =E21/'- 3 -'!D21*100 -> 11.00215229 | G21: =E21/'- 7 -'!E21 -> 1613.918621 | H21: =SUM('- 33 -'!B21,'- 33 -'!D21,'- 33 -'!F21) -> 710299 | I21: =H21/'- 3 -'!D21*100 -> 1.720731582 | J21: =H21/'- 7 -'!E21 -> 252.4161336
A22: KELSEY | B22: =SUM('- 30 -'!D22,'- 30 -'!B22,'- 29 -'!F22,'- 29 -'!D22,'- 29 -'!B22) -> 432428 | C22: =B22/'- 3 -'!D22*100 -> 2.063533239 | D22: =B22/'- 7 -'!E22 -> 308.2166785 | E22: =SUM('- 32 -'!D22,'- 32 -'!B22,'- 31 -'!F22,'- 31 -'!D22,'- 31 -'!B22) -> 2293380 | F22: =E22/'- 3 -'!D22*100 -> 10.94393947 | G22: =E22/'- 7 -'!E22 -> 1634.625802 | H22: =SUM('- 33 -'!B22,'- 33 -'!D22,'- 33 -'!F22) -> 353808 | I22: =H22/'- 3 -'!D22*100 -> 1.688360995 | J22: =H22/'- 7 -'!E22 -> 252.1796151
A23: LAKESHORE | B23: =SUM('- 30 -'!D23,'- 30 -'!B23,'- 29 -'!F23,'- 29 -'!D23,'- 29 -'!B23) -> 1556759 | C23: =B23/'- 3 -'!D23*100 -> 9.636838603 | D23: =B23/'- 7 -'!E23 -> 1718.277042 | E23: =SUM('- 32 -'!D23,'- 32 -'!B23,'- 31 -'!F23,'- 31 -'!D23,'- 31 -'!B23) -> 1526282 | F23: =E23/'- 3 -'!D23*100 -> 9.448176177 | G23: =E23/'- 7 -'!E23 -> 1684.637969 | H23: =SUM('- 33 -'!B23,'- 33 -'!D23,'- 33 -'!F23) -> 263630 | I23: =H23/'- 3 -'!D23*100 -> 1.631954439 | J23: =H23/'- 7 -'!E23 -> 290.98234
A24: LORD SELKIRK | B24: =SUM('- 30 -'!D24,'- 30 -'!B24,'- 29 -'!F24,'- 29 -'!D24,'- 29 -'!B24) -> 2634501 | C24: =B24/'- 3 -'!D24*100 -> 4.347324728 | D24: =B24/'- 7 -'!E24 -> 727.3006101 | E24: =SUM('- 32 -'!D24,'- 32 -'!B24,'- 31 -'!F24,'- 31 -'!D24,'- 31 -'!B24) -> 6628045 | F24: =E24/'- 3 -'!D24*100 -> 10.93727576 | G24: =E24/'- 7 -'!E24 -> 1829.789084 | H24: =SUM('- 33 -'!B24,'- 33 -'!D24,'- 33 -'!F24) -> 947203 | I24: =H24/'- 3 -'!D24*100 -> 1.563028074 | J24: =H24/'- 7 -'!E24 -> 261.4921459
A25: LOUIS RIEL | B25: =SUM('- 30 -'!D25,'- 30 -'!B25,'- 29 -'!F25,'- 29 -'!D25,'- 29 -'!B25) -> 4840194 | C25: =B25/'- 3 -'!D25*100 -> 2.411836905 | D25: =B25/'- 7 -'!E25 -> 319.3477386 | E25: =SUM('- 32 -'!D25,'- 32 -'!B25,'- 31 -'!F25,'- 31 -'!D25,'- 31 -'!B25) -> 20929530 | F25: =E25/'- 3 -'!D25*100 -> 10.42904744 | G25: =E25/'- 7 -'!E25 -> 1380.894666 | H25: =SUM('- 33 -'!B25,'- 33 -'!D25,'- 33 -'!F25) -> 3572115 | I25: =H25/'- 3 -'!D25*100 -> 1.779961461 | J25: =H25/'- 7 -'!E25 -> 235.6820506
A26: MOUNTAIN VIEW | B26: =SUM('- 30 -'!D26,'- 30 -'!B26,'- 29 -'!F26,'- 29 -'!D26,'- 29 -'!B26) -> 2695466 | C26: =B26/'- 3 -'!D26*100 -> 6.295940008 | D26: =B26/'- 7 -'!E26 -> 910.7842541 | E26: =SUM('- 32 -'!D26,'- 32 -'!B26,'- 31 -'!F26,'- 31 -'!D26,'- 31 -'!B26) -> 5866338 | F26: =E26/'- 3 -'!D26*100 -> 13.70231051 | G26: =E26/'- 7 -'!E26 -> 1982.205778 | H26: =SUM('- 33 -'!B26,'- 33 -'!D26,'- 33 -'!F26) -> 743943 | I26: =H26/'- 3 -'!D26*100 -> 1.737666325 | J26: =H26/'- 7 -'!E26 -> 251.3745565
A27: MYSTERY LAKE | B27: =SUM('- 30 -'!D27,'- 30 -'!B27,'- 29 -'!F27,'- 29 -'!D27,'- 29 -'!B27) -> 238945 | C27: =B27/'- 3 -'!D27*100 -> 0.551229141 | D27: =B27/'- 7 -'!E27 -> 79.20478653 | E27: =SUM('- 32 -'!D27,'- 32 -'!B27,'- 31 -'!F27,'- 31 -'!D27,'- 31 -'!B27) -> 5176615 | F27: =E27/'- 3 -'!D27*100 -> 11.94208307 | G27: =E27/'- 7 -'!E27 -> 1715.92913 | H27: =SUM('- 33 -'!B27,'- 33 -'!D27,'- 33 -'!F27) -> 661422 | I27: =H27/'- 3 -'!D27*100 -> 1.525853568 | J27: =H27/'- 7 -'!E27 -> 219.2462212
A28: PARK WEST | B28: =SUM('- 30 -'!D28,'- 30 -'!B28,'- 29 -'!F28,'- 29 -'!D28,'- 29 -'!B28) -> 1752435 | C28: =B28/'- 3 -'!D28*100 -> 5.980805561 | D28: =B28/'- 7 -'!E28 -> 907.527188 | E28: =SUM('- 32 -'!D28,'- 32 -'!B28,'- 31 -'!F28,'- 31 -'!D28,'- 31 -'!B28) -> 3328606 | F28: =E28/'- 3 -'!D28*100 -> 11.36004775 | G28: =E28/'- 7 -'!E28 -> 1723.773175 | H28: =SUM('- 33 -'!B28,'- 33 -'!D28,'- 33 -'!F28) -> 475183 | I28: =H28/'- 3 -'!D28*100 -> 1.621730409 | J28: =H28/'- 7 -'!E28 -> 246.081305
A29: PEMBINA TRAILS | B29: =SUM('- 30 -'!D29,'- 30 -'!B29,'- 29 -'!F29,'- 29 -'!D29,'- 29 -'!B29) -> 3145270 | C29: =B29/'- 3 -'!D29*100 -> 1.737138623 | D29: =B29/'- 7 -'!E29 -> 213.4354388 | E29: =SUM('- 32 -'!D29,'- 32 -'!B29,'- 31 -'!F29,'- 31 -'!D29,'- 31 -'!B29) -> 21175025 | F29: =E29/'- 3 -'!D29*100 -> 11.69500671 | G29: =E29/'- 7 -'!E29 -> 1436.919804 | H29: =SUM('- 33 -'!B29,'- 33 -'!D29,'- 33 -'!F29) -> 3228005 | I29: =H29/'- 3 -'!D29*100 -> 1.782833321 | J29: =H29/'- 7 -'!E29 -> 219.0497679
A30: PINE CREEK | B30: =SUM('- 30 -'!D30,'- 30 -'!B30,'- 29 -'!F30,'- 29 -'!D30,'- 29 -'!B30) -> 1280127 | C30: =B30/'- 3 -'!D30*100 -> 7.727081682 | D30: =B30/'- 7 -'!E30 -> 1225.001914 | E30: =SUM('- 32 -'!D30,'- 32 -'!B30,'- 31 -'!F30,'- 31 -'!D30,'- 31 -'!B30) -> 1702577 | F30: =E30/'- 3 -'!D30*100 -> 10.27706747 | G30: =E30/'- 7 -'!E30 -> 1629.260287 | H30: =SUM('- 33 -'!B30,'- 33 -'!D30,'- 33 -'!F30) -> 300264 | I30: =H30/'- 3 -'!D30*100 -> 1.812448651 | J30: =H30/'- 7 -'!E30 -> 287.3339713
A31: PORTAGE LA PRAIRIE | B31: =SUM('- 30 -'!D31,'- 30 -'!B31,'- 29 -'!F31,'- 29 -'!D31,'- 29 -'!B31) -> 1215412 | C31: =B31/'- 3 -'!D31*100 -> 2.759197596 | D31: =B31/'- 7 -'!E31 -> 365.5374436 | E31: =SUM('- 32 -'!D31,'- 32 -'!B31,'- 31 -'!F31,'- 31 -'!D31,'- 31 -'!B31) -> 4612044 | F31: =E31/'- 3 -'!D31*100 -> 10.47014569 | G31: =E31/'- 7 -'!E31 -> 1387.080902 | H31: =SUM('- 33 -'!B31,'- 33 -'!D31,'- 33 -'!F31) -> 748438 | I31: =H31/'- 3 -'!D31*100 -> 1.699085027 | J31: =H31/'- 7 -'!E31 -> 225.0941353
A32: PRAIRIE ROSE | B32: =SUM('- 30 -'!D32,'- 30 -'!B32,'- 29 -'!F32,'- 29 -'!D32,'- 29 -'!B32) -> 2545359 | C32: =B32/'- 3 -'!D32*100 -> 7.615144946 | D32: =B32/'- 7 -'!E32 -> 1095.72062 | E32: =SUM('- 32 -'!D32,'- 32 -'!B32,'- 31 -'!F32,'- 31 -'!D32,'- 31 -'!B32) -> 3309624 | F32: =E32/'- 3 -'!D32*100 -> 9.901654925 | G32: =E32/'- 7 -'!E32 -> 1424.719759 | H32: =SUM('- 33 -'!B32,'- 33 -'!D32,'- 33 -'!F32) -> 577983 | I32: =H32/'- 3 -'!D32*100 -> 1.72919589 | J32: =H32/'- 7 -'!E32 -> 248.8088678
A33: PRAIRIE SPIRIT | B33: =SUM('- 30 -'!D33,'- 30 -'!B33,'- 29 -'!F33,'- 29 -'!D33,'- 29 -'!B33) -> 2415370 | C33: =B33/'- 3 -'!D33*100 -> 8.093764447 | D33: =B33/'- 7 -'!E33 -> 1203.472845 | E33: =SUM('- 32 -'!D33,'- 32 -'!B33,'- 31 -'!F33,'- 31 -'!D33,'- 31 -'!B33) -> 3401783 | F33: =E33/'- 3 -'!D33*100 -> 11.39917706 | G33: =E33/'- 7 -'!E33 -> 1694.959143 | H33: =SUM('- 33 -'!B33,'- 33 -'!D33,'- 33 -'!F33) -> 516391 | I33: =H33/'- 3 -'!D33*100 -> 1.730396219 | J33: =H33/'- 7 -'!E33 -> 257.2949676
A34: RED RIVER VALLEY | B34: =SUM('- 30 -'!D34,'- 30 -'!B34,'- 29 -'!F34,'- 29 -'!D34,'- 29 -'!B34) -> 2553162 | C34: =B34/'- 3 -'!D34*100 -> 7.796007818 | D34: =B34/'- 7 -'!E34 -> 1176.995418 | E34: =SUM('- 32 -'!D34,'- 32 -'!B34,'- 31 -'!F34,'- 31 -'!D34,'- 31 -'!B34) -> 3256060 | F34: =E34/'- 3 -'!D34*100 -> 9.942286943 | G34: =E34/'- 7 -'!E34 -> 1501.028019 | H34: =SUM('- 33 -'!B34,'- 33 -'!D34,'- 33 -'!F34) -> 613386 | I34: =H34/'- 3 -'!D34*100 -> 1.872956769 | J34: =H34/'- 7 -'!E34 -> 282.7679996
A35: RIVER EAST TRANSCONA | B35: =SUM('- 30 -'!D35,'- 30 -'!B35,'- 29 -'!F35,'- 29 -'!D35,'- 29 -'!B35) -> 4602285 | C35: =B35/'- 3 -'!D35*100 -> 2.171414807 | D35: =B35/'- 7 -'!E35 -> 286.0516502 | E35: =SUM('- 32 -'!D35,'- 32 -'!B35,'- 31 -'!F35,'- 31 -'!D35,'- 31 -'!B35) -> 24728602 | F35: =E35/'- 3 -'!D35*100 -> 11.66725932 | G35: =E35/'- 7 -'!E35 -> 1536.988129 | H35: =SUM('- 33 -'!B35,'- 33 -'!D35,'- 33 -'!F35) -> 3580869 | I35: =H35/'- 3 -'!D35*100 -> 1.689498145 | J35: =H35/'- 7 -'!E35 -> 222.5662875
A36: ROLLING RIVER | B36: =SUM('- 30 -'!D36,'- 30 -'!B36,'- 29 -'!F36,'- 29 -'!D36,'- 29 -'!B36) -> 1694175 | C36: =B36/'- 3 -'!D36*100 -> 6.7270311 | D36: =B36/'- 7 -'!E36 -> 990.745614 | E36: =SUM('- 32 -'!D36,'- 32 -'!B36,'- 31 -'!F36,'- 31 -'!D36,'- 31 -'!B36) -> 2946770 | F36: =E36/'- 3 -'!D36*100 -> 11.7006882 | G36: =E36/'- 7 -'!E36 -> 1723.25731 | H36: =SUM('- 33 -'!B36,'- 33 -'!D36,'- 33 -'!F36) -> 452819 | I36: =H36/'- 3 -'!D36*100 -> 1.798000499 | J36: =H36/'- 7 -'!E36 -> 264.8064327
A37: SEINE RIVER | B37: =SUM('- 30 -'!D37,'- 30 -'!B37,'- 29 -'!F37,'- 29 -'!D37,'- 29 -'!B37) -> 3410555 | C37: =B37/'- 3 -'!D37*100 -> 6.10087957 | D37: =B37/'- 7 -'!E37 -> 791.0000696 | E37: =SUM('- 32 -'!D37,'- 32 -'!B37,'- 31 -'!F37,'- 31 -'!D37,'- 31 -'!B37) -> 5252399 | F37: =E37/'- 3 -'!D37*100 -> 9.395612664 | G37: =E37/'- 7 -'!E37 -> 1218.173574 | H37: =SUM('- 33 -'!B37,'- 33 -'!D37,'- 33 -'!F37) -> 1004190 | I37: =H37/'- 3 -'!D37*100 -> 1.796318269 | J37: =H37/'- 7 -'!E37 -> 232.8988566
A38: SEVEN OAKS | B38: =SUM('- 30 -'!D38,'- 30 -'!B38,'- 29 -'!F38,'- 29 -'!D38,'- 29 -'!B38) -> 4224883 | C38: =B38/'- 3 -'!D38*100 -> 2.695068323 | D38: =B38/'- 7 -'!E38 -> 378.4414945 | E38: =SUM('- 32 -'!D38,'- 32 -'!B38,'- 31 -'!F38,'- 31 -'!D38,'- 31 -'!B38) -> 15543608 | F38: =E38/'- 3 -'!D38*100 -> 9.915324413 | G38: =E38/'- 7 -'!E38 -> 1392.309856 | H38: =SUM('- 33 -'!B38,'- 33 -'!D38,'- 33 -'!F38) -> 2733268 | I38: =H38/'- 3 -'!D38*100 -> 1.743561658 | J38: =H38/'- 7 -'!E38 -> 244.8309283
A39: SOUTHWEST HORIZON | B39: =SUM('- 30 -'!D39,'- 30 -'!B39,'- 29 -'!F39,'- 29 -'!D39,'- 29 -'!B39) -> 1971019 | C39: =B39/'- 3 -'!D39*100 -> 8.407787319 | D39: =B39/'- 7 -'!E39 -> 1310.256598 | E39: =SUM('- 32 -'!D39,'- 32 -'!B39,'- 31 -'!F39,'- 31 -'!D39,'- 31 -'!B39) -> 2394371 | F39: =E39/'- 3 -'!D39*100 -> 10.21368243 | G39: =E39/'- 7 -'!E39 -> 1591.684504 | H39: =SUM('- 33 -'!B39,'- 33 -'!D39,'- 33 -'!F39) -> 396576 | I39: =H39/'- 3 -'!D39*100 -> 1.691676571 | J39: =H39/'- 7 -'!E39 -> 263.6282656
A40: ST. JAMES-ASSINIBOIA | B40: =SUM('- 30 -'!D40,'- 30 -'!B40,'- 29 -'!F40,'- 29 -'!D40,'- 29 -'!B40) -> 2611773 | C40: =B40/'- 3 -'!D40*100 -> 2.30329476 | D40: =B40/'- 7 -'!E40 -> 328.0034009 | E40: =SUM('- 32 -'!D40,'- 32 -'!B40,'- 31 -'!F40,'- 31 -'!D40,'- 31 -'!B40) -> 10868238 | F40: =E40/'- 3 -'!D40*100 -> 9.584583206 | G40: =E40/'- 7 -'!E40 -> 1364.903851 | H40: =SUM('- 33 -'!B40,'- 33 -'!D40,'- 33 -'!F40) -> 2247949 | I40: =H40/'- 3 -'!D40*100 -> 1.982442254 | J40: =H40/'- 7 -'!E40 -> 282.3120221
A41: SUNRISE | B41: =SUM('- 30 -'!D41,'- 30 -'!B41,'- 29 -'!F41,'- 29 -'!D41,'- 29 -'!B41) -> 5212422 | C41: =B41/'- 3 -'!D41*100 -> 7.485374329 | D41: =B41/'- 7 -'!E41 -> 1202.820353 | E41: =SUM('- 32 -'!D41,'- 32 -'!B41,'- 31 -'!F41,'- 31 -'!D41,'- 31 -'!B41) -> 7430658 | F41: =E41/'- 3 -'!D41*100 -> 10.67090436 | G41: =E41/'- 7 -'!E41 -> 1714.701281 | H41: =SUM('- 33 -'!B41,'- 33 -'!D41,'- 33 -'!F41) -> 1252717 | I41: =H41/'- 3 -'!D41*100 -> 1.798982445 | J41: =H41/'- 7 -'!E41 -> 289.0774201
A42: SWAN VALLEY | B42: =SUM('- 30 -'!D42,'- 30 -'!B42,'- 29 -'!F42,'- 29 -'!D42,'- 29 -'!B42) -> 1597426 | C42: =B42/'- 3 -'!D42*100 -> 7.345389742 | D42: =B42/'- 7 -'!E42 -> 1229.735181 | E42: =SUM('- 32 -'!D42,'- 32 -'!B42,'- 31 -'!F42,'- 31 -'!D42,'- 31 -'!B42) -> 2609668 | F42: =E42/'- 3 -'!D42*100 -> 11.99994776 | G42: =E42/'- 7 -'!E42 -> 2008.982294 | H42: =SUM('- 33 -'!B42,'- 33 -'!D42,'- 33 -'!F42) -> 350143 | I42: =H42/'- 3 -'!D42*100 -> 1.610050669 | J42: =H42/'- 7 -'!E42 -> 269.5481139
A43: TURTLE MOUNTAIN | B43: =SUM('- 30 -'!D43,'- 30 -'!B43,'- 29 -'!F43,'- 29 -'!D43,'- 29 -'!B43) -> 1035288 | C43: =B43/'- 3 -'!D43*100 -> 7.469363566 | D43: =B43/'- 7 -'!E43 -> 1019.988177 | E43: =SUM('- 32 -'!D43,'- 32 -'!B43,'- 31 -'!F43,'- 31 -'!D43,'- 31 -'!B43) -> 1193623 | F43: =E43/'- 3 -'!D43*100 -> 8.611713985 | G43: =E43/'- 7 -'!E43 -> 1175.983251 | H43: =SUM('- 33 -'!B43,'- 33 -'!D43,'- 33 -'!F43) -> 242207 | I43: =H43/'- 3 -'!D43*100 -> 1.747467508 | J43: =H43/'- 7 -'!E43 -> 238.6275862
A44: TURTLE RIVER | B44: =SUM('- 30 -'!D44,'- 30 -'!B44,'- 29 -'!F44,'- 29 -'!D44,'- 29 -'!B44) -> 962528 | C44: =B44/'- 3 -'!D44*100 -> 8.508402433 | D44: =B44/'- 7 -'!E44 -> 1485.382716 | E44: =SUM('- 32 -'!D44,'- 32 -'!B44,'- 31 -'!F44,'- 31 -'!D44,'- 31 -'!B44) -> 1281654 | F44: =E44/'- 3 -'!D44*100 -> 11.32936186 | G44: =E44/'- 7 -'!E44 -> 1977.861111 | H44: =SUM('- 33 -'!B44,'- 33 -'!D44,'- 33 -'!F44) -> 178784 | I44: =H44/'- 3 -'!D44*100 -> 1.580386462 | J44: =H44/'- 7 -'!E44 -> 275.9012346
A45: WESTERN | B45: =SUM('- 30 -'!D45,'- 30 -'!B45,'- 29 -'!F45,'- 29 -'!D45,'- 29 -'!B45) -> 787588 | C45: =B45/'- 3 -'!D45*100 -> 3.455090119 | D45: =B45/'- 7 -'!E45 -> 438.0355951 | E45: =SUM('- 32 -'!D45,'- 32 -'!B45,'- 31 -'!F45,'- 31 -'!D45,'- 31 -'!B45) -> 2133666 | F45: =E45/'- 3 -'!D45*100 -> 9.36023443 | G45: =E45/'- 7 -'!E45 -> 1186.688543 | H45: =SUM('- 33 -'!B45,'- 33 -'!D45,'- 33 -'!F45) -> 415277 | I45: =H45/'- 3 -'!D45*100 -> 1.821789387 | J45: =H45/'- 7 -'!E45 -> 230.9660734
A46: WINNIPEG | B46: =SUM('- 30 -'!D46,'- 30 -'!B46,'- 29 -'!F46,'- 29 -'!D46,'- 29 -'!B46) -> 6402729 | C46: =B46/'- 3 -'!D46*100 -> 1.482661354 | D46: =B46/'- 7 -'!E46 -> 219.0824699 | E46: =SUM('- 32 -'!D46,'- 32 -'!B46,'- 31 -'!F46,'- 31 -'!D46,'- 31 -'!B46) -> 51812703 | F46: =E46/'- 3 -'!D46*100 -> 11.99811711 | G46: =E46/'- 7 -'!E46 -> 1772.877619 | H46: =SUM('- 33 -'!B46,'- 33 -'!D46,'- 33 -'!F46) -> 7532229 | I46: =H46/'- 3 -'!D46*100 -> 1.744216387 | J46: =H46/'- 7 -'!E46 -> 257.7306229
A48: PROVINCE | B48: =SUM(B11:B46) -> 100412538 | C48: =B48/'- 3 -'!D48*100 -> 3.905575046 | D48: =B48/'- 7 -'!E48 -> 562.4644225 | E48: =SUM(E11:E46) -> 295983375 | F48: =E48/'- 3 -'!D48*100 -> 11.51235998 | G48: =E48/'- 7 -'!E48 -> 1657.96146 | H48: =SUM(H11:H46) -> 43657404 | I48: =H48/'- 3 -'!D48*100 -> 1.698067503 | J48: =H48/'- 7 -'!E48 -> 244.5485098
A50: WHITESHELL | B50: =SUM('- 30 -'!D50,'- 30 -'!B50,'- 29 -'!F50,'- 29 -'!D50,'- 29 -'!B50) -> 13636 | C50: =B50/'- 3 -'!D50*100 -> 0.4022328703 | D50: =B50/'- 7 -'!E50 -> 74.10869565 | E50: =SUM('- 32 -'!D50,'- 32 -'!B50,'- 31 -'!F50,'- 31 -'!D50,'- 31 -'!B50) -> 475473 | F50: =E50/'- 3 -'!D50*100 -> 14.02543778 | G50: =E50/'- 7 -'!E50 -> 2584.092391 | H50: =SUM('- 33 -'!B50,'- 33 -'!D50,'- 33 -'!F50) -> 45344 | I50: =H50/'- 3 -'!D50*100 -> 1.337551135 | J50: =H50/'- 7 -'!E50 -> 246.4347826
A51: MITT | B51: =SUM('- 30 -'!D51,'- 30 -'!B51,'- 29 -'!F51,'- 29 -'!D51,'- 29 -'!B51) -> 0 | C51: =B51/'- 3 -'!D51*100 -> 0 | D51: =B51/'- 7 -'!E51 -> 0 | E51: =SUM('- 32 -'!D51,'- 32 -'!B51,'- 31 -'!F51,'- 31 -'!D51,'- 31 -'!B51) -> 4221685 | F51: =E51/'- 3 -'!D51*100 -> 13.56022266 | G51: =E51/'- 7 -'!E51 -> 2379.620653 | H51: =SUM('- 33 -'!B51,'- 33 -'!D51,'- 33 -'!F51) -> 617509 | I51: =H51/'- 3 -'!D51*100 -> 1.983463838 | J51: =H51/'- 7 -'!E51 -> 348.06888

Sheet - 18 -
B2: ANALYSIS OF EXPENSE BY PROGRAM | G2: PAGE 1 OF 16
B3: =OPYEAR -> OPERATING FUND 2020/2021 ACTUAL
B5: FUNCTION 100: REGULAR INSTRUCTION
E6: SENIOR YEARS TECHNOLOGY EDUCATION
B7: ADMINISTRATION
D8: PER PUPIL | G8: PER PUPIL
A9: DIVISION / DISTRICT | B9: AMOUNT | C9: % | E9: AMOUNT | F9: %
A11: BEAUTIFUL PLAINS | B11: 1514199 | C11: =B11/'- 3 -'!D11*100 -> 6.72743398 | D11: =B11/'- 7 -'!C11 -> 796.1088328 | E11: 0 | F11: =E11/'- 3 -'!D11*100 -> 0 | G11: =IF('- 7 -'!B11=0,"",E11/'- 7 -'!B11) -> 
A12: BORDER LAND | B12: 2660695 | C12: =B12/'- 3 -'!D12*100 -> 7.732820845 | D12: =B12/'- 7 -'!C12 -> 1353.361411 | E12: 979982 | F12: =E12/'- 3 -'!D12*100 -> 2.848137512 | G12: =IF('- 7 -'!B12=0,"",E12/'- 7 -'!B12) -> 7615.059445
A13: BRANDON | B13: 7919803 | C13: =B13/'- 3 -'!D13*100 -> 7.028111245 | D13: =B13/'- 7 -'!C13 -> 931.5771334 | E13: 3387596 | F13: =E13/'- 3 -'!D13*100 -> 3.006186081 | G13: =IF('- 7 -'!B13=0,"",E13/'- 7 -'!B13) -> 8663.928389
A14: DSFM | B14: 7257840 | C14: =B14/'- 3 -'!D14*100 -> 7.067154462 | D14: =B14/'- 7 -'!C14 -> 1224.555081 | E14: 200596 | F14: =E14/'- 3 -'!D14*100 -> 0.1953257328 | G14: =IF('- 7 -'!B14=0,"",E14/'- 7 -'!B14) -> 11855.55556
A15: EVERGREEN | B15: 1668856 | C15: =B15/'- 3 -'!D15*100 -> 7.965581518 | D15: =B15/'- 7 -'!C15 -> 1203.212689 | E15: 64927 | F15: =E15/'- 3 -'!D15*100 -> 0.3099016999 | G15: =IF('- 7 -'!B15=0,"",E15/'- 7 -'!B15) -> 3246.35
A16: FLIN FLON | B16: 1423899 | C16: =B16/'- 3 -'!D16*100 -> 8.981110326 | D16: =B16/'- 7 -'!C16 -> 1530.087041 | E16: 0 | F16: =E16/'- 3 -'!D16*100 -> 0 | G16: =IF('- 7 -'!B16=0,"",E16/'- 7 -'!B16) -> 
A17: FORT LA BOSSE | B17: 1301872 | C17: =B17/'- 3 -'!D17*100 -> 6.875472372 | D17: =B17/'- 7 -'!C17 -> 895.6807706 | E17: 208949 | F17: =E17/'- 3 -'!D17*100 -> 1.103505626 | G17: =IF('- 7 -'!B17=0,"",E17/'- 7 -'!B17) -> 8357.96
A18: FRONTIER | B18: 7996858 | C18: =B18/'- 3 -'!D18*100 -> 5.597009765 | D18: =B18/'- 7 -'!C18 -> 1359.085316 | E18: 601062 | F18: =E18/'- 3 -'!D18*100 -> 0.420683959 | G18: =IF('- 7 -'!B18=0,"",E18/'- 7 -'!B18) -> 15026.55
A19: GARDEN VALLEY | B19: 3598569 | C19: =B19/'- 3 -'!D19*100 -> 6.785934526 | D19: =B19/'- 7 -'!C19 -> 823.471167 | E19: 1250332 | F19: =E19/'- 3 -'!D19*100 -> 2.357790301 | G19: =IF('- 7 -'!B19=0,"",E19/'- 7 -'!B19) -> 13106.20545
A20: HANOVER | B20: 8084550 | C20: =B20/'- 3 -'!D20*100 -> 8.386326073 | D20: =B20/'- 7 -'!C20 -> 1046.408232 | E20: 2861337 | F20: =E20/'- 3 -'!D20*100 -> 2.968143569 | G20: =IF('- 7 -'!B20=0,"",E20/'- 7 -'!B20) -> 5577.654971
A21: INTERLAKE | B21: 3210460 | C21: =B21/'- 3 -'!D21*100 -> 7.777485134 | D21: =B21/'- 7 -'!C21 -> 1140.888415 | E21: 0 | F21: =E21/'- 3 -'!D21*100 -> 0 | G21: =IF('- 7 -'!B21=0,"",E21/'- 7 -'!B21) -> 
A22: KELSEY | B22: 1532466 | C22: =B22/'- 3 -'!D22*100 -> 7.312881054 | D22: =B22/'- 7 -'!C22 -> 1092.277976 | E22: 0 | F22: =E22/'- 3 -'!D22*100 -> 0 | G22: =IF('- 7 -'!B22=0,"",E22/'- 7 -'!B22) -> 
A23: LAKESHORE | B23: 1124474 | C23: =B23/'- 3 -'!D23*100 -> 6.960855502 | D23: =B23/'- 7 -'!C23 -> 1241.14128 | E23: 158083 | F23: =E23/'- 3 -'!D23*100 -> 0.978584583 | G23: =IF('- 7 -'!B23=0,"",E23/'- 7 -'!B23) -> 14371.18182
A24: LORD SELKIRK | B24: 5191741 | C24: =B24/'- 3 -'!D24*100 -> 8.567157132 | D24: =B24/'- 7 -'!C24 -> 1433.271954 | E24: 1750886 | F24: =E24/'- 3 -'!D24*100 -> 2.889226462 | G24: =IF('- 7 -'!B24=0,"",E24/'- 7 -'!B24) -> 9119.197917
A25: LOUIS RIEL | B25: 15429580 | C25: =B25/'- 3 -'!D25*100 -> 7.688458452 | D25: =B25/'- 7 -'!C25 -> 1018.017352 | E25: 1703353 | F25: =E25/'- 3 -'!D25*100 -> 0.8487696211 | G25: =IF('- 7 -'!B25=0,"",E25/'- 7 -'!B25) -> 18217.67914
A26: MOUNTAIN VIEW | B26: 3779027 | C26: =B26/'- 3 -'!D26*100 -> 8.826869743 | D26: =B26/'- 7 -'!C26 -> 1276.914006 | E26: 1002140 | F26: =E26/'- 3 -'!D26*100 -> 2.340750475 | G26: =IF('- 7 -'!B26=0,"",E26/'- 7 -'!B26) -> 6477.538621
A27: MYSTERY LAKE | B27: 2928917 | C27: =B27/'- 3 -'!D27*100 -> 6.756803456 | D27: =B27/'- 7 -'!C27 -> 970.8688014 | E27: 965545 | F27: =E27/'- 3 -'!D27*100 -> 2.227443725 | G27: =IF('- 7 -'!B27=0,"",E27/'- 7 -'!B27) -> 11034.8
A28: PARK WEST | B28: 2214665 | C28: =B28/'- 3 -'!D28*100 -> 7.558329266 | D28: =B28/'- 7 -'!C28 -> 1146.90057 | E28: 0 | F28: =E28/'- 3 -'!D28*100 -> 0 | G28: =IF('- 7 -'!B28=0,"",E28/'- 7 -'!B28) -> 
A29: PEMBINA TRAILS | B29: 14165257 | C29: =B29/'- 3 -'!D29*100 -> 7.823498471 | D29: =B29/'- 7 -'!C29 -> 961.2427051 | E29: 0 | F29: =E29/'- 3 -'!D29*100 -> 0 | G29: =IF('- 7 -'!B29=0,"",E29/'- 7 -'!B29) -> 
A30: PINE CREEK | B30: 1279567 | C30: =B30/'- 3 -'!D30*100 -> 7.723701419 | D30: =B30/'- 7 -'!C30 -> 1224.466029 | E30: 0 | F30: =E30/'- 3 -'!D30*100 -> 0 | G30: =IF('- 7 -'!B30=0,"",E30/'- 7 -'!B30) -> 
A31: PORTAGE LA PRAIRIE | B31: 3418093 | C31: =B31/'- 3 -'!D31*100 -> 7.759668317 | D31: =B31/'- 7 -'!C31 -> 1027.997895 | E31: 758204 | F31: =E31/'- 3 -'!D31*100 -> 1.721255553 | G31: =IF('- 7 -'!B31=0,"",E31/'- 7 -'!B31) -> 8615.954545
A32: PRAIRIE ROSE | B32: 2570381 | C32: =B32/'- 3 -'!D32*100 -> 7.690005175 | D32: =B32/'- 7 -'!C32 -> 1106.492036 | E32: 0 | F32: =E32/'- 3 -'!D32*100 -> 0 | G32: =IF('- 7 -'!B32=0,"",E32/'- 7 -'!B32) -> 
A33: PRAIRIE SPIRIT | B33: 2974474 | C33: =B33/'- 3 -'!D33*100 -> 9.967289446 | D33: =B33/'- 7 -'!C33 -> 1482.049826 | E33: 0 | F33: =E33/'- 3 -'!D33*100 -> 0 | G33: =IF('- 7 -'!B33=0,"",E33/'- 7 -'!B33) -> 
A34: RED RIVER VALLEY | B34: 2555114 | C34: =B34/'- 3 -'!D34*100 -> 7.801968195 | D34: =B34/'- 7 -'!C34 -> 1177.89528 | E34: 343728 | F34: =E34/'- 3 -'!D34*100 -> 1.049563708 | G34: =IF('- 7 -'!B34=0,"",E34/'- 7 -'!B34) -> 13618.38352
A35: RIVER EAST TRANSCONA | B35: 15005654 | C35: =B35/'- 3 -'!D35*100 -> 7.079852571 | D35: =B35/'- 7 -'!C35 -> 932.6654236 | E35: 3319346 | F35: =E35/'- 3 -'!D35*100 -> 1.566108369 | G35: =IF('- 7 -'!B35=0,"",E35/'- 7 -'!B35) -> 5252.129747
A36: ROLLING RIVER | B36: 2083033 | C36: =B36/'- 3 -'!D36*100 -> 8.271062773 | D36: =B36/'- 7 -'!C36 -> 1218.147953 | E36: 135189 | F36: =E36/'- 3 -'!D36*100 -> 0.5367926026 | G36: =IF('- 7 -'!B36=0,"",E36/'- 7 -'!B36) -> 19312.71429
A37: SEINE RIVER | B37: 4608351 | C37: =B37/'- 3 -'!D37*100 -> 8.243524724 | D37: =B37/'- 7 -'!C37 -> 1068.801401 | E37: 0 | F37: =E37/'- 3 -'!D37*100 -> 0 | G37: =IF('- 7 -'!B37=0,"",E37/'- 7 -'!B37) -> 
A38: SEVEN OAKS | B38: 12017767 | C38: =B38/'- 3 -'!D38*100 -> 7.666177539 | D38: =B38/'- 7 -'!C38 -> 1076.484651 | E38: 1509026 | F38: =E38/'- 3 -'!D38*100 -> 0.9626132065 | G38: =IF('- 7 -'!B38=0,"",E38/'- 7 -'!B38) -> 9623.890306
A39: SOUTHWEST HORIZON | B39: 1423982 | C39: =B39/'- 3 -'!D39*100 -> 6.074288377 | D39: =B39/'- 7 -'!C39 -> 946.6077245 | E39: 0 | F39: =E39/'- 3 -'!D39*100 -> 0 | G39: =IF('- 7 -'!B39=0,"",E39/'- 7 -'!B39) -> 
A40: ST. JAMES-ASSINIBOIA | B40: 8954182 | C40: =B40/'- 3 -'!D40*100 -> 7.896597629 | D40: =B40/'- 7 -'!C40 -> 1124.524278 | E40: 2016421 | F40: =E40/'- 3 -'!D40*100 -> 1.778260179 | G40: =IF('- 7 -'!B40=0,"",E40/'- 7 -'!B40) -> 8533.67049
A41: SUNRISE | B41: 4271960 | C41: =B41/'- 3 -'!D41*100 -> 6.134810213 | D41: =B41/'- 7 -'!C41 -> 985.7990077 | E41: 0 | F41: =E41/'- 3 -'!D41*100 -> 0 | G41: =IF('- 7 -'!B41=0,"",E41/'- 7 -'!B41) -> 
A42: SWAN VALLEY | B42: 1778814 | C42: =B42/'- 3 -'!D42*100 -> 8.179460024 | D42: =B42/'- 7 -'!C42 -> 1369.371824 | E42: 1095591 | F42: =E42/'- 3 -'!D42*100 -> 5.037818899 | G42: =IF('- 7 -'!B42=0,"",E42/'- 7 -'!B42) -> 8436.708763
A43: TURTLE MOUNTAIN | B43: 786808 | C43: =B43/'- 3 -'!D43*100 -> 5.676637814 | D43: =B43/'- 7 -'!C43 -> 775.1802956 | E43: 85011 | F43: =E43/'- 3 -'!D43*100 -> 0.6133347109 | G43: =IF('- 7 -'!B43=0,"",E43/'- 7 -'!B43) -> 2833.7
A44: TURTLE RIVER | B44: 634761 | C44: =B44/'- 3 -'!D44*100 -> 5.611059664 | D44: =B44/'- 7 -'!C44 -> 979.5694444 | E44: 0 | F44: =E44/'- 3 -'!D44*100 -> 0 | G44: =IF('- 7 -'!B44=0,"",E44/'- 7 -'!B44) -> 
A45: WESTERN | B45: 1574629 | C45: =B45/'- 3 -'!D45*100 -> 6.90778059 | D45: =B45/'- 7 -'!C45 -> 875.7669633 | E45: 382415 | F45: =E45/'- 3 -'!D45*100 -> 1.677626231 | G45: =IF('- 7 -'!B45=0,"",E45/'- 7 -'!B45) -> 16626.73913
A46: WINNIPEG | B46: 31220707 | C46: =B46/'- 3 -'!D46*100 -> 7.229688419 | D46: =B46/'- 7 -'!C46 -> 1068.280354 | E46: 4999058 | F46: =E46/'- 3 -'!D46*100 -> 1.157617338 | G46: =IF('- 7 -'!B46=0,"",E46/'- 7 -'!B46) -> 7161.974212
A48: PROVINCE | B48: =SUM(B11:B46) -> 190162005 | C48: =B48/'- 3 -'!D48*100 -> 7.396406826 | D48: =B48/'- 7 -'!C48 -> 1065.199272 | E48: =SUM(E11:E46) -> 29778777 | F48: =E48/'- 3 -'!D48*100 -> 1.158254245 | G48: =E48/'- 7 -'!B48 -> 7847.031155
A50: WHITESHELL | B50: 201198 | C50: =B50/'- 3 -'!D50*100 -> 5.934911194 | D50: =B50/'- 7 -'!C50 -> 1093.467391 | E50: 0 | F50: =E50/'- 3 -'!D50*100 -> 0 | G50: =IF('- 7 -'!B50=0,"",E50/'- 7 -'!B50) -> 
A51: MITT | B51: 1721831 | C51: =B51/'- 3 -'!D51*100 -> 5.530590686 | D51: =B51/'- 7 -'!C51 -> 970.5377374 | E51: 3147061 | F51: =E51/'- 3 -'!D51*100 -> 10.10848698 | G51: =IF('- 7 -'!B51=0,"",E51/'- 7 -'!B51) -> 1936.533752

Sheet - 19 -
B2: ANALYSIS OF EXPENSE BY PROGRAM | J2: PAGE 2 OF 16
B3: =OPYEAR -> OPERATING FUND 2020/2021 ACTUAL
B5: FUNCTION 100: REGULAR INSTRUCTION
B6: SINGLE TRACK SCHOOLS (1)
B7: ENGLISH LANGUAGE | E7: FRANÇAIS | H7: FRENCH IMMERSION
D8: PER PUPIL | G8: PER PUPIL | J8: PER PUPIL
A9: DIVISION / DISTRICT | B9: AMOUNT | C9: % | E9: AMOUNT | F9: % | H9: AMOUNT | I9: %
A11: BEAUTIFUL PLAINS | B11: 13268719 | C11: =B11/'- 3 -'!D11*100 -> 58.95158501 | D11: =B11/'- 6 -'!B11 -> 6976.192955 | E11: 0 | F11: =E11/'- 3 -'!D11*100 -> 0 | G11: =IF('- 6 -'!C11=0,"",E11/'- 6 -'!C11) ->  | H11: 0 | I11: =H11/'- 3 -'!D11*100 -> 0 | J11: =IF('- 6 -'!D11=0,"",H11/'- 6 -'!D11) -> 
A12: BORDER LAND | B12: 13077984 | C12: =B12/'- 3 -'!D12*100 -> 38.00875609 | D12: =B12/'- 6 -'!B12 -> 10854.9004 | E12: 0 | F12: =E12/'- 3 -'!D12*100 -> 0 | G12: =IF('- 6 -'!C12=0,"",E12/'- 6 -'!C12) ->  | H12: 0 | I12: =H12/'- 3 -'!D12*100 -> 0 | J12: =IF('- 6 -'!D12=0,"",H12/'- 6 -'!D12) -> 
A13: BRANDON | B13: 48246042 | C13: =B13/'- 3 -'!D13*100 -> 42.81401322 | D13: =B13/'- 6 -'!B13 -> 7297.291386 | E13: 0 | F13: =E13/'- 3 -'!D13*100 -> 0 | G13: =IF('- 6 -'!C13=0,"",E13/'- 6 -'!C13) ->  | H13: 2234879 | I13: =H13/'- 3 -'!D13*100 -> 1.983253653 | J13: =IF('- 6 -'!D13=0,"",H13/'- 6 -'!D13) -> 6651.425595
A14: DSFM | B14: 0 | C14: =B14/'- 3 -'!D14*100 -> 0 | E14: 48699185 | F14: =E14/'- 3 -'!D14*100 -> 47.41970925 | G14: =IF('- 6 -'!C14=0,"",E14/'- 6 -'!C14) -> 8240.132826 | H14: 0 | I14: =H14/'- 3 -'!D14*100 -> 0 | J14: =IF('- 6 -'!D14=0,"",H14/'- 6 -'!D14) -> 
A15: EVERGREEN | B15: 9809651 | C15: =B15/'- 3 -'!D15*100 -> 46.82223913 | D15: =B15/'- 6 -'!B15 -> 7176.04316 | E15: 0 | F15: =E15/'- 3 -'!D15*100 -> 0 | G15: =IF('- 6 -'!C15=0,"",E15/'- 6 -'!C15) ->  | H15: 0 | I15: =H15/'- 3 -'!D15*100 -> 0 | J15: =IF('- 6 -'!D15=0,"",H15/'- 6 -'!D15) -> 
A16: FLIN FLON | B16: 4881059 | C16: =B16/'- 3 -'!D16*100 -> 30.78682504 | D16: =B16/'- 6 -'!B16 -> 8539.291463 | E16: 0 | F16: =E16/'- 3 -'!D16*100 -> 0 | G16: =IF('- 6 -'!C16=0,"",E16/'- 6 -'!C16) ->  | H16: 0 | I16: =H16/'- 3 -'!D16*100 -> 0 | J16: =IF('- 6 -'!D16=0,"",H16/'- 6 -'!D16) -> 
A17: FORT LA BOSSE | B17: 10190523 | C17: =B17/'- 3 -'!D17*100 -> 53.81839332 | D17: =B17/'- 6 -'!B17 -> 7133.722786 | E17: 0 | F17: =E17/'- 3 -'!D17*100 -> 0 | G17: =IF('- 6 -'!C17=0,"",E17/'- 6 -'!C17) ->  | H17: 0 | I17: =H17/'- 3 -'!D17*100 -> 0 | J17: =IF('- 6 -'!D17=0,"",H17/'- 6 -'!D17) -> 
A18: FRONTIER | B18: 51203318 | C18: =B18/'- 3 -'!D18*100 -> 35.83725894 | D18: =B18/'- 6 -'!B18 -> 8761.690281 | E18: 0 | F18: =E18/'- 3 -'!D18*100 -> 0 | G18: =IF('- 6 -'!C18=0,"",E18/'- 6 -'!C18) ->  | H18: 0 | I18: =H18/'- 3 -'!D18*100 -> 0 | J18: =IF('- 6 -'!D18=0,"",H18/'- 6 -'!D18) -> 
A19: GARDEN VALLEY | B19: 26203709 | C19: =B19/'- 3 -'!D19*100 -> 49.41315662 | D19: =B19/'- 6 -'!B19 -> 6130.096149 | E19: 0 | F19: =E19/'- 3 -'!D19*100 -> 0 | G19: =IF('- 6 -'!C19=0,"",E19/'- 6 -'!C19) ->  | H19: 0 | I19: =H19/'- 3 -'!D19*100 -> 0 | J19: =IF('- 6 -'!D19=0,"",H19/'- 6 -'!D19) -> 
A20: HANOVER | B20: 51084369 | C20: =B20/'- 3 -'!D20*100 -> 52.99122099 | D20: =B20/'- 6 -'!B20 -> 7082.263829 | E20: 0 | F20: =E20/'- 3 -'!D20*100 -> 0 | G20: =IF('- 6 -'!C20=0,"",E20/'- 6 -'!C20) ->  | H20: 0 | I20: =H20/'- 3 -'!D20*100 -> 0 | J20: =IF('- 6 -'!D20=0,"",H20/'- 6 -'!D20) -> 
A21: INTERLAKE | B21: 16242230 | C21: =B21/'- 3 -'!D21*100 -> 39.34753972 | D21: =B21/'- 6 -'!B21 -> 7899.917315 | E21: 0 | F21: =E21/'- 3 -'!D21*100 -> 0 | G21: =IF('- 6 -'!C21=0,"",E21/'- 6 -'!C21) ->  | H21: 0 | I21: =H21/'- 3 -'!D21*100 -> 0 | J21: =IF('- 6 -'!D21=0,"",H21/'- 6 -'!D21) -> 
A22: KELSEY | B22: 5171467 | C22: =B22/'- 3 -'!D22*100 -> 24.67808294 | D22: =B22/'- 6 -'!B22 -> 6554.457541 | E22: 0 | F22: =E22/'- 3 -'!D22*100 -> 0 | G22: =IF('- 6 -'!C22=0,"",E22/'- 6 -'!C22) ->  | H22: 0 | I22: =H22/'- 3 -'!D22*100 -> 0 | J22: =IF('- 6 -'!D22=0,"",H22/'- 6 -'!D22) -> 
A23: LAKESHORE | B23: 7497708 | C23: =B23/'- 3 -'!D23*100 -> 46.41322253 | D23: =B23/'- 6 -'!B23 -> 8377.327374 | E23: 0 | F23: =E23/'- 3 -'!D23*100 -> 0 | G23: =IF('- 6 -'!C23=0,"",E23/'- 6 -'!C23) ->  | H23: 0 | I23: =H23/'- 3 -'!D23*100 -> 0 | J23: =IF('- 6 -'!D23=0,"",H23/'- 6 -'!D23) -> 
A24: LORD SELKIRK | B24: 23471133 | C24: =B24/'- 3 -'!D24*100 -> 38.73091598 | D24: =B24/'- 6 -'!B24 -> 9232.243638 | E24: 0 | F24: =E24/'- 3 -'!D24*100 -> 0 | G24: =IF('- 6 -'!C24=0,"",E24/'- 6 -'!C24) ->  | H24: 1690541 | I24: =H24/'- 3 -'!D24*100 -> 2.789648094 | J24: =IF('- 6 -'!D24=0,"",H24/'- 6 -'!D24) -> 7993.101655
A25: LOUIS RIEL | B25: 60365485 | C25: =B25/'- 3 -'!D25*100 -> 30.07972501 | D25: =B25/'- 6 -'!B25 -> 7773.047257 | E25: 0 | F25: =E25/'- 3 -'!D25*100 -> 0 | G25: =IF('- 6 -'!C25=0,"",E25/'- 6 -'!C25) ->  | H25: 29217549 | I25: =H25/'- 3 -'!D25*100 -> 14.55891292 | J25: =IF('- 6 -'!D25=0,"",H25/'- 6 -'!D25) -> 4475.727482
A26: MOUNTAIN VIEW | B26: 16549524 | C26: =B26/'- 3 -'!D26*100 -> 38.65558321 | D26: =B26/'- 6 -'!B26 -> 7732.374585 | E26: 0 | F26: =E26/'- 3 -'!D26*100 -> 0 | G26: =IF('- 6 -'!C26=0,"",E26/'- 6 -'!C26) ->  | H26: 797777 | I26: =H26/'- 3 -'!D26*100 -> 1.863409196 | J26: =IF('- 6 -'!D26=0,"",H26/'- 6 -'!D26) -> 5887.653137
A27: MYSTERY LAKE | B27: 18606141 | C27: =B27/'- 3 -'!D27*100 -> 42.92304556 | D27: =B27/'- 6 -'!B27 -> 7311.435476 | E27: 0 | F27: =E27/'- 3 -'!D27*100 -> 0 | G27: =IF('- 6 -'!C27=0,"",E27/'- 6 -'!C27) ->  | H27: 0 | I27: =H27/'- 3 -'!D27*100 -> 0 | J27: =IF('- 6 -'!D27=0,"",H27/'- 6 -'!D27) -> 
A28: PARK WEST | B28: 16213549 | C28: =B28/'- 3 -'!D28*100 -> 55.3344826 | D28: =B28/'- 6 -'!B28 -> 8396.452097 | E28: 0 | F28: =E28/'- 3 -'!D28*100 -> 0 | G28: =IF('- 6 -'!C28=0,"",E28/'- 6 -'!C28) ->  | H28: 0 | I28: =H28/'- 3 -'!D28*100 -> 0 | J28: =IF('- 6 -'!D28=0,"",H28/'- 6 -'!D28) -> 
A29: PEMBINA TRAILS | B29: 54980951 | C29: =B29/'- 3 -'!D29*100 -> 30.36608415 | D29: =B29/'- 6 -'!B29 -> 6365.377829 | E29: 0 | F29: =E29/'- 3 -'!D29*100 -> 0 | G29: =IF('- 6 -'!C29=0,"",E29/'- 6 -'!C29) ->  | H29: 8712107 | I29: =H29/'- 3 -'!D29*100 -> 4.81171332 | J29: =IF('- 6 -'!D29=0,"",H29/'- 6 -'!D29) -> 6301.704882
A30: PINE CREEK | B30: 9301370 | C30: =B30/'- 3 -'!D30*100 -> 56.14477762 | D30: =B30/'- 6 -'!B30 -> 8900.832536 | E30: 0 | F30: =E30/'- 3 -'!D30*100 -> 0 | G30: =IF('- 6 -'!C30=0,"",E30/'- 6 -'!C30) ->  | H30: 0 | I30: =H30/'- 3 -'!D30*100 -> 0 | J30: =IF('- 6 -'!D30=0,"",H30/'- 6 -'!D30) -> 
A31: PORTAGE LA PRAIRIE | B31: 18132693 | C31: =B31/'- 3 -'!D31*100 -> 41.16438124 | D31: =B31/'- 6 -'!B31 -> 7709.478316 | E31: 0 | F31: =E31/'- 3 -'!D31*100 -> 0 | G31: =IF('- 6 -'!C31=0,"",E31/'- 6 -'!C31) ->  | H31: 0 | I31: =H31/'- 3 -'!D31*100 -> 0 | J31: =IF('- 6 -'!D31=0,"",H31/'- 6 -'!D31) -> 
A32: PRAIRIE ROSE | B32: 13566099 | C32: =B32/'- 3 -'!D32*100 -> 40.58673462 | D32: =B32/'- 6 -'!B32 -> 7837.145581 | E32: 0 | F32: =E32/'- 3 -'!D32*100 -> 0 | G32: =IF('- 6 -'!C32=0,"",E32/'- 6 -'!C32) ->  | H32: 921918 | I32: =H32/'- 3 -'!D32*100 -> 2.758172501 | J32: =IF('- 6 -'!D32=0,"",H32/'- 6 -'!D32) -> 7202.484375
A33: PRAIRIE SPIRIT | B33: 11836329 | C33: =B33/'- 3 -'!D33*100 -> 39.66285035 | D33: =B33/'- 6 -'!B33 -> 7529.471374 | E33: 0 | F33: =E33/'- 3 -'!D33*100 -> 0 | G33: =IF('- 6 -'!C33=0,"",E33/'- 6 -'!C33) ->  | H33: 0 | I33: =H33/'- 3 -'!D33*100 -> 0 | J33: =IF('- 6 -'!D33=0,"",H33/'- 6 -'!D33) -> 
A34: RED RIVER VALLEY | B34: 11977837 | C34: =B34/'- 3 -'!D34*100 -> 36.57398586 | D34: =B34/'- 6 -'!B34 -> 7350.71127 | E34: 0 | F34: =E34/'- 3 -'!D34*100 -> 0 | G34: =IF('- 6 -'!C34=0,"",E34/'- 6 -'!C34) ->  | H34: 2539056 | I34: =H34/'- 3 -'!D34*100 -> 7.752935547 | J34: =IF('- 6 -'!D34=0,"",H34/'- 6 -'!D34) -> 8816.166667
A35: RIVER EAST TRANSCONA | B35: 62966717 | C35: =B35/'- 3 -'!D35*100 -> 29.70847344 | D35: =B35/'- 6 -'!B35 -> 7961.903901 | E35: 0 | F35: =E35/'- 3 -'!D35*100 -> 0 | G35: =IF('- 6 -'!C35=0,"",E35/'- 6 -'!C35) ->  | H35: 8022206 | I35: =H35/'- 3 -'!D35*100 -> 3.784975702 | J35: =IF('- 6 -'!D35=0,"",H35/'- 6 -'!D35) -> 5742.452398
A36: ROLLING RIVER | B36: 13427364 | C36: =B36/'- 3 -'!D36*100 -> 53.31579986 | D36: =B36/'- 6 -'!B36 -> 7884.535526 | E36: 0 | F36: =E36/'- 3 -'!D36*100 -> 0 | G36: =IF('- 6 -'!C36=0,"",E36/'- 6 -'!C36) ->  | H36: 0 | I36: =H36/'- 3 -'!D36*100 -> 0 | J36: =IF('- 6 -'!D36=0,"",H36/'- 6 -'!D36) -> 
A37: SEINE RIVER | B37: 13904575 | C37: =B37/'- 3 -'!D37*100 -> 24.87282496 | D37: =B37/'- 6 -'!B37 -> 6612.724117 | E37: 0 | F37: =E37/'- 3 -'!D37*100 -> 0 | G37: =IF('- 6 -'!C37=0,"",E37/'- 6 -'!C37) ->  | H37: 4767585 | I37: =H37/'- 3 -'!D37*100 -> 8.528366182 | J37: =IF('- 6 -'!D37=0,"",H37/'- 6 -'!D37) -> 5608.923529
A38: SEVEN OAKS | B38: 50724612 | C38: =B38/'- 3 -'!D38*100 -> 32.35741558 | D38: =B38/'- 6 -'!B38 -> 7872.580705 | E38: 0 | F38: =E38/'- 3 -'!D38*100 -> 0 | G38: =IF('- 6 -'!C38=0,"",E38/'- 6 -'!C38) ->  | H38: 5920914 | I38: =H38/'- 3 -'!D38*100 -> 3.776972704 | J38: =IF('- 6 -'!D38=0,"",H38/'- 6 -'!D38) -> 6135.662176
A39: SOUTHWEST HORIZON | B39: 12470633 | C39: =B39/'- 3 -'!D39*100 -> 53.1960524 | D39: =B39/'- 6 -'!B39 -> 8289.990693 | E39: 0 | F39: =E39/'- 3 -'!D39*100 -> 0 | G39: =IF('- 6 -'!C39=0,"",E39/'- 6 -'!C39) ->  | H39: 0 | I39: =H39/'- 3 -'!D39*100 -> 0 | J39: =IF('- 6 -'!D39=0,"",H39/'- 6 -'!D39) -> 
A40: ST. JAMES-ASSINIBOIA | B40: 40213674 | C40: =B40/'- 3 -'!D40*100 -> 35.46401031 | D40: =B40/'- 6 -'!B40 -> 7477.829638 | E40: 0 | F40: =E40/'- 3 -'!D40*100 -> 0 | G40: =IF('- 6 -'!C40=0,"",E40/'- 6 -'!C40) ->  | H40: 8626558 | I40: =H40/'- 3 -'!D40*100 -> 7.607669516 | J40: =IF('- 6 -'!D40=0,"",H40/'- 6 -'!D40) -> 6179.482808
A41: SUNRISE | B41: 15963703 | C41: =B41/'- 3 -'!D41*100 -> 22.92490758 | D41: =B41/'- 6 -'!B41 -> 7950.051295 | E41: 0 | F41: =E41/'- 3 -'!D41*100 -> 0 | G41: =IF('- 6 -'!C41=0,"",E41/'- 6 -'!C41) ->  | H41: 0 | I41: =H41/'- 3 -'!D41*100 -> 0 | J41: =IF('- 6 -'!D41=0,"",H41/'- 6 -'!D41) -> 
A42: SWAN VALLEY | B42: 7505944 | C42: =B42/'- 3 -'!D42*100 -> 34.51432746 | D42: =B42/'- 6 -'!B42 -> 8197.483727 | E42: 0 | F42: =E42/'- 3 -'!D42*100 -> 0 | G42: =IF('- 6 -'!C42=0,"",E42/'- 6 -'!C42) ->  | H42: 0 | I42: =H42/'- 3 -'!D42*100 -> 0 | J42: =IF('- 6 -'!D42=0,"",H42/'- 6 -'!D42) -> 
A43: TURTLE MOUNTAIN | B43: 7089310 | C43: =B43/'- 3 -'!D43*100 -> 51.14773264 | D43: =B43/'- 6 -'!B43 -> 7197.269036 | E43: 0 | F43: =E43/'- 3 -'!D43*100 -> 0 | G43: =IF('- 6 -'!C43=0,"",E43/'- 6 -'!C43) ->  | H43: 0 | I43: =H43/'- 3 -'!D43*100 -> 0 | J43: =IF('- 6 -'!D43=0,"",H43/'- 6 -'!D43) -> 
A44: TURTLE RIVER | B44: 5773060 | C44: =B44/'- 3 -'!D44*100 -> 51.03178063 | D44: =B44/'- 6 -'!B44 -> 9518.64798 | E44: 0 | F44: =E44/'- 3 -'!D44*100 -> 0 | G44: =IF('- 6 -'!C44=0,"",E44/'- 6 -'!C44) ->  | H44: 405258 | I44: =H44/'- 3 -'!D44*100 -> 3.582335426 | J44: =IF('- 6 -'!D44=0,"",H44/'- 6 -'!D44) -> 9765.253012
A45: WESTERN | B45: 6187368 | C45: =B45/'- 3 -'!D45*100 -> 27.14352433 | D45: =B45/'- 6 -'!B45 -> 7983.700645 | E45: 0 | F45: =E45/'- 3 -'!D45*100 -> 0 | G45: =IF('- 6 -'!C45=0,"",E45/'- 6 -'!C45) ->  | H45: 0 | I45: =H45/'- 3 -'!D45*100 -> 0 | J45: =IF('- 6 -'!D45=0,"",H45/'- 6 -'!D45) -> 
A46: WINNIPEG | B46: 148365682 | C46: =B46/'- 3 -'!D46*100 -> 34.35660995 | D46: =B46/'- 6 -'!B46 -> 7978.579871 | E46: 0 | F46: =E46/'- 3 -'!D46*100 -> 0 | G46: =IF('- 6 -'!C46=0,"",E46/'- 6 -'!C46) -> 0 | H46: 8563840 | I46: =H46/'- 3 -'!D46*100 -> 1.983103549 | J46: =IF('- 6 -'!D46=0,"",H46/'- 6 -'!D46) -> 
A48: PROVINCE | B48: =SUM(B11:B46) -> 896470532 | C48: =B48/'- 3 -'!D48*100 -> 34.86848365 | D48: =B48/'- 6 -'!B48 -> 7663.881721 | E48: =SUM(E11:E46) -> 48699185 | F48: =E48/'- 3 -'!D48*100 -> 1.89416905 | G48: =E48/'- 6 -'!C48 -> 6592.998714 | H48: =SUM(H11:H46) -> 82420188 | I48: =H48/'- 3 -'!D48*100 -> 3.205757329 | J48: =H48/'- 6 -'!D48 -> 6034.130463
A50: WHITESHELL | B50: 1887518 | C50: =B50/'- 3 -'!D50*100 -> 55.67774882 | D50: =B50/'- 6 -'!B50 -> 10258.25 | E50: 0 | F50: =E50/'- 3 -'!D50*100 -> 0 | G50: =IF('- 6 -'!C50=0,"",E50/'- 6 -'!C50) ->  | H50: 0 | I50: =H50/'- 3 -'!D50*100 -> 0 | J50: =IF('- 6 -'!D50=0,"",H50/'- 6 -'!D50) -> 
A51: MITT | B51: 668397 | C51: =B51/'- 3 -'!D51*100 -> 2.146918148 | D51: =B51/'- 6 -'!B51 -> 5102.267176 | E51: 0 | F51: =E51/'- 3 -'!D51*100 -> 0 | G51: =IF('- 6 -'!C51=0,"",E51/'- 6 -'!C51) -> 0 | H51: 0 | I51: =H51/'- 3 -'!D51*100 -> 0 | J51: =IF('- 6 -'!D51=0,"",H51/'- 6 -'!D51) -> 
A53: (1) 90% or more of Regular Instruction enrolment is in one language.

Sheet - 20 -
B2: ANALYSIS OF EXPENSE BY PROGRAM | I2: PAGE 3 OF 16
B3: =OPYEAR -> OPERATING FUND 2020/2021 ACTUAL
B5: FUNCTION 100: REGULAR INSTRUCTION
B6: DUAL TRACK SCHOOLS (1)
E7: NO. OF F.T.E. PUPILS | F7: % IN DUAL TRACK SCHOOLS
D8: PER PUPIL | H8: FRENCH IMMERSION
A9: DIVISION / DISTRICT | B9: AMOUNT | C9: % | F9: ENGLISH | G9: FRANÇAIS | I9: OTHER
A11: BEAUTIFUL PLAINS | B11: 0 | C11: =B11/'- 3 -'!D11*100 -> 0 | D11: =IF(E11=0,"",B11/E11) ->  | E11: =SUM('- 6 -'!E11:H11) -> 0 | F11: =IF(E11=0,"",'- 6 -'!E11/E11*100) ->  | G11: =IF(E11=0,"",'- 6 -'!F11/E11*100) ->  | H11: =IF(E11=0,"",'- 6 -'!G11/E11*100) ->  | I11: =IF(E11=0,"",'- 6 -'!H11/E11*100) -> 
A12: BORDER LAND | B12: 3598622 | C12: =B12/'- 3 -'!D12*100 -> 10.45873323 | D12: =IF(E12=0,"",B12/E12) -> 5689.520949 | E12: =SUM('- 6 -'!E12:H12) -> 632.5 | F12: =IF(E12=0,"",'- 6 -'!E12/E12*100) -> 80.39525692 | G12: =IF(E12=0,"",'- 6 -'!F12/E12*100) -> 0 | H12: =IF(E12=0,"",'- 6 -'!G12/E12*100) -> 19.60474308 | I12: =IF(E12=0,"",'- 6 -'!H12/E12*100) -> 0
A13: BRANDON | B13: 7494887 | C13: =B13/'- 3 -'!D13*100 -> 6.651036599 | D13: 6444.44282 | E13: =SUM('- 6 -'!E13:H13) -> 1163 | F13: =IF(E13=0,"",'- 6 -'!E13/E13*100) -> 52.53654342 | G13: =IF(E13=0,"",'- 6 -'!F13/E13*100) -> 0 | H13: =IF(E13=0,"",'- 6 -'!G13/E13*100) -> 47.46345658 | I13: =IF(E13=0,"",'- 6 -'!H13/E13*100) -> 0
A14: DSFM | B14: 0 | C14: =B14/'- 3 -'!D14*100 -> 0 | E14: =SUM('- 6 -'!E14:H14) -> 0 | F14: =IF(E14=0,"",'- 6 -'!E14/E14*100) ->  | G14: =IF(E14=0,"",'- 6 -'!F14/E14*100) ->  | H14: =IF(E14=0,"",'- 6 -'!G14/E14*100) ->  | I14: =IF(E14=0,"",'- 6 -'!H14/E14*100) -> 
A15: EVERGREEN | B15: 0 | C15: =B15/'- 3 -'!D15*100 -> 0 | E15: =SUM('- 6 -'!E15:H15) -> 0 | F15: =IF(E15=0,"",'- 6 -'!E15/E15*100) ->  | G15: =IF(E15=0,"",'- 6 -'!F15/E15*100) ->  | H15: =IF(E15=0,"",'- 6 -'!G15/E15*100) ->  | I15: =IF(E15=0,"",'- 6 -'!H15/E15*100) -> 
A16: FLIN FLON | B16: 2777734 | C16: =B16/'- 3 -'!D16*100 -> 17.5202985 | D16: 7737.420613 | E16: =SUM('- 6 -'!E16:H16) -> 359 | F16: =IF(E16=0,"",'- 6 -'!E16/E16*100) -> 69.08077994 | G16: =IF(E16=0,"",'- 6 -'!F16/E16*100) -> 0 | H16: =IF(E16=0,"",'- 6 -'!G16/E16*100) -> 30.91922006 | I16: =IF(E16=0,"",'- 6 -'!H16/E16*100) -> 0
A17: FORT LA BOSSE | B17: 0 | C17: =B17/'- 3 -'!D17*100 -> 0 | E17: =SUM('- 6 -'!E17:H17) -> 0 | F17: =IF(E17=0,"",'- 6 -'!E17/E17*100) ->  | G17: =IF(E17=0,"",'- 6 -'!F17/E17*100) ->  | H17: =IF(E17=0,"",'- 6 -'!G17/E17*100) ->  | I17: =IF(E17=0,"",'- 6 -'!H17/E17*100) -> 
A18: FRONTIER | B18: 0 | C18: =B18/'- 3 -'!D18*100 -> 0 | E18: =SUM('- 6 -'!E18:H18) -> 0 | F18: =IF(E18=0,"",'- 6 -'!E18/E18*100) ->  | G18: =IF(E18=0,"",'- 6 -'!F18/E18*100) ->  | H18: =IF(E18=0,"",'- 6 -'!G18/E18*100) ->  | I18: =IF(E18=0,"",'- 6 -'!H18/E18*100) -> 
A19: GARDEN VALLEY | B19: 0 | C19: =B19/'- 3 -'!D19*100 -> 0 | E19: =SUM('- 6 -'!E19:H19) -> 0 | F19: =IF(E19=0,"",'- 6 -'!E19/E19*100) ->  | G19: =IF(E19=0,"",'- 6 -'!F19/E19*100) ->  | H19: =IF(E19=0,"",'- 6 -'!G19/E19*100) ->  | I19: =IF(E19=0,"",'- 6 -'!H19/E19*100) -> 
A20: HANOVER | B20: 0 | C20: =B20/'- 3 -'!D20*100 -> 0 | E20: =SUM('- 6 -'!E20:H20) -> 0 | F20: =IF(E20=0,"",'- 6 -'!E20/E20*100) ->  | G20: =IF(E20=0,"",'- 6 -'!F20/E20*100) ->  | H20: =IF(E20=0,"",'- 6 -'!G20/E20*100) ->  | I20: =IF(E20=0,"",'- 6 -'!H20/E20*100) -> 
A21: INTERLAKE | B21: 4159435 | C21: =B21/'- 3 -'!D21*100 -> 10.07642016 | D21: 5487.381266 | E21: =SUM('- 6 -'!E21:H21) -> 758 | F21: =IF(E21=0,"",'- 6 -'!E21/E21*100) -> 59.16886544 | G21: =IF(E21=0,"",'- 6 -'!F21/E21*100) -> 0 | H21: =IF(E21=0,"",'- 6 -'!G21/E21*100) -> 40.83113456 | I21: =IF(E21=0,"",'- 6 -'!H21/E21*100) -> 0
A22: KELSEY | B22: 4813791 | C22: =B22/'- 3 -'!D22*100 -> 22.97126396 | D22: 7840.050489 | E22: =SUM('- 6 -'!E22:H22) -> 614 | F22: =IF(E22=0,"",'- 6 -'!E22/E22*100) -> 74.26710098 | G22: =IF(E22=0,"",'- 6 -'!F22/E22*100) -> 0 | H22: =IF(E22=0,"",'- 6 -'!G22/E22*100) -> 25.73289902 | I22: =IF(E22=0,"",'- 6 -'!H22/E22*100) -> 0
A23: LAKESHORE | B23: 0 | C23: =B23/'- 3 -'!D23*100 -> 0 | E23: =SUM('- 6 -'!E23:H23) -> 0 | F23: =IF(E23=0,"",'- 6 -'!E23/E23*100) ->  | G23: =IF(E23=0,"",'- 6 -'!F23/E23*100) ->  | H23: =IF(E23=0,"",'- 6 -'!G23/E23*100) ->  | I23: =IF(E23=0,"",'- 6 -'!H23/E23*100) -> 
A24: LORD SELKIRK | B24: 5303640 | C24: =B24/'- 3 -'!D24*100 -> 8.75180739 | D24: 7839.822616 | E24: =SUM('- 6 -'!E24:H24) -> 676.5 | F24: =IF(E24=0,"",'- 6 -'!E24/E24*100) -> 74.50110865 | G24: =IF(E24=0,"",'- 6 -'!F24/E24*100) -> 0 | H24: =IF(E24=0,"",'- 6 -'!G24/E24*100) -> 14.19068736 | I24: =IF(E24=0,"",'- 6 -'!H24/E24*100) -> 11.30820399
A25: LOUIS RIEL | B25: 8894956 | C25: =B25/'- 3 -'!D25*100 -> 4.432298199 | D25: 11566.91287 | E25: =SUM('- 6 -'!E25:H25) -> 769 | F25: =IF(E25=0,"",'- 6 -'!E25/E25*100) -> 49.54486346 | G25: =IF(E25=0,"",'- 6 -'!F25/E25*100) -> 0 | H25: =IF(E25=0,"",'- 6 -'!G25/E25*100) -> 50.45513654 | I25: =IF(E25=0,"",'- 6 -'!H25/E25*100) -> 0
A26: MOUNTAIN VIEW | B26: 2646169 | C26: =B26/'- 3 -'!D26*100 -> 6.180794443 | D26: 5002.20983 | E26: =SUM('- 6 -'!E26:H26) -> 529 | F26: =IF(E26=0,"",'- 6 -'!E26/E26*100) -> 72.96786389 | G26: =IF(E26=0,"",'- 6 -'!F26/E26*100) -> 0 | H26: =IF(E26=0,"",'- 6 -'!G26/E26*100) -> 14.74480151 | I26: =IF(E26=0,"",'- 6 -'!H26/E26*100) -> 12.28733459
A27: MYSTERY LAKE | B27: 2656733 | C27: =B27/'- 3 -'!D27*100 -> 6.128894304 | D27: 6909.578674 | E27: =SUM('- 6 -'!E27:H27) -> 384.5 | F27: =IF(E27=0,"",'- 6 -'!E27/E27*100) -> 42.2626788 | G27: =IF(E27=0,"",'- 6 -'!F27/E27*100) -> 0 | H27: =IF(E27=0,"",'- 6 -'!G27/E27*100) -> 57.7373212 | I27: =IF(E27=0,"",'- 6 -'!H27/E27*100) -> 0
A28: PARK WEST | B28: 0 | C28: =B28/'- 3 -'!D28*100 -> 0 | E28: =SUM('- 6 -'!E28:H28) -> 0 | F28: =IF(E28=0,"",'- 6 -'!E28/E28*100) ->  | G28: =IF(E28=0,"",'- 6 -'!F28/E28*100) ->  | H28: =IF(E28=0,"",'- 6 -'!G28/E28*100) ->  | I28: =IF(E28=0,"",'- 6 -'!H28/E28*100) -> 
A29: PEMBINA TRAILS | B29: 27930405 | C29: =B29/'- 3 -'!D29*100 -> 15.42601598 | D29: 5921.975447 | E29: =SUM('- 6 -'!E29:H29) -> 4716.4 | F29: =IF(E29=0,"",'- 6 -'!E29/E29*100) -> 60.45712832 | G29: =IF(E29=0,"",'- 6 -'!F29/E29*100) -> 39.54287168 | H29: =IF(E29=0,"",'- 6 -'!G29/E29*100) -> 0 | I29: =IF(E29=0,"",'- 6 -'!H29/E29*100) -> 0
A30: PINE CREEK | B30: 0 | C30: =B30/'- 3 -'!D30*100 -> 0 | E30: =SUM('- 6 -'!E30:H30) -> 0 | F30: =IF(E30=0,"",'- 6 -'!E30/E30*100) ->  | G30: =IF(E30=0,"",'- 6 -'!F30/E30*100) ->  | H30: =IF(E30=0,"",'- 6 -'!G30/E30*100) ->  | I30: =IF(E30=0,"",'- 6 -'!H30/E30*100) -> 
A31: PORTAGE LA PRAIRIE | B31: 4579763 | C31: =B31/'- 3 -'!D31*100 -> 10.39686218 | D31: 5174.873446 | E31: =SUM('- 6 -'!E31:H31) -> 885 | F31: =IF(E31=0,"",'- 6 -'!E31/E31*100) -> 61.29943503 | G31: =IF(E31=0,"",'- 6 -'!F31/E31*100) -> 38.70056497 | H31: =IF(E31=0,"",'- 6 -'!G31/E31*100) -> 0 | I31: =IF(E31=0,"",'- 6 -'!H31/E31*100) -> 0
A32: PRAIRIE ROSE | B32: 3348854 | C32: =B32/'- 3 -'!D32*100 -> 10.01902231 | D32: 7217.357759 | E32: =SUM('- 6 -'!E32:H32) -> 464 | F32: =IF(E32=0,"",'- 6 -'!E32/E32*100) -> 79.09482759 | G32: =IF(E32=0,"",'- 6 -'!F32/E32*100) -> 0 | H32: =IF(E32=0,"",'- 6 -'!G32/E32*100) -> 20.90517241 | I32: =IF(E32=0,"",'- 6 -'!H32/E32*100) -> 0
A33: PRAIRIE SPIRIT | B33: 2834629 | C33: =B33/'- 3 -'!D33*100 -> 9.498676981 | D33: 6516.388506 | E33: =SUM('- 6 -'!E33:H33) -> 435 | F33: =IF(E33=0,"",'- 6 -'!E33/E33*100) -> 51.95402299 | G33: =IF(E33=0,"",'- 6 -'!F33/E33*100) -> 23.44827586 | H33: =IF(E33=0,"",'- 6 -'!G33/E33*100) -> 24.59770115 | I33: =IF(E33=0,"",'- 6 -'!H33/E33*100) -> 0
A34: RED RIVER VALLEY | B34: 1951692 | C34: =B34/'- 3 -'!D34*100 -> 5.959436217 | D34: 8616.741722 | E34: =SUM('- 6 -'!E34:H34) -> 226.5 | F34: =IF(E34=0,"",'- 6 -'!E34/E34*100) -> 36.64459161 | G34: =IF(E34=0,"",'- 6 -'!F34/E34*100) -> 63.35540839 | H34: =IF(E34=0,"",'- 6 -'!G34/E34*100) -> 0 | I34: =IF(E34=0,"",'- 6 -'!H34/E34*100) -> 0
A35: RIVER EAST TRANSCONA | B35: 30056708 | C35: =B35/'- 3 -'!D35*100 -> 14.18112542 | D35: 4886.077867 | E35: =SUM('- 6 -'!E35:H35) -> 6151.5 | F35: =IF(E35=0,"",'- 6 -'!E35/E35*100) -> 58.39226205 | G35: =IF(E35=0,"",'- 6 -'!F35/E35*100) -> 0 | H35: =IF(E35=0,"",'- 6 -'!G35/E35*100) -> 32.90254409 | I35: =IF(E35=0,"",'- 6 -'!H35/E35*100) -> 8.705193855
A36: ROLLING RIVER | B36: 0 | C36: =B36/'- 3 -'!D36*100 -> 0 | E36: =SUM('- 6 -'!E36:H36) -> 0 | F36: =IF(E36=0,"",'- 6 -'!E36/E36*100) ->  | G36: =IF(E36=0,"",'- 6 -'!F36/E36*100) ->  | H36: =IF(E36=0,"",'- 6 -'!G36/E36*100) ->  | I36: =IF(E36=0,"",'- 6 -'!H36/E36*100) -> 
A37: SEINE RIVER | B37: 8188770 | C37: =B37/'- 3 -'!D37*100 -> 14.64826094 | D37: 6025.584989 | E37: =SUM('- 6 -'!E37:H37) -> 1359 | F37: =IF(E37=0,"",'- 6 -'!E37/E37*100) -> 53.05371597 | G37: =IF(E37=0,"",'- 6 -'!F37/E37*100) -> 0 | H37: =IF(E37=0,"",'- 6 -'!G37/E37*100) -> 46.94628403 | I37: =IF(E37=0,"",'- 6 -'!H37/E37*100) -> 0
A38: SEVEN OAKS | B38: 21933344 | C38: =B38/'- 3 -'!D38*100 -> 13.99136039 | D38: 6094.457751 | E38: =SUM('- 6 -'!E38:H38) -> 3598.9 | F38: =IF(E38=0,"",'- 6 -'!E38/E38*100) -> 61.05754536 | G38: =IF(E38=0,"",'- 6 -'!F38/E38*100) -> 0 | H38: =IF(E38=0,"",'- 6 -'!G38/E38*100) -> 32.17649837 | I38: =IF(E38=0,"",'- 6 -'!H38/E38*100) -> 6.765956264
A39: SOUTHWEST HORIZON | B39: 0 | C39: =B39/'- 3 -'!D39*100 -> 0 | E39: =SUM('- 6 -'!E39:H39) -> 0 | F39: =IF(E39=0,"",'- 6 -'!E39/E39*100) ->  | G39: =IF(E39=0,"",'- 6 -'!F39/E39*100) ->  | H39: =IF(E39=0,"",'- 6 -'!G39/E39*100) ->  | I39: =IF(E39=0,"",'- 6 -'!H39/E39*100) -> 
A40: ST. JAMES-ASSINIBOIA | B40: 5041539 | C40: =B40/'- 3 -'!D40*100 -> 4.446079487 | D40: 5292.232031 | E40: =SUM('- 6 -'!E40:H40) -> 952.63 | F40: =IF(E40=0,"",'- 6 -'!E40/E40*100) -> 61.78999192 | G40: =IF(E40=0,"",'- 6 -'!F40/E40*100) -> 0 | H40: =IF(E40=0,"",'- 6 -'!G40/E40*100) -> 38.21000808 | I40: =IF(E40=0,"",'- 6 -'!H40/E40*100) -> 0
A41: SUNRISE | B41: 17159302 | C41: =B41/'- 3 -'!D41*100 -> 24.64186489 | D41: 7378.758117 | E41: =SUM('- 6 -'!E41:H41) -> 2325.5 | F41: =IF(E41=0,"",'- 6 -'!E41/E41*100) -> 64.7172651 | G41: =IF(E41=0,"",'- 6 -'!F41/E41*100) -> 0 | H41: =IF(E41=0,"",'- 6 -'!G41/E41*100) -> 32.03612126 | I41: =IF(E41=0,"",'- 6 -'!H41/E41*100) -> 3.246613631
A42: SWAN VALLEY | B42: 1913307 | C42: =B42/'- 3 -'!D42*100 -> 8.79789462 | D42: 7547.56213 | E42: =SUM('- 6 -'!E42:H42) -> 253.5 | F42: =IF(E42=0,"",'- 6 -'!E42/E42*100) -> 79.91715976 | G42: =IF(E42=0,"",'- 6 -'!F42/E42*100) -> 0 | H42: =IF(E42=0,"",'- 6 -'!G42/E42*100) -> 20.08284024 | I42: =IF(E42=0,"",'- 6 -'!H42/E42*100) -> 0
A43: TURTLE MOUNTAIN | B43: 0 | C43: =B43/'- 3 -'!D43*100 -> 0 | E43: =SUM('- 6 -'!E43:H43) -> 0 | F43: =IF(E43=0,"",'- 6 -'!E43/E43*100) ->  | G43: =IF(E43=0,"",'- 6 -'!F43/E43*100) ->  | H43: =IF(E43=0,"",'- 6 -'!G43/E43*100) ->  | I43: =IF(E43=0,"",'- 6 -'!H43/E43*100) -> 
A44: TURTLE RIVER | B44: 0 | C44: =B44/'- 3 -'!D44*100 -> 0 | E44: =SUM('- 6 -'!E44:H44) -> 0 | F44: =IF(E44=0,"",'- 6 -'!E44/E44*100) ->  | G44: =IF(E44=0,"",'- 6 -'!F44/E44*100) ->  | H44: =IF(E44=0,"",'- 6 -'!G44/E44*100) ->  | I44: =IF(E44=0,"",'- 6 -'!H44/E44*100) -> 
A45: WESTERN | B45: 6626658 | C45: =B45/'- 3 -'!D45*100 -> 29.07065697 | D45: 6626.658 | E45: =SUM('- 6 -'!E45:H45) -> 1000 | F45: =IF(E45=0,"",'- 6 -'!E45/E45*100) -> 70.45 | G45: =IF(E45=0,"",'- 6 -'!F45/E45*100) -> 0 | H45: =IF(E45=0,"",'- 6 -'!G45/E45*100) -> 29.55 | I45: =IF(E45=0,"",'- 6 -'!H45/E45*100) -> 0
A46: WINNIPEG | B46: 49831865 | C46: =B46/'- 3 -'!D46*100 -> 11.53942021 | D46: 5893.635278 | E46: =SUM('- 6 -'!E46:H46) -> 8455.2 | F46: =IF(E46=0,"",'- 6 -'!E46/E46*100) -> 62.57332766 | G46: =IF(E46=0,"",'- 6 -'!F46/E46*100) -> 0 | H46: =IF(E46=0,"",'- 6 -'!G46/E46*100) -> 33.77803009 | I46: =IF(E46=0,"",'- 6 -'!H46/E46*100) -> 3.648642256
A48: PROVINCE | B48: =SUM(B11:B46) -> 223742803 | C48: =B48/'- 3 -'!D48*100 -> 8.70254179 | D48: =B48/E48 -> 6095.10088 | E48: =SUM(E11:E46) -> 36708.63 | F48: =IF(E48=0,"",'- 6 -'!E48/E48*100) -> 61.50384801 | G48: =IF(E48=0,"",'- 6 -'!F48/E48*100) -> 6.682352351 | H48: =IF(E48=0,"",'- 6 -'!G48/E48*100) -> 28.26013937 | I48: =IF(E48=0,"",'- 6 -'!H48/E48*100) -> 3.55366027
A50: WHITESHELL | B50: 0 | C50: =B50/'- 3 -'!D50*100 -> 0 | D50: =IF(E50=0,"",B50/E50) ->  | E50: =SUM('- 6 -'!E50:H50) -> 0 | F50: =IF(E50=0,"",'- 6 -'!E50/E50*100) ->  | G50: =IF(E50=0,"",'- 6 -'!F50/E50*100) ->  | H50: =IF(E50=0,"",'- 6 -'!G50/E50*100) ->  | I50: =IF(E50=0,"",'- 6 -'!H50/E50*100) -> 
A51: MITT | B51: 0 | C51: =B51/'- 3 -'!D51*100 -> 0 | D51: =IF(E51=0,"",B51/E51) ->  | E51: =SUM('- 6 -'!E51:H51) -> 0 | F51: =IF(E51=0,"",'- 6 -'!E51/E51*100) ->  | G51: =IF(E51=0,"",'- 6 -'!F51/E51*100) ->  | H51: =IF(E51=0,"",'- 6 -'!G51/E51*100) ->  | I51: =IF(E51=0,"",'- 6 -'!H51/E51*100) -> 
A53: (1) No one language program comprises 90% or more of Regular Instruction enrolment.

Sheet - 21 -
B2: ANALYSIS OF EXPENSE BY PROGRAM | I2: PAGE 4 OF 16
B3: =OPYEAR -> OPERATING FUND 2020/2021 ACTUAL
B5: FUNCTION 200: STUDENT SUPPORT SERVICES (1)
B6: ADMINISTRATION / COORDINATION | E6: CLINICAL AND RELATED SERVICES | H6: SPECIAL PLACEMENT
D8: PER PUPIL | G8: PER PUPIL
A9: DIVISION / DISTRICT | B9: AMOUNT | C9: % | E9: AMOUNT | F9: % | H9: AMOUNT | I9: %
A11: BEAUTIFUL PLAINS | B11: 132827 | C11: =B11/'- 3 -'!$D11*100 -> 0.5901370119 | D11: =B11/'- 7 -'!$E11 -> 69.83543638 | E11: 234416 | F11: =E11/'- 3 -'!$D11*100 -> 1.041486729 | G11: =E11/'- 7 -'!$E11 -> 123.2471083 | H11: 232995 | I11: =H11/'- 3 -'!$D11*100 -> 1.035173369
A12: BORDER LAND | B12: 209371 | C12: =B12/'- 3 -'!$D12*100 -> 0.6084983184 | D12: =B12/'- 7 -'!$E12 -> 106.4964725 | E12: 686301 | F12: =E12/'- 3 -'!$D12*100 -> 1.994607679 | G12: =E12/'- 7 -'!$E12 -> 349.0867197 | H12: 0 | I12: =H12/'- 3 -'!$D12*100 -> 0
A13: BRANDON | B13: 206382 | C13: =B13/'- 3 -'!$D13*100 -> 0.183145421 | D13: =B13/'- 7 -'!$E13 -> 24.2759513 | E13: 3443500 | F13: =E13/'- 3 -'!$D13*100 -> 3.055795841 | G13: =E13/'- 7 -'!$E13 -> 405.0461683 | H13: 1132289 | I13: =H13/'- 3 -'!$D13*100 -> 1.004804419
A14: DSFM | B14: 421904 | C14: =B14/'- 3 -'!$D14*100 -> 0.4108192983 | D14: =B14/'- 7 -'!$E14 -> 71.18435882 | E14: 1167174 | F14: =E14/'- 3 -'!$D14*100 -> 1.136508788 | G14: =E14/'- 7 -'!$E14 -> 196.9275779 | H14: 817042 | I14: =H14/'- 3 -'!$D14*100 -> 0.7955758209
A15: EVERGREEN | B15: 215170 | C15: =B15/'- 3 -'!$D15*100 -> 1.027023407 | D15: =B15/'- 7 -'!$E15 -> 155.1333814 | E15: 248721 | F15: =E15/'- 3 -'!$D15*100 -> 1.187164981 | G15: =E15/'- 7 -'!$E15 -> 179.3229993 | H15: 0 | I15: =H15/'- 3 -'!$D15*100 -> 0
A16: FLIN FLON | B16: 123761 | C16: =B16/'- 3 -'!$D16*100 -> 0.7806109808 | D16: =B16/'- 7 -'!$E16 -> 132.9905437 | E16: 372190 | F16: =E16/'- 3 -'!$D16*100 -> 2.347553761 | G16: =E16/'- 7 -'!$E16 -> 399.9462712 | H16: 108760 | I16: =H16/'- 3 -'!$D16*100 -> 0.6859935705
A17: FORT LA BOSSE | B17: 121693 | C17: =B17/'- 3 -'!$D17*100 -> 0.6426874988 | D17: =B17/'- 7 -'!$E17 -> 83.72411421 | E17: 336755 | F17: =E17/'- 3 -'!$D17*100 -> 1.778477223 | G17: =E17/'- 7 -'!$E17 -> 231.6855865 | H17: 0 | I17: =H17/'- 3 -'!$D17*100 -> 0
A18: FRONTIER | B18: 0 | C18: =B18/'- 3 -'!$D18*100 -> 0 | D18: =B18/'- 7 -'!$E18 -> 0 | E18: 1217969 | F18: =E18/'- 3 -'!$D18*100 -> 0.8524578511 | G18: =E18/'- 7 -'!$E18 -> 206.9967709 | H18: 0 | I18: =H18/'- 3 -'!$D18*100 -> 0
A19: GARDEN VALLEY | B19: 194094 | C19: =B19/'- 3 -'!$D19*100 -> 0.3660091486 | D19: =B19/'- 7 -'!$E19 -> 44.41510297 | E19: 1193424 | F19: =E19/'- 3 -'!$D19*100 -> 2.250477099 | G19: =E19/'- 7 -'!$E19 -> 273.0947368 | H19: 1265533 | I19: =H19/'- 3 -'!$D19*100 -> 2.386455304
A20: HANOVER | B20: 442531 | C20: =B20/'- 3 -'!$D20*100 -> 0.4590495777 | D20: =B20/'- 7 -'!$E20 -> 57.2781517 | E20: 2246248 | F20: =E20/'- 3 -'!$D20*100 -> 2.330094831 | G20: =E20/'- 7 -'!$E20 -> 290.738804 | H20: 765098 | I20: =H20/'- 3 -'!$D20*100 -> 0.7936571987
A21: INTERLAKE | B21: 174310 | C21: =B21/'- 3 -'!$D21*100 -> 0.4222738903 | D21: =B21/'- 7 -'!$E21 -> 61.94385217 | E21: 831622 | F21: =E21/'- 3 -'!$D21*100 -> 2.014642058 | G21: =E21/'- 7 -'!$E21 -> 295.5302061 | H21: 214739 | I21: =H21/'- 3 -'!$D21*100 -> 0.5202149786
A22: KELSEY | B22: 17111 | C22: =B22/'- 3 -'!$D22*100 -> 0.08165317058 | D22: =B22/'- 7 -'!$E22 -> 12.19600855 | E22: 369590 | F22: =E22/'- 3 -'!$D22*100 -> 1.763672218 | G22: =E22/'- 7 -'!$E22 -> 263.4283678 | H22: 1040745 | I22: =H22/'- 3 -'!$D22*100 -> 4.966403426
A23: LAKESHORE | B23: 135359 | C23: =B23/'- 3 -'!$D23*100 -> 0.8379157188 | D23: =B23/'- 7 -'!$E23 -> 149.4028698 | E23: 263156 | F23: =E23/'- 3 -'!$D23*100 -> 1.629020227 | G23: =E23/'- 7 -'!$E23 -> 290.4591611 | H23: 0 | I23: =H23/'- 3 -'!$D23*100 -> 0
A24: LORD SELKIRK | B24: 347192 | C24: =B24/'- 3 -'!$D24*100 -> 0.5729192614 | D24: =B24/'- 7 -'!$E24 -> 95.84849405 | E24: 1911388 | F24: =E24/'- 3 -'!$D24*100 -> 3.154079014 | G24: =E24/'- 7 -'!$E24 -> 527.6724733 | H24: 100609 | I24: =H24/'- 3 -'!$D24*100 -> 0.1660200522
A25: LOUIS RIEL | B25: 1035707 | C25: =B25/'- 3 -'!$D25*100 -> 0.5160860009 | D25: =B25/'- 7 -'!$E25 -> 68.33418005 | E25: 4341385 | F25: =E25/'- 3 -'!$D25*100 -> 2.163283654 | G25: =E25/'- 7 -'!$E25 -> 286.4371722 | H25: 9072269 | I25: =H25/'- 3 -'!$D25*100 -> 4.520652103
A26: MOUNTAIN VIEW | B26: 138119 | C26: =B26/'- 3 -'!$D26*100 -> 0.3226117257 | D26: =B26/'- 7 -'!$E26 -> 46.66970772 | E26: 782963 | F26: =E26/'- 3 -'!$D26*100 -> 1.828807366 | G26: =E26/'- 7 -'!$E26 -> 264.5592161 | H26: 96925 | I26: =H26/'- 3 -'!$D26*100 -> 0.2263927593
A27: MYSTERY LAKE | B27: 224120 | C27: =B27/'- 3 -'!$D27*100 -> 0.5170289191 | D27: =B27/'- 7 -'!$E27 -> 74.29063909 | E27: 367692 | F27: =E27/'- 3 -'!$D27*100 -> 0.8482393241 | G27: =E27/'- 7 -'!$E27 -> 121.8814638 | H27: 2797788 | I27: =H27/'- 3 -'!$D27*100 -> 6.454298169
A28: PARK WEST | B28: 140947 | C28: =B28/'- 3 -'!$D28*100 -> 0.481031594 | D28: =B28/'- 7 -'!$E28 -> 72.99171414 | E28: 410715 | F28: =E28/'- 3 -'!$D28*100 -> 1.401710509 | G28: =E28/'- 7 -'!$E28 -> 212.6954946 | H28: 0 | I28: =H28/'- 3 -'!$D28*100 -> 0
A29: PEMBINA TRAILS | B29: 581208 | C29: =B29/'- 3 -'!$D29*100 -> 0.3210022875 | D29: =B29/'- 7 -'!$E29 -> 39.44029749 | E29: 3513458 | F29: =E29/'- 3 -'!$D29*100 -> 1.940489558 | G29: =E29/'- 7 -'!$E29 -> 238.420374 | H29: 702512 | I29: =H29/'- 3 -'!$D29*100 -> 0.3879987181
A30: PINE CREEK | B30: 86599 | C30: =B30/'- 3 -'!$D30*100 -> 0.5227274689 | D30: =B30/'- 7 -'!$E30 -> 82.86985646 | E30: 224093 | F30: =E30/'- 3 -'!$D30*100 -> 1.352666505 | G30: =E30/'- 7 -'!$E30 -> 214.4430622 | H30: 0 | I30: =H30/'- 3 -'!$D30*100 -> 0
A31: PORTAGE LA PRAIRIE | B31: 179231 | C31: =B31/'- 3 -'!$D31*100 -> 0.4068856851 | D31: =B31/'- 7 -'!$E31 -> 53.90406015 | E31: 626325 | F31: =E31/'- 3 -'!$D31*100 -> 1.421867181 | G31: =E31/'- 7 -'!$E31 -> 188.3684211 | H31: 1181942 | I31: =H31/'- 3 -'!$D31*100 -> 2.683214848
A32: PRAIRIE ROSE | B32: 145892 | C32: =B32/'- 3 -'!$D32*100 -> 0.4364762403 | D32: =B32/'- 7 -'!$E32 -> 62.80327163 | E32: 336353 | F32: =E32/'- 3 -'!$D32*100 -> 1.006292962 | G32: =E32/'- 7 -'!$E32 -> 144.7925097 | H32: 0 | I32: =H32/'- 3 -'!$D32*100 -> 0
A33: PRAIRIE SPIRIT | B33: 205629 | C33: =B33/'- 3 -'!$D33*100 -> 0.6890508243 | D33: =B33/'- 7 -'!$E33 -> 102.4559043 | E33: 411228 | F33: =E33/'- 3 -'!$D33*100 -> 1.37800112 | G33: =E33/'- 7 -'!$E33 -> 204.896861 | H33: 0 | I33: =H33/'- 3 -'!$D33*100 -> 0
A34: RED RIVER VALLEY | B34: 231610 | C34: =B34/'- 3 -'!$D34*100 -> 0.7072145719 | D34: =B34/'- 7 -'!$E34 -> 106.7710974 | E34: 621884 | F34: =E34/'- 3 -'!$D34*100 -> 1.898905172 | G34: =E34/'- 7 -'!$E34 -> 286.6855367 | H34: 695148 | I34: =H34/'- 3 -'!$D34*100 -> 2.12261472
A35: RIVER EAST TRANSCONA | B35: 1018703 | C35: =B35/'- 3 -'!$D35*100 -> 0.4806366356 | D35: =B35/'- 7 -'!$E35 -> 63.31673814 | E35: 3783155 | F35: =E35/'- 3 -'!$D35*100 -> 1.784939174 | G35: =E35/'- 7 -'!$E35 -> 235.1392256 | H35: 2209130 | I35: =H35/'- 3 -'!$D35*100 -> 1.042294772
A36: ROLLING RIVER | B36: 161917 | C36: =B36/'- 3 -'!$D36*100 -> 0.6429210056 | D36: =B36/'- 7 -'!$E36 -> 94.68830409 | E36: 467520 | F36: =E36/'- 3 -'!$D36*100 -> 1.856373503 | G36: =E36/'- 7 -'!$E36 -> 273.4035088 | H36: 0 | I36: =H36/'- 3 -'!$D36*100 -> 0
A37: SEINE RIVER | B37: 229706 | C37: =B37/'- 3 -'!$D37*100 -> 0.4109033991 | D37: =B37/'- 7 -'!$E37 -> 53.27504233 | E37: 989872 | F37: =E37/'- 3 -'!$D37*100 -> 1.7707059 | G37: =E37/'- 7 -'!$E37 -> 229.5781246 | H37: 0 | I37: =H37/'- 3 -'!$D37*100 -> 0
A38: SEVEN OAKS | B38: 651406 | C38: =B38/'- 3 -'!$D38*100 -> 0.4155342707 | D38: =B38/'- 7 -'!$E38 -> 58.34932237 | E38: 2043642 | F38: =E38/'- 3 -'!$D38*100 -> 1.303646709 | G38: =E38/'- 7 -'!$E38 -> 183.0580711 | H38: 367840 | I38: =H38/'- 3 -'!$D38*100 -> 0.2346464818
A39: SOUTHWEST HORIZON | B39: 221023 | C39: =B39/'- 3 -'!$D39*100 -> 0.9428191086 | D39: =B39/'- 7 -'!$E39 -> 146.9274746 | E39: 276540 | F39: =E39/'- 3 -'!$D39*100 -> 1.179638301 | G39: =E39/'- 7 -'!$E39 -> 183.833012 | H39: 0 | I39: =H39/'- 3 -'!$D39*100 -> 0
A40: ST. JAMES-ASSINIBOIA | B40: 198255 | C40: =B40/'- 3 -'!$D40*100 -> 0.1748389705 | D40: =B40/'- 7 -'!$E40 -> 24.89814936 | E40: 3102809 | F40: =E40/'- 3 -'!$D40*100 -> 2.736334172 | G40: =E40/'- 7 -'!$E40 -> 389.670888 | H40: 423374 | I40: =H40/'- 3 -'!$D40*100 -> 0.3733690162
A41: SUNRISE | B41: 391221 | C41: =B41/'- 3 -'!$D41*100 -> 0.5618185999 | D41: =B41/'- 7 -'!$E41 -> 90.27829699 | E41: 2039629 | F41: =E41/'- 3 -'!$D41*100 -> 2.929038853 | G41: =E41/'- 7 -'!$E41 -> 470.6655129 | H41: 499910 | I41: =H41/'- 3 -'!$D41*100 -> 0.7179030172
A42: SWAN VALLEY | B42: 164372 | C42: =B42/'- 3 -'!$D42*100 -> 0.755826187 | D42: =B42/'- 7 -'!$E42 -> 126.5373364 | E42: 381565 | F42: =E42/'- 3 -'!$D42*100 -> 1.754537385 | G42: =E42/'- 7 -'!$E42 -> 293.7374904 | H42: 0 | I42: =H42/'- 3 -'!$D42*100 -> 0
A43: TURTLE MOUNTAIN | B43: 109770 | C43: =B43/'- 3 -'!$D43*100 -> 0.7919651717 | D43: =B43/'- 7 -'!$E43 -> 108.1477833 | E43: 315521 | F43: =E43/'- 3 -'!$D43*100 -> 2.276411068 | G43: =E43/'- 7 -'!$E43 -> 310.8581281 | H43: 0 | I43: =H43/'- 3 -'!$D43*100 -> 0
A44: TURTLE RIVER | B44: 87152 | C44: =B44/'- 3 -'!$D44*100 -> 0.7703924341 | D44: =B44/'- 7 -'!$E44 -> 134.4938272 | E44: 164009 | F44: =E44/'- 3 -'!$D44*100 -> 1.449780759 | G44: =E44/'- 7 -'!$E44 -> 253.1003086 | H44: 763159 | I44: =H44/'- 3 -'!$D44*100 -> 6.746051951
A45: WESTERN | B45: 149958 | C45: =B45/'- 3 -'!$D45*100 -> 0.6578546196 | D45: =B45/'- 7 -'!$E45 -> 83.40266963 | E45: 285439 | F45: =E45/'- 3 -'!$D45*100 -> 1.252199714 | G45: =E45/'- 7 -'!$E45 -> 158.7536151 | H45: 211354 | I45: =H45/'- 3 -'!$D45*100 -> 0.9271943162
A46: WINNIPEG | B46: 803414 | C46: =B46/'- 3 -'!$D46*100 -> 0.1860442459 | D46: =B46/'- 7 -'!$E46 -> 27.49045344 | E46: 14418618 | F46: =E46/'- 3 -'!$D46*100 -> 3.338877482 | G46: =E46/'- 7 -'!$E46 -> 493.3625091 | H46: 32981231 | I46: =H46/'- 3 -'!$D46*100 -> 7.637367847
A48: PROVINCE | B48: =SUM(B11:B46) -> 9897664 | C48: =B48/'- 3 -'!$D48*100 -> 0.3849725373 | D48: =B48/'- 7 -'!$E48 -> 55.44211885 | E48: =SUM(E11:E46) -> 54426869 | F48: =E48/'- 3 -'!$D48*100 -> 2.116948995 | G48: =E48/'- 7 -'!$E48 -> 304.8740531 | H48: =SUM(H11:H46) -> 57680392 | I48: =H48/'- 3 -'!$D48*100 -> 2.243495724
A50: WHITESHELL | B50: 30576 | C50: =B50/'- 3 -'!$D50*100 -> 0.9019266825 | D50: =B50/'- 7 -'!$E50 -> 166.173913 | E50: 37251 | F50: =E50/'- 3 -'!$D50*100 -> 1.098824923 | G50: =E50/'- 7 -'!$E50 -> 202.451087 | H50: 0 | I50: =H50/'- 3 -'!$D50*100 -> 0
A51: MITT | B51: 0 | C51: =B51/'- 3 -'!$D51*100 -> 0 | D51: =B51/'- 7 -'!$E51 -> 0 | E51: 0 | F51: =E51/'- 3 -'!$D51*100 -> 0 | G51: =E51/'- 7 -'!$E51 -> 0 | H51: 0 | I51: =H51/'- 3 -'!$D51*100 -> 0
A53: (1) Separate reporting for Gifted Education has been removed from Function 200 beginning 2014/15. All costs related to gifted students are included in Function 100 – Regular Instruction. For a more complete description of programming under Function 100 see “Expense Definitions” on page iii.

Sheet - 22 -
C2: ANALYSIS OF EXPENSE BY PROGRAM | J2: PAGE 5 OF 16
C3: =OPYEAR -> OPERATING FUND 2020/2021 ACTUAL
B5: FUNCTION 200: STUDENT SUPPORT SERVICES
B6: REGULAR PLACEMENT (1) | E6: RESOURCE SERVICES | H6: COUNSELLING AND GUIDANCE
D8: PER PUPIL | G8: PER PUPIL | J8: PER PUPIL
A9: DIVISION / DISTRICT | B9: AMOUNT | C9: % | E9: AMOUNT | F9: % | H9: AMOUNT | I9: %
A11: BEAUTIFUL PLAINS | B11: 834159 | C11: =B11/'- 3 -'!$D11*100 -> 3.706084604 | D11: =B11/'- 7 -'!$E11 -> 438.5694006 | E11: 1135306 | F11: =E11/'- 3 -'!$D11*100 -> 5.04405046 | G11: =E11/'- 7 -'!$E11 -> 596.9011567 | H11: 303998 | I11: =H11/'- 3 -'!$D11*100 -> 1.350632562 | J11: =H11/'- 7 -'!$E11 -> 159.8307045
A12: BORDER LAND | B12: 2685535 | C12: =B12/'- 3 -'!$D12*100 -> 7.805013738 | D12: =B12/'- 7 -'!$E12 -> 1365.996267 | E12: 1383103 | F12: =E12/'- 3 -'!$D12*100 -> 4.019734584 | G12: =E12/'- 7 -'!$E12 -> 703.5147686 | H12: 496025 | I12: =H12/'- 3 -'!$D12*100 -> 1.441605468 | J12: =H12/'- 7 -'!$E12 -> 252.302911
A13: BRANDON | B13: 11688869 | C13: =B13/'- 3 -'!$D13*100 -> 10.37281756 | D13: =B13/'- 7 -'!$E13 -> 1374.918426 | E13: 4346916 | F13: =E13/'- 3 -'!$D13*100 -> 3.857496105 | G13: =E13/'- 7 -'!$E13 -> 511.3116509 | H13: 2853575 | I13: =H13/'- 3 -'!$D13*100 -> 2.532290582 | J13: =H13/'- 7 -'!$E13 -> 335.6554726
A14: DSFM | B14: 5959382 | C14: =B14/'- 3 -'!$D14*100 -> 5.802810904 | D14: =B14/'- 7 -'!$E14 -> 1005.477044 | E14: 3766629 | F14: =E14/'- 3 -'!$D14*100 -> 3.667668197 | G14: =E14/'- 7 -'!$E14 -> 635.5120366 | H14: 2156525 | I14: =H14/'- 3 -'!$D14*100 -> 2.099866527 | J14: =H14/'- 7 -'!$E14 -> 363.8525575
A15: EVERGREEN | B15: 1601756 | C15: =B15/'- 3 -'!$D15*100 -> 7.645307918 | D15: =B15/'- 7 -'!$E15 -> 1154.834895 | E15: 1000096 | F15: =E15/'- 3 -'!$D15*100 -> 4.77353721 | G15: =E15/'- 7 -'!$E15 -> 721.0497477 | H15: 516530 | I15: =H15/'- 3 -'!$D15*100 -> 2.465438493 | J15: =H15/'- 7 -'!$E15 -> 372.408075
A16: FLIN FLON | B16: 1084377 | C16: =B16/'- 3 -'!$D16*100 -> 6.839606932 | D16: =B16/'- 7 -'!$E16 -> 1165.245003 | E16: 852162 | F16: =E16/'- 3 -'!$D16*100 -> 5.374932448 | G16: =E16/'- 7 -'!$E16 -> 915.7124436 | H16: 239117 | I16: =H16/'- 3 -'!$D16*100 -> 1.508208207 | J16: =H16/'- 7 -'!$E16 -> 256.94928
A17: FORT LA BOSSE | B17: 1001214 | C17: =B17/'- 3 -'!$D17*100 -> 5.287631346 | D17: =B17/'- 7 -'!$E17 -> 688.8297214 | E17: 702631 | F17: =E17/'- 3 -'!$D17*100 -> 3.710748851 | G17: =E17/'- 7 -'!$E17 -> 483.4062607 | H17: 155501 | I17: =H17/'- 3 -'!$D17*100 -> 0.8212349827 | J17: =H17/'- 7 -'!$E17 -> 106.9838321
A18: FRONTIER | B18: 11021146 | C18: =B18/'- 3 -'!$D18*100 -> 7.713712283 | D18: =B18/'- 7 -'!$E18 -> 1873.07036 | E18: 3950232 | F18: =E18/'- 3 -'!$D18*100 -> 2.764771749 | G18: =E18/'- 7 -'!$E18 -> 671.3514616 | H18: 5272463 | I18: =H18/'- 3 -'!$D18*100 -> 3.690202689 | J18: =H18/'- 7 -'!$E18 -> 896.067811
A19: GARDEN VALLEY | B19: 3409739 | C19: =B19/'- 3 -'!$D19*100 -> 6.429851867 | D19: =B19/'- 7 -'!$E19 -> 780.2606407 | E19: 2902741 | F19: =E19/'- 3 -'!$D19*100 -> 5.473789823 | G19: =E19/'- 7 -'!$E19 -> 664.2427918 | H19: 1155236 | I19: =H19/'- 3 -'!$D19*100 -> 2.178464789 | J19: =H19/'- 7 -'!$E19 -> 264.3560641
A20: HANOVER | B20: 5138396 | C20: =B20/'- 3 -'!$D20*100 -> 5.330199498 | D20: =B20/'- 7 -'!$E20 -> 665.0784364 | E20: 4250476 | F20: =E20/'- 3 -'!$D20*100 -> 4.40913566 | G20: =E20/'- 7 -'!$E20 -> 550.1522133 | H20: 2359449 | I20: =H20/'- 3 -'!$D20*100 -> 2.447521342 | J20: =H20/'- 7 -'!$E20 -> 305.3907585
A21: INTERLAKE | B21: 2907754 | C21: =B21/'- 3 -'!$D21*100 -> 7.044166104 | D21: =B21/'- 7 -'!$E21 -> 1033.316986 | E21: 2439099 | F21: =E21/'- 3 -'!$D21*100 -> 5.908828085 | G21: =E21/'- 7 -'!$E21 -> 866.7729211 | H21: 1191007 | I21: =H21/'- 3 -'!$D21*100 -> 2.88526854 | J21: =H21/'- 7 -'!$E21 -> 423.2434257
A22: KELSEY | B22: 958953 | C22: =B22/'- 3 -'!$D22*100 -> 4.576094494 | D22: =B22/'- 7 -'!$E22 -> 683.5017819 | E22: 1417894 | F22: =E22/'- 3 -'!$D22*100 -> 6.766146961 | G22: =E22/'- 7 -'!$E22 -> 1010.615823 | H22: 714141 | I22: =H22/'- 3 -'!$D22*100 -> 3.40785909 | J22: =H22/'- 7 -'!$E22 -> 509.0099786
A23: LAKESHORE | B23: 1390989 | C23: =B23/'- 3 -'!$D23*100 -> 8.610669019 | D23: =B23/'- 7 -'!$E23 -> 1535.307947 | E23: 584634 | F23: =E23/'- 3 -'!$D23*100 -> 3.61907238 | G23: =E23/'- 7 -'!$E23 -> 645.2913907 | H23: 353353 | I23: =H23/'- 3 -'!$D23*100 -> 2.187368649 | J23: =H23/'- 7 -'!$E23 -> 390.0143488
A24: LORD SELKIRK | B24: 3250168 | C24: =B24/'- 3 -'!$D24*100 -> 5.363268306 | D24: =B24/'- 7 -'!$E24 -> 897.2663777 | E24: 2718263 | F24: =E24/'- 3 -'!$D24*100 -> 4.485544685 | G24: =E24/'- 7 -'!$E24 -> 750.4245921 | H24: 1567294 | I24: =H24/'- 3 -'!$D24*100 -> 2.586271921 | J24: =H24/'- 7 -'!$E24 -> 432.6792369
A25: LOUIS RIEL | B25: 13915777 | C25: =B25/'- 3 -'!$D25*100 -> 6.934140352 | D25: =B25/'- 7 -'!$E25 -> 918.1392142 | E25: 8602713 | F25: =E25/'- 3 -'!$D25*100 -> 4.28667543 | G25: =E25/'- 7 -'!$E25 -> 567.5923201 | H25: 3770556 | I25: =H25/'- 3 -'!$D25*100 -> 1.878843309 | J25: =H25/'- 7 -'!$E25 -> 248.7748491
A26: MOUNTAIN VIEW | B26: 2105253 | C26: =B26/'- 3 -'!$D26*100 -> 4.917348833 | D26: =B26/'- 7 -'!$E26 -> 711.3542828 | E26: 1964418 | F26: =E26/'- 3 -'!$D26*100 -> 4.588393205 | G26: =E26/'- 7 -'!$E26 -> 663.7668525 | H26: 1228919 | I26: =H26/'- 3 -'!$D26*100 -> 2.87044997 | J26: =H26/'- 7 -'!$E26 -> 415.2454807
A27: MYSTERY LAKE | B27: 1719003 | C27: =B27/'- 3 -'!$D27*100 -> 3.965617808 | D27: =B27/'- 7 -'!$E27 -> 569.8100636 | E27: 2382381 | F27: =E27/'- 3 -'!$D27*100 -> 5.495983729 | G27: =E27/'- 7 -'!$E27 -> 789.7046539 | H27: 1408103 | I27: =H27/'- 3 -'!$D27*100 -> 3.248393593 | J27: =H27/'- 7 -'!$E27 -> 466.7538451
A28: PARK WEST | B28: 1070150 | C28: =B28/'- 3 -'!$D28*100 -> 3.652266173 | D28: =B28/'- 7 -'!$E28 -> 554.1947178 | E28: 1393891 | F28: =E28/'- 3 -'!$D28*100 -> 4.75714708 | G28: =E28/'- 7 -'!$E28 -> 721.8493009 | H28: 462404 | I28: =H28/'- 3 -'!$D28*100 -> 1.578117542 | J28: =H28/'- 7 -'!$E28 -> 239.4634904
A29: PEMBINA TRAILS | B29: 12468913 | C29: =B29/'- 3 -'!$D29*100 -> 6.886604443 | D29: =B29/'- 7 -'!$E29 -> 846.1301946 | E29: 15019349 | F29: =E29/'- 3 -'!$D29*100 -> 8.295215113 | G29: =E29/'- 7 -'!$E29 -> 1019.200687 | H29: 3916115 | I29: =H29/'- 3 -'!$D29*100 -> 2.162877787 | J29: =H29/'- 7 -'!$E29 -> 265.7443473
A30: PINE CREEK | B30: 466294 | C30: =B30/'- 3 -'!$D30*100 -> 2.814636224 | D30: =B30/'- 7 -'!$E30 -> 446.2143541 | E30: 632354 | F30: =E30/'- 3 -'!$D30*100 -> 3.817004883 | G30: =E30/'- 7 -'!$E30 -> 605.123445 | H30: 356423 | I30: =H30/'- 3 -'!$D30*100 -> 2.151434689 | J30: =H30/'- 7 -'!$E30 -> 341.0746411
A31: PORTAGE LA PRAIRIE | B31: 2856521 | C31: =B31/'- 3 -'!$D31*100 -> 6.484801759 | D31: =B31/'- 7 -'!$E31 -> 859.1040602 | E31: 1638722 | F31: =E31/'- 3 -'!$D31*100 -> 3.720185256 | G31: =E31/'- 7 -'!$E31 -> 492.8487218 | H31: 1227879 | I31: =H31/'- 3 -'!$D31*100 -> 2.787499864 | J31: =H31/'- 7 -'!$E31 -> 369.2869173
A32: PRAIRIE ROSE | B32: 1030840 | C32: =B32/'- 3 -'!$D32*100 -> 3.084042768 | D32: =B32/'- 7 -'!$E32 -> 443.7537667 | E32: 2409638 | F32: =E32/'- 3 -'!$D32*100 -> 7.209098064 | G32: =E32/'- 7 -'!$E32 -> 1037.295738 | H32: 704177 | I32: =H32/'- 3 -'!$D32*100 -> 2.106740119 | J32: =H32/'- 7 -'!$E32 -> 303.1325872
A33: PRAIRIE SPIRIT | B33: 1892242 | C33: =B33/'- 3 -'!$D33*100 -> 6.340792932 | D33: =B33/'- 7 -'!$E33 -> 942.8211261 | E33: 1333878 | F33: =E33/'- 3 -'!$D33*100 -> 4.46974763 | G33: =E33/'- 7 -'!$E33 -> 664.612855 | H33: 503194 | I33: =H33/'- 3 -'!$D33*100 -> 1.68617384 | J33: =H33/'- 7 -'!$E33 -> 250.7194818
A34: RED RIVER VALLEY | B34: 1319462 | C34: =B34/'- 3 -'!$D34*100 -> 4.028939827 | D34: =B34/'- 7 -'!$E34 -> 608.2656439 | E34: 1643656 | F34: =E34/'- 3 -'!$D34*100 -> 5.01885702 | G34: =E34/'- 7 -'!$E34 -> 757.7175206 | H34: 954839 | I34: =H34/'- 3 -'!$D34*100 -> 2.915573829 | J34: =H34/'- 7 -'!$E34 -> 440.1761924
A35: RIVER EAST TRANSCONA | B35: 18580728 | C35: =B35/'- 3 -'!$D35*100 -> 8.766616564 | D35: =B35/'- 7 -'!$E35 -> 1154.871527 | E35: 10219752 | F35: =E35/'- 3 -'!$D35*100 -> 4.821804999 | G35: =E35/'- 7 -'!$E35 -> 635.2011934 | H35: 4455104 | I35: =H35/'- 3 -'!$D35*100 -> 2.101972997 | J35: =H35/'- 7 -'!$E35 -> 276.903723
A36: ROLLING RIVER | B36: 650520 | C36: =B36/'- 3 -'!$D36*100 -> 2.583008409 | D36: =B36/'- 7 -'!$E36 -> 380.4210526 | E36: 1339935 | F36: =E36/'- 3 -'!$D36*100 -> 5.320456516 | G36: =E36/'- 7 -'!$E36 -> 783.5877193 | H36: 442934 | I36: =H36/'- 3 -'!$D36*100 -> 1.758750302 | J36: =H36/'- 7 -'!$E36 -> 259.025731
A37: SEINE RIVER | B37: 4934898 | C37: =B37/'- 3 -'!$D37*100 -> 8.827659541 | D37: =B37/'- 7 -'!$E37 -> 1144.536494 | E37: 3028648 | F37: =E37/'- 3 -'!$D37*100 -> 5.417715506 | G37: =E37/'- 7 -'!$E37 -> 702.4254934 | H37: 1775803 | I37: =H37/'- 3 -'!$D37*100 -> 3.176597428 | J37: =H37/'- 7 -'!$E37 -> 411.8568082
A38: SEVEN OAKS | B38: 15474431 | C38: =B38/'- 3 -'!$D38*100 -> 9.871196152 | D38: =B38/'- 7 -'!$E38 -> 1386.113365 | E38: 6135937 | F38: =E38/'- 3 -'!$D38*100 -> 3.914136662 | G38: =E38/'- 7 -'!$E38 -> 549.6230708 | H38: 3332958 | I38: =H38/'- 3 -'!$D38*100 -> 2.126106103 | J38: =H38/'- 7 -'!$E38 -> 298.5478193
A39: SOUTHWEST HORIZON | B39: 1638670 | C39: =B39/'- 3 -'!$D39*100 -> 6.990084239 | D39: =B39/'- 7 -'!$E39 -> 1089.323938 | E39: 832512 | F39: =E39/'- 3 -'!$D39*100 -> 3.551251326 | G39: =E39/'- 7 -'!$E39 -> 553.421525 | H39: 444523 | I39: =H39/'- 3 -'!$D39*100 -> 1.896204371 | J39: =H39/'- 7 -'!$E39 -> 295.5015622
A40: ST. JAMES-ASSINIBOIA | B40: 12026143 | C40: =B40/'- 3 -'!$D40*100 -> 10.60572728 | D40: =B40/'- 7 -'!$E40 -> 1510.321074 | E40: 6232439 | F40: =E40/'- 3 -'!$D40*100 -> 5.496321498 | G40: =E40/'- 7 -'!$E40 -> 782.7101313 | H40: 3183150 | I40: =H40/'- 3 -'!$D40*100 -> 2.807186044 | J40: =H40/'- 7 -'!$E40 -> 399.7606322
A41: SUNRISE | B41: 4959396 | C41: =B41/'- 3 -'!$D41*100 -> 7.122012666 | D41: =B41/'- 7 -'!$E41 -> 1144.431983 | E41: 4499502 | F41: =E41/'- 3 -'!$D41*100 -> 6.461575207 | G41: =E41/'- 7 -'!$E41 -> 1038.306681 | H41: 1150113 | I41: =H41/'- 3 -'!$D41*100 -> 1.65163648 | J41: =H41/'- 7 -'!$E41 -> 265.4004846
A42: SWAN VALLEY | B42: 2022317 | C42: =B42/'- 3 -'!$D42*100 -> 9.299151602 | D42: =B42/'- 7 -'!$E42 -> 1556.82602 | E42: 842617 | F42: =E42/'- 3 -'!$D42*100 -> 3.874577143 | G42: =E42/'- 7 -'!$E42 -> 648.6658968 | H42: 431772 | I42: =H42/'- 3 -'!$D42*100 -> 1.985402529 | J42: =H42/'- 7 -'!$E42 -> 332.3879908
A43: TURTLE MOUNTAIN | B43: 238860 | C43: =B43/'- 3 -'!$D43*100 -> 1.723319677 | D43: =B43/'- 7 -'!$E43 -> 235.3300493 | E43: 1514202 | F43: =E43/'- 3 -'!$D43*100 -> 10.92461735 | G43: =E43/'- 7 -'!$E43 -> 1491.824631 | H43: 247082 | I43: =H43/'- 3 -'!$D43*100 -> 1.782639506 | J43: =H43/'- 7 -'!$E43 -> 243.4305419
A44: TURTLE RIVER | B44: 0 | C44: =B44/'- 3 -'!$D44*100 -> 0 | D44: =B44/'- 7 -'!$E44 -> 0 | E44: 361494 | F44: =E44/'- 3 -'!$D44*100 -> 3.195477357 | G44: =E44/'- 7 -'!$E44 -> 557.8611111 | H44: 56008 | I44: =H44/'- 3 -'!$D44*100 -> 0.4950906399 | J44: =H44/'- 7 -'!$E44 -> 86.43209877
A45: WESTERN | B45: 838838 | C45: =B45/'- 3 -'!$D45*100 -> 3.679920067 | D45: =B45/'- 7 -'!$E45 -> 466.5394883 | E45: 1094466 | F45: =E45/'- 3 -'!$D45*100 -> 4.801341136 | G45: =E45/'- 7 -'!$E45 -> 608.7130145 | H45: 540651 | I45: =H45/'- 3 -'!$D45*100 -> 2.371795822 | J45: =H45/'- 7 -'!$E45 -> 300.6957731
A46: WINNIPEG | B46: 20185678 | C46: =B46/'- 3 -'!$D46*100 -> 4.674338812 | D46: =B46/'- 7 -'!$E46 -> 690.6942639 | E46: 18485853 | F46: =E46/'- 3 -'!$D46*100 -> 4.280715275 | G46: =E46/'- 7 -'!$E46 -> 632.5312744 | H46: 6303042 | I46: =H46/'- 3 -'!$D46*100 -> 1.459577125 | J46: =H46/'- 7 -'!$E46 -> 215.6714753
A48: PROVINCE | B48: =SUM(B11:B46) -> 173327371 | C48: =B48/'- 3 -'!$D48*100 -> 6.741618811 | D48: =B48/'- 7 -'!$E48 -> 970.8994672 | E48: =SUM(E11:E46) -> 123058539 | F48: =E48/'- 3 -'!$D48*100 -> 4.786397881 | G48: =E48/'- 7 -'!$E48 -> 689.316807 | H48: =SUM(H11:H46) -> 56229963 | I48: =H48/'- 3 -'!$D48*100 -> 2.187080864 | J48: =H48/'- 7 -'!$E48 -> 314.9741486
A50: WHITESHELL | B50: 218176 | C50: =B50/'- 3 -'!$D50*100 -> 6.435725925 | D50: =B50/'- 7 -'!$E50 -> 1185.73913 | E50: 58630 | F50: =E50/'- 3 -'!$D50*100 -> 1.729459753 | G50: =E50/'- 7 -'!$E50 -> 318.6413043 | H50: 58630 | I50: =H50/'- 3 -'!$D50*100 -> 1.729459753 | J50: =H50/'- 7 -'!$E50 -> 318.6413043
A51: MITT | B51: 3683 | C51: =B51/'- 3 -'!$D51*100 -> 0.01182994469 | D51: =B51/'- 7 -'!$E51 -> 2.075982188 | E51: 0 | F51: =E51/'- 3 -'!$D51*100 -> 0 | G51: =E51/'- 7 -'!$E51 -> 0 | H51: 1121769 | I51: =H51/'- 3 -'!$D51*100 -> 3.603167316 | J51: =H51/'- 7 -'!$E51 -> 632.3031396
A53: (1) Expenses shown are extra costs associated with special needs students in regular classes, not the total cost of educating those students.

Sheet - 23 -
B2: ANALYSIS OF EXPENSE BY PROGRAM | F2: PAGE 6 OF 16
B3: =OPYEAR -> OPERATING FUND 2020/2021 ACTUAL
B5: FUNCTION 300: ADULT LEARNING CENTRES
B6: ADMINISTRATION AND OTHER
D7: INSTRUCTION
A9: DIVISION / DISTRICT | B9: AMOUNT | C9: % | D9: AMOUNT | E9: %
A11: BEAUTIFUL PLAINS | B11: 0 | C11: =B11/'- 3 -'!$D11*100 -> 0 | D11: 0 | E11: =D11/'- 3 -'!$D11*100 -> 0
A12: BORDER LAND | B12: 139429 | C12: =B12/'- 3 -'!$D12*100 -> 0.4052247543 | D12: 383134 | E12: =D12/'- 3 -'!$D12*100 -> 1.113508531
A13: BRANDON | B13: 0 | C13: =B13/'- 3 -'!$D13*100 -> 0 | D13: 0 | E13: =D13/'- 3 -'!$D13*100 -> 0
A14: DSFM | B14: 106462 | C14: =B14/'- 3 -'!$D14*100 -> 0.1036649194 | D14: 180026 | E14: =D14/'- 3 -'!$D14*100 -> 0.1752961693
A15: EVERGREEN | B15: 0 | C15: =B15/'- 3 -'!$D15*100 -> 0 | D15: 0 | E15: =D15/'- 3 -'!$D15*100 -> 0
A16: FLIN FLON | B16: 22701 | C16: =B16/'- 3 -'!$D16*100 -> 0.1431844432 | D16: 75349 | E16: =D16/'- 3 -'!$D16*100 -> 0.4752567998
A17: FORT LA BOSSE | B17: 0 | C17: =B17/'- 3 -'!$D17*100 -> 0 | D17: 0 | E17: =D17/'- 3 -'!$D17*100 -> 0
A18: FRONTIER | B18: 224031 | C18: =B18/'- 3 -'!$D18*100 -> 0.1567995449 | D18: 1975679 | E18: =D18/'- 3 -'!$D18*100 -> 1.382779919
A19: GARDEN VALLEY | B19: 0 | C19: =B19/'- 3 -'!$D19*100 -> 0 | D19: 0 | E19: =D19/'- 3 -'!$D19*100 -> 0
A20: HANOVER | B20: 0 | C20: =B20/'- 3 -'!$D20*100 -> 0 | D20: 0 | E20: =D20/'- 3 -'!$D20*100 -> 0
A21: INTERLAKE | B21: 0 | C21: =B21/'- 3 -'!$D21*100 -> 0 | D21: 0 | E21: =D21/'- 3 -'!$D21*100 -> 0
A22: KELSEY | B22: 169879 | C22: =B22/'- 3 -'!$D22*100 -> 0.8106574113 | D22: 473265 | E22: =D22/'- 3 -'!$D22*100 -> 2.258406158
A23: LAKESHORE | B23: 68002 | C23: =B23/'- 3 -'!$D23*100 -> 0.420954238 | D23: 210013 | E23: =D23/'- 3 -'!$D23*100 -> 1.300047975
A24: LORD SELKIRK | B24: 112349 | C24: =B24/'- 3 -'!$D24*100 -> 0.1853928261 | D24: 235683 | E24: =D24/'- 3 -'!$D24*100 -> 0.3889125621
A25: LOUIS RIEL | B25: 45875 | C25: =B25/'- 3 -'!$D25*100 -> 0.02285921143 | D25: 839279 | E25: =D25/'- 3 -'!$D25*100 -> 0.4182072176
A26: MOUNTAIN VIEW | B26: 0 | C26: =B26/'- 3 -'!$D26*100 -> 0 | D26: 0 | E26: =D26/'- 3 -'!$D26*100 -> 0
A27: MYSTERY LAKE | B27: 0 | C27: =B27/'- 3 -'!$D27*100 -> 0 | D27: 0 | E27: =D27/'- 3 -'!$D27*100 -> 0
A28: PARK WEST | B28: 0 | C28: =B28/'- 3 -'!$D28*100 -> 0 | D28: 60385 | E28: =D28/'- 3 -'!$D28*100 -> 0.206085215
A29: PEMBINA TRAILS | B29: 0 | C29: =B29/'- 3 -'!$D29*100 -> 0 | D29: 0 | E29: =D29/'- 3 -'!$D29*100 -> 0
A30: PINE CREEK | B30: 0 | C30: =B30/'- 3 -'!$D30*100 -> 0 | D30: 0 | E30: =D30/'- 3 -'!$D30*100 -> 0
A31: PORTAGE LA PRAIRIE | B31: 0 | C31: =B31/'- 3 -'!$D31*100 -> 0 | D31: 0 | E31: =D31/'- 3 -'!$D31*100 -> 0
A32: PRAIRIE ROSE | B32: 78538 | C32: =B32/'- 3 -'!$D32*100 -> 0.2349681337 | D32: 212126 | E32: =D32/'- 3 -'!$D32*100 -> 0.6346335574
A33: PRAIRIE SPIRIT | B33: 0 | C33: =B33/'- 3 -'!$D33*100 -> 0 | D33: 0 | E33: =D33/'- 3 -'!$D33*100 -> 0
A34: RED RIVER VALLEY | B34: 0 | C34: =B34/'- 3 -'!$D34*100 -> 0 | D34: 0 | E34: =D34/'- 3 -'!$D34*100 -> 0
A35: RIVER EAST TRANSCONA | B35: 323531 | C35: =B35/'- 3 -'!$D35*100 -> 0.1526459148 | D35: 1242568 | E35: =D35/'- 3 -'!$D35*100 -> 0.5862589028
A36: ROLLING RIVER | B36: 32489 | C36: =B36/'- 3 -'!$D36*100 -> 0.1290035052 | D36: 89068 | E36: =D36/'- 3 -'!$D36*100 -> 0.3536607529
A37: SEINE RIVER | B37: 119379 | C37: =B37/'- 3 -'!$D37*100 -> 0.2135479129 | D37: 212288 | E37: =D37/'- 3 -'!$D37*100 -> 0.3797456784
A38: SEVEN OAKS | B38: 837137 | C38: =B38/'- 3 -'!$D38*100 -> 0.5340127552 | D38: 1447425 | E38: =D38/'- 3 -'!$D38*100 -> 0.9233177032
A39: SOUTHWEST HORIZON | B39: 0 | C39: =B39/'- 3 -'!$D39*100 -> 0 | D39: 0 | E39: =D39/'- 3 -'!$D39*100 -> 0
A40: ST. JAMES-ASSINIBOIA | B40: 0 | C40: =B40/'- 3 -'!$D40*100 -> 0 | D40: 0 | E40: =D40/'- 3 -'!$D40*100 -> 0
A41: SUNRISE | B41: 382571 | C41: =B41/'- 3 -'!$D41*100 -> 0.5493966418 | D41: 627560 | E41: =D41/'- 3 -'!$D41*100 -> 0.901216654
A42: SWAN VALLEY | B42: 0 | C42: =B42/'- 3 -'!$D42*100 -> 0 | D42: 0 | E42: =D42/'- 3 -'!$D42*100 -> 0
A43: TURTLE MOUNTAIN | B43: 0 | C43: =B43/'- 3 -'!$D43*100 -> 0 | D43: 214848 | E43: =D43/'- 3 -'!$D43*100 -> 1.550078648
A44: TURTLE RIVER | B44: 0 | C44: =B44/'- 3 -'!$D44*100 -> 0 | D44: 0 | E44: =D44/'- 3 -'!$D44*100 -> 0
A45: WESTERN | B45: 180121 | C45: =B45/'- 3 -'!$D45*100 -> 0.7901774626 | D45: 167405 | E45: =D45/'- 3 -'!$D45*100 -> 0.734393314
A46: WINNIPEG | B46: 86563 | C46: =B46/'- 3 -'!$D46*100 -> 0.02004514243 | D46: 727349 | E46: =D46/'- 3 -'!$D46*100 -> 0.1684300949
A48: PROVINCE | B48: =SUM(B11:B46) -> 2929057 | C48: =B48/'- 3 -'!$D48*100 -> 0.1139265291 | D48: =SUM(D11:D46) -> 9373450 | E48: =D48/'- 3 -'!$D48*100 -> 0.3645830804
A50: WHITESHELL | B50: 0 | C50: =B50/'- 3 -'!$D50*100 -> 0 | D50: 0 | E50: =D50/'- 3 -'!$D50*100 -> 0
A51: MITT | B51: 997342 | C51: =B51/'- 3 -'!$D51*100 -> 3.203502769 | D51: 1492959 | E51: =D51/'- 3 -'!$D51*100 -> 4.795444582

Sheet - 24 -
B2: ANALYSIS OF EXPENSE BY PROGRAM | I2: PAGE 7 OF 16
B3: =OPYEAR -> OPERATING FUND 2020/2021 ACTUAL
B5: FUNCTION 400: COMMUNITY EDUCATION AND SERVICES
D6: ENGLISH AS AN ADDITIONAL LANGUAGE FOR ADULTS
B7: CONTINUING EDUCATION | F7: COMMUNITY SERVICES & RECREATION | H7: PRE-KINDERGARTEN EDUCATION
A9: DIVISION / DISTRICT | B9: AMOUNT | C9: % | D9: AMOUNT | E9: % | F9: AMOUNT | G9: % | H9: AMOUNT | I9: %
A11: BEAUTIFUL PLAINS | B11: 0 | C11: =B11/'- 3 -'!$D11*100 -> 0 | D11: 0 | E11: =D11/'- 3 -'!$D11*100 -> 0 | F11: 0 | G11: =F11/'- 3 -'!$D11*100 -> 0 | H11: 11803 | I11: =H11/'- 3 -'!$D11*100 -> 0.0524395428
A12: BORDER LAND | B12: 0 | C12: =B12/'- 3 -'!$D12*100 -> 0 | D12: 0 | E12: =D12/'- 3 -'!$D12*100 -> 0 | F12: 0 | G12: =F12/'- 3 -'!$D12*100 -> 0 | H12: 57163 | I12: =H12/'- 3 -'!$D12*100 -> 0.16613375
A13: BRANDON | B13: 0 | C13: =B13/'- 3 -'!$D13*100 -> 0 | D13: 0 | E13: =D13/'- 3 -'!$D13*100 -> 0 | F13: 148605 | G13: =F13/'- 3 -'!$D13*100 -> 0.1318735418 | H13: 183382 | I13: =H13/'- 3 -'!$D13*100 -> 0.1627349943
A14: DSFM | B14: 0 | C14: =B14/'- 3 -'!$D14*100 -> 0 | D14: 0 | E14: =D14/'- 3 -'!$D14*100 -> 0 | F14: 0 | G14: =F14/'- 3 -'!$D14*100 -> 0 | H14: 1306980 | I14: =H14/'- 3 -'!$D14*100 -> 1.272641659
A15: EVERGREEN | B15: 0 | C15: =B15/'- 3 -'!$D15*100 -> 0 | D15: 0 | E15: =D15/'- 3 -'!$D15*100 -> 0 | F15: 0 | G15: =F15/'- 3 -'!$D15*100 -> 0 | H15: 0 | I15: =H15/'- 3 -'!$D15*100 -> 0
A16: FLIN FLON | B16: 0 | C16: =B16/'- 3 -'!$D16*100 -> 0 | D16: 0 | E16: =D16/'- 3 -'!$D16*100 -> 0 | F16: 0 | G16: =F16/'- 3 -'!$D16*100 -> 0 | H16: 13877 | I16: =H16/'- 3 -'!$D16*100 -> 0.08752788505
A17: FORT LA BOSSE | B17: 0 | C17: =B17/'- 3 -'!$D17*100 -> 0 | D17: 0 | E17: =D17/'- 3 -'!$D17*100 -> 0 | F17: 82047 | G17: =F17/'- 3 -'!$D17*100 -> 0.4333082528 | H17: 204183 | I17: =H17/'- 3 -'!$D17*100 -> 1.078335332
A18: FRONTIER | B18: 0 | C18: =B18/'- 3 -'!$D18*100 -> 0 | D18: 0 | E18: =D18/'- 3 -'!$D18*100 -> 0 | F18: 1047845 | G18: =F18/'- 3 -'!$D18*100 -> 0.7333878752 | H18: 1611520 | I18: =H18/'- 3 -'!$D18*100 -> 1.127904632
A19: GARDEN VALLEY | B19: 0 | C19: =B19/'- 3 -'!$D19*100 -> 0 | D19: 0 | E19: =D19/'- 3 -'!$D19*100 -> 0 | F19: 0 | G19: =F19/'- 3 -'!$D19*100 -> 0 | H19: 78785 | I19: =H19/'- 3 -'!$D19*100 -> 0.1485673476
A20: HANOVER | B20: 0 | C20: =B20/'- 3 -'!$D20*100 -> 0 | D20: 0 | E20: =D20/'- 3 -'!$D20*100 -> 0 | F20: 0 | G20: =F20/'- 3 -'!$D20*100 -> 0 | H20: 36470 | I20: =H20/'- 3 -'!$D20*100 -> 0.03783133407
A21: INTERLAKE | B21: 0 | C21: =B21/'- 3 -'!$D21*100 -> 0 | D21: 0 | E21: =D21/'- 3 -'!$D21*100 -> 0 | F21: 0 | G21: =F21/'- 3 -'!$D21*100 -> 0 | H21: 0 | I21: =H21/'- 3 -'!$D21*100 -> 0
A22: KELSEY | B22: 0 | C22: =B22/'- 3 -'!$D22*100 -> 0 | D22: 0 | E22: =D22/'- 3 -'!$D22*100 -> 0 | F22: 45509 | G22: =F22/'- 3 -'!$D22*100 -> 0.2171675612 | H22: 0 | I22: =H22/'- 3 -'!$D22*100 -> 0
A23: LAKESHORE | B23: 99738 | C23: =B23/'- 3 -'!$D23*100 -> 0.617410279 | D23: 0 | E23: =D23/'- 3 -'!$D23*100 -> 0 | F23: 63277 | G23: =F23/'- 3 -'!$D23*100 -> 0.3917049693 | H23: 34896 | I23: =H23/'- 3 -'!$D23*100 -> 0.2160174567
A24: LORD SELKIRK | B24: 101900 | C24: =B24/'- 3 -'!$D24*100 -> 0.1681503973 | D24: 0 | E24: =D24/'- 3 -'!$D24*100 -> 0 | F24: 4043 | G24: =F24/'- 3 -'!$D24*100 -> 0.006671560905 | H24: 0 | I24: =H24/'- 3 -'!$D24*100 -> 0
A25: LOUIS RIEL | B25: 16769 | C25: =B25/'- 3 -'!$D25*100 -> 0.008355882648 | D25: 222325 | E25: =D25/'- 3 -'!$D25*100 -> 0.1107830884 | F25: 948463 | G25: =F25/'- 3 -'!$D25*100 -> 0.4726128883 | H25: 1012476 | I25: =H25/'- 3 -'!$D25*100 -> 0.5045101461
A26: MOUNTAIN VIEW | B26: 0 | C26: =B26/'- 3 -'!$D26*100 -> 0 | D26: 0 | E26: =D26/'- 3 -'!$D26*100 -> 0 | F26: 0 | G26: =F26/'- 3 -'!$D26*100 -> 0 | H26: 99361 | I26: =H26/'- 3 -'!$D26*100 -> 0.2320826511
A27: MYSTERY LAKE | B27: 0 | C27: =B27/'- 3 -'!$D27*100 -> 0 | D27: 0 | E27: =D27/'- 3 -'!$D27*100 -> 0 | F27: 0 | G27: =F27/'- 3 -'!$D27*100 -> 0 | H27: 57011 | I27: =H27/'- 3 -'!$D27*100 -> 0.1315203271
A28: PARK WEST | B28: 0 | C28: =B28/'- 3 -'!$D28*100 -> 0 | D28: 0 | E28: =D28/'- 3 -'!$D28*100 -> 0 | F28: 0 | G28: =F28/'- 3 -'!$D28*100 -> 0 | H28: 96142 | I28: =H28/'- 3 -'!$D28*100 -> 0.328118651
A29: PEMBINA TRAILS | B29: 0 | C29: =B29/'- 3 -'!$D29*100 -> 0 | D29: 0 | E29: =D29/'- 3 -'!$D29*100 -> 0 | F29: 187364 | G29: =F29/'- 3 -'!$D29*100 -> 0.1034814947 | H29: 97613 | I29: =H29/'- 3 -'!$D29*100 -> 0.05391184616
A30: PINE CREEK | B30: 0 | C30: =B30/'- 3 -'!$D30*100 -> 0 | D30: 0 | E30: =D30/'- 3 -'!$D30*100 -> 0 | F30: 0 | G30: =F30/'- 3 -'!$D30*100 -> 0 | H30: 10868 | I30: =H30/'- 3 -'!$D30*100 -> 0.06560124403
A31: PORTAGE LA PRAIRIE | B31: 0 | C31: =B31/'- 3 -'!$D31*100 -> 0 | D31: 0 | E31: =D31/'- 3 -'!$D31*100 -> 0 | F31: 0 | G31: =F31/'- 3 -'!$D31*100 -> 0 | H31: 54911 | I31: =H31/'- 3 -'!$D31*100 -> 0.124657564
A32: PRAIRIE ROSE | B32: 0 | C32: =B32/'- 3 -'!$D32*100 -> 0 | D32: 0 | E32: =D32/'- 3 -'!$D32*100 -> 0 | F32: 0 | G32: =F32/'- 3 -'!$D32*100 -> 0 | H32: 34000 | I32: =H32/'- 3 -'!$D32*100 -> 0.1017203971
A33: PRAIRIE SPIRIT | B33: 0 | C33: =B33/'- 3 -'!$D33*100 -> 0 | D33: 0 | E33: =D33/'- 3 -'!$D33*100 -> 0 | F33: 0 | G33: =F33/'- 3 -'!$D33*100 -> 0 | H33: 31367 | I33: =H33/'- 3 -'!$D33*100 -> 0.1051089934
A34: RED RIVER VALLEY | B34: 0 | C34: =B34/'- 3 -'!$D34*100 -> 0 | D34: 0 | E34: =D34/'- 3 -'!$D34*100 -> 0 | F34: 0 | G34: =F34/'- 3 -'!$D34*100 -> 0 | H34: 27366 | I34: =H34/'- 3 -'!$D34*100 -> 0.08356130553
A35: RIVER EAST TRANSCONA | B35: 33001 | C35: =B35/'- 3 -'!$D35*100 -> 0.01557027869 | D35: 218538 | E35: =D35/'- 3 -'!$D35*100 -> 0.1031089229 | F35: 517983 | G35: =F35/'- 3 -'!$D35*100 -> 0.2443907659 | H35: 299963 | I35: =H35/'- 3 -'!$D35*100 -> 0.1415262418
A36: ROLLING RIVER | B36: 0 | C36: =B36/'- 3 -'!$D36*100 -> 0 | D36: 0 | E36: =D36/'- 3 -'!$D36*100 -> 0 | F36: 0 | G36: =F36/'- 3 -'!$D36*100 -> 0 | H36: 18198 | I36: =H36/'- 3 -'!$D36*100 -> 0.07225848095
A37: SEINE RIVER | B37: 0 | C37: =B37/'- 3 -'!$D37*100 -> 0 | D37: 0 | E37: =D37/'- 3 -'!$D37*100 -> 0 | F37: 0 | G37: =F37/'- 3 -'!$D37*100 -> 0 | H37: 622237 | I37: =H37/'- 3 -'!$D37*100 -> 1.11307192
A38: SEVEN OAKS | B38: 235123 | C38: =B38/'- 3 -'!$D38*100 -> 0.149985822 | D38: 605171 | E38: =D38/'- 3 -'!$D38*100 -> 0.3860407951 | F38: 1743104 | G38: =F38/'- 3 -'!$D38*100 -> 1.111932419 | H38: 460503 | I38: =H38/'- 3 -'!$D38*100 -> 0.2937565486
A39: SOUTHWEST HORIZON | B39: 0 | C39: =B39/'- 3 -'!$D39*100 -> 0 | D39: 0 | E39: =D39/'- 3 -'!$D39*100 -> 0 | F39: 0 | G39: =F39/'- 3 -'!$D39*100 -> 0 | H39: 161470 | I39: =H39/'- 3 -'!$D39*100 -> 0.6887835269
A40: ST. JAMES-ASSINIBOIA | B40: 421855 | C40: =B40/'- 3 -'!$D40*100 -> 0.3720294263 | D40: 0 | E40: =D40/'- 3 -'!$D40*100 -> 0 | F40: 390825 | G40: =F40/'- 3 -'!$D40*100 -> 0.3446644002 | H40: 95948 | I40: =H40/'- 3 -'!$D40*100 -> 0.08461551812
A41: SUNRISE | B41: 0 | C41: =B41/'- 3 -'!$D41*100 -> 0 | D41: 0 | E41: =D41/'- 3 -'!$D41*100 -> 0 | F41: 0 | G41: =F41/'- 3 -'!$D41*100 -> 0 | H41: 256674 | I41: =H41/'- 3 -'!$D41*100 -> 0.3686004262
A42: SWAN VALLEY | B42: 0 | C42: =B42/'- 3 -'!$D42*100 -> 0 | D42: 0 | E42: =D42/'- 3 -'!$D42*100 -> 0 | F42: 0 | G42: =F42/'- 3 -'!$D42*100 -> 0 | H42: 2385 | I42: =H42/'- 3 -'!$D42*100 -> 0.01096686453
A43: TURTLE MOUNTAIN | B43: 0 | C43: =B43/'- 3 -'!$D43*100 -> 0 | D43: 0 | E43: =D43/'- 3 -'!$D43*100 -> 0 | F43: 0 | G43: =F43/'- 3 -'!$D43*100 -> 0 | H43: 11156 | I43: =H43/'- 3 -'!$D43*100 -> 0.08048796079
A44: TURTLE RIVER | B44: 0 | C44: =B44/'- 3 -'!$D44*100 -> 0 | D44: 0 | E44: =D44/'- 3 -'!$D44*100 -> 0 | F44: 0 | G44: =F44/'- 3 -'!$D44*100 -> 0 | H44: 18747 | I44: =H44/'- 3 -'!$D44*100 -> 0.1657167588
A45: WESTERN | B45: 0 | C45: =B45/'- 3 -'!$D45*100 -> 0 | D45: 0 | E45: =D45/'- 3 -'!$D45*100 -> 0 | F45: 1091 | G45: =F45/'- 3 -'!$D45*100 -> 0.004786136051 | H45: 74411 | I45: =H45/'- 3 -'!$D45*100 -> 0.3264355359
A46: WINNIPEG | B46: 0 | C46: =B46/'- 3 -'!$D46*100 -> 0 | D46: 3519393 | E46: =D46/'- 3 -'!$D46*100 -> 0.8149756126 | F46: 94717 | G46: =F46/'- 3 -'!$D46*100 -> 0.02193334052 | H46: 4905520 | I46: =H46/'- 3 -'!$D46*100 -> 1.135957015
A48: PROVINCE | B48: =SUM(B11:B46) -> 908386 | C48: =B48/'- 3 -'!$D48*100 -> 0.03533193926 | D48: =SUM(D11:D46) -> 4565427 | E48: =D48/'- 3 -'!$D48*100 -> 0.177573619 | F48: =SUM(F11:F46) -> 5274873 | G48: =F48/'- 3 -'!$D48*100 -> 0.2051677288 | H48: =SUM(H11:H46) -> 11987386 | I48: =H48/'- 3 -'!$D48*100 -> 0.466252886
A50: WHITESHELL | B50: 0 | C50: =B50/'- 3 -'!$D50*100 -> 0 | D50: 0 | E50: =D50/'- 3 -'!$D50*100 -> 0 | F50: 4740 | G50: =F50/'- 3 -'!$D50*100 -> 0.1398198742 | H50: 72795 | I50: =H50/'- 3 -'!$D50*100 -> 2.147296993
A51: MITT | B51: 0 | C51: =B51/'- 3 -'!$D51*100 -> 0 | D51: 1457667 | E51: =D51/'- 3 -'!$D51*100 -> 4.682085253 | F51: 8779867 | G51: =F51/'- 3 -'!$D51*100 -> 28.20128726 | H51: 0 | I51: =H51/'- 3 -'!$D51*100 -> 0

Sheet - 25 -
B2: ANALYSIS OF EXPENSE BY PROGRAM | J2: PAGE 8 OF 16
B3: =OPYEAR -> OPERATING FUND 2020/2021 ACTUAL
B5: FUNCTION 500: DIVISIONAL ADMINISTRATION
E6: INSTRUCTIONAL MGMT. AND ADMINISTRATION | H6: BUSINESS AND ADMIN. SERVICES
B7: BOARD OF TRUSTEES
D8: PER PUPIL | G8: PER PUPIL | J8: PER PUPIL
A9: DIVISION / DISTRICT | B9: AMOUNT | C9: % | E9: AMOUNT | F9: % | H9: AMOUNT | I9: %
A11: BEAUTIFUL PLAINS | B11: 76021 | C11: =B11/'- 3 -'!$D11*100 -> 0.3377536629 | D11: =B11/'- 7 -'!$E11 -> 39.96898002 | E11: 177051 | F11: =E11/'- 3 -'!$D11*100 -> 0.7866197994 | G11: =E11/'- 7 -'!$E11 -> 93.08675079 | H11: 353557 | I11: =H11/'- 3 -'!$D11*100 -> 1.570818219 | J11: =H11/'- 7 -'!$E11 -> 185.8869611
A12: BORDER LAND | B12: 151672 | C12: =B12/'- 3 -'!$D12*100 -> 0.4408067829 | D12: =B12/'- 7 -'!$E12 -> 77.14790004 | E12: 162870 | F12: =E12/'- 3 -'!$D12*100 -> 0.4733517111 | G12: =E12/'- 7 -'!$E12 -> 82.84375811 | H12: 660296 | I12: =H12/'- 3 -'!$D12*100 -> 1.919028928 | J12: =H12/'- 7 -'!$E12 -> 335.8592872
A13: BRANDON | B13: 306785 | C13: =B13/'- 3 -'!$D13*100 -> 0.2722440329 | D13: =B13/'- 7 -'!$E13 -> 36.08598483 | E13: 665126 | F13: =E13/'- 3 -'!$D13*100 -> 0.5902393683 | G13: =E13/'- 7 -'!$E13 -> 78.23631124 | H13: 1690208 | I13: =H13/'- 3 -'!$D13*100 -> 1.499907239 | J13: =H13/'- 7 -'!$E13 -> 198.8129154
A14: DSFM | B14: 381006 | C14: =B14/'- 3 -'!$D14*100 -> 0.3709958132 | D14: =B14/'- 7 -'!$E14 -> 64.28397886 | E14: 1524582 | F14: =E14/'- 3 -'!$D14*100 -> 1.484526593 | G14: =E14/'- 7 -'!$E14 -> 257.2300622 | H14: 1432356 | I14: =H14/'- 3 -'!$D14*100 -> 1.39472365 | J14: =H14/'- 7 -'!$E14 -> 241.6695349
A15: EVERGREEN | B15: 120050 | C15: =B15/'- 3 -'!$D15*100 -> 0.5730081333 | D15: =B15/'- 7 -'!$E15 -> 86.55371305 | E15: 225296 | F15: =E15/'- 3 -'!$D15*100 -> 1.075355605 | G15: =E15/'- 7 -'!$E15 -> 162.4340303 | H15: 355740 | I15: =H15/'- 3 -'!$D15*100 -> 1.697975121 | J15: =H15/'- 7 -'!$E15 -> 256.481615
A16: FLIN FLON | B16: 96075 | C16: =B16/'- 3 -'!$D16*100 -> 0.6059841144 | D16: =B16/'- 7 -'!$E16 -> 103.2398453 | E16: 99036 | F16: =E16/'- 3 -'!$D16*100 -> 0.6246603461 | G16: =E16/'- 7 -'!$E16 -> 106.4216634 | H16: 353566 | I16: =H16/'- 3 -'!$D16*100 -> 2.230084615 | J16: =H16/'- 7 -'!$E16 -> 379.9333763
A17: FORT LA BOSSE | B17: 99324 | C17: =B17/'- 3 -'!$D17*100 -> 0.5245518898 | D17: =B17/'- 7 -'!$E17 -> 68.33436533 | E17: 164276 | F17: =E17/'- 3 -'!$D17*100 -> 0.8675776877 | G17: =E17/'- 7 -'!$E17 -> 113.0209838 | H17: 292451 | I17: =H17/'- 3 -'!$D17*100 -> 1.544498054 | J17: =H17/'- 7 -'!$E17 -> 201.2046784
A18: FRONTIER | B18: 760253 | C18: =B18/'- 3 -'!$D18*100 -> 0.5321019161 | D18: =B18/'- 7 -'!$E18 -> 129.2068321 | E18: 2392538 | F18: =E18/'- 3 -'!$D18*100 -> 1.674539994 | G18: =E18/'- 7 -'!$E18 -> 406.6176071 | H18: 3404692 | I18: =H18/'- 3 -'!$D18*100 -> 2.382947699 | J18: =H18/'- 7 -'!$E18 -> 578.635622
A19: GARDEN VALLEY | B19: 189797 | C19: =B19/'- 3 -'!$D19*100 -> 0.3579061608 | D19: =B19/'- 7 -'!$E19 -> 43.43180778 | E19: 262233 | F19: =E19/'- 3 -'!$D19*100 -> 0.4945009998 | G19: =E19/'- 7 -'!$E19 -> 60.00755149 | H19: 648161 | I19: =H19/'- 3 -'!$D19*100 -> 1.222257544 | J19: =H19/'- 7 -'!$E19 -> 148.320595
A20: HANOVER | B20: 252354 | C20: =B20/'- 3 -'!$D20*100 -> 0.261773745 | D20: =B20/'- 7 -'!$E20 -> 32.66295625 | E20: 626420 | F20: =E20/'- 3 -'!$D20*100 -> 0.6498026951 | G20: =E20/'- 7 -'!$E20 -> 81.07947191 | H20: 1207447 | I20: =H20/'- 3 -'!$D20*100 -> 1.252517983 | J20: =H20/'- 7 -'!$E20 -> 156.2835879
A21: INTERLAKE | B21: 154776 | C21: =B21/'- 3 -'!$D21*100 -> 0.3749518882 | D21: =B21/'- 7 -'!$E21 -> 55.0021322 | E21: 500851 | F21: =E21/'- 3 -'!$D21*100 -> 1.213334291 | G21: =E21/'- 7 -'!$E21 -> 177.98543 | H21: 656712 | I21: =H21/'- 3 -'!$D21*100 -> 1.590914641 | J21: =H21/'- 7 -'!$E21 -> 233.3731343
A22: KELSEY | B22: 91677 | C22: =B22/'- 3 -'!$D22*100 -> 0.4374798504 | D22: =B22/'- 7 -'!$E22 -> 65.34354954 | E22: 156954 | F22: =E22/'- 3 -'!$D22*100 -> 0.7489797052 | G22: =E22/'- 7 -'!$E22 -> 111.870278 | H22: 507115 | I22: =H22/'- 3 -'!$D22*100 -> 2.419937327 | J22: =H22/'- 7 -'!$E22 -> 361.4504633
A23: LAKESHORE | B23: 86532 | C23: =B23/'- 3 -'!$D23*100 -> 0.5356608942 | D23: =B23/'- 7 -'!$E23 -> 95.50993377 | E23: 136193 | F23: =E23/'- 3 -'!$D23*100 -> 0.8430784468 | G23: =E23/'- 7 -'!$E23 -> 150.3233996 | H23: 310901 | I23: =H23/'- 3 -'!$D23*100 -> 1.924577124 | J23: =H23/'- 7 -'!$E23 -> 343.1578366
A24: LORD SELKIRK | B24: 246492 | C24: =B24/'- 3 -'!$D24*100 -> 0.4067490454 | D24: =B24/'- 7 -'!$E24 -> 68.04847749 | E24: 347337 | F24: =E24/'- 3 -'!$D24*100 -> 0.5731585333 | G24: =E24/'- 7 -'!$E24 -> 95.88852387 | H24: 977475 | I24: =H24/'- 3 -'!$D24*100 -> 1.612981448 | J24: =H24/'- 7 -'!$E24 -> 269.849267
A25: LOUIS RIEL | B25: 415075 | C25: =B25/'- 3 -'!$D25*100 -> 0.2068291484 | D25: =B25/'- 7 -'!$E25 -> 27.38594003 | E25: 611165 | F25: =E25/'- 3 -'!$D25*100 -> 0.3045395085 | G25: =E25/'- 7 -'!$E25 -> 40.32362353 | H25: 4010418 | I25: =H25/'- 3 -'!$D25*100 -> 1.99836497 | J25: =H25/'- 7 -'!$E25 -> 264.6005344
A26: MOUNTAIN VIEW | B26: 166701 | C26: =B26/'- 3 -'!$D26*100 -> 0.3893721884 | D26: =B26/'- 7 -'!$E26 -> 56.32742017 | E26: 349051 | F26: =E26/'- 3 -'!$D26*100 -> 0.8152965593 | G26: =E26/'- 7 -'!$E26 -> 117.9425579 | H26: 651413 | I26: =H26/'- 3 -'!$D26*100 -> 1.521539195 | J26: =H26/'- 7 -'!$E26 -> 220.1091401
A27: MYSTERY LAKE | B27: 169150 | C27: =B27/'- 3 -'!$D27*100 -> 0.390217034 | D27: =B27/'- 7 -'!$E27 -> 56.069345 | E27: 455701 | F27: =E27/'- 3 -'!$D27*100 -> 1.051269835 | G27: =E27/'- 7 -'!$E27 -> 151.0544285 | H27: 871929 | I27: =H27/'- 3 -'!$D27*100 -> 2.011478263 | J27: =H27/'- 7 -'!$E27 -> 289.024463
A28: PARK WEST | B28: 117708 | C28: =B28/'- 3 -'!$D28*100 -> 0.4017202698 | D28: =B28/'- 7 -'!$E28 -> 60.95701709 | E28: 376709 | F28: =E28/'- 3 -'!$D28*100 -> 1.285652981 | G28: =E28/'- 7 -'!$E28 -> 195.0849301 | H28: 506296 | I28: =H28/'- 3 -'!$D28*100 -> 1.727914549 | J28: =H28/'- 7 -'!$E28 -> 262.193682
A29: PEMBINA TRAILS | B29: 481195 | C29: =B29/'- 3 -'!$D29*100 -> 0.2657649167 | D29: =B29/'- 7 -'!$E29 -> 32.65349746 | E29: 1784537 | F29: =E29/'- 3 -'!$D29*100 -> 0.9856031903 | G29: =E29/'- 7 -'!$E29 -> 121.0972151 | H29: 1976479 | I29: =H29/'- 3 -'!$D29*100 -> 1.091613123 | J29: =H29/'- 7 -'!$E29 -> 134.1222415
A30: PINE CREEK | B30: 92489 | C30: =B30/'- 3 -'!$D30*100 -> 0.5582805907 | D30: =B30/'- 7 -'!$E30 -> 88.5062201 | E30: 76044 | F30: =E30/'- 3 -'!$D30*100 -> 0.4590155504 | G30: =E30/'- 7 -'!$E30 -> 72.76937799 | H30: 350230 | I30: =H30/'- 3 -'!$D30*100 -> 2.114052604 | J30: =H30/'- 7 -'!$E30 -> 335.1483254
A31: PORTAGE LA PRAIRIE | B31: 155254 | C31: =B31/'- 3 -'!$D31*100 -> 0.3524537059 | D31: =B31/'- 7 -'!$E31 -> 46.69293233 | E31: 247232 | F31: =E31/'- 3 -'!$D31*100 -> 0.5612598362 | G31: =E31/'- 7 -'!$E31 -> 74.35548872 | H31: 499933 | I31: =H31/'- 3 -'!$D31*100 -> 1.134935258 | J31: =H31/'- 7 -'!$E31 -> 150.3557895
A32: PRAIRIE ROSE | B32: 178126 | C32: =B32/'- 3 -'!$D32*100 -> 0.5329131603 | D32: =B32/'- 7 -'!$E32 -> 76.67929402 | E32: 170647 | F32: =E32/'- 3 -'!$D32*100 -> 0.5105376647 | G32: =E32/'- 7 -'!$E32 -> 73.45975032 | H32: 544865 | I32: =H32/'- 3 -'!$D32*100 -> 1.63011424 | J32: =H32/'- 7 -'!$E32 -> 234.5523031
A33: PRAIRIE SPIRIT | B33: 162631 | C33: =B33/'- 3 -'!$D33*100 -> 0.5449670261 | D33: =B33/'- 7 -'!$E33 -> 81.03188839 | E33: 210491 | F33: =E33/'- 3 -'!$D33*100 -> 0.7053431036 | G33: =E33/'- 7 -'!$E33 -> 104.8784255 | H33: 405182 | I33: =H33/'- 3 -'!$D33*100 -> 1.357741326 | J33: =H33/'- 7 -'!$E33 -> 201.8844046
A34: RED RIVER VALLEY | B34: 128847 | C34: =B34/'- 3 -'!$D34*100 -> 0.3934306634 | D34: =B34/'- 7 -'!$E34 -> 59.39784807 | E34: 277556 | F34: =E34/'- 3 -'!$D34*100 -> 0.8475093809 | G34: =E34/'- 7 -'!$E34 -> 127.9519827 | H34: 505700 | I34: =H34/'- 3 -'!$D34*100 -> 1.54414062 | J34: =H34/'- 7 -'!$E34 -> 233.1252708
A35: RIVER EAST TRANSCONA | B35: 436959 | C35: =B35/'- 3 -'!$D35*100 -> 0.2061626437 | D35: =B35/'- 7 -'!$E35 -> 27.15886631 | E35: 1813840 | F35: =E35/'- 3 -'!$D35*100 -> 0.855792076 | G35: =E35/'- 7 -'!$E35 -> 112.7378955 | H35: 2604453 | I35: =H35/'- 3 -'!$D35*100 -> 1.228813037 | J35: =H35/'- 7 -'!$E35 -> 161.8778669
A36: ROLLING RIVER | B36: 98784 | C36: =B36/'- 3 -'!$D36*100 -> 0.3922399045 | D36: =B36/'- 7 -'!$E36 -> 57.76842105 | E36: 183049 | F36: =E36/'- 3 -'!$D36*100 -> 0.7268294692 | G36: =E36/'- 7 -'!$E36 -> 107.0461988 | H36: 508857 | I36: =H36/'- 3 -'!$D36*100 -> 2.020509608 | J36: =H36/'- 7 -'!$E36 -> 297.577193
A37: SEINE RIVER | B37: 175775 | C37: =B37/'- 3 -'!$D37*100 -> 0.3144303805 | D37: =B37/'- 7 -'!$E37 -> 40.76698286 | E37: 377603 | F37: =E37/'- 3 -'!$D37*100 -> 0.6754649692 | G37: =E37/'- 7 -'!$E37 -> 87.57636199 | H37: 771295 | I37: =H37/'- 3 -'!$D37*100 -> 1.379710313 | J37: =H37/'- 7 -'!$E37 -> 178.8841988
A38: SEVEN OAKS | B38: 387084 | C38: =B38/'- 3 -'!$D38*100 -> 0.2469222998 | D38: =B38/'- 7 -'!$E38 -> 34.67282939 | E38: 1159652 | F38: =E38/'- 3 -'!$D38*100 -> 0.7397462537 | G38: =E38/'- 7 -'!$E38 -> 103.8751691 | H38: 1632559 | I38: =H38/'- 3 -'!$D38*100 -> 1.041415359 | J38: =H38/'- 7 -'!$E38 -> 146.2355449
A39: SOUTHWEST HORIZON | B39: 108705 | C39: =B39/'- 3 -'!$D39*100 -> 0.4637035566 | D39: =B39/'- 7 -'!$E39 -> 72.26284651 | E39: 251765 | F39: =E39/'- 3 -'!$D39*100 -> 1.073955438 | G39: =E39/'- 7 -'!$E39 -> 167.3635578 | H39: 387976 | I39: =H39/'- 3 -'!$D39*100 -> 1.654991501 | J39: =H39/'- 7 -'!$E39 -> 257.9113209
A40: ST. JAMES-ASSINIBOIA | B40: 377613 | C40: =B40/'- 3 -'!$D40*100 -> 0.3330128783 | D40: =B40/'- 7 -'!$E40 -> 47.42309083 | E40: 866241 | F40: =E40/'- 3 -'!$D40*100 -> 0.7639287013 | G40: =E40/'- 7 -'!$E40 -> 108.7881657 | H40: 1471405 | I40: =H40/'- 3 -'!$D40*100 -> 1.29761638 | J40: =H40/'- 7 -'!$E40 -> 184.7885877
A41: SUNRISE | B41: 244479 | C41: =B41/'- 3 -'!$D41*100 -> 0.3510876193 | D41: =B41/'- 7 -'!$E41 -> 56.41606092 | E41: 391308 | F41: =E41/'- 3 -'!$D41*100 -> 0.5619435376 | G41: =E41/'- 7 -'!$E41 -> 90.29837314 | H41: 1277267 | I41: =H41/'- 3 -'!$D41*100 -> 1.834237829 | J41: =H41/'- 7 -'!$E41 -> 294.7425868
A42: SWAN VALLEY | B42: 119124 | C42: =B42/'- 3 -'!$D42*100 -> 0.5477638448 | D42: =B42/'- 7 -'!$E42 -> 91.70438799 | E42: 184474 | F42: =E42/'- 3 -'!$D42*100 -> 0.8482605311 | G42: =E42/'- 7 -'!$E42 -> 142.0123172 | H42: 401122 | I42: =H42/'- 3 -'!$D42*100 -> 1.844465674 | J42: =H42/'- 7 -'!$E42 -> 308.7929176
A43: TURTLE MOUNTAIN | B43: 75572 | C43: =B43/'- 3 -'!$D43*100 -> 0.5452345081 | D43: =B43/'- 7 -'!$E43 -> 74.45517241 | E43: 125611 | F43: =E43/'- 3 -'!$D43*100 -> 0.9062543244 | G43: =E43/'- 7 -'!$E43 -> 123.7546798 | H43: 231233 | I43: =H43/'- 3 -'!$D43*100 -> 1.668292635 | J43: =H43/'- 7 -'!$E43 -> 227.8157635
A44: TURTLE RIVER | B44: 85498 | C44: =B44/'- 3 -'!$D44*100 -> 0.7557716671 | D44: =B44/'- 7 -'!$E44 -> 131.941358 | E44: 68096 | F44: =E44/'- 3 -'!$D44*100 -> 0.6019442261 | G44: =E44/'- 7 -'!$E44 -> 105.0864198 | H44: 251876 | I44: =H44/'- 3 -'!$D44*100 -> 2.226493537 | J44: =H44/'- 7 -'!$E44 -> 388.6975309
A45: WESTERN | B45: 110749 | C45: =B45/'- 3 -'!$D45*100 -> 0.4858476458 | D45: =B45/'- 7 -'!$E45 -> 61.59566185 | E45: 172444 | F45: =E45/'- 3 -'!$D45*100 -> 0.7564990332 | G45: =E45/'- 7 -'!$E45 -> 95.90878754 | H45: 429843 | I45: =H45/'- 3 -'!$D45*100 -> 1.885689348 | J45: =H45/'- 7 -'!$E45 -> 239.067297
A46: WINNIPEG | B46: 665056 | C46: =B46/'- 3 -'!$D46*100 -> 0.1540050858 | D46: =B46/'- 7 -'!$E46 -> 22.75625145 | E46: 2746119 | F46: =E46/'- 3 -'!$D46*100 -> 0.6359107989 | G46: =E46/'- 7 -'!$E46 -> 93.96407895 | H46: 6915181 | I46: =H46/'- 3 -'!$D46*100 -> 1.601328374 | J46: =H46/'- 7 -'!$E46 -> 236.6170634
A48: PROVINCE | B48: =SUM(B11:B46) -> 7965388 | C48: =B48/'- 3 -'!$D48*100 -> 0.3098160969 | D48: =B48/'- 7 -'!$E48 -> 44.61840574 | E48: =SUM(E11:E46) -> 20340098 | F48: =E48/'- 3 -'!$D48*100 -> 0.7911340632 | G48: =E48/'- 7 -'!$E48 -> 113.9357863 | H48: =SUM(H11:H46) -> 40056189 | I48: =H48/'- 3 -'!$D48*100 -> 1.557997192 | J48: =H48/'- 7 -'!$E48 -> 224.3761752
A50: WHITESHELL | B50: 62658 | C50: =B50/'- 3 -'!$D50*100 -> 1.848277148 | D50: =B50/'- 7 -'!$E50 -> 340.5326087 | E50: 59163 | F50: =E50/'- 3 -'!$D50*100 -> 1.745182114 | G50: =E50/'- 7 -'!$E50 -> 321.5380435 | H50: 73402 | I50: =H50/'- 3 -'!$D50*100 -> 2.165202196 | J50: =H50/'- 7 -'!$E50 -> 398.923913
A51: MITT | B51: 75554 | C51: =B51/'- 3 -'!$D51*100 -> 0.2426824983 | D51: =B51/'- 7 -'!$E51 -> 42.58722733 | E51: 398772 | F51: =E51/'- 3 -'!$D51*100 -> 1.280871763 | G51: =E51/'- 7 -'!$E51 -> 224.7742517 | H51: 3570286 | I51: =H51/'- 3 -'!$D51*100 -> 11.46790277 | J51: =H51/'- 7 -'!$E51 -> 2012.449129

Sheet - 26 -
B2: ANALYSIS OF EXPENSE BY PROGRAM | E2: PAGE 9 OF 16
B3: =OPYEAR -> OPERATING FUND 2020/2021 ACTUAL
B5: FUNCTION 500: DIVISIONAL ADMINISTRATION
B6: MANAGEMENT INFORMATION SERVICES
D8: PER PUPIL
A9: DIVISION / DISTRICT | B9: AMOUNT | C9: %
A11: BEAUTIFUL PLAINS | B11: 16056 | C11: =B11/'- 3 -'!$D11*100 -> 0.07133519438 | D11: =B11/'- 7 -'!$E11 -> 8.441640379
A12: BORDER LAND | B12: 86032 | C12: =B12/'- 3 -'!$D12*100 -> 0.2500361909 | D12: =B12/'- 7 -'!$E12 -> 43.7601412
A13: BRANDON | B13: 345239 | C13: =B13/'- 3 -'!$D13*100 -> 0.3063684915 | D13: =B13/'- 7 -'!$E13 -> 40.60918661
A14: DSFM | B14: 119309 | C14: =B14/'- 3 -'!$D14*100 -> 0.1161743896 | D14: =B14/'- 7 -'!$E14 -> 20.13001694
A15: EVERGREEN | B15: 48253 | C15: =B15/'- 3 -'!$D15*100 -> 0.2303153807 | D15: =B15/'- 7 -'!$E15 -> 34.78947368
A16: FLIN FLON | B16: 35259 | C16: =B16/'- 3 -'!$D16*100 -> 0.2223928586 | D16: =B16/'- 7 -'!$E16 -> 37.88845906
A17: FORT LA BOSSE | B17: 83340 | C17: =B17/'- 3 -'!$D17*100 -> 0.4401368702 | D17: =B17/'- 7 -'!$E17 -> 57.3374613
A18: FRONTIER | B18: 739125 | C18: =B18/'- 3 -'!$D18*100 -> 0.5173144055 | D18: =B18/'- 7 -'!$E18 -> 125.6160775
A19: GARDEN VALLEY | B19: 137623 | C19: =B19/'- 3 -'!$D19*100 -> 0.2595200112 | D19: =B19/'- 7 -'!$E19 -> 31.49267735
A20: HANOVER | B20: 90089 | C20: =B20/'- 3 -'!$D20*100 -> 0.09345179752 | D20: =B20/'- 7 -'!$E20 -> 11.66049702
A21: INTERLAKE | B21: 51992 | C21: =B21/'- 3 -'!$D21*100 -> 0.1259529809 | D21: =B21/'- 7 -'!$E21 -> 18.47619048
A22: KELSEY | B22: 20120 | C22: =B22/'- 3 -'!$D22*100 -> 0.09601202689 | D22: =B22/'- 7 -'!$E22 -> 14.3406985
A23: LAKESHORE | B23: 17679 | C23: =B23/'- 3 -'!$D23*100 -> 0.1094386926 | D23: =B23/'- 7 -'!$E23 -> 19.51324503
A24: LORD SELKIRK | B24: 154411 | C24: =B24/'- 3 -'!$D24*100 -> 0.2548014818 | D24: =B24/'- 7 -'!$E24 -> 42.62788836
A25: LOUIS RIEL | B25: 876737 | C25: =B25/'- 3 -'!$D25*100 -> 0.4368722932 | D25: =B25/'- 7 -'!$E25 -> 57.84561079
A26: MOUNTAIN VIEW | B26: 41711 | C26: =B26/'- 3 -'!$D26*100 -> 0.09742655024 | D26: =B26/'- 7 -'!$E26 -> 14.09393479
A27: MYSTERY LAKE | B27: 217510 | C27: =B27/'- 3 -'!$D27*100 -> 0.5017801187 | D27: =B27/'- 7 -'!$E27 -> 72.09957571
A28: PARK WEST | B28: 82601 | C28: =B28/'- 3 -'!$D28*100 -> 0.2819051891 | D28: =B28/'- 7 -'!$E28 -> 42.77628172
A29: PEMBINA TRAILS | B29: 1123405 | C29: =B29/'- 3 -'!$D29*100 -> 0.6204587252 | D29: =B29/'- 7 -'!$E29 -> 76.23334057
A30: PINE CREEK | B30: 31893 | C30: =B30/'- 3 -'!$D30*100 -> 0.1925120055 | D30: =B30/'- 7 -'!$E30 -> 30.51961722
A31: PORTAGE LA PRAIRIE | B31: 77572 | C31: =B31/'- 3 -'!$D31*100 -> 0.1761019933 | D31: =B31/'- 7 -'!$E31 -> 23.32992481
A32: PRAIRIE ROSE | B32: 60594 | C32: =B32/'- 3 -'!$D32*100 -> 0.1812836982 | D32: =B32/'- 7 -'!$E32 -> 26.08437365
A33: PRAIRIE SPIRIT | B33: 39092 | C33: =B33/'- 3 -'!$D33*100 -> 0.1309950193 | D33: =B33/'- 7 -'!$E33 -> 19.4778276
A34: RED RIVER VALLEY | B34: 43855 | C34: =B34/'- 3 -'!$D34*100 -> 0.1339099998 | D34: =B34/'- 7 -'!$E34 -> 20.21694434
A35: RIVER EAST TRANSCONA | B35: 3555694 | C35: =B35/'- 3 -'!$D35*100 -> 1.67762027 | D35: =B35/'- 7 -'!$E35 -> 221.0015539
A36: ROLLING RIVER | B36: 25831 | C36: =B36/'- 3 -'!$D36*100 -> 0.1025667008 | D36: =B36/'- 7 -'!$E36 -> 15.10584795
A37: SEINE RIVER | B37: 80776 | C37: =B37/'- 3 -'!$D37*100 -> 0.1444939748 | D37: =B37/'- 7 -'!$E37 -> 18.73414199
A38: SEVEN OAKS | B38: 696240 | C38: =B38/'- 3 -'!$D38*100 -> 0.4441340434 | D38: =B38/'- 7 -'!$E38 -> 62.36530245
A39: SOUTHWEST HORIZON | B39: 53902 | C39: =B39/'- 3 -'!$D39*100 -> 0.2299300778 | D39: =B39/'- 7 -'!$E39 -> 35.83194841
A40: ST. JAMES-ASSINIBOIA | B40: 386000 | C40: =B40/'- 3 -'!$D40*100 -> 0.3404092841 | D40: =B40/'- 7 -'!$E40 -> 48.47638472
A41: SUNRISE | B41: 130449 | C41: =B41/'- 3 -'!$D41*100 -> 0.1873331814 | D41: =B41/'- 7 -'!$E41 -> 30.1024576
A42: SWAN VALLEY | B42: 16177 | C42: =B42/'- 3 -'!$D42*100 -> 0.07438614988 | D42: =B42/'- 7 -'!$E42 -> 12.45342571
A43: TURTLE MOUNTAIN | B43: 20331 | C43: =B43/'- 3 -'!$D43*100 -> 0.1466834646 | D43: =B43/'- 7 -'!$E43 -> 20.03054187
A44: TURTLE RIVER | B44: 8375 | C44: =B44/'- 3 -'!$D44*100 -> 0.07403199738 | D44: =B44/'- 7 -'!$E44 -> 12.92438272
A45: WESTERN | B45: 72991 | C45: =B45/'- 3 -'!$D45*100 -> 0.3202061013 | D45: =B45/'- 7 -'!$E45 -> 40.59566185
A46: WINNIPEG | B46: 1106353 | C46: =B46/'- 3 -'!$D46*100 -> 0.2561949501 | D46: =B46/'- 7 -'!$E46 -> 37.85613101
A48: PROVINCE | B48: =SUM(B11:B46) -> 10692616 | C48: =B48/'- 3 -'!$D48*100 -> 0.415892428 | D48: =B48/'- 7 -'!$E48 -> 59.89507091
A50: WHITESHELL | B50: 0 | C50: =B50/'- 3 -'!$D50*100 -> 0 | D50: =B50/'- 7 -'!$E50 -> 0
A51: MITT | B51: 2215118 | C51: =B51/'- 3 -'!$D51*100 -> 7.115048444 | D51: =B51/'- 7 -'!$E51 -> 1248.586889

Sheet - 27 -
B2: ANALYSIS OF EXPENSE BY PROGRAM | J2: PAGE 10 OF 16
B3: =OPYEAR -> OPERATING FUND 2020/2021 ACTUAL
B5: FUNCTION 600: INSTRUCTIONAL & OTHER SUPPORT SERVICES
B6: CURRICULUM CONSULTING AND DEVELOPMENT ADMIN. | E6: CURRICULUM CONSULTING AND DEVELOPMENT | H6: LIBRARY / MEDIA CENTRE
D8: PER PUPIL | G8: PER PUPIL | J8: PER PUPIL
A9: DIVISION / DISTRICT | B9: AMOUNT | C9: % | E9: AMOUNT | F9: % | H9: AMOUNT | I9: %
A11: BEAUTIFUL PLAINS | B11: 0 | C11: =B11/'- 3 -'!$D11*100 -> 0 | D11: =B11/'- 7 -'!$E11 -> 0 | E11: 152903 | F11: =E11/'- 3 -'!$D11*100 -> 0.6793326623 | G11: =E11/'- 7 -'!$E11 -> 80.39064143 | H11: 222763 | I11: =H11/'- 3 -'!$D11*100 -> 0.9897136214 | J11: =H11/'- 7 -'!$E11 -> 117.1203996
A12: BORDER LAND | B12: 0 | C12: =B12/'- 3 -'!$D12*100 -> 0 | D12: =B12/'- 7 -'!$E12 -> 0 | E12: 0 | F12: =E12/'- 3 -'!$D12*100 -> 0 | G12: =E12/'- 7 -'!$E12 -> 0 | H12: 294789 | I12: =H12/'- 3 -'!$D12*100 -> 0.8567500311 | J12: =H12/'- 7 -'!$E12 -> 149.9443029
A13: BRANDON | B13: 142850 | C13: =B13/'- 3 -'!$D13*100 -> 0.126766498 | D13: =B13/'- 7 -'!$E13 -> 16.80291713 | E13: 392280 | F13: =E13/'- 3 -'!$D13*100 -> 0.3481131386 | G13: =E13/'- 7 -'!$E13 -> 46.14244545 | H13: 1030706 | I13: =H13/'- 3 -'!$D13*100 -> 0.9146586637 | J13: =H13/'- 7 -'!$E13 -> 121.2381344
A14: DSFM | B14: 304441 | C14: =B14/'- 3 -'!$D14*100 -> 0.2964424087 | D14: =B14/'- 7 -'!$E14 -> 51.36580214 | E14: 1919785 | F14: =E14/'- 3 -'!$D14*100 -> 1.869346407 | G14: =E14/'- 7 -'!$E14 -> 323.909383 | H14: 694628 | I14: =H14/'- 3 -'!$D14*100 -> 0.6763780091 | J14: =H14/'- 7 -'!$E14 -> 117.1988149
A15: EVERGREEN | B15: 73092 | C15: =B15/'- 3 -'!$D15*100 -> 0.3488738899 | D15: =B15/'- 7 -'!$E15 -> 52.69790916 | E15: 116632 | F15: =E15/'- 3 -'!$D15*100 -> 0.5566937493 | G15: =E15/'- 7 -'!$E15 -> 84.08940159 | H15: 186071 | I15: =H15/'- 3 -'!$D15*100 -> 0.8881315816 | J15: =H15/'- 7 -'!$E15 -> 134.1535689
A16: FLIN FLON | B16: 0 | C16: =B16/'- 3 -'!$D16*100 -> 0 | D16: =B16/'- 7 -'!$E16 -> 0 | E16: 0 | F16: =E16/'- 3 -'!$D16*100 -> 0 | G16: =E16/'- 7 -'!$E16 -> 0 | H16: 102733 | I16: =H16/'- 3 -'!$D16*100 -> 0.6479788293 | J16: =H16/'- 7 -'!$E16 -> 110.3943692
A17: FORT LA BOSSE | B17: 0 | C17: =B17/'- 3 -'!$D17*100 -> 0 | D17: =B17/'- 7 -'!$E17 -> 0 | E17: 57639 | F17: =E17/'- 3 -'!$D17*100 -> 0.3044042364 | G17: =E17/'- 7 -'!$E17 -> 39.65531476 | H17: 225252 | I17: =H17/'- 3 -'!$D17*100 -> 1.189605355 | J17: =H17/'- 7 -'!$E17 -> 154.9721362
A18: FRONTIER | B18: 0 | C18: =B18/'- 3 -'!$D18*100 -> 0 | D18: =B18/'- 7 -'!$E18 -> 0 | E18: 3035217 | F18: =E18/'- 3 -'!$D18*100 -> 2.124351738 | G18: =E18/'- 7 -'!$E18 -> 515.8424541 | H18: 2052449 | I18: =H18/'- 3 -'!$D18*100 -> 1.436511327 | J18: =H18/'- 7 -'!$E18 -> 348.8186608
A19: GARDEN VALLEY | B19: 55993 | C19: =B19/'- 3 -'!$D19*100 -> 0.1055877578 | D19: =B19/'- 7 -'!$E19 -> 12.81304348 | E19: 268391 | F19: =E19/'- 3 -'!$D19*100 -> 0.5061133337 | G19: =E19/'- 7 -'!$E19 -> 61.41670481 | H19: 487642 | I19: =H19/'- 3 -'!$D19*100 -> 0.9195618269 | J19: =H19/'- 7 -'!$E19 -> 111.5885584
A20: HANOVER | B20: 7549 | C20: =B20/'- 3 -'!$D20*100 -> 0.007830785328 | D20: =B20/'- 7 -'!$E20 -> 0.9770903443 | E20: 261664 | F20: =E20/'- 3 -'!$D20*100 -> 0.271431264 | G20: =E20/'- 7 -'!$E20 -> 33.86797826 | H20: 956631 | I20: =H20/'- 3 -'!$D20*100 -> 0.9923396476 | J20: =H20/'- 7 -'!$E20 -> 123.8196997
A21: INTERLAKE | B21: 0 | C21: =B21/'- 3 -'!$D21*100 -> 0 | D21: =B21/'- 7 -'!$E21 -> 0 | E21: 0 | F21: =E21/'- 3 -'!$D21*100 -> 0 | G21: =E21/'- 7 -'!$E21 -> 0 | H21: 588868 | I21: =H21/'- 3 -'!$D21*100 -> 1.42655947 | J21: =H21/'- 7 -'!$E21 -> 209.2636816
A22: KELSEY | B22: 28961 | C22: =B22/'- 3 -'!$D22*100 -> 0.1382010095 | D22: =B22/'- 7 -'!$E22 -> 20.6421953 | E22: 77929 | F22: =E22/'- 3 -'!$D22*100 -> 0.3718748133 | G22: =E22/'- 7 -'!$E22 -> 55.5445474 | H22: 179630 | I22: =H22/'- 3 -'!$D22*100 -> 0.8571888862 | J22: =H22/'- 7 -'!$E22 -> 128.0327869
A23: LAKESHORE | B23: 0 | C23: =B23/'- 3 -'!$D23*100 -> 0 | D23: =B23/'- 7 -'!$E23 -> 0 | E23: 0 | F23: =E23/'- 3 -'!$D23*100 -> 0 | G23: =E23/'- 7 -'!$E23 -> 0 | H23: 115013 | I23: =H23/'- 3 -'!$D23*100 -> 0.7119674389 | J23: =H23/'- 7 -'!$E23 -> 126.9459161
A24: LORD SELKIRK | B24: 0 | C24: =B24/'- 3 -'!$D24*100 -> 0 | D24: =B24/'- 7 -'!$E24 -> 0 | E24: 0 | F24: =E24/'- 3 -'!$D24*100 -> 0 | G24: =E24/'- 7 -'!$E24 -> 0 | H24: 551762 | I24: =H24/'- 3 -'!$D24*100 -> 0.9104906723 | J24: =H24/'- 7 -'!$E24 -> 152.3236618
A25: LOUIS RIEL | B25: 176517 | C25: =B25/'- 3 -'!$D25*100 -> 0.08795726265 | D25: =B25/'- 7 -'!$E25 -> 11.64629037 | E25: 636546 | F25: =E25/'- 3 -'!$D25*100 -> 0.3171866943 | G25: =E25/'- 7 -'!$E25 -> 41.99821859 | H25: 3733433 | I25: =H25/'- 3 -'!$D25*100 -> 1.860345162 | J25: =H25/'- 7 -'!$E25 -> 246.3255369
A26: MOUNTAIN VIEW | B26: 17343 | C26: =B26/'- 3 -'!$D26*100 -> 0.04050894634 | D26: =B26/'- 7 -'!$E26 -> 5.860111505 | E26: 296743 | F26: =E26/'- 3 -'!$D26*100 -> 0.6931180455 | G26: =E26/'- 7 -'!$E26 -> 100.2679507 | H26: 518052 | I26: =H26/'- 3 -'!$D26*100 -> 1.210040977 | J26: =H26/'- 7 -'!$E26 -> 175.0471363
A27: MYSTERY LAKE | B27: 0 | C27: =B27/'- 3 -'!$D27*100 -> 0 | D27: =B27/'- 7 -'!$E27 -> 0 | E27: 445650 | F27: =E27/'- 3 -'!$D27*100 -> 1.028082892 | G27: =E27/'- 7 -'!$E27 -> 147.7227526 | H27: 929814 | I27: =H27/'- 3 -'!$D27*100 -> 2.145014846 | J27: =H27/'- 7 -'!$E27 -> 308.2120127
A28: PARK WEST | B28: 58891 | C28: =B28/'- 3 -'!$D28*100 -> 0.2009864105 | D28: =B28/'- 7 -'!$E28 -> 30.4976696 | E28: 327 | F28: =E28/'- 3 -'!$D28*100 -> 0.0011160034 | G28: =E28/'- 7 -'!$E28 -> 0.1693423097 | H28: 302230 | I28: =H28/'- 3 -'!$D28*100 -> 1.031466996 | J28: =H28/'- 7 -'!$E28 -> 156.5147592
A29: PEMBINA TRAILS | B29: 264412 | C29: =B29/'- 3 -'!$D29*100 -> 0.1460352521 | D29: =B29/'- 7 -'!$E29 -> 17.94278114 | E29: 478524 | F29: =E29/'- 3 -'!$D29*100 -> 0.2642897183 | G29: =E29/'- 7 -'!$E29 -> 32.4722456 | H29: 3969908 | I29: =H29/'- 3 -'!$D29*100 -> 2.192587764 | J29: =H29/'- 7 -'!$E29 -> 269.3946961
A30: PINE CREEK | B30: 0 | C30: =B30/'- 3 -'!$D30*100 -> 0 | D30: =B30/'- 7 -'!$E30 -> 0 | E30: 0 | F30: =E30/'- 3 -'!$D30*100 -> 0 | G30: =E30/'- 7 -'!$E30 -> 0 | H30: 285395 | I30: =H30/'- 3 -'!$D30*100 -> 1.722696636 | J30: =H30/'- 7 -'!$E30 -> 273.1052632
A31: PORTAGE LA PRAIRIE | B31: 81105 | C31: =B31/'- 3 -'!$D31*100 -> 0.1841225206 | D31: =B31/'- 7 -'!$E31 -> 24.3924812 | E31: 123583 | F31: =E31/'- 3 -'!$D31*100 -> 0.2805550023 | G31: =E31/'- 7 -'!$E31 -> 37.16781955 | H31: 489578 | I31: =H31/'- 3 -'!$D31*100 -> 1.111427599 | J31: =H31/'- 7 -'!$E31 -> 147.2415038
A32: PRAIRIE ROSE | B32: 0 | C32: =B32/'- 3 -'!$D32*100 -> 0 | D32: =B32/'- 7 -'!$E32 -> 0 | E32: 131694 | F32: =E32/'- 3 -'!$D32*100 -> 0.3939989992 | G32: =E32/'- 7 -'!$E32 -> 56.6913474 | H32: 346486 | I32: =H32/'- 3 -'!$D32*100 -> 1.036608632 | J32: =H32/'- 7 -'!$E32 -> 149.1545415
A33: PRAIRIE SPIRIT | B33: 0 | C33: =B33/'- 3 -'!$D33*100 -> 0 | D33: =B33/'- 7 -'!$E33 -> 0 | E33: 119026 | F33: =E33/'- 3 -'!$D33*100 -> 0.3988492061 | G33: =E33/'- 7 -'!$E33 -> 59.30543099 | H33: 437644 | I33: =H33/'- 3 -'!$D33*100 -> 1.466519601 | J33: =H33/'- 7 -'!$E33 -> 218.0587942
A34: RED RIVER VALLEY | B34: 7259 | C34: =B34/'- 3 -'!$D34*100 -> 0.0221651508 | D34: =B34/'- 7 -'!$E34 -> 3.346364131 | E34: 103302 | F34: =E34/'- 3 -'!$D34*100 -> 0.3154297297 | G34: =E34/'- 7 -'!$E34 -> 47.62172578 | H34: 171164 | I34: =H34/'- 3 -'!$D34*100 -> 0.5226444237 | J34: =H34/'- 7 -'!$E34 -> 78.9057818
A35: RIVER EAST TRANSCONA | B35: 557181 | C35: =B35/'- 3 -'!$D35*100 -> 0.2628848656 | D35: =B35/'- 7 -'!$E35 -> 34.63117658 | E35: 901703 | F35: =E35/'- 3 -'!$D35*100 -> 0.4254345931 | G35: =E35/'- 7 -'!$E35 -> 56.04468892 | H35: 4899581 | I35: =H35/'- 3 -'!$D35*100 -> 2.311682726 | J35: =H35/'- 7 -'!$E35 -> 304.5298651
A36: ROLLING RIVER | B36: 17288 | C36: =B36/'- 3 -'!$D36*100 -> 0.06864515984 | D36: =B36/'- 7 -'!$E36 -> 10.10994152 | E36: 102006 | F36: =E36/'- 3 -'!$D36*100 -> 0.4050334437 | G36: =E36/'- 7 -'!$E36 -> 59.65263158 | H36: 216700 | I36: =H36/'- 3 -'!$D36*100 -> 0.8604469075 | J36: =H36/'- 7 -'!$E36 -> 126.7251462
A37: SEINE RIVER | B37: 65375 | C37: =B37/'- 3 -'!$D37*100 -> 0.1169443102 | D37: =B37/'- 7 -'!$E37 -> 15.16223299 | E37: 623818 | F37: =E37/'- 3 -'!$D37*100 -> 1.115900049 | G37: =E37/'- 7 -'!$E37 -> 144.6802885 | H37: 506388 | I37: =H37/'- 3 -'!$D37*100 -> 0.9058385522 | J37: =H37/'- 7 -'!$E37 -> 117.4450913
A38: SEVEN OAKS | B38: 135757 | C38: =B38/'- 3 -'!$D38*100 -> 0.086599887 | D38: =B38/'- 7 -'!$E38 -> 12.16035615 | E38: 444659 | F38: =E38/'- 3 -'!$D38*100 -> 0.283649603 | G38: =E38/'- 7 -'!$E38 -> 39.8300773 | H38: 2031638 | I38: =H38/'- 3 -'!$D38*100 -> 1.295989313 | J38: =H38/'- 7 -'!$E38 -> 181.9828196
A39: SOUTHWEST HORIZON | B39: 0 | C39: =B39/'- 3 -'!$D39*100 -> 0 | D39: =B39/'- 7 -'!$E39 -> 0 | E39: 106730 | F39: =E39/'- 3 -'!$D39*100 -> 0.4552787876 | G39: =E39/'- 7 -'!$E39 -> 70.9499435 | H39: 231711 | I39: =H39/'- 3 -'!$D39*100 -> 0.9884109729 | J39: =H39/'- 7 -'!$E39 -> 154.0324403
A40: ST. JAMES-ASSINIBOIA | B40: 43224 | C40: =B40/'- 3 -'!$D40*100 -> 0.03811878471 | D40: =B40/'- 7 -'!$E40 -> 5.428350396 | E40: 730027 | F40: =E40/'- 3 -'!$D40*100 -> 0.6438030271 | G40: =E40/'- 7 -'!$E40 -> 91.68152773 | H40: 1151276 | I40: =H40/'- 3 -'!$D40*100 -> 1.015298029 | J40: =H40/'- 7 -'!$E40 -> 144.5847106
A41: SUNRISE | B41: 145722 | C41: =B41/'- 3 -'!$D41*100 -> 0.2092661949 | D41: =B41/'- 7 -'!$E41 -> 33.62686051 | E41: 500959 | F41: =E41/'- 3 -'!$D41*100 -> 0.7194094489 | G41: =E41/'- 7 -'!$E41 -> 115.6014769 | H41: 634030 | I41: =H41/'- 3 -'!$D41*100 -> 0.9105079915 | J41: =H41/'- 7 -'!$E41 -> 146.3089881
A42: SWAN VALLEY | B42: 16396 | C42: =B42/'- 3 -'!$D42*100 -> 0.07539317014 | D42: =B42/'- 7 -'!$E42 -> 12.62201694 | E42: 0 | F42: =E42/'- 3 -'!$D42*100 -> 0 | G42: =E42/'- 7 -'!$E42 -> 0 | H42: 235362 | I42: =H42/'- 3 -'!$D42*100 -> 1.082257094 | J42: =H42/'- 7 -'!$E42 -> 181.187067
A43: TURTLE MOUNTAIN | B43: 0 | C43: =B43/'- 3 -'!$D43*100 -> 0 | D43: =B43/'- 7 -'!$E43 -> 0 | E43: 61105 | F43: =E43/'- 3 -'!$D43*100 -> 0.4408584478 | G43: =E43/'- 7 -'!$E43 -> 60.20197044 | H43: 190068 | I43: =H43/'- 3 -'!$D43*100 -> 1.371296677 | J43: =H43/'- 7 -'!$E43 -> 187.2591133
A44: TURTLE RIVER | B44: 0 | C44: =B44/'- 3 -'!$D44*100 -> 0 | D44: =B44/'- 7 -'!$E44 -> 0 | E44: 0 | F44: =E44/'- 3 -'!$D44*100 -> 0 | G44: =E44/'- 7 -'!$E44 -> 0 | H44: 134807 | I44: =H44/'- 3 -'!$D44*100 -> 1.191645549 | J44: =H44/'- 7 -'!$E44 -> 208.0354938
A45: WESTERN | B45: 0 | C45: =B45/'- 3 -'!$D45*100 -> 0 | D45: =B45/'- 7 -'!$E45 -> 0 | E45: 0 | F45: =E45/'- 3 -'!$D45*100 -> 0 | G45: =E45/'- 7 -'!$E45 -> 0 | H45: 218382 | I45: =H45/'- 3 -'!$D45*100 -> 0.9580256307 | J45: =H45/'- 7 -'!$E45 -> 121.458287
A46: WINNIPEG | B46: 479316 | C46: =B46/'- 3 -'!$D46*100 -> 0.1109938136 | D46: =B46/'- 7 -'!$E46 -> 16.40077741 | E46: 1422220 | F46: =E46/'- 3 -'!$D46*100 -> 0.3293393536 | G46: =E46/'- 7 -'!$E46 -> 48.66416654 | H46: 2919346 | I46: =H46/'- 3 -'!$D46*100 -> 0.676024472 | J46: =H46/'- 7 -'!$E46 -> 99.8913951
A48: PROVINCE | B48: =SUM(B11:B46) -> 2678672 | C48: =B48/'- 3 -'!$D48*100 -> 0.1041877312 | D48: =B48/'- 7 -'!$E48 -> 15.004677 | E48: =SUM(E11:E46) -> 13511062 | F48: =E48/'- 3 -'!$D48*100 -> 0.5255167098 | G48: =E48/'- 7 -'!$E48 -> 75.68269697 | H48: =SUM(H11:H46) -> 32241930 | I48: =H48/'- 3 -'!$D48*100 -> 1.254059301 | J48: =H48/'- 7 -'!$E48 -> 180.6043239
A50: WHITESHELL | B50: 0 | C50: =B50/'- 3 -'!$D50*100 -> 0 | D50: =B50/'- 7 -'!$E50 -> 0 | E50: 0 | F50: =E50/'- 3 -'!$D50*100 -> 0 | G50: =E50/'- 7 -'!$E50 -> 0 | H50: 2843 | I50: =H50/'- 3 -'!$D50*100 -> 0.08386242668 | J50: =H50/'- 7 -'!$E50 -> 15.45108696
A51: MITT | B51: 0 | C51: =B51/'- 3 -'!$D51*100 -> 0 | D51: =B51/'- 7 -'!$E51 -> 0 | E51: 622959 | F51: =E51/'- 3 -'!$D51*100 -> 2.000969458 | G51: =E51/'- 7 -'!$E51 -> 351.1408602 | H51: 4031 | I51: =H51/'- 3 -'!$D51*100 -> 0.01294773474 | J51: =H51/'- 7 -'!$E51 -> 2.272137985

Sheet - 28 -
B2: ANALYSIS OF EXPENSE BY PROGRAM | J2: PAGE 11 OF 16
B3: =OPYEAR -> OPERATING FUND 2020/2021 ACTUAL
B5: FUNCTION 600: INSTRUCTIONAL & OTHER SUPPORT SERVICES
B6: PROFESSIONAL AND STAFF DEVELOPMENT
E7: OTHER (1)
D8: PER PUPIL | G8: PER PUPIL
A9: DIVISION / DISTRICT | B9: AMOUNT | C9: % | E9: AMOUNT | F9: %
A11: BEAUTIFUL PLAINS | B11: 76780 | C11: =B11/'- 3 -'!$D11*100 -> 0.3411258236 | D11: =B11/'- 7 -'!$E11 -> 40.36803365 | E11: 19179 | F11: =E11/'- 3 -'!$D11*100 -> 0.08521036951 | G11: =E11/'- 7 -'!$E11 -> 10.08359621
A12: BORDER LAND | B12: 157979 | C12: =B12/'- 3 -'!$D12*100 -> 0.4591369188 | D12: =B12/'- 7 -'!$E12 -> 80.35595298 | E12: 109438 | F12: =E12/'- 3 -'!$D12*100 -> 0.3180614267 | G12: =E12/'- 7 -'!$E12 -> 55.66559342
A13: BRANDON | B13: 759382 | C13: =B13/'- 3 -'!$D13*100 -> 0.6738830718 | D13: =B13/'- 7 -'!$E13 -> 89.32329589 | E13: 84434 | F13: =E13/'- 3 -'!$D13*100 -> 0.07492756384 | G13: =E13/'- 7 -'!$E13 -> 9.931659119
A14: DSFM | B14: 114869 | C14: =B14/'- 3 -'!$D14*100 -> 0.1118510419 | D14: =B14/'- 7 -'!$E14 -> 19.38089261 | E14: 115527 | F14: =E14/'- 3 -'!$D14*100 -> 0.1124917542 | G14: =E14/'- 7 -'!$E14 -> 19.49191148
A15: EVERGREEN | B15: 25469 | C15: =B15/'- 3 -'!$D15*100 -> 0.1215655489 | D15: =B15/'- 7 -'!$E15 -> 18.36265321 | E15: 2359 | F15: =E15/'- 3 -'!$D15*100 -> 0.01125969335 | G15: =E15/'- 7 -'!$E15 -> 1.700793079
A16: FLIN FLON | B16: 38936 | C16: =B16/'- 3 -'!$D16*100 -> 0.2455851936 | D16: =B16/'- 7 -'!$E16 -> 41.83967333 | E16: 44641 | F16: =E16/'- 3 -'!$D16*100 -> 0.2815689498 | G16: =E16/'- 7 -'!$E16 -> 47.9701268
A17: FORT LA BOSSE | B17: 30806 | C17: =B17/'- 3 -'!$D17*100 -> 0.1626932616 | D17: =B17/'- 7 -'!$E17 -> 21.19435845 | E17: 1454 | F17: =E17/'- 3 -'!$D17*100 -> 0.0076788938 | G17: =E17/'- 7 -'!$E17 -> 1.000343997
A18: FRONTIER | B18: 325369 | C18: =B18/'- 3 -'!$D18*100 -> 0.2277261232 | D18: =B18/'- 7 -'!$E18 -> 55.29724677 | E18: 1857925 | F18: =E18/'- 3 -'!$D18*100 -> 1.300363764 | G18: =E18/'- 7 -'!$E18 -> 315.7588375
A19: GARDEN VALLEY | B19: 413403 | C19: =B19/'- 3 -'!$D19*100 -> 0.7795670142 | D19: =B19/'- 7 -'!$E19 -> 94.60022883 | E19: 244550 | F19: =E19/'- 3 -'!$D19*100 -> 0.4611556116 | G19: =E19/'- 7 -'!$E19 -> 55.9610984
A20: HANOVER | B20: 360888 | C20: =B20/'- 3 -'!$D20*100 -> 0.3743590483 | D20: =B20/'- 7 -'!$E20 -> 46.71084649 | E20: 300625 | F20: =E20/'- 3 -'!$D20*100 -> 0.3118465809 | G20: =E20/'- 7 -'!$E20 -> 38.91082061
A21: INTERLAKE | B21: 394280 | C21: =B21/'- 3 -'!$D21*100 -> 0.9551612039 | D21: =B21/'- 7 -'!$E21 -> 140.1137171 | E21: 107319 | F21: =E21/'- 3 -'!$D21*100 -> 0.2599851508 | G21: =E21/'- 7 -'!$E21 -> 38.13752665
A22: KELSEY | B22: 88391 | C22: =B22/'- 3 -'!$D22*100 -> 0.4217991585 | D22: =B22/'- 7 -'!$E22 -> 63.00142552 | E22: 504 | F22: =E22/'- 3 -'!$D22*100 -> 0.002405072642 | G22: =E22/'- 7 -'!$E22 -> 0.359230221
A23: LAKESHORE | B23: 153861 | C23: =B23/'- 3 -'!$D23*100 -> 0.9524490459 | D23: =B23/'- 7 -'!$E23 -> 169.8245033 | E23: 3718 | F23: =E23/'- 3 -'!$D23*100 -> 0.02301561509 | G23: =E23/'- 7 -'!$E23 -> 4.103752759
A24: LORD SELKIRK | B24: 166086 | C24: =B24/'- 3 -'!$D24*100 -> 0.2740669959 | D24: =B24/'- 7 -'!$E24 -> 45.85097866 | E24: 190369 | F24: =E24/'- 3 -'!$D24*100 -> 0.3141376151 | G24: =E24/'- 7 -'!$E24 -> 52.55473042
A25: LOUIS RIEL | B25: 939056 | C25: =B25/'- 3 -'!$D25*100 -> 0.4679254419 | D25: =B25/'- 7 -'!$E25 -> 61.95731204 | E25: 509660 | F25: =E25/'- 3 -'!$D25*100 -> 0.2539602332 | G25: =E25/'- 7 -'!$E25 -> 33.62649688
A26: MOUNTAIN VIEW | B26: 135138 | C26: =B26/'- 3 -'!$D26*100 -> 0.3156488491 | D26: =B26/'- 7 -'!$E26 -> 45.66244298 | E26: 140271 | F26: =E26/'- 3 -'!$D26*100 -> 0.327638264 | G26: =E26/'- 7 -'!$E26 -> 47.39685758
A27: MYSTERY LAKE | B27: 64278 | C27: =B27/'- 3 -'!$D27*100 -> 0.1482847799 | D27: =B27/'- 7 -'!$E27 -> 21.30668258 | E27: 3224 | F27: =E27/'- 3 -'!$D27*100 -> 0.007437538976 | G27: =E27/'- 7 -'!$E27 -> 1.068682047
A28: PARK WEST | B28: 237152 | C28: =B28/'- 3 -'!$D28*100 -> 0.8093652548 | D28: =B28/'- 7 -'!$E28 -> 122.8130502 | E28: 0 | F28: =E28/'- 3 -'!$D28*100 -> 0 | G28: =E28/'- 7 -'!$E28 -> 0
A29: PEMBINA TRAILS | B29: 587146 | C29: =B29/'- 3 -'!$D29*100 -> 0.3242818562 | D29: =B29/'- 7 -'!$E29 -> 39.8432453 | E29: 571234 | F29: =E29/'- 3 -'!$D29*100 -> 0.3154936282 | G29: =E29/'- 7 -'!$E29 -> 38.76347005
A30: PINE CREEK | B30: 85683 | C30: =B30/'- 3 -'!$D30*100 -> 0.5171983247 | D30: =B30/'- 7 -'!$E30 -> 81.99330144 | E30: 4489 | F30: =E30/'- 3 -'!$D30*100 -> 0.02709642846 | G30: =E30/'- 7 -'!$E30 -> 4.29569378
A31: PORTAGE LA PRAIRIE | B31: 366226 | C31: =B31/'- 3 -'!$D31*100 -> 0.8313970067 | D31: =B31/'- 7 -'!$E31 -> 110.1431579 | E31: 778812 | F31: =E31/'- 3 -'!$D31*100 -> 1.768039313 | G31: =E31/'- 7 -'!$E31 -> 234.2291729
A32: PRAIRIE ROSE | B32: 198958 | C32: =B32/'- 3 -'!$D32*100 -> 0.5952378459 | D32: =B32/'- 7 -'!$E32 -> 85.64700818 | E32: 1806 | F32: =E32/'- 3 -'!$D32*100 -> 0.005403148151 | G32: =E32/'- 7 -'!$E32 -> 0.7774429617
A33: PRAIRIE SPIRIT | B33: 103889 | C33: =B33/'- 3 -'!$D33*100 -> 0.3481259992 | D33: =B33/'- 7 -'!$E33 -> 51.76332835 | E33: 7887 | F33: =E33/'- 3 -'!$D33*100 -> 0.02642887847 | G33: =E33/'- 7 -'!$E33 -> 3.929745889
A34: RED RIVER VALLEY | B34: 137873 | C34: =B34/'- 3 -'!$D34*100 -> 0.4209912986 | D34: =B34/'- 7 -'!$E34 -> 63.55879072 | E34: 90052 | F34: =E34/'- 3 -'!$D34*100 -> 0.2749712302 | G34: =E34/'- 7 -'!$E34 -> 41.51353943
A35: RIVER EAST TRANSCONA | B35: 1168689 | C35: =B35/'- 3 -'!$D35*100 -> 0.5514018797 | D35: =B35/'- 7 -'!$E35 -> 72.63900802 | E35: 826036 | F35: =E35/'- 3 -'!$D35*100 -> 0.3897339695 | G35: =E35/'- 7 -'!$E35 -> 51.34166201
A36: ROLLING RIVER | B36: 77808 | C36: =B36/'- 3 -'!$D36*100 -> 0.3089508674 | D36: =B36/'- 7 -'!$E36 -> 45.50175439 | E36: 12333 | F36: =E36/'- 3 -'!$D36*100 -> 0.04897042783 | G36: =E36/'- 7 -'!$E36 -> 7.212280702
A37: SEINE RIVER | B37: 118089 | C37: =B37/'- 3 -'!$D37*100 -> 0.2112403311 | D37: =B37/'- 7 -'!$E37 -> 27.3880372 | E37: 134302 | F37: =E37/'- 3 -'!$D37*100 -> 0.24024252 | G37: =E37/'- 7 -'!$E37 -> 31.14827098
A38: SEVEN OAKS | B38: 475934 | C38: =B38/'- 3 -'!$D38*100 -> 0.3036000399 | D38: =B38/'- 7 -'!$E38 -> 42.63151766 | E38: 1857862 | F38: =E38/'- 3 -'!$D38*100 -> 1.185136967 | G38: =E38/'- 7 -'!$E38 -> 166.4169332
A39: SOUTHWEST HORIZON | B39: 29487 | C39: =B39/'- 3 -'!$D39*100 -> 0.125782869 | D39: =B39/'- 7 -'!$E39 -> 19.60180815 | E39: 41184 | F39: =E39/'- 3 -'!$D39*100 -> 0.1756788306 | G39: =E39/'- 7 -'!$E39 -> 27.37751778
A40: ST. JAMES-ASSINIBOIA | B40: 1388688 | C40: =B40/'- 3 -'!$D40*100 -> 1.22466914 | D40: =B40/'- 7 -'!$E40 -> 174.4004501 | E40: 323306 | F40: =E40/'- 3 -'!$D40*100 -> 0.285120114 | G40: =E40/'- 7 -'!$E40 -> 40.60286538
A41: SUNRISE | B41: 147467 | C41: =B41/'- 3 -'!$D41*100 -> 0.2117721275 | D41: =B41/'- 7 -'!$E41 -> 34.02953733 | E41: 65735 | F41: =E41/'- 3 -'!$D41*100 -> 0.09439970162 | G41: =E41/'- 7 -'!$E41 -> 15.16903196
A42: SWAN VALLEY | B42: 43281 | C42: =B42/'- 3 -'!$D42*100 -> 0.1990175529 | D42: =B42/'- 7 -'!$E42 -> 33.3187067 | E42: 35471 | F42: =E42/'- 3 -'!$D42*100 -> 0.163105095 | G42: =E42/'- 7 -'!$E42 -> 27.30638953
A43: TURTLE MOUNTAIN | B43: 47836 | C43: =B43/'- 3 -'!$D43*100 -> 0.3451256806 | D43: =B43/'- 7 -'!$E43 -> 47.12906404 | E43: 25016 | F43: =E43/'- 3 -'!$D43*100 -> 0.1804846564 | G43: =E43/'- 7 -'!$E43 -> 24.64630542
A44: TURTLE RIVER | B44: 2411 | C44: =B44/'- 3 -'!$D44*100 -> 0.0213123756 | D44: =B44/'- 7 -'!$E44 -> 3.720679012 | E44: 74999 | F44: =E44/'- 3 -'!$D44*100 -> 0.6629642712 | G44: =E44/'- 7 -'!$E44 -> 115.7391975
A45: WESTERN | B45: 60345 | C45: =B45/'- 3 -'!$D45*100 -> 0.2647290376 | D45: =B45/'- 7 -'!$E45 -> 33.56229143 | E45: 78917 | F45: =E45/'- 3 -'!$D45*100 -> 0.3462030236 | G45: =E45/'- 7 -'!$E45 -> 43.89154616
A46: WINNIPEG | B46: 1196862 | C46: =B46/'- 3 -'!$D46*100 -> 0.2771538563 | D46: =B46/'- 7 -'!$E46 -> 40.95308159 | E46: 3149640 | F46: =E46/'- 3 -'!$D46*100 -> 0.7293529846 | G46: =E46/'- 7 -'!$E46 -> 107.7713754
A48: PROVINCE | B48: =SUM(B11:B46) -> 10718795 | C48: =B48/'- 3 -'!$D48*100 -> 0.4169106679 | D48: =B48/'- 7 -'!$E48 -> 60.04171352 | E48: =SUM(E11:E46) -> 11814278 | F48: =E48/'- 3 -'!$D48*100 -> 0.4595197997 | G48: =E48/'- 7 -'!$E48 -> 66.17810072
A50: WHITESHELL | B50: 31916 | C50: =B50/'- 3 -'!$D50*100 -> 0.9414538199 | D50: =B50/'- 7 -'!$E50 -> 173.4565217 | E50: 56127 | F50: =E50/'- 3 -'!$D50*100 -> 1.6556266 | G50: =E50/'- 7 -'!$E50 -> 305.0380435
A51: MITT | B51: 14619 | C51: =B51/'- 3 -'!$D51*100 -> 0.0469568182 | D51: =B51/'- 7 -'!$E51 -> 8.240234485 | E51: 1750 | F51: =E51/'- 3 -'!$D51*100 -> 0.005621070651 | G51: =E51/'- 7 -'!$E51 -> 0.9864156474
A53: (1) Includes food services, health services, and other activities related to instructional and other support not included in previous programs.

Sheet - 29 -
B2: ANALYSIS OF EXPENSE BY PROGRAM | G2: PAGE 12 OF 16
B3: =OPYEAR -> OPERATING FUND 2020/2021 ACTUAL
B6: FUNCTION 700: TRANSPORTATION OF PUPILS
F7: ALLOWANCES IN LIEU OF TRANSPORTATION
B8: ADMINISTRATION | D8: REGULAR
A9: DIVISION / DISTRICT | B9: AMOUNT | C9: % | D9: AMOUNT | E9: % | F9: AMOUNT | G9: %
A11: BEAUTIFUL PLAINS | B11: 84602 | C11: =B11/'- 3 -'!$D11*100 -> 0.3758781835 | D11: 1126505 | E11: =D11/'- 3 -'!$D11*100 -> 5.004948501 | F11: 6136 | G11: =F11/'- 3 -'!$D11*100 -> 0.02726163133
A12: BORDER LAND | B12: 148161 | C12: =B12/'- 3 -'!$D12*100 -> 0.4306027069 | D12: 2155585 | E12: =D12/'- 3 -'!$D12*100 -> 6.264811495 | F12: 0 | G12: =F12/'- 3 -'!$D12*100 -> 0
A13: BRANDON | B13: 236128 | C13: =B13/'- 3 -'!$D13*100 -> 0.2095423146 | D13: 1946742 | E13: =D13/'- 3 -'!$D13*100 -> 1.727558039 | F13: 490 | G13: =F13/'- 3 -'!$D13*100 -> 0.0004348308298
A14: DSFM | B14: 340690 | C14: =B14/'- 3 -'!$D14*100 -> 0.3317390372 | D14: 8551060 | E14: =D14/'- 3 -'!$D14*100 -> 8.326397639 | F14: 222851 | G14: =F14/'- 3 -'!$D14*100 -> 0.2169960262
A15: EVERGREEN | B15: 169550 | C15: =B15/'- 3 -'!$D15*100 -> 0.8092755435 | D15: 1404149 | E15: =D15/'- 3 -'!$D15*100 -> 6.702114097 | F15: 7098 | G15: =F15/'- 3 -'!$D15*100 -> 0.0338793147
A16: FLIN FLON | B16: 0 | C16: =B16/'- 3 -'!$D16*100 -> 0 | D16: 336430 | E16: =D16/'- 3 -'!$D16*100 -> 2.122000891 | F16: 0 | G16: =F16/'- 3 -'!$D16*100 -> 0
A17: FORT LA BOSSE | B17: 69695 | C17: =B17/'- 3 -'!$D17*100 -> 0.3680746241 | D17: 1328514 | E17: =D17/'- 3 -'!$D17*100 -> 7.016174634 | F17: 0 | G17: =F17/'- 3 -'!$D17*100 -> 0
A18: FRONTIER | B18: 379459 | C18: =B18/'- 3 -'!$D18*100 -> 0.2655837741 | D18: 7628838 | E18: =D18/'- 3 -'!$D18*100 -> 5.33943216 | F18: 48526 | G18: =F18/'- 3 -'!$D18*100 -> 0.03396340111
A19: GARDEN VALLEY | B19: 170397 | C19: =B19/'- 3 -'!$D19*100 -> 0.3213229718 | D19: 2732690 | E19: =D19/'- 3 -'!$D19*100 -> 5.153119315 | F19: 18660 | G19: =F19/'- 3 -'!$D19*100 -> 0.03518774775
A20: HANOVER | B20: 291102 | C20: =B20/'- 3 -'!$D20*100 -> 0.3019681111 | D20: 3429301 | E20: =D20/'- 3 -'!$D20*100 -> 3.557308247 | F20: 975 | G20: =F20/'- 3 -'!$D20*100 -> 0.001011394317
A21: INTERLAKE | B21: 161719 | C21: =B21/'- 3 -'!$D21*100 -> 0.391771621 | D21: 2039494 | E21: =D21/'- 3 -'!$D21*100 -> 4.940766827 | F21: 363 | G21: =F21/'- 3 -'!$D21*100 -> 0.0008793839835
A22: KELSEY | B22: 82041 | C22: =B22/'- 3 -'!$D22*100 -> 0.391497152 | D22: 349943 | E22: =D22/'- 3 -'!$D22*100 -> 1.669917332 | F22: 372 | G22: =F22/'- 3 -'!$D22*100 -> 0.001775172664
A23: LAKESHORE | B23: 83192 | C23: =B23/'- 3 -'!$D23*100 -> 0.5149852206 | D23: 1473567 | E23: =D23/'- 3 -'!$D23*100 -> 9.121853382 | F23: 0 | G23: =F23/'- 3 -'!$D23*100 -> 0
A24: LORD SELKIRK | B24: 180169 | C24: =B24/'- 3 -'!$D24*100 -> 0.2973060739 | D24: 2450506 | E24: =D24/'- 3 -'!$D24*100 -> 4.043705176 | F24: 3781 | G24: =F24/'- 3 -'!$D24*100 -> 0.006239221316
A25: LOUIS RIEL | B25: 444469 | C25: =B25/'- 3 -'!$D25*100 -> 0.2214759857 | D25: 4395461 | E25: =D25/'- 3 -'!$D25*100 -> 2.19022937 | F25: 0 | G25: =F25/'- 3 -'!$D25*100 -> 0
A26: MOUNTAIN VIEW | B26: 199112 | C26: =B26/'- 3 -'!$D26*100 -> 0.4650762454 | D26: 2474870 | E26: =D26/'- 3 -'!$D26*100 -> 5.780682467 | F26: 7497 | G26: =F26/'- 3 -'!$D26*100 -> 0.01751113249
A27: MYSTERY LAKE | B27: 0 | C27: =B27/'- 3 -'!$D27*100 -> 0 | D27: 65000 | E27: =D27/'- 3 -'!$D27*100 -> 0.1499503826 | F27: 173480 | G27: =F27/'- 3 -'!$D27*100 -> 0.4002060364
A28: PARK WEST | B28: 57195 | C28: =B28/'- 3 -'!$D28*100 -> 0.1951982094 | D28: 1690480 | E28: =D28/'- 3 -'!$D28*100 -> 5.769362164 | F28: 4760 | G28: =F28/'- 3 -'!$D28*100 -> 0.01624518711
A29: PEMBINA TRAILS | B29: 251987 | C29: =B29/'- 3 -'!$D29*100 -> 0.1391729009 | D29: 2862095 | E29: =D29/'- 3 -'!$D29*100 -> 1.58074053 | F29: 30993 | G29: =F29/'- 3 -'!$D29*100 -> 0.01711749304
A30: PINE CREEK | B30: 128728 | C30: =B30/'- 3 -'!$D30*100 -> 0.7770258504 | D30: 1151399 | E30: =D30/'- 3 -'!$D30*100 -> 6.950055832 | F30: 0 | G30: =F30/'- 3 -'!$D30*100 -> 0
A31: PORTAGE LA PRAIRIE | B31: 158127 | C31: =B31/'- 3 -'!$D31*100 -> 0.3589759178 | D31: 1055794 | E31: =D31/'- 3 -'!$D31*100 -> 2.396836848 | F31: 1427 | G31: =F31/'- 3 -'!$D31*100 -> 0.003239539324
A32: PRAIRIE ROSE | B32: 153547 | C32: =B32/'- 3 -'!$D32*100 -> 0.4593782885 | D32: 2391812 | E32: =D32/'- 3 -'!$D32*100 -> 7.155766658 | F32: 0 | G32: =F32/'- 3 -'!$D32*100 -> 0
A33: PRAIRIE SPIRIT | B33: 125752 | C33: =B33/'- 3 -'!$D33*100 -> 0.4213876411 | D33: 2283781 | E33: =D33/'- 3 -'!$D33*100 -> 7.652817358 | F33: 0 | G33: =F33/'- 3 -'!$D33*100 -> 0
A34: RED RIVER VALLEY | B34: 163502 | C34: =B34/'- 3 -'!$D34*100 -> 0.4992487238 | D34: 2311781 | E34: =D34/'- 3 -'!$D34*100 -> 7.058957774 | F34: 16302 | G34: =F34/'- 3 -'!$D34*100 -> 0.04977769505
A35: RIVER EAST TRANSCONA | B35: 349298 | C35: =B35/'- 3 -'!$D35*100 -> 0.1648031031 | D35: 4052997 | E35: =D35/'- 3 -'!$D35*100 -> 1.912253957 | F35: 1275 | G35: =F35/'- 3 -'!$D35*100 -> 0.0006015607203
A36: ROLLING RIVER | B36: 58622 | C36: =B36/'- 3 -'!$D36*100 -> 0.2327693521 | D36: 1631008 | E36: =D36/'- 3 -'!$D36*100 -> 6.476214996 | F36: 4425 | G36: =F36/'- 3 -'!$D36*100 -> 0.01757027026
A37: SEINE RIVER | B37: 224531 | C37: =B37/'- 3 -'!$D37*100 -> 0.4016462396 | D37: 3186024 | E37: =D37/'- 3 -'!$D37*100 -> 5.69923333 | F37: 0 | G37: =F37/'- 3 -'!$D37*100 -> 0
A38: SEVEN OAKS | B38: 413533 | C38: =B38/'- 3 -'!$D38*100 -> 0.2637942137 | D38: 3666570 | E38: =D38/'- 3 -'!$D38*100 -> 2.338918418 | F38: 0 | G38: =F38/'- 3 -'!$D38*100 -> 0
A39: SOUTHWEST HORIZON | B39: 112324 | C39: =B39/'- 3 -'!$D39*100 -> 0.4791411462 | D39: 1858666 | E39: =D39/'- 3 -'!$D39*100 -> 7.928522467 | F39: 0 | G39: =F39/'- 3 -'!$D39*100 -> 0
A40: ST. JAMES-ASSINIBOIA | B40: 140927 | C40: =B40/'- 3 -'!$D40*100 -> 0.1242820186 | D40: 2465796 | E40: =D40/'- 3 -'!$D40*100 -> 2.1745592 | F40: 0 | G40: =F40/'- 3 -'!$D40*100 -> 0
A41: SUNRISE | B41: 518402 | C41: =B41/'- 3 -'!$D41*100 -> 0.7444587224 | D41: 4689486 | E41: =D41/'- 3 -'!$D41*100 -> 6.73440449 | F41: 3563 | G41: =F41/'- 3 -'!$D41*100 -> 0.005116697906
A42: SWAN VALLEY | B42: 137488 | C42: =B42/'- 3 -'!$D42*100 -> 0.6322064026 | D42: 1459938 | E42: =D42/'- 3 -'!$D42*100 -> 6.713183339 | F42: 0 | G42: =F42/'- 3 -'!$D42*100 -> 0
A43: TURTLE MOUNTAIN | B43: 69560 | C43: =B43/'- 3 -'!$D43*100 -> 0.5018593181 | D43: 965533 | E43: =D43/'- 3 -'!$D43*100 -> 6.966097368 | F43: 0 | G43: =F43/'- 3 -'!$D43*100 -> 0
A44: TURTLE RIVER | B44: 54147 | C44: =B44/'- 3 -'!$D44*100 -> 0.4786400671 | D44: 904691 | E44: =D44/'- 3 -'!$D44*100 -> 7.997144089 | F44: 3690 | G44: =F44/'- 3 -'!$D44*100 -> 0.03261827705
A45: WESTERN | B45: 48723 | C45: =B45/'- 3 -'!$D45*100 -> 0.2137441859 | D45: 725973 | E45: =D45/'- 3 -'!$D45*100 -> 3.184789686 | F45: 12892 | G45: =F45/'- 3 -'!$D45*100 -> 0.05655624745
A46: WINNIPEG | B46: 679846 | C46: =B46/'- 3 -'!$D46*100 -> 0.1574299632 | D46: 5682197 | E46: =D46/'- 3 -'!$D46*100 -> 1.315809852 | F46: 0 | G46: =F46/'- 3 -'!$D46*100 -> 0
A48: PROVINCE | B48: =SUM(B11:B46) -> 6886725 | C48: =B48/'- 3 -'!$D48*100 -> 0.2678611839 | D48: =SUM(D11:D46) -> 88924676 | E48: =D48/'- 3 -'!$D48*100 -> 3.458751292 | F48: =SUM(F11:F46) -> 569556 | G48: =F48/'- 3 -'!$D48*100 -> 0.02215304727
A50: WHITESHELL | B50: 0 | C50: =B50/'- 3 -'!$D50*100 -> 0 | D50: 0 | E50: =D50/'- 3 -'!$D50*100 -> 0 | F50: 8599 | G50: =F50/'- 3 -'!$D50*100 -> 0.2536521305
A51: MITT | B51: 0 | C51: =B51/'- 3 -'!$D51*100 -> 0 | D51: 0 | E51: =D51/'- 3 -'!$D51*100 -> 0 | F51: 0 | G51: =F51/'- 3 -'!$D51*100 -> 0

Sheet - 30 -
B2: ANALYSIS OF EXPENSE BY PROGRAM | G2: PAGE 13 OF 16
B3: =OPYEAR -> OPERATING FUND 2020/2021 ACTUAL
B6: FUNCTION 700: TRANSPORTATION OF PUPILS
B7: BOARDING OF STUDENTS | D7: FIELD TRIPS AND OTHER
A9: DIVISION / DISTRICT | B9: AMOUNT | C9: % | D9: AMOUNT | E9: %
A11: BEAUTIFUL PLAINS | B11: 0 | C11: =B11/'- 3 -'!$D11*100 -> 0 | D11: 18592 | E11: =D11/'- 3 -'!$D11*100 -> 0.08260238751
A12: BORDER LAND | B12: 6981 | C12: =B12/'- 3 -'!$D12*100 -> 0.02028899303 | D12: 0 | E12: =D12/'- 3 -'!$D12*100 -> 0
A13: BRANDON | B13: 0 | C13: =B13/'- 3 -'!$D13*100 -> 0 | D13: 11504 | E13: =D13/'- 3 -'!$D13*100 -> 0.01020876299
A14: DSFM | B14: 0 | C14: =B14/'- 3 -'!$D14*100 -> 0 | D14: 148975 | E14: =D14/'- 3 -'!$D14*100 -> 0.1450609735
A15: EVERGREEN | B15: 0 | C15: =B15/'- 3 -'!$D15*100 -> 0 | D15: 0 | E15: =D15/'- 3 -'!$D15*100 -> 0
A16: FLIN FLON | B16: 0 | C16: =B16/'- 3 -'!$D16*100 -> 0 | D16: 4310 | E16: =D16/'- 3 -'!$D16*100 -> 0.02718492358
A17: FORT LA BOSSE | B17: 0 | C17: =B17/'- 3 -'!$D17*100 -> 0 | D17: 0 | E17: =D17/'- 3 -'!$D17*100 -> 0
A18: FRONTIER | B18: 2831493 | C18: =B18/'- 3 -'!$D18*100 -> 1.981765085 | D18: 430743 | E18: =D18/'- 3 -'!$D18*100 -> 0.3014775024
A19: GARDEN VALLEY | B19: 0 | C19: =B19/'- 3 -'!$D19*100 -> 0 | D19: 1316 | E19: =D19/'- 3 -'!$D19*100 -> 0.00248162251
A20: HANOVER | B20: 0 | C20: =B20/'- 3 -'!$D20*100 -> 0 | D20: 104615 | E20: =D20/'- 3 -'!$D20*100 -> 0.1085200168
A21: INTERLAKE | B21: 0 | C21: =B21/'- 3 -'!$D21*100 -> 0 | D21: 0 | E21: =D21/'- 3 -'!$D21*100 -> 0
A22: KELSEY | B22: 0 | C22: =B22/'- 3 -'!$D22*100 -> 0 | D22: 72 | E22: =D22/'- 3 -'!$D22*100 -> 0.000343581806
A23: LAKESHORE | B23: 0 | C23: =B23/'- 3 -'!$D23*100 -> 0 | D23: 0 | E23: =D23/'- 3 -'!$D23*100 -> 0
A24: LORD SELKIRK | B24: 0 | C24: =B24/'- 3 -'!$D24*100 -> 0 | D24: 45 | E24: =D24/'- 3 -'!$D24*100 -> 7.425679958e-05
A25: LOUIS RIEL | B25: 0 | C25: =B25/'- 3 -'!$D25*100 -> 0 | D25: 264 | E25: =D25/'- 3 -'!$D25*100 -> 0.0001315494674
A26: MOUNTAIN VIEW | B26: 0 | C26: =B26/'- 3 -'!$D26*100 -> 0 | D26: 13987 | E26: =D26/'- 3 -'!$D26*100 -> 0.03267016274
A27: MYSTERY LAKE | B27: 0 | C27: =B27/'- 3 -'!$D27*100 -> 0 | D27: 465 | E27: =D27/'- 3 -'!$D27*100 -> 0.001072721968
A28: PARK WEST | B28: 0 | C28: =B28/'- 3 -'!$D28*100 -> 0 | D28: 0 | E28: =D28/'- 3 -'!$D28*100 -> 0
A29: PEMBINA TRAILS | B29: 0 | C29: =B29/'- 3 -'!$D29*100 -> 0 | D29: 195 | E29: =D29/'- 3 -'!$D29*100 -> 0.0001076988721
A30: PINE CREEK | B30: 0 | C30: =B30/'- 3 -'!$D30*100 -> 0 | D30: 0 | E30: =D30/'- 3 -'!$D30*100 -> 0
A31: PORTAGE LA PRAIRIE | B31: 0 | C31: =B31/'- 3 -'!$D31*100 -> 0 | D31: 64 | E31: =D31/'- 3 -'!$D31*100 -> 0.000145291182
A32: PRAIRIE ROSE | B32: 0 | C32: =B32/'- 3 -'!$D32*100 -> 0 | D32: 0 | E32: =D32/'- 3 -'!$D32*100 -> 0
A33: PRAIRIE SPIRIT | B33: 0 | C33: =B33/'- 3 -'!$D33*100 -> 0 | D33: 5837 | E33: =D33/'- 3 -'!$D33*100 -> 0.01955944765
A34: RED RIVER VALLEY | B34: 0 | C34: =B34/'- 3 -'!$D34*100 -> 0 | D34: 61577 | E34: =D34/'- 3 -'!$D34*100 -> 0.1880236246
A35: RIVER EAST TRANSCONA | B35: 0 | C35: =B35/'- 3 -'!$D35*100 -> 0 | D35: 198715 | E35: =D35/'- 3 -'!$D35*100 -> 0.09375618708
A36: ROLLING RIVER | B36: 0 | C36: =B36/'- 3 -'!$D36*100 -> 0 | D36: 120 | E36: =D36/'- 3 -'!$D36*100 -> 0.0004764819054
A37: SEINE RIVER | B37: 0 | C37: =B37/'- 3 -'!$D37*100 -> 0 | D37: 0 | E37: =D37/'- 3 -'!$D37*100 -> 0
A38: SEVEN OAKS | B38: 0 | C38: =B38/'- 3 -'!$D38*100 -> 0 | D38: 144780 | E38: =D38/'- 3 -'!$D38*100 -> 0.09235569171
A39: SOUTHWEST HORIZON | B39: 0 | C39: =B39/'- 3 -'!$D39*100 -> 0 | D39: 29 | E39: =D39/'- 3 -'!$D39*100 -> 0.0001237054702
A40: ST. JAMES-ASSINIBOIA | B40: 0 | C40: =B40/'- 3 -'!$D40*100 -> 0 | D40: 5050 | E40: =D40/'- 3 -'!$D40*100 -> 0.004453541153
A41: SUNRISE | B41: 0 | C41: =B41/'- 3 -'!$D41*100 -> 0 | D41: 971 | E41: =D41/'- 3 -'!$D41*100 -> 0.001394418655
A42: SWAN VALLEY | B42: 0 | C42: =B42/'- 3 -'!$D42*100 -> 0 | D42: 0 | E42: =D42/'- 3 -'!$D42*100 -> 0
A43: TURTLE MOUNTAIN | B43: 0 | C43: =B43/'- 3 -'!$D43*100 -> 0 | D43: 195 | E43: =D43/'- 3 -'!$D43*100 -> 0.001406879917
A44: TURTLE RIVER | B44: 0 | C44: =B44/'- 3 -'!$D44*100 -> 0 | D44: 0 | E44: =D44/'- 3 -'!$D44*100 -> 0
A45: WESTERN | B45: 0 | C45: =B45/'- 3 -'!$D45*100 -> 0 | D45: 0 | E45: =D45/'- 3 -'!$D45*100 -> 0
A46: WINNIPEG | B46: 0 | C46: =B46/'- 3 -'!$D46*100 -> 0 | D46: 40686 | E46: =D46/'- 3 -'!$D46*100 -> 0.009421538821
A48: PROVINCE | B48: =SUM(B11:B46) -> 2838474 | C48: =B48/'- 3 -'!$D48*100 -> 0.1104032768 | D48: =SUM(D11:D46) -> 1193107 | E48: =D48/'- 3 -'!$D48*100 -> 0.04640624587
A50: WHITESHELL | B50: 0 | C50: =B50/'- 3 -'!$D50*100 -> 0 | D50: 5037 | E50: =D50/'- 3 -'!$D50*100 -> 0.1485807398
A51: MITT | B51: 0 | C51: =B51/'- 3 -'!$D51*100 -> 0 | D51: 0 | E51: =D51/'- 3 -'!$D51*100 -> 0

Sheet - 31 -
B2: ANALYSIS OF EXPENSE BY PROGRAM | G2: PAGE 14 OF 16
B3: =OPYEAR -> OPERATING FUND 2020/2021 ACTUAL
B6: FUNCTION 800: OPERATIONS AND MAINTENANCE
D7: SCHOOL BUILDINGS
B8: ADMINISTRATION | D8: MAINTENANCE | F8: REPAIRS
A9: DIVISION / DISTRICT | B9: AMOUNT | C9: % | D9: AMOUNT | E9: % | F9: AMOUNT | G9: %
A11: BEAUTIFUL PLAINS | B11: 75057 | C11: =B11/'- 3 -'!$D11*100 -> 0.3334707078 | D11: 1811950 | E11: =D11/'- 3 -'!$D11*100 -> 8.050311749 | F11: 179789 | G11: =F11/'- 3 -'!$D11*100 -> 0.7987844582
A12: BORDER LAND | B12: 124629 | C12: =B12/'- 3 -'!$D12*100 -> 0.3622112753 | D12: 2847389 | E12: =D12/'- 3 -'!$D12*100 -> 8.275412632 | F12: 198687 | G12: =F12/'- 3 -'!$D12*100 -> 0.5774472366
A13: BRANDON | B13: 401378 | C13: =B13/'- 3 -'!$D13*100 -> 0.3561867935 | D13: 8162735 | E13: =D13/'- 3 -'!$D13*100 -> 7.243691497 | F13: 551146 | G13: =F13/'- 3 -'!$D13*100 -> 0.4890923929
A14: DSFM | B14: 251564 | C14: =B14/'- 3 -'!$D14*100 -> 0.2449546484 | D14: 10130436 | E14: =D14/'- 3 -'!$D14*100 -> 9.864278626 | F14: 1942083 | G14: =F14/'- 3 -'!$D14*100 -> 1.891058571
A15: EVERGREEN | B15: 40765 | C15: =B15/'- 3 -'!$D15*100 -> 0.1945745652 | D15: 2375811 | E15: =D15/'- 3 -'!$D15*100 -> 11.33993358 | F15: 105784 | G15: =F15/'- 3 -'!$D15*100 -> 0.5049153883
A16: FLIN FLON | B16: 108435 | C16: =B16/'- 3 -'!$D16*100 -> 0.6839436633 | D16: 2252637 | E16: =D16/'- 3 -'!$D16*100 -> 14.20829807 | F16: 83792 | G16: =F16/'- 3 -'!$D16*100 -> 0.5285102359
A17: FORT LA BOSSE | B17: 69664 | C17: =B17/'- 3 -'!$D17*100 -> 0.3679109062 | D17: 1683985 | E17: =D17/'- 3 -'!$D17*100 -> 8.893495169 | F17: 50536 | G17: =F17/'- 3 -'!$D17*100 -> 0.2668917311
A18: FRONTIER | B18: 1018074 | C18: =B18/'- 3 -'!$D18*100 -> 0.7125511194 | D18: 21535995 | E18: =D18/'- 3 -'!$D18*100 -> 15.07306674 | F18: 2383147 | G18: =F18/'- 3 -'!$D18*100 -> 1.667967223
A19: GARDEN VALLEY | B19: 130135 | C19: =B19/'- 3 -'!$D19*100 -> 0.2453996546 | D19: 4465904 | E19: =D19/'- 3 -'!$D19*100 -> 8.421495362 | F19: 291761 | G19: =F19/'- 3 -'!$D19*100 -> 0.5501828763
A20: HANOVER | B20: 270583 | C20: =B20/'- 3 -'!$D20*100 -> 0.280683188 | D20: 8261502 | E20: =D20/'- 3 -'!$D20*100 -> 8.56988325 | F20: 463644 | G20: =F20/'- 3 -'!$D20*100 -> 0.4809506733
A21: INTERLAKE | B21: 169855 | C21: =B21/'- 3 -'!$D21*100 -> 0.4114814505 | D21: 3614837 | E21: =D21/'- 3 -'!$D21*100 -> 8.757106779 | F21: 511266 | G21: =F21/'- 3 -'!$D21*100 -> 1.238565101
A22: KELSEY | B22: 88084 | C22: =B22/'- 3 -'!$D22*100 -> 0.4203341638 | D22: 2100511 | E22: =D22/'- 3 -'!$D22*100 -> 10.02357448 | F22: 22802 | G22: =F22/'- 3 -'!$D22*100 -> 0.1088104492
A23: LAKESHORE | B23: 71760 | C23: =B23/'- 3 -'!$D23*100 -> 0.444217466 | D23: 1268592 | E23: =D23/'- 3 -'!$D23*100 -> 7.852992247 | F23: 116468 | G23: =F23/'- 3 -'!$D23*100 -> 0.7209743566
A24: LORD SELKIRK | B24: 134260 | C24: =B24/'- 3 -'!$D24*100 -> 0.2215492869 | D24: 5682159 | E24: =D24/'- 3 -'!$D24*100 -> 9.376420935 | F24: 502413 | G24: =F24/'- 3 -'!$D24*100 -> 0.8290573655
A25: LOUIS RIEL | B25: 673794 | C25: =B25/'- 3 -'!$D25*100 -> 0.3357471282 | D25: 18934523 | E25: =D25/'- 3 -'!$D25*100 -> 9.434948547 | F25: 263812 | G25: =F25/'- 3 -'!$D25*100 -> 0.1314557882
A26: MOUNTAIN VIEW | B26: 230307 | C26: =B26/'- 3 -'!$D26*100 -> 0.5379400279 | D26: 4622373 | E26: =D26/'- 3 -'!$D26*100 -> 10.79671682 | F26: 358538 | G26: =F26/'- 3 -'!$D26*100 -> 0.8374558382
A27: MYSTERY LAKE | B27: 205828 | C27: =B27/'- 3 -'!$D27*100 -> 0.4748305745 | D27: 4646608 | E27: =D27/'- 3 -'!$D27*100 -> 10.71939457 | F27: 144868 | G27: =F27/'- 3 -'!$D27*100 -> 0.334200185
A28: PARK WEST | B28: 55620 | C28: =B28/'- 3 -'!$D28*100 -> 0.1898229636 | D28: 2977696 | E28: =D28/'- 3 -'!$D28*100 -> 10.162443 | F28: 145596 | G28: =F28/'- 3 -'!$D28*100 -> 0.4968979542
A29: PEMBINA TRAILS | B29: 979115 | C29: =B29/'- 3 -'!$D29*100 -> 0.5407670828 | D29: 16804878 | E29: =D29/'- 3 -'!$D29*100 -> 9.281366186 | F29: 1935263 | G29: =F29/'- 3 -'!$D29*100 -> 1.068849448
A30: PINE CREEK | B30: 141062 | C30: =B30/'- 3 -'!$D30*100 -> 0.8514761397 | D30: 1391616 | E30: =D30/'- 3 -'!$D30*100 -> 8.400049762 | F30: 108239 | G30: =F30/'- 3 -'!$D30*100 -> 0.6533504833
A31: PORTAGE LA PRAIRIE | B31: 102213 | C31: =B31/'- 3 -'!$D31*100 -> 0.2320413686 | D31: 4046489 | E31: =D31/'- 3 -'!$D31*100 -> 9.186237029 | F31: 166120 | G31: =F31/'- 3 -'!$D31*100 -> 0.3771214244
A32: PRAIRIE ROSE | B32: 165760 | C32: =B32/'- 3 -'!$D32*100 -> 0.4959168535 | D32: 2775249 | E32: =D32/'- 3 -'!$D32*100 -> 8.30292442 | F32: 158415 | G32: =F32/'- 3 -'!$D32*100 -> 0.473942256
A33: PRAIRIE SPIRIT | B33: 119020 | C33: =B33/'- 3 -'!$D33*100 -> 0.3988291005 | D33: 2902308 | E33: =D33/'- 3 -'!$D33*100 -> 9.725465375 | F33: 226105 | G33: =F33/'- 3 -'!$D33*100 -> 0.7576647099
A34: RED RIVER VALLEY | B34: 105883 | C34: =B34/'- 3 -'!$D34*100 -> 0.3233107401 | D34: 2532469 | E34: =D34/'- 3 -'!$D34*100 -> 7.732822329 | F34: 417623 | G34: =F34/'- 3 -'!$D34*100 -> 1.275199996
A35: RIVER EAST TRANSCONA | B35: 1065224 | C35: =B35/'- 3 -'!$D35*100 -> 0.502585817 | D35: 22021567 | E35: =D35/'- 3 -'!$D35*100 -> 10.39004683 | F35: 597481 | G35: =F35/'- 3 -'!$D35*100 -> 0.2818989025
A36: ROLLING RIVER | B36: 64716 | C36: =B36/'- 3 -'!$D36*100 -> 0.2569666916 | D36: 2505219 | E36: =D36/'- 3 -'!$D36*100 -> 9.947429354 | F36: 109943 | G36: =F36/'- 3 -'!$D36*100 -> 0.436548751
A37: SEINE RIVER | B37: 121729 | C37: =B37/'- 3 -'!$D37*100 -> 0.2177516472 | D37: 4341614 | E37: =D37/'- 3 -'!$D37*100 -> 7.766379417 | F37: 523711 | G37: =F37/'- 3 -'!$D37*100 -> 0.9368263348
A38: SEVEN OAKS | B38: 653189 | C38: =B38/'- 3 -'!$D38*100 -> 0.4166716529 | D38: 12962425 | E38: =D38/'- 3 -'!$D38*100 -> 8.268778334 | F38: 827082 | G38: =F38/'- 3 -'!$D38*100 -> 0.5275986339
A39: SOUTHWEST HORIZON | B39: 107286 | C39: =B39/'- 3 -'!$D39*100 -> 0.45765052 | D39: 2106070 | E39: =D39/'- 3 -'!$D39*100 -> 8.983875163 | F39: 71607 | G39: =F39/'- 3 -'!$D39*100 -> 0.3054544003
A40: ST. JAMES-ASSINIBOIA | B40: 472680 | C40: =B40/'- 3 -'!$D40*100 -> 0.4168514519 | D40: 8286077 | E40: =D40/'- 3 -'!$D40*100 -> 7.307402953 | F40: 1320955 | G40: =F40/'- 3 -'!$D40*100 -> 1.164936129
A41: SUNRISE | B41: 193762 | C41: =B41/'- 3 -'!$D41*100 -> 0.2782547347 | D41: 6079445 | E41: =D41/'- 3 -'!$D41*100 -> 8.730475303 | F41: 452216 | G41: =F41/'- 3 -'!$D41*100 -> 0.6494113557
A42: SWAN VALLEY | B42: 110774 | C42: =B42/'- 3 -'!$D42*100 -> 0.5093683233 | D42: 2019426 | E42: =D42/'- 3 -'!$D42*100 -> 9.285858014 | F42: 244467 | G42: =F42/'- 3 -'!$D42*100 -> 1.124124306
A43: TURTLE MOUNTAIN | B43: 46078 | C43: =B43/'- 3 -'!$D43*100 -> 0.332442117 | D43: 909049 | E43: =D43/'- 3 -'!$D43*100 -> 6.558578367 | F43: 96230 | G43: =F43/'- 3 -'!$D43*100 -> 0.6942772021
A44: TURTLE RIVER | B44: 45179 | C44: =B44/'- 3 -'!$D44*100 -> 0.3993661623 | D44: 1083371 | E44: =D44/'- 3 -'!$D44*100 -> 9.576611228 | F44: 55656 | G44: =F44/'- 3 -'!$D44*100 -> 0.4919790861
A45: WESTERN | B45: 47880 | C45: =B45/'- 3 -'!$D45*100 -> 0.2100460074 | D45: 1851055 | E45: =D45/'- 3 -'!$D45*100 -> 8.120440942 | F45: 143873 | G45: =F45/'- 3 -'!$D45*100 -> 0.631160176
A46: WINNIPEG | B46: 1244358 | C46: =B46/'- 3 -'!$D46*100 -> 0.288152367 | D46: 40953582 | E46: =D46/'- 3 -'!$D46*100 -> 9.483502007 | F46: 5590154 | G46: =F46/'- 3 -'!$D46*100 -> 1.294495721
A48: PROVINCE | B48: =SUM(B11:B46) -> 9905700 | C48: =B48/'- 3 -'!$D48*100 -> 0.3852850999 | D48: =SUM(D11:D46) -> 242947552 | E48: =D48/'- 3 -'!$D48*100 -> 9.449516122 | F48: =SUM(F11:F46) -> 21361272 | G48: =F48/'- 3 -'!$D48*100 -> 0.8308529248
A50: WHITESHELL | B50: 30576 | C50: =B50/'- 3 -'!$D50*100 -> 0.9019266825 | D50: 435598 | E50: =D50/'- 3 -'!$D50*100 -> 12.84921046 | F50: 0 | G50: =F50/'- 3 -'!$D50*100 -> 0
A51: MITT | B51: 180133 | C51: =B51/'- 3 -'!$D51*100 -> 0.5785944683 | D51: 3978919 | E51: =D51/'- 3 -'!$D51*100 -> 12.78044846 | F51: 0 | G51: =F51/'- 3 -'!$D51*100 -> 0

Sheet - 32 -
B2: ANALYSIS OF EXPENSE BY PROGRAM | F2: PAGE 15 OF 16
B3: =OPYEAR -> OPERATING FUND 2020/2021 ACTUAL
B6: FUNCTION 800: OPERATIONS AND MAINTENANCE
B8: OTHER BUILDINGS | D8: GROUNDS
A9: DIVISION / DISTRICT | B9: AMOUNT | C9: % | D9: AMOUNT | E9: %
A11: BEAUTIFUL PLAINS | B11: 56099 | C11: =B11/'- 3 -'!$D11*100 -> 0.2492422191 | D11: 15329 | E11: =D11/'- 3 -'!$D11*100 -> 0.06810520644
A12: BORDER LAND | B12: 287524 | C12: =B12/'- 3 -'!$D12*100 -> 0.8356356443 | D12: 79112 | E12: =D12/'- 3 -'!$D12*100 -> 0.2299244832
A13: BRANDON | B13: 340450 | C13: =B13/'- 3 -'!$D13*100 -> 0.3021186857 | D13: 398486 | E13: =D13/'- 3 -'!$D13*100 -> 0.3536204042
A14: DSFM | B14: 212515 | C14: =B14/'- 3 -'!$D14*100 -> 0.2069315844 | D14: 680121 | E14: =D14/'- 3 -'!$D14*100 -> 0.6622521522
A15: EVERGREEN | B15: 146155 | C15: =B15/'- 3 -'!$D15*100 -> 0.6976093604 | D15: 48148 | E15: =D15/'- 3 -'!$D15*100 -> 0.2298142074
A16: FLIN FLON | B16: 19098 | C16: =B16/'- 3 -'!$D16*100 -> 0.1204588563 | D16: 41622 | E16: =D16/'- 3 -'!$D16*100 -> 0.2625268885
A17: FORT LA BOSSE | B17: 93586 | C17: =B17/'- 3 -'!$D17*100 -> 0.4942482498 | D17: 31930 | E17: =D17/'- 3 -'!$D17*100 -> 0.1686293528
A18: FRONTIER | B18: 4464752 | C18: =B18/'- 3 -'!$D18*100 -> 3.124884866 | D18: 54595 | E18: =D18/'- 3 -'!$D18*100 -> 0.03821110092
A19: GARDEN VALLEY | B19: 124081 | C19: =B19/'- 3 -'!$D19*100 -> 0.2339834367 | D19: 193510 | E19: =D19/'- 3 -'!$D19*100 -> 0.3649078815
A20: HANOVER | B20: 230286 | C20: =B20/'- 3 -'!$D20*100 -> 0.2388820016 | D20: 253543 | E20: =D20/'- 3 -'!$D20*100 -> 0.2630071274
A21: INTERLAKE | B21: 167740 | C21: =B21/'- 3 -'!$D21*100 -> 0.4063577669 | D21: 77869 | E21: =D21/'- 3 -'!$D21*100 -> 0.1886411885
A22: KELSEY | B22: 65086 | C22: =B22/'- 3 -'!$D22*100 -> 0.3105884087 | D22: 16897 | E22: =D22/'- 3 -'!$D22*100 -> 0.0806319691
A23: LAKESHORE | B23: 57601 | C23: =B23/'- 3 -'!$D23*100 -> 0.3565687048 | D23: 11861 | E23: =D23/'- 3 -'!$D23*100 -> 0.07342340251
A24: LORD SELKIRK | B24: 167824 | C24: =B24/'- 3 -'!$D24*100 -> 0.2769349585 | D24: 141389 | E24: =D24/'- 3 -'!$D24*100 -> 0.2333132141
A25: LOUIS RIEL | B25: 666543 | C25: =B25/'- 3 -'!$D25*100 -> 0.3321340025 | D25: 390858 | E25: =D25/'- 3 -'!$D25*100 -> 0.1947619763
A26: MOUNTAIN VIEW | B26: 597324 | C26: =B26/'- 3 -'!$D26*100 -> 1.395200707 | D26: 57796 | E26: =D26/'- 3 -'!$D26*100 -> 0.1349971206
A27: MYSTERY LAKE | B27: 141389 | C27: =B27/'- 3 -'!$D27*100 -> 0.3261743791 | D27: 37922 | E27: =D27/'- 3 -'!$D27*100 -> 0.08748336012
A28: PARK WEST | B28: 66836 | C28: =B28/'- 3 -'!$D28*100 -> 0.228101539 | D28: 82858 | E28: =D28/'- 3 -'!$D28*100 -> 0.2827822927
A29: PEMBINA TRAILS | B29: 372447 | C29: =B29/'- 3 -'!$D29*100 -> 0.2057031888 | D29: 1083322 | E29: =D29/'- 3 -'!$D29*100 -> 0.5983208078
A30: PINE CREEK | B30: 36243 | C30: =B30/'- 3 -'!$D30*100 -> 0.2187694044 | D30: 25417 | E30: =D30/'- 3 -'!$D30*100 -> 0.1534216801
A31: PORTAGE LA PRAIRIE | B31: 181721 | C31: =B31/'- 3 -'!$D31*100 -> 0.4125384202 | D31: 115501 | E31: =D31/'- 3 -'!$D31*100 -> 0.2622074502
A32: PRAIRIE ROSE | B32: 112754 | C32: =B32/'- 3 -'!$D32*100 -> 0.3373347545 | D32: 97446 | E32: =D32/'- 3 -'!$D32*100 -> 0.2915366416
A33: PRAIRIE SPIRIT | B33: 116655 | C33: =B33/'- 3 -'!$D33*100 -> 0.390904123 | D33: 37695 | E33: =D33/'- 3 -'!$D33*100 -> 0.1263137535
A34: RED RIVER VALLEY | B34: 116922 | C34: =B34/'- 3 -'!$D34*100 -> 0.3570180138 | D34: 83163 | E34: =D34/'- 3 -'!$D34*100 -> 0.2539358639
A35: RIVER EAST TRANSCONA | B35: 482822 | C35: =B35/'- 3 -'!$D35*100 -> 0.2278013726 | D35: 561508 | E35: =D35/'- 3 -'!$D35*100 -> 0.2649263976
A36: ROLLING RIVER | B36: 172720 | C36: =B36/'- 3 -'!$D36*100 -> 0.6858162891 | D36: 94172 | E36: =D36/'- 3 -'!$D36*100 -> 0.3739271166
A37: SEINE RIVER | B37: 159951 | C37: =B37/'- 3 -'!$D37*100 -> 0.2861240438 | D37: 105394 | E37: =D37/'- 3 -'!$D37*100 -> 0.1885312219
A38: SEVEN OAKS | B38: 630899 | C38: =B38/'- 3 -'!$D38*100 -> 0.4024527804 | D38: 470013 | E38: =D38/'- 3 -'!$D38*100 -> 0.2998230124
A39: SOUTHWEST HORIZON | B39: 67268 | C39: =B39/'- 3 -'!$D39*100 -> 0.2869455025 | D39: 42140 | E39: =D39/'- 3 -'!$D39*100 -> 0.1797568454
A40: ST. JAMES-ASSINIBOIA | B40: 504364 | C40: =B40/'- 3 -'!$D40*100 -> 0.4447932336 | D40: 284162 | E40: =D40/'- 3 -'!$D40*100 -> 0.2505994378
A41: SUNRISE | B41: 403965 | C41: =B41/'- 3 -'!$D41*100 -> 0.5801198063 | D41: 301270 | E41: =D41/'- 3 -'!$D41*100 -> 0.4326431598
A42: SWAN VALLEY | B42: 126168 | C42: =B42/'- 3 -'!$D42*100 -> 0.5801540309 | D42: 108833 | E42: =D42/'- 3 -'!$D42*100 -> 0.5004430889
A43: TURTLE MOUNTAIN | B43: 140669 | C43: =B43/'- 3 -'!$D43*100 -> 1.014894313 | D43: 1597 | E43: =D43/'- 3 -'!$D43*100 -> 0.01152198578
A44: TURTLE RIVER | B44: 55193 | C44: =B44/'- 3 -'!$D44*100 -> 0.4878863321 | D44: 42255 | E44: =D44/'- 3 -'!$D44*100 -> 0.3735190507
A45: WESTERN | B45: 43799 | C45: =B45/'- 3 -'!$D45*100 -> 0.1921429632 | D45: 47059 | E45: =D45/'- 3 -'!$D45*100 -> 0.2064443414
A46: WINNIPEG | B46: 2672716 | C46: =B46/'- 3 -'!$D46*100 -> 0.6189130794 | D46: 1351893 | E46: =D46/'- 3 -'!$D46*100 -> 0.3130539345
A48: PROVINCE | B48: =SUM(B11:B46) -> 14302165 | C48: =B48/'- 3 -'!$D48*100 -> 0.5562868925 | D48: =SUM(D11:D46) -> 7466686 | E48: =D48/'- 3 -'!$D48*100 -> 0.2904189367
A50: WHITESHELL | B50: 42 | C50: =B50/'- 3 -'!$D50*100 -> 0.001238910278 | D50: 9257 | E50: =D50/'- 3 -'!$D50*100 -> 0.2730617249
A51: MITT | B51: 0 | C51: =B51/'- 3 -'!$D51*100 -> 0 | D51: 62633 | E51: =D51/'- 3 -'!$D51*100 -> 0.2011797246

Sheet - 33 -
B2: ANALYSIS OF EXPENSE BY PROGRAM | G2: PAGE 16 OF 16
B3: =OPYEAR -> OPERATING FUND 2020/2021 ACTUAL
B6: FUNCTION 900: FISCAL
B7: INTEREST AND BANK CHARGES | D7: BAD DEBT | F7: HEALTH AND EDUCATION LEVY
A9: DIVISION / DISTRICT | B9: AMOUNT | C9: % | D9: AMOUNT | E9: % | F9: AMOUNT | G9: %
A11: BEAUTIFUL PLAINS | B11: 1262 | C11: =B11/'- 3 -'!$D11*100 -> 0.005606939169 | D11: 0 | E11: =D11/'- 3 -'!$D11*100 -> 0 | F11: 369771 | G11: =F11/'- 3 -'!$D11*100 -> 1.642855391
A12: BORDER LAND | B12: 18299 | C12: =B12/'- 3 -'!$D12*100 -> 0.0531826792 | D12: 0 | E12: =D12/'- 3 -'!$D12*100 -> 0 | F12: 561032 | G12: =F12/'- 3 -'!$D12*100 -> 1.630536362
A13: BRANDON | B13: 4203 | C13: =B13/'- 3 -'!$D13*100 -> 0.003729783628 | D13: 59 | E13: =D13/'- 3 -'!$D13*100 -> 5.235718154e-05 | F13: 1930446 | G13: =F13/'- 3 -'!$D13*100 -> 1.713096808
A14: DSFM | B14: 43310 | C14: =B14/'- 3 -'!$D14*100 -> 0.04217211454 | D14: 1617 | E14: =D14/'- 3 -'!$D14*100 -> 0.001574516491 | F14: 1526724 | G14: =F14/'- 3 -'!$D14*100 -> 1.486612316
A15: EVERGREEN | B15: 33809 | C15: =B15/'- 3 -'!$D15*100 -> 0.1613730277 | D15: 0 | E15: =D15/'- 3 -'!$D15*100 -> 0 | F15: 340899 | G15: =F15/'- 3 -'!$D15*100 -> 1.627137856
A16: FLIN FLON | B16: 18333 | C16: =B16/'- 3 -'!$D16*100 -> 0.11563369 | D16: 0 | E16: =D16/'- 3 -'!$D16*100 -> 0 | F16: 244487 | G16: =F16/'- 3 -'!$D16*100 -> 1.542078982
A17: FORT LA BOSSE | B17: 19245 | C17: =B17/'- 3 -'!$D17*100 -> 0.1016370778 | D17: 0 | E17: =D17/'- 3 -'!$D17*100 -> 0 | F17: 327954 | G17: =F17/'- 3 -'!$D17*100 -> 1.731997206
A18: FRONTIER | B18: 65506 | C18: =B18/'- 3 -'!$D18*100 -> 0.0458477219 | D18: 0 | E18: =D18/'- 3 -'!$D18*100 -> 0 | F18: 1346509 | G18: =F18/'- 3 -'!$D18*100 -> 0.9424231394
A19: GARDEN VALLEY | B19: 33779 | C19: =B19/'- 3 -'!$D19*100 -> 0.06369812065 | D19: 0 | E19: =D19/'- 3 -'!$D19*100 -> 0 | F19: 907634 | G19: =F19/'- 3 -'!$D19*100 -> 1.711553925
A20: HANOVER | B20: 67549 | C20: =B20/'- 3 -'!$D20*100 -> 0.07007043557 | D20: 0 | E20: =D20/'- 3 -'!$D20*100 -> 0 | F20: 1695879 | G20: =F20/'- 3 -'!$D20*100 -> 1.75918193
A21: INTERLAKE | B21: 21337 | C21: =B21/'- 3 -'!$D21*100 -> 0.0516898514 | D21: 0 | E21: =D21/'- 3 -'!$D21*100 -> 0 | F21: 688962 | G21: =F21/'- 3 -'!$D21*100 -> 1.66904173
A22: KELSEY | B22: 1969 | C22: =B22/'- 3 -'!$D22*100 -> 0.009396007999 | D22: 10800 | E22: =D22/'- 3 -'!$D22*100 -> 0.0515372709 | F22: 341039 | G22: =F22/'- 3 -'!$D22*100 -> 1.627427716
A23: LAKESHORE | B23: 2745 | C23: =B23/'- 3 -'!$D23*100 -> 0.01699243233 | D23: 0 | E23: =D23/'- 3 -'!$D23*100 -> 0 | F23: 260885 | G23: =F23/'- 3 -'!$D23*100 -> 1.614962007
A24: LORD SELKIRK | B24: 27656 | C24: =B24/'- 3 -'!$D24*100 -> 0.04563657887 | D24: 0 | E24: =D24/'- 3 -'!$D24*100 -> 0 | F24: 919547 | G24: =F24/'- 3 -'!$D24*100 -> 1.517391495
A25: LOUIS RIEL | B25: 135912 | C25: =B25/'- 3 -'!$D25*100 -> 0.06772405763 | D25: 96841 | E25: =D25/'- 3 -'!$D25*100 -> 0.04825523475 | F25: 3339362 | G25: =F25/'- 3 -'!$D25*100 -> 1.663982169
A26: MOUNTAIN VIEW | B26: 44378 | C26: =B26/'- 3 -'!$D26*100 -> 0.1036560007 | D26: 0 | E26: =D26/'- 3 -'!$D26*100 -> 0 | F26: 699565 | G26: =F26/'- 3 -'!$D26*100 -> 1.634010324
A27: MYSTERY LAKE | B27: 3236 | C27: =B27/'- 3 -'!$D27*100 -> 0.007465222123 | D27: 0 | E27: =D27/'- 3 -'!$D27*100 -> 0 | F27: 658186 | G27: =F27/'- 3 -'!$D27*100 -> 1.518388346
A28: PARK WEST | B28: 34643 | C28: =B28/'- 3 -'!$D28*100 -> 0.1182315162 | D28: 0 | E28: =D28/'- 3 -'!$D28*100 -> 0 | F28: 440540 | G28: =F28/'- 3 -'!$D28*100 -> 1.503498892
A29: PEMBINA TRAILS | B29: 207873 | C29: =B29/'- 3 -'!$D29*100 -> 0.1148086546 | D29: 0 | E29: =D29/'- 3 -'!$D29*100 -> 0 | F29: 3020132 | G29: =F29/'- 3 -'!$D29*100 -> 1.668024667
A30: PINE CREEK | B30: 7720 | C30: =B30/'- 3 -'!$D30*100 -> 0.04659933787 | D30: 0 | E30: =D30/'- 3 -'!$D30*100 -> 0 | F30: 292544 | G30: =F30/'- 3 -'!$D30*100 -> 1.765849313
A31: PORTAGE LA PRAIRIE | B31: 44 | C31: =B31/'- 3 -'!$D31*100 -> 9.988768765e-05 | D31: 0 | E31: =D31/'- 3 -'!$D31*100 -> 0 | F31: 748394 | G31: =F31/'- 3 -'!$D31*100 -> 1.698985139
A32: PRAIRIE ROSE | B32: 33581 | C32: =B32/'- 3 -'!$D32*100 -> 0.1004668428 | D32: -19292 | E32: =D32/'- 3 -'!$D32*100 -> -0.05771735001 | F32: 563694 | G32: =F32/'- 3 -'!$D32*100 -> 1.686446397
A33: PRAIRIE SPIRIT | B33: 14754 | C33: =B33/'- 3 -'!$D33*100 -> 0.04943979624 | D33: 0 | E33: =D33/'- 3 -'!$D33*100 -> 0 | F33: 501637 | G33: =F33/'- 3 -'!$D33*100 -> 1.680956423
A34: RED RIVER VALLEY | B34: 48342 | C34: =B34/'- 3 -'!$D34*100 -> 0.1476109271 | D34: 200 | E34: =D34/'- 3 -'!$D34*100 -> 0.0006106943326 | F34: 564844 | G34: =F34/'- 3 -'!$D34*100 -> 1.724735148
A35: RIVER EAST TRANSCONA | B35: 24320 | C35: =B35/'- 3 -'!$D35*100 -> 0.01147447586 | D35: 0 | E35: =D35/'- 3 -'!$D35*100 -> 0 | F35: 3556549 | G35: =F35/'- 3 -'!$D35*100 -> 1.678023669
A36: ROLLING RIVER | B36: 33997 | C36: =B36/'- 3 -'!$D36*100 -> 0.1349912945 | D36: 0 | E36: =D36/'- 3 -'!$D36*100 -> 0 | F36: 418822 | G36: =F36/'- 3 -'!$D36*100 -> 1.663009205
A37: SEINE RIVER | B37: 26956 | C37: =B37/'- 3 -'!$D37*100 -> 0.0482195155 | D37: 0 | E37: =D37/'- 3 -'!$D37*100 -> 0 | F37: 977234 | G37: =F37/'- 3 -'!$D37*100 -> 1.748098754
A38: SEVEN OAKS | B38: 65741 | C38: =B38/'- 3 -'!$D38*100 -> 0.04193642443 | D38: 25109 | E38: =D38/'- 3 -'!$D38*100 -> 0.01601712297 | F38: 2642418 | G38: =F38/'- 3 -'!$D38*100 -> 1.68560811
A39: SOUTHWEST HORIZON | B39: -1716 | C39: =B39/'- 3 -'!$D39*100 -> -0.007319951274 | D39: 0 | E39: =D39/'- 3 -'!$D39*100 -> 0 | F39: 398292 | G39: =F39/'- 3 -'!$D39*100 -> 1.698996523
A40: ST. JAMES-ASSINIBOIA | B40: 34971 | C40: =B40/'- 3 -'!$D40*100 -> 0.03084055201 | D40: 0 | E40: =D40/'- 3 -'!$D40*100 -> 0 | F40: 2212978 | G40: =F40/'- 3 -'!$D40*100 -> 1.951601702
A41: SUNRISE | B41: 107822 | C41: =B41/'- 3 -'!$D41*100 -> 0.1548393493 | D41: 802 | E41: =D41/'- 3 -'!$D41*100 -> 0.00115172375 | F41: 1144093 | G41: =F41/'- 3 -'!$D41*100 -> 1.642991372
A42: SWAN VALLEY | B42: 2896 | C42: =B42/'- 3 -'!$D42*100 -> 0.01331657848 | D42: 0 | E42: =D42/'- 3 -'!$D42*100 -> 0 | F42: 347247 | G42: =F42/'- 3 -'!$D42*100 -> 1.596734091
A43: TURTLE MOUNTAIN | B43: 10821 | C43: =B43/'- 3 -'!$D43*100 -> 0.07807101324 | D43: 0 | E43: =D43/'- 3 -'!$D43*100 -> 0 | F43: 231386 | G43: =F43/'- 3 -'!$D43*100 -> 1.669396495
A44: TURTLE RIVER | B44: 1831 | C44: =B44/'- 3 -'!$D44*100 -> 0.01618538355 | D44: 0 | E44: =D44/'- 3 -'!$D44*100 -> 0 | F44: 176953 | G44: =F44/'- 3 -'!$D44*100 -> 1.564201079
A45: WESTERN | B45: 18139 | C45: =B45/'- 3 -'!$D45*100 -> 0.07957444714 | D45: 0 | E45: =D45/'- 3 -'!$D45*100 -> 0 | F45: 397138 | G45: =F45/'- 3 -'!$D45*100 -> 1.74221494
A46: WINNIPEG | B46: 67188 | C46: =B46/'- 3 -'!$D46*100 -> 0.01555852997 | D46: 0 | E46: =D46/'- 3 -'!$D46*100 -> 0 | F46: 7465041 | G46: =F46/'- 3 -'!$D46*100 -> 1.728657857
A48: PROVINCE | B48: =SUM(B11:B46) -> 1282451 | C48: =B48/'- 3 -'!$D48*100 -> 0.04988130689 | D48: =SUM(D11:D46) -> 116136 | E48: =D48/'- 3 -'!$F48*100 -> 0.004579555523 | F48: =SUM(F11:F46) -> 42258817 | G48: =F48/'- 3 -'!$D48*100 -> 1.643669052
A50: WHITESHELL | B50: 2088 | C50: =B50/'- 3 -'!$D50*100 -> 0.06159153954 | D50: 0 | E50: =D50/'- 3 -'!$D50*100 -> 0 | F50: 43256 | G50: =F50/'- 3 -'!$D50*100 -> 1.275959595
A51: MITT | B51: 162477 | C51: =B51/'- 3 -'!$D51*100 -> 0.5218826835 | D51: 40779 | E51: =D51/'- 3 -'!$D51*100 -> 0.1309837943 | F51: 414253 | G51: =F51/'- 3 -'!$D51*100 -> 1.33059736

Sheet - 34 -
B2: ANALYSIS OF TRANSPORTATION EXPENSES
B3: =OPYEAR -> OPERATING FUND 2020/2021 ACTUAL
B6: REGULAR TRANSPORTATION
B7: (PROGRAM 720)
C8: TRANSPORTED PUPILS | D8: PER PUPIL | E8: TOTAL KM. (ROUTES) | F8: COST PER KM. | G8: LOADED KM. | H8: COST PER KM.
A9: DIVISION / DISTRICT | B9: AMOUNT
A11: BEAUTIFUL PLAINS | B11: ='- 29 -'!$D11 -> 1126505 | C11: 639 | D11: =IF(AND(CELL("type",C11)="v",C11>0),B11/C11,"") -> 1762.918623 | E11: 594412 | F11: =IF(AND(CELL("type",E11)="v",E11>0),B11/E11,"") -> 1.895158577 | G11: 378560 | H11: =IF(AND(CELL("type",G11)="v",G11>0),B11/G11,"") -> 2.975763419
A12: BORDER LAND | B12: ='- 29 -'!$D12 -> 2155585 | C12: 1349 | D12: =IF(AND(CELL("type",C12)="v",C12>0),B12/C12,"") -> 1597.913269 | E12: 1005954 | F12: =IF(AND(CELL("type",E12)="v",E12>0),B12/E12,"") -> 2.14282661 | G12: 607074 | H12: =IF(AND(CELL("type",G12)="v",G12>0),B12/G12,"") -> 3.550777994
A13: BRANDON | B13: ='- 29 -'!$D13 -> 1946742 | C13: 2028 | D13: 959.9319527 | E13: 807989 | F13: 2.409366959 | G13: 462917 | H13: 4.20538023
A14: DSFM | B14: ='- 29 -'!$D14 -> 8551060 | C14: 3711 | D14: 2304.246834 | E14: 3253326 | F14: 2.628405515 | G14: 1596066 | H14: 5.357585463
A15: EVERGREEN | B15: ='- 29 -'!$D15 -> 1404149 | C15: 865 | D15: 1623.293642 | E15: 690696 | F15: 2.032947925 | G15: 418834 | H15: 3.352519136
A16: FLIN FLON | B16: ='- 29 -'!$D16 -> 336430 | C16: 153 | D16: 2198.888889 | E16: 59148 | F16: 5.687935349 | G16: 39432 | H16: 8.531903023
A17: FORT LA BOSSE | B17: ='- 29 -'!$D17 -> 1328514 | C17: 670 | D17: 1982.856716 | E17: 941106.6 | F17: 1.411650922 | G17: 631496 | H17: 2.103756793
A18: FRONTIER | B18: ='- 29 -'!$D18 -> 7628838 | C18: 5045 | D18: 1512.158176 | E18: 1261000 | F18: 6.049831879 | G18: 809320 | H18: 9.426231898
A19: GARDEN VALLEY | B19: ='- 29 -'!$D19 -> 2732690 | C19: 2417 | D19: 1130.612329 | E19: 799848 | F19: 3.416511637 | G19: 421498 | H19: 6.483281059
A20: HANOVER | B20: ='- 29 -'!$D20 -> 3429301 | C20: 3631 | D20: 944.45084 | E20: 1180495 | F20: 2.904968678 | G20: 636771 | H20: 5.385454111
A21: INTERLAKE | B21: ='- 29 -'!$D21 -> 2039494 | C21: 1464 | D21: 1393.096995 | E21: 811720 | F21: 2.512558518 | G21: 505123 | H21: 4.03761856
A22: KELSEY | B22: ='- 29 -'!$D22 -> 349943 | C22: 338 | D22: 1035.33432 | E22: 115292 | F22: 3.035275648 | G22: 99609.6 | H22: 3.513145319
A23: LAKESHORE | B23: ='- 29 -'!$D23 -> 1473567 | C23: 669 | D23: 2202.641256 | E23: 909540 | F23: 1.620123359 | G23: 522102 | H23: 2.822373789
A24: LORD SELKIRK | B24: ='- 29 -'!$D24 -> 2450506 | C24: 2522 | D24: 971.6518636 | E24: 997706 | F24: 2.456140386 | G24: 700856 | H24: 3.496447202
A25: LOUIS RIEL | B25: ='- 29 -'!$D25 -> 4395461 | C25: 2871 | D25: 1530.986068 | E25: 935508 | F25: 4.698475053 | G25: 483140 | H25: 9.09769632
A26: MOUNTAIN VIEW | B26: ='- 29 -'!$D26 -> 2474870 | C26: 1479 | D26: 1673.340095 | E26: 1368139 | F26: 1.808931695 | G26: 1000149 | H26: 2.474501299
A27: MYSTERY LAKE | B27: ='- 29 -'!$D27 -> 65000 | C27: 0 | D27: =IF(AND(CELL("type",C27)="v",C27>0),B27/C27,"") ->  | E27: 0 | F27: =IF(AND(CELL("type",E27)="v",E27>0),B27/E27,"") ->  | G27: 0 | H27: =IF(AND(CELL("type",G27)="v",G27>0),B27/G27,"") -> 
A28: PARK WEST | B28: ='- 29 -'!$D28 -> 1690480 | C28: 768 | D28: 2201.145833 | E28: 1100153 | F28: 1.536586275 | G28: 699248 | H28: 2.417568588
A29: PEMBINA TRAILS | B29: ='- 29 -'!$D29 -> 2862095 | C29: 2453 | D29: 1166.773339 | E29: 495550 | F29: 5.775592776 | G29: 246092 | H29: 11.63018302
A30: PINE CREEK | B30: ='- 29 -'!$D30 -> 1151399 | C30: 552 | D30: 2085.867754 | E30: 488111 | F30: 2.35888763 | G30: 311752 | H30: 3.693317124
A31: PORTAGE LA PRAIRIE | B31: ='- 29 -'!$D31 -> 1055794 | C31: 844 | D31: 1250.940758 | E31: 592164 | F31: 1.782941888 | G31: 385056 | H31: 2.741923253
A32: PRAIRIE ROSE | B32: ='- 29 -'!$D32 -> 2391812 | C32: 1148 | D32: 2083.45993 | E32: 1112405 | F32: 2.150126977 | G32: 793178 | H32: 3.015479501
A33: PRAIRIE SPIRIT | B33: ='- 29 -'!$D33 -> 2283781 | C33: 1024 | D33: 2230.254883 | E33: 1607040 | F33: 1.42111024 | G33: 941532 | H33: 2.425601042
A34: RED RIVER VALLEY | B34: ='- 29 -'!$D34 -> 2311781 | C34: 1220 | D34: 1894.902459 | E34: 1386481 | F34: 1.667373011 | G34: 850875.6 | H34: 2.716943581
A35: RIVER EAST TRANSCONA | B35: ='- 29 -'!$D35 -> 4052997 | C35: 3661 | D35: 1107.07375 | E35: 1105770 | F35: 3.665316476 | G35: 502572 | H35: 8.06451016
A36: ROLLING RIVER | B36: ='- 29 -'!$D36 -> 1631008 | C36: 897 | D36: 1818.292085 | E36: 830088 | F36: 1.964861557 | G36: 527040 | H36: 3.094656952
A37: SEINE RIVER | B37: ='- 29 -'!$D37 -> 3186024 | C37: 2314 | D37: 1376.847018 | E37: 1351476 | F37: 2.35744031 | G37: 805008 | H37: 3.957754457
A38: SEVEN OAKS | B38: ='- 29 -'!$D38 -> 3666570 | C38: 2415 | D38: 1518.248447 | E38: 717909 | F38: 5.107290757 | G38: 371307 | H38: 9.874766702
A39: SOUTHWEST HORIZON | B39: ='- 29 -'!$D39 -> 1858666 | C39: 710 | D39: 2617.839437 | E39: 997920 | F39: 1.862540083 | G39: 598680 | H39: 3.104606802
A40: ST. JAMES-ASSINIBOIA | B40: ='- 29 -'!$D40 -> 2465796 | C40: 1496 | D40: 1648.259358 | E40: 510042 | F40: 4.834495983 | G40: 220376 | H40: 11.18904055
A41: SUNRISE | B41: ='- 29 -'!$D41 -> 4689486 | C41: 3386 | D41: 1384.963379 | E41: 2332988 | F41: 2.010077206 | G41: 1386308 | H41: 3.382715818
A42: SWAN VALLEY | B42: ='- 29 -'!$D42 -> 1459938 | C42: 911 | D42: 1602.566411 | E42: 652855 | F42: 2.236236224 | G42: 752710 | H42: 1.939575667
A43: TURTLE MOUNTAIN | B43: ='- 29 -'!$D43 -> 965533 | C43: 503 | D43: 1919.548708 | E43: 469576 | F43: 2.056180469 | G43: 303676 | H43: 3.179484055
A44: TURTLE RIVER | B44: ='- 29 -'!$D44 -> 904691 | C44: 413 | D44: 2190.535109 | E44: 509635 | F44: 1.77517439 | G44: 422592 | H44: 2.140814308
A45: WESTERN | B45: ='- 29 -'!$D45 -> 725973 | C45: 901 | D45: 805.7413984 | E45: 265563 | F45: 2.733712904 | G45: 162237 | H45: 4.474768394
A46: WINNIPEG | B46: ='- 29 -'!$D46 -> 5682197 | C46: 1608 | D46: 3533.704602 | E46: 599308 | F46: 9.48126339 | G46: 501319 | H46: 11.33449361
A48: PROVINCE | B48: =SUM(B11:B46) -> 88924676 | C48: =SUM(C11:C46) -> 57075 | D48: =B48/C48 -> 1558.031993 | E48: =SUM(E11:E46) -> 32856913.6 | F48: =B48/E48 -> 2.706422066 | G48: =SUM(G11:G46) -> 20094506.2 | H48: =B48/G48 -> 4.425322778
A50: WHITESHELL | B50: ='- 29 -'!$D50 -> 0 | C50: N/A | D50: =IF(AND(CELL("type",C50)="v",C50>0),B50/C50,"") ->  | E50: N/A | F50: =IF(AND(CELL("type",E50)="v",E50>0),B50/E50,"") ->  | G50: N/A | H50: =IF(AND(CELL("type",G50)="v",G50>0),B50/G50,"") -> 
A51: MITT | B51: ='- 29 -'!$D51 -> 0 | C51: 0 | D51: =IF(AND(CELL("type",C51)="v",C51>0),B51/C51,"") ->  | E51: 0 | F51: =IF(AND(CELL("type",E51)="v",E51>0),B51/E51,"") ->  | G51: 0 | H51: =IF(AND(CELL("type",G51)="v",G51>0),B51/G51,"") -> 

Sheet - 35 -
B2: ANALYSIS OF TRANSPORTATION EXPENSES (CONT'D)
B3: =OPYEAR -> OPERATING FUND 2020/2021 ACTUAL
B6: ADMINISTRATION, REGULAR AND OTHER (PROGRAMS 710, 720 AND 790)
C8: TOTAL KM. (LOG BOOK) | D8: COST PER KM.
A9: DIVISION / DISTRICT | B9: AMOUNT
A11: BEAUTIFUL PLAINS | B11: =SUM('- 29 -'!$B11,'- 29 -'!$D11,'- 30 -'!$D11) -> 1229699 | C11: 664227 | D11: =IF(AND(CELL("type",C11)="v",C11>0),B11/C11,"") -> 1.851323418
A12: BORDER LAND | B12: =SUM('- 29 -'!$B12,'- 29 -'!$D12,'- 30 -'!$D12) -> 2303746 | C12: 1001193 | D12: =IF(AND(CELL("type",C12)="v",C12>0),B12/C12,"") -> 2.301000906
A13: BRANDON | B13: =SUM('- 29 -'!$B13,'- 29 -'!$D13,'- 30 -'!$D13) -> 2194374 | C13: 605577 | D13: 3.623608558
A14: DSFM | B14: =SUM('- 29 -'!$B14,'- 29 -'!$D14,'- 30 -'!$D14) -> 9040725 | C14: N/A
A15: EVERGREEN | B15: =SUM('- 29 -'!$B15,'- 29 -'!$D15,'- 30 -'!$D15) -> 1573699 | C15: 690696 | D15: 2.278424951
A16: FLIN FLON | B16: =SUM('- 29 -'!$B16,'- 29 -'!$D16,'- 30 -'!$D16) -> 340740 | C16: 63677 | D16: 5.351068675
A17: FORT LA BOSSE | B17: =SUM('- 29 -'!$B17,'- 29 -'!$D17,'- 30 -'!$D17) -> 1398209 | C17: 988038.4252 | D17: 1.415136258
A18: FRONTIER | B18: =SUM('- 29 -'!$B18,'- 29 -'!$D18,'- 30 -'!$D18) -> 8439040 | C18: 1343500 | D18: 6.281384444
A19: GARDEN VALLEY | B19: =SUM('- 29 -'!$B19,'- 29 -'!$D19,'- 30 -'!$D19) -> 2904403 | C19: 750934 | D19: 3.867720732
A20: HANOVER | B20: =SUM('- 29 -'!$B20,'- 29 -'!$D20,'- 30 -'!$D20) -> 3825018 | C20: 1177060 | D20: 3.249637232
A21: INTERLAKE | B21: =SUM('- 29 -'!$B21,'- 29 -'!$D21,'- 30 -'!$D21) -> 2201213 | C21: 857941 | D21: 2.565692746
A22: KELSEY | B22: =SUM('- 29 -'!$B22,'- 29 -'!$D22,'- 30 -'!$D22) -> 432056 | C22: 125189 | D22: 3.451229741
A23: LAKESHORE | B23: =SUM('- 29 -'!$B23,'- 29 -'!$D23,'- 30 -'!$D23) -> 1556759 | C23: 755538 | D23: 2.060464199
A24: LORD SELKIRK | B24: =SUM('- 29 -'!$B24,'- 29 -'!$D24,'- 30 -'!$D24) -> 2630720 | C24: 997706 | D24: 2.636768748
A25: LOUIS RIEL | B25: =SUM('- 29 -'!$B25,'- 29 -'!$D25,'- 30 -'!$D25) -> 4840194 | C25: 1233185 | D25: 3.924953677
A26: MOUNTAIN VIEW | B26: =SUM('- 29 -'!$B26,'- 29 -'!$D26,'- 30 -'!$D26) -> 2687969 | C26: 1408139 | D26: 1.908880444
A27: MYSTERY LAKE | B27: =SUM('- 29 -'!$B27,'- 29 -'!$D27,'- 30 -'!$D27) -> 65465 | C27: N/A
A28: PARK WEST | B28: =SUM('- 29 -'!$B28,'- 29 -'!$D28,'- 30 -'!$D28) -> 1747675 | C28: 908608 | D28: 1.923464244
A29: PEMBINA TRAILS | B29: =SUM('- 29 -'!$B29,'- 29 -'!$D29,'- 30 -'!$D29) -> 3114277 | C29: 562557 | D29: 5.53593147
A30: PINE CREEK | B30: =SUM('- 29 -'!$B30,'- 29 -'!$D30,'- 30 -'!$D30) -> 1280127 | C30: 496877 | D30: 2.576345856
A31: PORTAGE LA PRAIRIE | B31: =SUM('- 29 -'!$B31,'- 29 -'!$D31,'- 30 -'!$D31) -> 1213985 | C31: 528518 | D31: 2.296960558
A32: PRAIRIE ROSE | B32: =SUM('- 29 -'!$B32,'- 29 -'!$D32,'- 30 -'!$D32) -> 2545359 | C32: 1108696 | D32: 2.29581328
A33: PRAIRIE SPIRIT | B33: =SUM('- 29 -'!$B33,'- 29 -'!$D33,'- 30 -'!$D33) -> 2415370 | C33: 1547717 | D33: 1.560601841
A34: RED RIVER VALLEY | B34: =SUM('- 29 -'!$B34,'- 29 -'!$D34,'- 30 -'!$D34) -> 2536860 | C34: 1386481.2 | D34: 1.82971107
A35: RIVER EAST TRANSCONA | B35: =SUM('- 29 -'!$B35,'- 29 -'!$D35,'- 30 -'!$D35) -> 4601010 | C35: 1243544 | D35: 3.699917333
A36: ROLLING RIVER | B36: =SUM('- 29 -'!$B36,'- 29 -'!$D36,'- 30 -'!$D36) -> 1689750 | C36: 786025 | D36: 2.149740784
A37: SEINE RIVER | B37: =SUM('- 29 -'!$B37,'- 29 -'!$D37,'- 30 -'!$D37) -> 3410555 | C37: 1391476 | D37: 2.45103401
A38: SEVEN OAKS | B38: =SUM('- 29 -'!$B38,'- 29 -'!$D38,'- 30 -'!$D38) -> 4224883 | C38: 966577 | D38: 4.370974066
A39: SOUTHWEST HORIZON | B39: =SUM('- 29 -'!$B39,'- 29 -'!$D39,'- 30 -'!$D39) -> 1971019 | C39: 894890 | D39: 2.202526568
A40: ST. JAMES-ASSINIBOIA | B40: =SUM('- 29 -'!$B40,'- 29 -'!$D40,'- 30 -'!$D40) -> 2611773 | C40: 546546 | D40: 4.778688345
A41: SUNRISE | B41: =SUM('- 29 -'!$B41,'- 29 -'!$D41,'- 30 -'!$D41) -> 5208859 | C41: 1911332 | D41: 2.725250768
A42: SWAN VALLEY | B42: =SUM('- 29 -'!$B42,'- 29 -'!$D42,'- 30 -'!$D42) -> 1597426 | C42: 598302 | D42: 2.669932576
A43: TURTLE MOUNTAIN | B43: =SUM('- 29 -'!$B43,'- 29 -'!$D43,'- 30 -'!$D43) -> 1035288 | C43: 444461 | D43: 2.329311233
A44: TURTLE RIVER | B44: =SUM('- 29 -'!$B44,'- 29 -'!$D44,'- 30 -'!$D44) -> 958838 | C44: 514564 | D44: 1.863398916
A45: WESTERN | B45: =SUM('- 29 -'!$B45,'- 29 -'!$D45,'- 30 -'!$D45) -> 774696 | C45: 270983 | D45: 2.858836163
A46: WINNIPEG | B46: =SUM('- 29 -'!$B46,'- 29 -'!$D46,'- 30 -'!$D46) -> 6402729 | C46: 553617 | D46: 11.56526805
A48: PROVINCE | B48: =SUM(B11:B46) -> 97004508 | C48: =SUM(C11:C46) -> 29324371.63 | D48: =B48/C48 -> 3.307982495
A50: WHITESHELL | B50: =SUM('- 29 -'!$B50,'- 29 -'!$D50,'- 30 -'!$D50) -> 5037 | C50: N/A | D50: =IF(AND(CELL("type",C50)="v",C50>0),B50/C50,"") -> 
A51: MITT | B51: =SUM('- 29 -'!$B51,'- 29 -'!$D51,'- 30 -'!$D51) -> 0 | C51: 0 | D51: =IF(AND(CELL("type",C51)="v",C51>0),B51/C51,"") -> 

Sheet - 36 -
A2: ANALYSIS OF OPERATIONS AND MAINTENANCE EXPENSES FOR SCHOOL BUILDINGS
A3: =OPYEAR -> OPERATING FUND 2020/2021 ACTUAL
F6: REPAIRS AND REPLACEMENTS
B7: MAINTENANCE | I7: TOTAL
C8: COST PER PUPIL | D8: COST PER SQ. FT. (1) | E8: SQ. FT. PER PUPIL (2) | G8: COST PER SQ. FT. (1) | I8: AREA
A9: DIVISION / DISTRICT | B9: AMOUNT | F9: AMOUNT | I9: =+Data!AB9 -> Sept. 30/20
A11: BEAUTIFUL PLAINS | B11: ='- 31 -'!D11 -> 1811950 | C11: =B11/'- 7 -'!E11 -> 952.6550999 | D11: =B11/I11 -> 5.808388416 | E11: =I11/'- 7 -'!E11 -> 164.0136698 | F11: ='- 31 -'!F11 -> 179789 | G11: =F11/I11 -> 0.5763317669 | I11: =+Data!AB11 -> 311954
A12: BORDER LAND | B12: ='- 31 -'!D12 -> 2847389 | C12: =B12/'- 7 -'!E12 -> 1448.323237 | D12: =B12/I12 -> 6.969925953 | E12: =I12/'- 7 -'!E12 -> 207.7960722 | F12: ='- 31 -'!F12 -> 198687 | G12: =F12/I12 -> 0.4863521204 | I12: =+Data!AB12 -> 408525
A13: BRANDON | B13: ='- 31 -'!D13 -> 8162735 | C13: =B13/'- 7 -'!E13 -> 960.1523261 | D13: 7.689941987 | E13: =I13/'- 7 -'!E13 -> 124.8582015 | F13: ='- 31 -'!F13 -> 551146 | G13: 0.5192231239 | I13: =+Data!AB13 -> 1061482
A14: DSFM | B14: ='- 31 -'!D14 -> 10130436 | C14: =B14/'- 7 -'!E14 -> 1709.224353 | D14: 9.787832499 | E14: =I14/'- 7 -'!E14 -> 174.6274625 | F14: ='- 31 -'!F14 -> 1942083 | G14: 1.876403257 | I14: =+Data!AB14 -> 1035003
A15: EVERGREEN | B15: ='- 31 -'!D15 -> 2375811 | C15: =B15/'- 7 -'!E15 -> 1712.913482 | D15: 8.157178957 | E15: =I15/'- 7 -'!E15 -> 209.9884643 | F15: ='- 31 -'!F15 -> 105784 | G15: 0.3632018788 | I15: =+Data!AB15 -> 291254
A16: FLIN FLON | B16: ='- 31 -'!D16 -> 2252637 | C16: =B16/'- 7 -'!E16 -> 2420.628627 | D16: 10.73988415 | E16: =I16/'- 7 -'!E16 -> 225.3868472 | F16: ='- 31 -'!F16 -> 83792 | G16: 0.3994946244 | I16: =+Data!AB16 -> 209745
A17: FORT LA BOSSE | B17: ='- 31 -'!D17 -> 1683985 | C17: =B17/'- 7 -'!E17 -> 1158.572411 | D17: 6.377402435 | E17: =I17/'- 7 -'!E17 -> 181.6683867 | F17: ='- 31 -'!F17 -> 50536 | G17: 0.1913843707 | I17: =+Data!AB17 -> 264055
A18: FRONTIER | B18: ='- 31 -'!D18 -> 21535995 | C18: =B18/'- 7 -'!E18 -> 3660.094324 | D18: =B18/I18 -> 14.61590484 | E18: =I18/'- 7 -'!E18 -> 250.4185928 | F18: ='- 31 -'!F18 -> 2383147 | G18: =F18/I18 -> 1.617378244 | I18: =+Data!AB18 -> 1473463
A19: GARDEN VALLEY | B19: ='- 31 -'!D19 -> 4465904 | C19: =B19/'- 7 -'!E19 -> 1021.945995 | D19: 6.25201802 | E19: =I19/'- 7 -'!E19 -> 163.4585812 | F19: ='- 31 -'!F19 -> 291761 | G19: 0.4084492254 | I19: =+Data!AB19 -> 714314
A20: HANOVER | B20: ='- 31 -'!D20 -> 8261502 | C20: =B20/'- 7 -'!E20 -> 1069.311675 | D20: 7.371187821 | E20: =I20/'- 7 -'!E20 -> 145.0663992 | F20: ='- 31 -'!F20 -> 463644 | G20: 0.4136786514 | I20: =+Data!AB20 -> 1120783
A21: INTERLAKE | B21: ='- 31 -'!D21 -> 3614837 | C21: =B21/'- 7 -'!E21 -> 1284.590263 | D21: 7.870763422 | E21: =I21/'- 7 -'!E21 -> 163.2103767 | F21: ='- 31 -'!F21 -> 511266 | G21: 1.113204754 | I21: =+Data!AB21 -> 459274
A22: KELSEY | B22: ='- 31 -'!D22 -> 2100511 | C22: =B22/'- 7 -'!E22 -> 1497.156807 | D22: 6.161880148 | E22: =I22/'- 7 -'!E22 -> 242.9707769 | F22: ='- 31 -'!F22 -> 22802 | G22: 0.06689000493 | I22: =+Data!AB22 -> 340888
A23: LAKESHORE | B23: ='- 31 -'!D23 -> 1268592 | C23: =B23/'- 7 -'!E23 -> 1400.211921 | D23: 5.438625373 | E23: =I23/'- 7 -'!E23 -> 257.4569536 | F23: ='- 31 -'!F23 -> 116468 | G23: 0.4993140584 | I23: =+Data!AB23 -> 233256
A24: LORD SELKIRK | B24: ='- 31 -'!D24 -> 5682159 | C24: =B24/'- 7 -'!E24 -> 1568.66052 | D24: 7.992751585 | E24: =I24/'- 7 -'!E24 -> 196.260387 | F24: ='- 31 -'!F24 -> 502413 | G24: 0.7067141736 | I24: =+Data!AB24 -> 710914
A25: LOUIS RIEL | B25: ='- 31 -'!D25 -> 18934523 | C25: =B25/'- 7 -'!E25 -> 1249.267509 | D25: 8.160925787 | E25: =I25/'- 7 -'!E25 -> 153.079141 | F25: ='- 31 -'!F25 -> 263812 | G25: 0.1137050114 | I25: =+Data!AB25 -> 2320144
A26: MOUNTAIN VIEW | B26: ='- 31 -'!D26 -> 4622373 | C26: =B26/'- 7 -'!E26 -> 1561.87633 | D26: 6.004618065 | E26: =I26/'- 7 -'!E26 -> 260.112519 | F26: ='- 31 -'!F26 -> 358538 | G26: 0.4657529264 | I26: =+Data!AB26 -> 769803
A27: MYSTERY LAKE | B27: ='- 31 -'!D27 -> 4646608 | C27: =B27/'- 7 -'!E27 -> 1540.243967 | D27: 9.936696598 | E27: =I27/'- 7 -'!E27 -> 155.0056351 | F27: ='- 31 -'!F27 -> 144868 | G27: 0.3097978919 | I27: =+Data!AB27 -> 467621
A28: PARK WEST | B28: ='- 31 -'!D28 -> 2977696 | C28: =B28/'- 7 -'!E28 -> 1542.048679 | D28: 6.717552017 | E28: =I28/'- 7 -'!E28 -> 229.5551528 | F28: ='- 31 -'!F28 -> 145596 | G28: 0.3284582118 | I28: =+Data!AB28+Data!AC28 -> 443271
A29: PEMBINA TRAILS | B29: ='- 31 -'!D29 -> 16804878 | C29: =B29/'- 7 -'!E29 -> 1140.365218 | D29: 9.090616879 | E29: =I29/'- 7 -'!E29 -> 125.4442062 | F29: ='- 31 -'!F29 -> 1935263 | G29: 1.046882607 | I29: =+Data!AB29 -> 1848596
A30: PINE CREEK | B30: ='- 31 -'!D30 -> 1391616 | C30: =B30/'- 7 -'!E30 -> 1331.689952 | D30: 6.635432113 | E30: =I30/'- 7 -'!E30 -> 200.6937799 | F30: ='- 31 -'!F30 -> 108239 | G30: 0.5160996543 | I30: =+Data!AB30 -> 209725
A31: PORTAGE LA PRAIRIE | B31: ='- 31 -'!D31 -> 4046489 | C31: =B31/'- 7 -'!E31 -> 1216.989173 | D31: 6.671825742 | E31: =I31/'- 7 -'!E31 -> 182.407218 | F31: ='- 31 -'!F31 -> 166120 | G31: 0.2738976165 | I31: =+Data!AB31 -> 606504
A32: PRAIRIE ROSE | B32: ='- 31 -'!D32 -> 2775249 | C32: =B32/'- 7 -'!E32 -> 1194.683168 | D32: 7.162006834 | E32: =I32/'- 7 -'!E32 -> 166.8084374 | F32: ='- 31 -'!F32 -> 158415 | G32: 0.4088171233 | I32: =+Data!AB32 -> 387496
A33: PRAIRIE SPIRIT | B33: ='- 31 -'!D33 -> 2902308 | C33: =B33/'- 7 -'!E33 -> 1446.092676 | D33: 5.899539592 | E33: =I33/'- 7 -'!E33 -> 245.1195815 | F33: ='- 31 -'!F33 -> 226105 | G33: 0.4596050452 | I33: =+Data!AB33 -> 491955
A34: RED RIVER VALLEY | B34: ='- 31 -'!D34 -> 2532469 | C34: =B34/'- 7 -'!E34 -> 1167.456044 | D34: 6.617979172 | E34: =I34/'- 7 -'!E34 -> 176.4067268 | F34: ='- 31 -'!F34 -> 417623 | G34: 1.091354056 | I34: =+Data!AB34 -> 382665
A35: RIVER EAST TRANSCONA | B35: ='- 31 -'!D35 -> 22021567 | C35: =B35/'- 7 -'!E35 -> 1368.734353 | D35: 8.9307096 | E35: =I35/'- 7 -'!E35 -> 153.2615452 | F35: ='- 31 -'!F35 -> 597481 | G35: 0.2423047053 | I35: =+Data!AB35 -> 2465825
A36: ROLLING RIVER | B36: ='- 31 -'!D36 -> 2505219 | C36: =B36/'- 7 -'!E36 -> 1465.040351 | D36: 7.782624364 | E36: =I36/'- 7 -'!E36 -> 188.2450292 | F36: ='- 31 -'!F36 -> 109943 | G36: 0.3415450188 | I36: =+Data!AB36 -> 321899
A37: SEINE RIVER | B37: ='- 31 -'!D37 -> 4341614 | C37: =B37/'- 7 -'!E37 -> 1006.937867 | D37: 7.360876059 | E37: =I37/'- 7 -'!E37 -> 136.7959274 | F37: ='- 31 -'!F37 -> 523711 | G37: 0.8879121364 | I37: =+Data!AB37 -> 589823
A38: SEVEN OAKS | B38: ='- 31 -'!D38 -> 12962425 | C38: =B38/'- 7 -'!E38 -> 1161.101855 | D38: 9.313324688 | E38: =I38/'- 7 -'!E38 -> 124.6710379 | F38: ='- 31 -'!F38 -> 827082 | G38: 0.5942470803 | I38: =+Data!AB38 -> 1391815
A39: SOUTHWEST HORIZON | B39: ='- 31 -'!D39 -> 2106070 | C39: =B39/'- 7 -'!E39 -> 1400.033238 | D39: 6.632393093 | E39: =I39/'- 7 -'!E39 -> 211.0902081 | F39: ='- 31 -'!F39 -> 71607 | G39: 0.2255033177 | I39: =+Data!AB39 -> 317543
A40: ST. JAMES-ASSINIBOIA | B40: ='- 31 -'!D40 -> 8286077 | C40: =B40/'- 7 -'!E40 -> 1040.619317 | D40: 5.679090504 | E40: =I40/'- 7 -'!E40 -> 183.2369666 | F40: ='- 31 -'!F40 -> 1320955 | G40: 0.9053527981 | I40: =+Data!AB40 -> 1459050
A41: SUNRISE | B41: ='- 31 -'!D41 -> 6079445 | C41: =B41/'- 7 -'!E41 -> 1402.894889 | D41: 8.024324635 | E41: =I41/'- 7 -'!E41 -> 174.8302758 | F41: ='- 31 -'!F41 -> 452216 | G41: 0.5968847467 | I41: =+Data!AB41 -> 757627
A42: SWAN VALLEY | B42: ='- 31 -'!D42 -> 2019426 | C42: =B42/'- 7 -'!E42 -> 1554.600462 | D42: 6.946602593 | E42: =I42/'- 7 -'!E42 -> 223.7929176 | F42: ='- 31 -'!F42 -> 244467 | G42: 0.8409395027 | I42: =+Data!AB42 -> 290707
A43: TURTLE MOUNTAIN | B43: ='- 31 -'!D43 -> 909049 | C43: =B43/'- 7 -'!E43 -> 895.6147783 | D43: 4.978417069 | E43: =I43/'- 7 -'!E43 -> 179.8995074 | F43: ='- 31 -'!F43 -> 96230 | G43: 0.5270046769 | I43: =+Data!AB43 -> 182598
A44: TURTLE RIVER | B44: ='- 31 -'!D44 -> 1083371 | C44: =B44/'- 7 -'!E44 -> 1671.868827 | D44: 5.995180043 | E44: =I44/'- 7 -'!E44 -> 278.8688272 | F44: ='- 31 -'!F44 -> 55656 | G44: 0.3079902826 | I44: =+Data!AB44 -> 180707
A45: WESTERN | B45: ='- 31 -'!D45 -> 1851055 | C45: =B45/'- 7 -'!E45 -> 1029.507786 | D45: 8.174196625 | E45: =I45/'- 7 -'!E45 -> 125.9460512 | F45: ='- 31 -'!F45 -> 143873 | G45: 0.6353383293 | I45: =+Data!AB45 -> 226451
A46: WINNIPEG | B46: ='- 31 -'!D46 -> 40953582 | C46: =B46/'- 7 -'!E46 -> 1401.310581 | D46: 8.087888602 | E46: =I46/'- 7 -'!E46 -> 173.2603712 | F46: ='- 31 -'!F46 -> 5590154 | G46: 1.103994831 | I46: =+Data!AB46 -> 5063569
A48: PROVINCE | B48: =SUM(B11:B46) -> 242947552 | C48: =B48/'- 7 -'!E48 -> 1360.879401 | D48: =B48/I48 -> 8.163476825 | E48: =I48/'- 7 -'!E48 -> 166.7034071 | F48: =SUM(F11:F46) -> 21361272 | G48: 0.7177773453 | I48: =+Data!AB48 -> 29760304
A50: WHITESHELL | B50: ='- 31 -'!D50 -> 435598 | C50: =B50/'- 7 -'!E50 -> 2367.380435 | D50: =B50/I50 -> 5.962521901 | E50: =I50/'- 7 -'!E50 -> 397.0434783 | F50: ='- 31 -'!F50 -> 0 | G50: =F50/I50 -> 0 | I50: =+Data!AB50 -> 73056
A51: MITT | B51: ='- 31 -'!D51 -> 3978919 | C51: =B51/'- 7 -'!E51 -> 2242.781692 | D51: N/A | E51: =I51/'- 7 -'!E51 -> 0 | F51: ='- 31 -'!F51 -> 0 | G51: N/A
A53: (1) Based on area (square footage) of active school buildings as at September 30, 2020. Includes rented and leased space.
A54: (2) Square footage (as per note above) divided by total F.T.E. enrolment (from page 7).

Sheet - 37 -
B2: ANALYSIS OF INFORMATION TECHNOLOGY EXPENSES
B3: =OPYEAR -> OPERATING FUND 2020/2021 ACTUAL
B6: INFORMATION TECHNOLOGY EXPENSES (1)
B7: SALARIES | E7: SERVICES | H7: EQUIPMENT (2)
D8: PER PUPIL | G8: PER PUPIL | J8: PER PUPIL
A9: DIVISION / DISTRICT | B9: AMOUNT | C9: % | E9: AMOUNT | F9: % | H9: AMOUNT | I9: %
A11: BEAUTIFUL PLAINS | B11: 167112 | C11: =B11/'- 3 -'!$D11*100 -> 0.7424618213 | D11: =B11/'- 7 -'!$E11 -> 87.86119874 | E11: 218489 | F11: =E11/'- 3 -'!$D11*100 -> 0.9707246689 | G11: =E11/'- 7 -'!$E11 -> 114.8732913 | H11: 583217 | I11: =H11/'- 3 -'!$D11*100 -> 2.591174518 | J11: =H11/'- 7 -'!$E11 -> 306.6335436
A12: BORDER LAND | B12: 331212 | C12: =B12/'- 3 -'!$D12*100 -> 0.9626067842 | D12: =B12/'- 7 -'!$E12 -> 168.4708467 | E12: 119969 | F12: =E12/'- 3 -'!$D12*100 -> 0.348667842 | G12: =E12/'- 7 -'!$E12 -> 61.02218221 | H12: 450472 | I12: =H12/'- 3 -'!$D12*100 -> 1.309214048 | J12: =H12/'- 7 -'!$E12 -> 229.1323964
A13: BRANDON | B13: 563809 | C13: =B13/'- 3 -'!$D13*100 -> 0.5003296639 | D13: =B13/'- 7 -'!$E13 -> 66.31876728 | E13: 678629 | F13: =E13/'- 3 -'!$D13*100 -> 0.6022220636 | G13: =E13/'- 7 -'!$E13 -> 79.82461918 | H13: 3467759 | I13: =H13/'- 3 -'!$D13*100 -> 3.077323517 | J13: =H13/'- 7 -'!$E13 -> 407.8996648
A14: DSFM | B14: 528680 | C14: =B14/'- 3 -'!$D14*100 -> 0.514789968 | D14: =B14/'- 7 -'!$E14 -> 89.19978674 | E14: 719956 | F14: =E14/'- 3 -'!$D14*100 -> 0.7010405655 | G14: =E14/'- 7 -'!$E14 -> 121.472198 | H14: 903300 | I14: =H14/'- 3 -'!$D14*100 -> 0.8795675608 | J14: =H14/'- 7 -'!$E14 -> 152.4063088
A15: EVERGREEN | B15: 141603 | C15: =B15/'- 3 -'!$D15*100 -> 0.6758823048 | D15: =B15/'- 7 -'!$E15 -> 102.0930065 | E15: 198485 | F15: =E15/'- 3 -'!$D15*100 -> 0.9473845842 | G15: =E15/'- 7 -'!$E15 -> 143.1038212 | H15: 55806 | I15: =H15/'- 3 -'!$D15*100 -> 0.2663664464 | J15: =H15/'- 7 -'!$E15 -> 40.23503965
A16: FLIN FLON | B16: 0 | C16: =B16/'- 3 -'!$D16*100 -> 0 | D16: =B16/'- 7 -'!$E16 -> 0 | E16: 184536 | F16: =E16/'- 3 -'!$D16*100 -> 1.163943633 | G16: =E16/'- 7 -'!$E16 -> 198.2978723 | H16: 97198 | I16: =H16/'- 3 -'!$D16*100 -> 0.6130673323 | J16: =H16/'- 7 -'!$E16 -> 104.4465936
A17: FORT LA BOSSE | B17: 123764 | C17: =B17/'- 3 -'!$D17*100 -> 0.6536249053 | D17: =B17/'- 7 -'!$E17 -> 85.14895081 | E17: 133015 | F17: =E17/'- 3 -'!$D17*100 -> 0.702481471 | G17: =E17/'- 7 -'!$E17 -> 91.51358789 | H17: 196085 | I17: =H17/'- 3 -'!$D17*100 -> 1.035568013 | J17: =H17/'- 7 -'!$E17 -> 134.9054008
A18: FRONTIER | B18: 412326 | C18: =B18/'- 3 -'!$D18*100 -> 0.2885874238 | D18: =B18/'- 7 -'!$E18 -> 70.07579878 | E18: 0 | F18: =E18/'- 3 -'!$D18*100 -> 0 | G18: =E18/'- 7 -'!$E18 -> 0 | H18: 3357819 | I18: =H18/'- 3 -'!$D18*100 -> 2.350141234 | J18: =H18/'- 7 -'!$E18 -> 570.6694426
A19: GARDEN VALLEY | B19: 469846 | C19: =B19/'- 3 -'!$D19*100 -> 0.8860033511 | D19: =B19/'- 7 -'!$E19 -> 107.5162471 | E19: 268559 | F19: =E19/'- 3 -'!$D19*100 -> 0.5064301366 | G19: =E19/'- 7 -'!$E19 -> 61.45514874 | H19: 743371 | I19: =H19/'- 3 -'!$D19*100 -> 1.40179803 | J19: =H19/'- 7 -'!$E19 -> 170.1077803
A20: HANOVER | B20: 809097 | C20: =B20/'- 3 -'!$D20*100 -> 0.8392985716 | D20: =B20/'- 7 -'!$E20 -> 104.7239192 | E20: 326985 | F20: =E20/'- 3 -'!$D20*100 -> 0.3391905339 | G20: =E20/'- 7 -'!$E20 -> 42.32267668 | H20: 3245119 | I20: =H20/'- 3 -'!$D20*100 -> 3.366251193 | J20: =H20/'- 7 -'!$E20 -> 420.0257572
A21: INTERLAKE | B21: 401885 | C21: =B21/'- 3 -'!$D21*100 -> 0.9735846618 | D21: =B21/'- 7 -'!$E21 -> 142.8162758 | E21: 139064 | F21: =E21/'- 3 -'!$D21*100 -> 0.3368888548 | G21: =E21/'- 7 -'!$E21 -> 49.41862118 | H21: 515904 | I21: =H21/'- 3 -'!$D21*100 -> 1.249800867 | J21: =H21/'- 7 -'!$E21 -> 183.3347548
A22: KELSEY | B22: 114955 | C22: =B22/'- 3 -'!$D22*100 -> 0.548561757 | D22: =B22/'- 7 -'!$E22 -> 81.93513899 | E22: 108031 | F22: =E22/'- 3 -'!$D22*100 -> 0.51552064 | G22: =E22/'- 7 -'!$E22 -> 77 | H22: 333742 | I22: =H22/'- 3 -'!$D22*100 -> 1.592606654 | J22: =H22/'- 7 -'!$E22 -> 237.8774056
A23: LAKESHORE | B23: 125256 | C23: =B23/'- 3 -'!$D23*100 -> 0.7753749013 | D23: =B23/'- 7 -'!$E23 -> 138.2516556 | E23: 66058 | F23: =E23/'- 3 -'!$D23*100 -> 0.4089202532 | G23: =E23/'- 7 -'!$E23 -> 72.91169978 | H23: 438617 | I23: =H23/'- 3 -'!$D23*100 -> 2.715180216 | J23: =H23/'- 7 -'!$E23 -> 484.1247241
A24: LORD SELKIRK | B24: 465693 | C24: =B24/'- 3 -'!$D24*100 -> 0.7684638171 | D24: =B24/'- 7 -'!$E24 -> 128.5627916 | E24: 485947 | F24: =E24/'- 3 -'!$D24*100 -> 0.8018859775 | G24: =E24/'- 7 -'!$E24 -> 134.1542666 | H24: 1510771 | I24: =H24/'- 3 -'!$D24*100 -> 2.49300043 | J24: =H24/'- 7 -'!$E24 -> 417.0750628
A25: LOUIS RIEL | B25: 984026 | C25: =B25/'- 3 -'!$D25*100 -> 0.4903336978 | D25: =B25/'- 7 -'!$E25 -> 64.92435589 | E25: 1517786 | F25: =E25/'- 3 -'!$D25*100 -> 0.7563028028 | G25: =E25/'- 7 -'!$E25 -> 100.1409296 | H25: 2931200 | I25: =H25/'- 3 -'!$D25*100 -> 1.460597723 | J25: =H25/'- 7 -'!$E25 -> 193.3955729
A26: MOUNTAIN VIEW | B26: 403777 | C26: =B26/'- 3 -'!$D26*100 -> 0.9431229214 | D26: =B26/'- 7 -'!$E26 -> 136.434195 | E26: 599415 | F26: =E26/'- 3 -'!$D26*100 -> 1.400084764 | G26: =E26/'- 7 -'!$E26 -> 202.5392803 | H26: 408636 | I26: =H26/'- 3 -'!$D26*100 -> 0.9544723402 | J26: =H26/'- 7 -'!$E26 -> 138.0760264
A27: MYSTERY LAKE | B27: 166877 | C27: =B27/'- 3 -'!$D27*100 -> 0.3849733845 | D27: =B27/'- 7 -'!$E27 -> 55.31589764 | E27: 209864 | F27: =E27/'- 3 -'!$D27*100 -> 0.4841413398 | G27: =E27/'- 7 -'!$E27 -> 69.56510209 | H27: 693077 | I27: =H27/'- 3 -'!$D27*100 -> 1.598879405 | J27: =H27/'- 7 -'!$E27 -> 229.7391276
A28: PARK WEST | B28: 245983 | C28: =B28/'- 3 -'!$D28*100 -> 0.8395041723 | D28: =B28/'- 7 -'!$E28 -> 127.3863283 | E28: 135442 | F28: =E28/'- 3 -'!$D28*100 -> 0.4622438303 | G28: =E28/'- 7 -'!$E28 -> 70.14085966 | H28: 537944 | I28: =H28/'- 3 -'!$D28*100 -> 1.835924566 | J28: =H28/'- 7 -'!$E28 -> 278.5831176
A29: PEMBINA TRAILS | B29: 1564030 | C29: =B29/'- 3 -'!$D29*100 -> 0.8638167535 | D29: =B29/'- 7 -'!$E29 -> 106.1337912 | E29: 1667614 | F29: =E29/'- 3 -'!$D29*100 -> 0.9210263943 | G29: =E29/'- 7 -'!$E29 -> 113.1629163 | H29: 2887335 | I29: =H29/'- 3 -'!$D29*100 -> 1.59468063 | J29: =H29/'- 7 -'!$E29 -> 195.9321815
A30: PINE CREEK | B30: 145146 | C30: =B30/'- 3 -'!$D30*100 -> 0.8761279137 | D30: =B30/'- 7 -'!$E30 -> 138.8956938 | E30: 150569 | F30: =E30/'- 3 -'!$D30*100 -> 0.9088621377 | G30: =E30/'- 7 -'!$E30 -> 144.0851675 | H30: 320043 | I30: =H30/'- 3 -'!$D30*100 -> 1.931838328 | J30: =H30/'- 7 -'!$E30 -> 306.261244
A31: PORTAGE LA PRAIRIE | B31: 367663 | C31: =B31/'- 3 -'!$D31*100 -> 0.8346592478 | D31: =B31/'- 7 -'!$E31 -> 110.5753383 | E31: 226171 | F31: =E31/'- 3 -'!$D31*100 -> 0.5134476864 | G31: =E31/'- 7 -'!$E31 -> 68.02135338 | H31: 822982 | I31: =H31/'- 3 -'!$D31*100 -> 1.868312931 | J31: =H31/'- 7 -'!$E31 -> 247.5133835
A32: PRAIRIE ROSE | B32: 218955 | C32: =B32/'- 3 -'!$D32*100 -> 0.6550643983 | D32: =B32/'- 7 -'!$E32 -> 94.25527335 | E32: 213955 | F32: =E32/'- 3 -'!$D32*100 -> 0.6401055164 | G32: =E32/'- 7 -'!$E32 -> 92.1028842 | H32: 459996 | I32: =H32/'- 3 -'!$D32*100 -> 1.37620517 | J32: =H32/'- 7 -'!$E32 -> 198.0180801
A33: PRAIRIE SPIRIT | B33: 322760 | C33: =B33/'- 3 -'!$D33*100 -> 1.081549996 | D33: =B33/'- 7 -'!$E33 -> 160.81714 | E33: 328234 | F33: =E33/'- 3 -'!$D33*100 -> 1.099893051 | G33: =E33/'- 7 -'!$E33 -> 163.5445939 | H33: 512430 | I33: =H33/'- 3 -'!$D33*100 -> 1.717123139 | J33: =H33/'- 7 -'!$E33 -> 255.3213752
A34: RED RIVER VALLEY | B34: 223242 | C34: =B34/'- 3 -'!$D34*100 -> 0.681663121 | D34: =B34/'- 7 -'!$E34 -> 102.9134896 | E34: 299428 | F34: =E34/'- 3 -'!$D34*100 -> 0.9142949131 | G34: =E34/'- 7 -'!$E34 -> 138.0348697 | H34: 389805 | I34: =H34/'- 3 -'!$D34*100 -> 1.190258522 | J34: =H34/'- 7 -'!$E34 -> 179.6982325
A35: RIVER EAST TRANSCONA | B35: 1028077 | C35: =B35/'- 3 -'!$D35*100 -> 0.4850594044 | D35: =B35/'- 7 -'!$E35 -> 63.89937224 | E35: 895119 | F35: =E35/'- 3 -'!$D35*100 -> 0.4223281807 | G35: =E35/'- 7 -'!$E35 -> 55.63546522 | H35: 2333973 | I35: =H35/'- 3 -'!$D35*100 -> 1.101197238 | J35: =H35/'- 7 -'!$E35 -> 145.0663808
A36: ROLLING RIVER | B36: 202029 | C36: =B36/'- 3 -'!$D36*100 -> 0.8021930239 | D36: =B36/'- 7 -'!$E36 -> 118.145614 | E36: 336304 | F36: =E36/'- 3 -'!$D36*100 -> 1.335356423 | G36: =E36/'- 7 -'!$E36 -> 196.6690058 | H36: 365773 | I36: =H36/'- 3 -'!$D36*100 -> 1.452368466 | J36: =H36/'- 7 -'!$E36 -> 213.9023392
A37: SEINE RIVER | B37: 309022 | C37: =B37/'- 3 -'!$D37*100 -> 0.5527856922 | D37: =B37/'- 7 -'!$E37 -> 71.67057077 | E37: 827151 | F37: =E37/'- 3 -'!$D37*100 -> 1.479626816 | G37: =E37/'- 7 -'!$E37 -> 191.8387179 | H37: 722664 | I37: =H37/'- 3 -'!$D37*100 -> 1.292718057 | J37: =H37/'- 7 -'!$E37 -> 167.6053529
A38: SEVEN OAKS | B38: 381791 | C38: =B38/'- 3 -'!$D38*100 -> 0.2435458758 | D38: =B38/'- 7 -'!$E38 -> 34.19871192 | E38: 749631 | F38: =E38/'- 3 -'!$D38*100 -> 0.4781923576 | G38: =E38/'- 7 -'!$E38 -> 67.14777094 | H38: 1766411 | I38: =H38/'- 3 -'!$D38*100 -> 1.12680004 | J38: =H38/'- 7 -'!$E38 -> 158.2252618
A39: SOUTHWEST HORIZON | B39: 139673 | C39: =B39/'- 3 -'!$D39*100 -> 0.595803936 | D39: =B39/'- 7 -'!$E39 -> 92.84916572 | E39: 151500 | F39: =E39/'- 3 -'!$D39*100 -> 0.6462544394 | G39: =E39/'- 7 -'!$E39 -> 100.7112943 | H39: 411080 | I39: =H39/'- 3 -'!$D39*100 -> 1.753546369 | J39: =H39/'- 7 -'!$E39 -> 273.2699594
A40: ST. JAMES-ASSINIBOIA | B40: 679495 | C40: =B40/'- 3 -'!$D40*100 -> 0.5992393951 | D40: =B40/'- 7 -'!$E40 -> 85.33539128 | E40: 646914 | F40: =E40/'- 3 -'!$D40*100 -> 0.5705065586 | G40: =E40/'- 7 -'!$E40 -> 81.24365788 | H40: 941934 | I40: =H40/'- 3 -'!$D40*100 -> 0.8306815509 | J40: =H40/'- 7 -'!$E40 -> 118.2941838
A41: SUNRISE | B41: 426389 | C41: =B41/'- 3 -'!$D41*100 -> 0.6123221172 | D41: =B41/'- 7 -'!$E41 -> 98.39367717 | E41: 699761 | F41: =E41/'- 3 -'!$D41*100 -> 1.004901949 | G41: =E41/'- 7 -'!$E41 -> 161.477097 | H41: 822829 | I41: =H41/'- 3 -'!$D41*100 -> 1.181635538 | J41: =H41/'- 7 -'!$E41 -> 189.8763124
A42: SWAN VALLEY | B42: 221032 | C42: =B42/'- 3 -'!$D42*100 -> 1.016363941 | D42: =B42/'- 7 -'!$E42 -> 170.1555042 | E42: 164647 | F42: =E42/'- 3 -'!$D42*100 -> 0.7570907102 | G42: =E42/'- 7 -'!$E42 -> 126.7490377 | H42: 520259 | I42: =H42/'- 3 -'!$D42*100 -> 2.392289296 | J42: =H42/'- 7 -'!$E42 -> 400.5073133
A43: TURTLE MOUNTAIN | B43: 48465 | C43: =B43/'- 3 -'!$D43*100 -> 0.3496637701 | D43: =B43/'- 7 -'!$E43 -> 47.74876847 | E43: 180825 | F43: =E43/'- 3 -'!$D43*100 -> 1.304610569 | G43: =E43/'- 7 -'!$E43 -> 178.1527094 | H43: 365354 | I43: =H43/'- 3 -'!$D43*100 -> 2.635944642 | J43: =H43/'- 7 -'!$E43 -> 359.9546798
A44: TURTLE RIVER | B44: 134299 | C44: =B44/'- 3 -'!$D44*100 -> 1.187155011 | D44: =B44/'- 7 -'!$E44 -> 207.2515432 | E44: 73124 | F44: =E44/'- 3 -'!$D44*100 -> 0.6463899435 | G44: =E44/'- 7 -'!$E44 -> 112.845679 | H44: 334000 | I44: =H44/'- 3 -'!$D44*100 -> 2.952440254 | J44: =H44/'- 7 -'!$E44 -> 515.4320988
A45: WESTERN | B45: 240332 | C45: =B45/'- 3 -'!$D45*100 -> 1.054318652 | D45: =B45/'- 7 -'!$E45 -> 133.6662959 | E45: 90761 | F45: =E45/'- 3 -'!$D45*100 -> 0.3981617728 | G45: =E45/'- 7 -'!$E45 -> 50.47886541 | H45: 406421 | I45: =H45/'- 3 -'!$D45*100 -> 1.782938772 | J45: =H45/'- 7 -'!$E45 -> 226.0406007
A46: WINNIPEG | B46: 2060096 | C46: =B46/'- 3 -'!$D46*100 -> 0.4770504458 | D46: =B46/'- 7 -'!$E46 -> 70.4903987 | E46: 1406964 | F46: =E46/'- 3 -'!$D46*100 -> 0.325806566 | G46: =E46/'- 7 -'!$E46 -> 48.14215129 | H46: 9579368 | I46: =H46/'- 3 -'!$D46*100 -> 2.218266418 | J46: =H46/'- 7 -'!$E46 -> 327.7776713
A48: PROVINCE | B48: =SUM(B11:B46) -> 15168397 | C48: =B48/'- 3 -'!$D48*100 -> 0.5899792396 | D48: =B48/'- 7 -'!$E48 -> 84.96631825 | E48: 11878869 | F48: =E48/'- 3 -'!$D48*100 -> 0.4620320855 | G48: =E48/'- 7 -'!$E48 -> 66.53990951 | H48: 26286460 | I48: =H48/'- 3 -'!$D48*100 -> 1.022419553 | J48: =H48/'- 7 -'!$E48 -> 147.2445457
A50: WHITESHELL | B50: 0 | C50: =B50/'- 3 -'!$D50*100 -> 0 | D50: =B50/'- 7 -'!$E50 -> 0 | E50: 38790 | F50: =E50/'- 3 -'!$D50*100 -> 1.144222135 | G50: =E50/'- 7 -'!$E50 -> 210.8152174 | H50: 95596 | I50: =H50/'- 3 -'!$D50*100 -> 2.819877784 | J50: =H50/'- 7 -'!$E50 -> 519.5434783
A51: MITT | B51: -10252 | C51: =B51/'- 3 -'!$D51*100 -> -0.03292983789 | D51: =B51/'- 7 -'!$E51 -> -5.778704695 | E51: 296432 | F51: =E51/'- 3 -'!$D51*100 -> 0.9521515515 | G51: =E51/'- 7 -'!$E51 -> 167.0886647 | H51: 125346 | I51: =H51/'- 3 -'!$D51*100 -> 0.4026164125 | J51: =H51/'- 7 -'!$E51 -> 70.65328899
A53: (1) Excludes information technology expenses in Function 300 (Adult Learning Centres), Function 400 (Community Education and Services) and, Management Information Services in Function 500. Total expenses for Management Information Services are included on page 38 and form part of Total Information Technology Expenses.
A56: (2) Capitalized Information Technology equipment is reported on page 48.

Sheet - 38 -
B2: ANALYSIS OF INFORMATION TECHNOLOGY EXPENSES
B3: =OPYEAR -> OPERATING FUND 2020/2021 ACTUAL
B5: INFORMATION TECHNOLOGY EXPENSES (1)
B6: MANAGEMENT INFORMATION SERVICES (2)
E7: TOTAL
D8: PER PUPIL | G8: PER PUPIL
A9: DIVISION / DISTRICT | B9: AMOUNT | C9: % | E9: AMOUNT | F9: %
A11: BEAUTIFUL PLAINS | B11: ='- 26 -'!B11 -> 16056 | C11: ='- 26 -'!C11 -> 0.07133519438 | D11: ='- 26 -'!D11 -> 8.441640379 | E11: =SUM('- 37 -'!B11,'- 37 -'!E11,'- 37 -'!H11,B11) -> 984874 | F11: =E11/'- 3 -'!D11*100 -> 4.375696202 | G11: =E11/'- 7 -'!E11 -> 517.809674
A12: BORDER LAND | B12: ='- 26 -'!B12 -> 86032 | C12: ='- 26 -'!C12 -> 0.2500361909 | D12: ='- 26 -'!D12 -> 43.7601412 | E12: =SUM('- 37 -'!B12,'- 37 -'!E12,'- 37 -'!H12,B12) -> 987685 | F12: =E12/'- 3 -'!D12*100 -> 2.870524865 | G12: =E12/'- 7 -'!E12 -> 502.3855666
A13: BRANDON | B13: ='- 26 -'!B13 -> 345239 | C13: ='- 26 -'!C13 -> 0.3063684915 | D13: ='- 26 -'!D13 -> 40.60918661 | E13: =SUM('- 37 -'!B13,'- 37 -'!E13,'- 37 -'!H13,B13) -> 5055436 | F13: =E13/'- 3 -'!D13*100 -> 4.486243736 | G13: =E13/'- 7 -'!E13 -> 594.6522378
A14: DSFM | B14: ='- 26 -'!B14 -> 119309 | C14: ='- 26 -'!C14 -> 0.1161743896 | D14: ='- 26 -'!D14 -> 20.13001694 | E14: =SUM('- 37 -'!B14,'- 37 -'!E14,'- 37 -'!H14,B14) -> 2271245 | F14: =E14/'- 3 -'!D14*100 -> 2.211572484 | G14: =E14/'- 7 -'!E14 -> 383.2083106
A15: EVERGREEN | B15: ='- 26 -'!B15 -> 48253 | C15: ='- 26 -'!C15 -> 0.2303153807 | D15: ='- 26 -'!D15 -> 34.78947368 | E15: =SUM('- 37 -'!B15,'- 37 -'!E15,'- 37 -'!H15,B15) -> 444147 | F15: =E15/'- 3 -'!D15*100 -> 2.119948716 | G15: =E15/'- 7 -'!E15 -> 320.221341
A16: FLIN FLON | B16: ='- 26 -'!B16 -> 35259 | C16: ='- 26 -'!C16 -> 0.2223928586 | D16: ='- 26 -'!D16 -> 37.88845906 | E16: =SUM('- 37 -'!B16,'- 37 -'!E16,'- 37 -'!H16,B16) -> 316993 | F16: =E16/'- 3 -'!D16*100 -> 1.999403824 | G16: =E16/'- 7 -'!E16 -> 340.632925
A17: FORT LA BOSSE | B17: ='- 26 -'!B17 -> 83340 | C17: ='- 26 -'!C17 -> 0.4401368702 | D17: ='- 26 -'!D17 -> 57.3374613 | E17: =SUM('- 37 -'!B17,'- 37 -'!E17,'- 37 -'!H17,B17) -> 536204 | F17: =E17/'- 3 -'!D17*100 -> 2.831811259 | G17: =E17/'- 7 -'!E17 -> 368.9054008
A18: FRONTIER | B18: ='- 26 -'!B18 -> 739125 | C18: ='- 26 -'!C18 -> 0.5173144055 | D18: ='- 26 -'!D18 -> 125.6160775 | E18: =SUM('- 37 -'!B18,'- 37 -'!E18,'- 37 -'!H18,B18) -> 4509270 | F18: =E18/'- 3 -'!D18*100 -> 3.156043064 | G18: =E18/'- 7 -'!E18 -> 766.3613188
A19: GARDEN VALLEY | B19: ='- 26 -'!B19 -> 137623 | C19: ='- 26 -'!C19 -> 0.2595200112 | D19: ='- 26 -'!D19 -> 31.49267735 | E19: =SUM('- 37 -'!B19,'- 37 -'!E19,'- 37 -'!H19,B19) -> 1619399 | F19: =E19/'- 3 -'!D19*100 -> 3.053751529 | G19: =E19/'- 7 -'!E19 -> 370.5718535
A20: HANOVER | B20: ='- 26 -'!B20 -> 90089 | C20: ='- 26 -'!C20 -> 0.09345179752 | D20: ='- 26 -'!D20 -> 11.66049702 | E20: =SUM('- 37 -'!B20,'- 37 -'!E20,'- 37 -'!H20,B20) -> 4471290 | F20: =E20/'- 3 -'!D20*100 -> 4.638192096 | G20: =E20/'- 7 -'!E20 -> 578.7328501
A21: INTERLAKE | B21: ='- 26 -'!B21 -> 51992 | C21: ='- 26 -'!C21 -> 0.1259529809 | D21: ='- 26 -'!D21 -> 18.47619048 | E21: =SUM('- 37 -'!B21,'- 37 -'!E21,'- 37 -'!H21,B21) -> 1108845 | F21: =E21/'- 3 -'!D21*100 -> 2.686227364 | G21: =E21/'- 7 -'!E21 -> 394.0458422
A22: KELSEY | B22: ='- 26 -'!B22 -> 20120 | C22: ='- 26 -'!C22 -> 0.09601202689 | D22: ='- 26 -'!D22 -> 14.3406985 | E22: =SUM('- 37 -'!B22,'- 37 -'!E22,'- 37 -'!H22,B22) -> 576848 | F22: =E22/'- 3 -'!D22*100 -> 2.752701078 | G22: =E22/'- 7 -'!E22 -> 411.1532431
A23: LAKESHORE | B23: ='- 26 -'!B23 -> 17679 | C23: ='- 26 -'!C23 -> 0.1094386926 | D23: ='- 26 -'!D23 -> 19.51324503 | E23: =SUM('- 37 -'!B23,'- 37 -'!E23,'- 37 -'!H23,B23) -> 647610 | F23: =E23/'- 3 -'!D23*100 -> 4.008914063 | G23: =E23/'- 7 -'!E23 -> 714.8013245
A24: LORD SELKIRK | B24: ='- 26 -'!B24 -> 154411 | C24: ='- 26 -'!C24 -> 0.2548014818 | D24: ='- 26 -'!D24 -> 42.62788836 | E24: =SUM('- 37 -'!B24,'- 37 -'!E24,'- 37 -'!H24,B24) -> 2616822 | F24: =E24/'- 3 -'!D24*100 -> 4.318151707 | G24: =E24/'- 7 -'!E24 -> 722.4200094
A25: LOUIS RIEL | B25: ='- 26 -'!B25 -> 876737 | C25: ='- 26 -'!C25 -> 0.4368722932 | D25: ='- 26 -'!D25 -> 57.84561079 | E25: =SUM('- 37 -'!B25,'- 37 -'!E25,'- 37 -'!H25,B25) -> 6309749 | F25: =E25/'- 3 -'!D25*100 -> 3.144106517 | G25: =E25/'- 7 -'!E25 -> 416.3064692
